Workbook

Sheet WARD 01 (hidden)
A1: Rate=G | B1: CONSTUCTION OF SEWER RETICULATION IN VUKUZAKHE,WARD 1&2
A2: <NewDataSet>· <xs:schema id="NewDataSet" xmlns="" xmlns:xs="http://www.w3.org/2001/XMLSchema" xmlns:msdata="urn:schemas-microsoft-com:xml-msdata">· <xs:element name="NewDataSet" msdata:IsDataSet="true" msdata:MainDataTable="SummaryItems" msdata:UseCurrentLocale="true">· <xs:complexType>· <xs:choice minOccurs="0" maxOccurs="unbounded">· <xs:element name="SummaryItems">· <xs:complexType>· <xs:sequence>· <xs:element name="ContractNo" type="xs:short" minOccurs="0" />· <xs:element name="ScheduleNo" type="xs:short" minOccurs="0" />· <xs:element name="SortNo" type="xs:short" minOccurs="0" />· <xs:element name="Item" type="xs:string" minOccurs="0" />· <xs:element name="SubTotalText" type="xs:string" minOccurs="0" />· <xs:element name="Description" type="xs:string" minOccurs="0" />· <xs:element name="CalcType" type="xs:string" minOccurs="0" />· <xs:element name="CalcValue" type="xs:double" minOccurs="0" />· <xs:element name="UseFirstSubTotal" type="xs:boolean" minOccurs="0" />· <xs:element name="ExclFromWorks" type="xs:boolean" minOccurs="0" />· <xs:element name="ExclFromProjected" type="xs:boolean" minOccurs="0" />· </xs:sequence>· </xs:complexType>· </xs:element>· </xs:choice>· </xs:complexType>· </xs:element>· </xs:schema>·</NewDataSet> | B2: CONTRACT NO. T05/2026
B3: SCHEDULE OF QUANTITIES
H4: SANS 1200 A : PRELIMINARY AND GENERAL
B5: ITEM NO | C5: PAYMENT | D5: DESCRIPTION | E5: UNIT | F5: QTY | G5: RATE | H5: AMOUNT (RANDS) | NG5: QTY
A6: 198 | B6: A | C6: SANS 1200 A | D6: SECTION A : PRELIMINARY AND GENERAL
A8: 199 | B8: A.1 | C8: 8.3 | D8: FIXED-CHARGE ITEMS
A10: 200 | B10: A.1.1 | C10: 8.3.1 | D10: Contractual Requirements | E10: Sum | F10: 1 | G10: =K10 -> 157,500.0 | H10: =(E10 = CHAR(37)) * (F10*G10/100) + (E10 <> CHAR(37)) * (F10*G10) -> R157,500.00 | I10: 450,000.0 | J10: R0.65 | K10: =I10-(I10*J10) -> R157,500.00 | NG10: R1.00 | NJ10: R420,000 | NK10: 0.5 | NL10: =NK10*NJ10 -> 210000
A12: 201 | C12: 8.3.2 | D12: Establish Facilities on the Site :
A14: 202 | D14: a) Facilities for Engineer (SANS 1200 AB)
A16: 203 | B16: A.1.2 | D16: Offices: 1 furnished room with a telephone and 3 name-boards | E16: Sum | F16: 1 | G16: =K16 -> 10,500.0 | H16: =(E16 = CHAR(37)) * (F16*G16/100) + (E16 <> CHAR(37)) * (F16*G16) -> R10,500.00 | I16: 30,000.0 | J16: =J10 -> R0.65 | K16: =I16-(I16*J16) -> R10,500.00 | NG16: R1.00 | NJ16: R60,000 | NK16: =NK10 -> 0.5 | NL16: =NK16*NJ16 -> 30000
A18: 206 | D18: b) Facilities for Contractor
A20: 207 | B20: A.1.3 | D20: Offices and storage sheds | E20: Sum | F20: 1 | G20: =K20 -> 5,687.5 | H20: =(E20 = CHAR(37)) * (F20*G20/100) + (E20 <> CHAR(37)) * (F20*G20) -> R5,687.50 | I20: 16,250.0 | J20: =J16 -> R0.65 | K20: =I20-(I20*J20) -> R5,687.50 | NG20: R1.00 | NJ20: R32,500 | NK20: =NK16 -> 0.5 | NL20: =NK20*NJ20 -> 16250
A22: 208 | B22: A.1.4 | D22: Workshops | E22: Sum | F22: 1 | G22: =K22 -> 437.5 | H22: =(E22 = CHAR(37)) * (F22*G22/100) + (E22 <> CHAR(37)) * (F22*G22) -> R437.50 | I22: 1,250.0 | J22: =J20 -> R0.65 | K22: =I22-(I22*J22) -> R437.50 | NG22: R1.00 | NJ22: R2,500 | NK22: =NK20 -> 0.5 | NL22: =NK22*NJ22 -> 1250
A24: 209 | B24: A.1.5 | D24: Laboratories | E24: Sum | F24: 1 | G24: =K24 -> 2,187.5 | H24: =(E24 = CHAR(37)) * (F24*G24/100) + (E24 <> CHAR(37)) * (F24*G24) -> R2,187.50 | I24: 6,250.0 | J24: =J22 -> R0.65 | K24: =I24-(I24*J24) -> R2,187.50 | NG24: R1.00 | NJ24: R12,500 | NK24: =NK22 -> 0.5 | NL24: =NK24*NJ24 -> 6250
A26: 210 | B26: A.1.6 | D26: Living accommodation | E26: Sum | F26: 1 | G26: =K26 -> 4,812.5 | H26: =(E26 = CHAR(37)) * (F26*G26/100) + (E26 <> CHAR(37)) * (F26*G26) -> R4,812.50 | I26: 13,750.0 | J26: =J24 -> R0.65 | K26: =I26-(I26*J26) -> R4,812.50 | NG26: R1.00 | NJ26: R27,500 | NK26: =NK24 -> 0.5 | NL26: =NK26*NJ26 -> 13750
A28: 211 | B28: A.1.7 | D28: Ablution and latrine facilities | E28: Sum | F28: 1 | G28: =K28 -> 875.0 | H28: =(E28 = CHAR(37)) * (F28*G28/100) + (E28 <> CHAR(37)) * (F28*G28) -> R875.00 | I28: 2,500.0 | J28: =J26 -> R0.65 | K28: =I28-(I28*J28) -> R875.00 | NG28: R1.00 | NJ28: R5,000 | NK28: =NK26 -> 0.5 | NL28: =NK28*NJ28 -> 2500
A30: 212 | B30: A.1.8 | D30: Tools and equipment | E30: Sum | F30: 1 | G30: =K30 -> 4,812.5 | H30: =(E30 = CHAR(37)) * (F30*G30/100) + (E30 <> CHAR(37)) * (F30*G30) -> R4,812.50 | I30: 13,750.0 | J30: =J28 -> R0.65 | K30: =I30-(I30*J30) -> R4,812.50 | NG30: R1.00 | NJ30: R27,500 | NK30: =NK28 -> 0.5 | NL30: =NK30*NJ30 -> 13750
A32: 213 | B32: A.1.9 | D32: Water supplies, electric power and communications | E32: Sum | F32: 1 | G32: =K32 -> 8,750.0 | H32: =(E32 = CHAR(37)) * (F32*G32/100) + (E32 <> CHAR(37)) * (F32*G32) -> R8,750.00 | I32: 25,000.0 | J32: =J30 -> R0.65 | K32: =I32-(I32*J32) -> R8,750.00 | NG32: R1.00 | NJ32: R50,000 | NK32: =NK30 -> 0.5 | NL32: =NK32*NJ32 -> 25000
A34: 214 | B34: A.1.10 | D34: Dealing with water (Subclause 5.5) | E34: Sum | F34: 1 | G34: =K34 -> 2,187.5 | H34: =(E34 = CHAR(37)) * (F34*G34/100) + (E34 <> CHAR(37)) * (F34*G34) -> R2,187.50 | I34: 6,250.0 | J34: =J32 -> R0.65 | K34: =I34-(I34*J34) -> R2,187.50 | NG34: R1.00 | NJ34: R12,500 | NK34: =NK32 -> 0.5 | NL34: =NK34*NJ34 -> 6250
A36: 220 | B36: A.1.11 | C36: 8.3.3 | D36: Other fixed-charge obligations | E36: Sum | F36: 1 | G36: =K36 -> 875.0 | H36: =(E36 = CHAR(37)) * (F36*G36/100) + (E36 <> CHAR(37)) * (F36*G36) -> R875.00 | I36: 2,500.0 | J36: =J34 -> R0.65 | K36: =I36-(I36*J36) -> R875.00 | NG36: R1.00 | NJ36: R5,000 | NK36: =NK34 -> 0.5 | NL36: =NK36*NJ36 -> 2500
A38: 221 | B38: A.1.12 | C38: 8.3.4 | D38: Remove Engineer's and Contractor's Site establishment on completion | E38: Sum | F38: 1 | G38: =K38 -> 1,312.5 | H38: =(E38 = CHAR(37)) * (F38*G38/100) + (E38 <> CHAR(37)) * (F38*G38) -> R1,312.50 | I38: 3,750.0 | J38: =J36 -> R0.65 | K38: =I38-(I38*J38) -> R1,312.50 | NG38: R1.00 | NJ38: R7,500 | NK38: 0.5 | NL38: =NK38*NJ38 -> 3750
A40: 293 | B40: A.1.13 | C40: 8.8.2 | D40: Deal with traffic and maintain the road (or accommodation of traffic and provide temporary road (detour). | E40: Sum | F40: 1 | G40: =K40 -> 35,000.0 | H40: =(E40 = CHAR(37)) * (F40*G40/100) + (E40 <> CHAR(37)) * (F40*G40) -> R35,000.00 | I40: 100,000.0 | J40: =J38 -> R0.65 | K40: =I40-(I40*J40) -> R35,000.00 | NG40: R1.00 | NJ40: R100,000 | NK40: 0.5 | NL40: =NK40*NJ40 -> 50000
A42: 222 | B42: A.2 | C42: 8.4 | D42: TIME-RELATED ITEMS
A44: 223 | B44: A.2.1 | C44: 8.4.1 | D44: Contractual Requirements | E44: month | F44: 2 | G44: =K44 -> 12,250.0 | H44: =(E44 = CHAR(37)) * (F44*G44/100) + (E44 <> CHAR(37)) * (F44*G44) -> R24,500.00 | I44: 35,000.0 | J44: =J40 -> R0.65 | K44: =I44-(I44*J44) -> R12,250.00 | NG44: R7.00 | NJ44: R12,000 | NK44: 0.5 | NL44: =NK44*NJ44 -> 6000
A46: 224 | C46: 8.4.2 | D46: Operate and maintain facilities on the Site:
A48: 225 | C48: 8.4.2.1 | D48: a) Facilities for Engineer for duration of construction (SANS 1200 AB)
A50: 226 | B50: A.2.2 | D50: Offices: 1 room, etc., as for item .1.2 | E50: month | F50: =F44 -> 2 | G50: =K50 -> 437.5 | H50: =(E50 = CHAR(37)) * (F50*G50/100) + (E50 <> CHAR(37)) * (F50*G50) -> R875.00 | I50: 1,250.0 | J50: =J44 -> R0.65 | K50: =I50-(I50*J50) -> R437.50 | NG50: R7.00 | NJ50: R1,250 | NK50: 0.5 | NL50: =NK50*NJ50 -> 625
A52: 227 | B52: A.2.3 | D52: Survey assistants and material | E52: month | F52: =F50 -> 2 | G52: =K52 -> 2,625.0 | H52: =(E52 = CHAR(37)) * (F52*G52/100) + (E52 <> CHAR(37)) * (F52*G52) -> R5,250.00 | I52: 7,500.0 | J52: =J50 -> R0.65 | K52: =I52-(I52*J52) -> R2,625.00 | NG52: R7.00 | NJ52: R7,500 | NK52: 0.5 | NL52: =NK52*NJ52 -> 3750
A54: 230 | C54: 8.4.2.2 | D54: b) Facilities for Contractor for duration of construction, except where otherwise stated
A56: 231 | B56: A.2.4 | D56: Offices and storage sheds | E56: month | F56: =F52 -> 2 | G56: =K56 -> 437.5 | H56: =(E56 = CHAR(37)) * (F56*G56/100) + (E56 <> CHAR(37)) * (F56*G56) -> R875.00 | I56: 1,250.0 | J56: =J52 -> R0.65 | K56: =I56-(I56*J56) -> R437.50 | NG56: R7.00 | NJ56: R1,250 | NK56: 0.5 | NL56: =NK56*NJ56 -> 625
A58: 232 | B58: A.2.5 | D58: Workshops | E58: month | F58: =F56 -> 2 | G58: =K58 -> 437.5 | H58: =(E58 = CHAR(37)) * (F58*G58/100) + (E58 <> CHAR(37)) * (F58*G58) -> R875.00 | I58: 1,250.0 | J58: =J56 -> R0.65 | K58: =I58-(I58*J58) -> R437.50 | NG58: R7.00 | NJ58: R750 | NK58: 0.5 | NL58: =NK58*NJ58 -> 375
A60: 233 | B60: A.2.6 | D60: Laboratories | E60: month | F60: =F58 -> 2 | G60: =K60 -> 437.5 | H60: =(E60 = CHAR(37)) * (F60*G60/100) + (E60 <> CHAR(37)) * (F60*G60) -> R875.00 | I60: 1,250.0 | J60: =J58 -> R0.65 | K60: =I60-(I60*J60) -> R437.50 | NG60: R7.00 | NJ60: R500 | NK60: 0.5 | NL60: =NK60*NJ60 -> 250
A62: 234 | B62: A.2.7 | D62: Living accommodation | E62: month | F62: =F60 -> 2 | G62: =K62 -> 2,275.0 | H62: =(E62 = CHAR(37)) * (F62*G62/100) + (E62 <> CHAR(37)) * (F62*G62) -> R4,550.00 | I62: 6,500.0 | J62: =J60 -> R0.65 | K62: =I62-(I62*J62) -> R2,275.00 | NG62: R7.00 | NJ62: R6,500 | NK62: 0.5 | NL62: =NK62*NJ62 -> 3250
A64: 235 | B64: A.2.8 | D64: Ablution and latrine facilities | E64: month | F64: =F62 -> 2 | G64: =K64 -> 700.0 | H64: =(E64 = CHAR(37)) * (F64*G64/100) + (E64 <> CHAR(37)) * (F64*G64) -> R1,400.00 | I64: 2,000.0 | J64: =J62 -> R0.65 | K64: =I64-(I64*J64) -> R700.00 | NG64: R7.00 | NJ64: R4,000 | NK64: 0.5 | NL64: =NK64*NJ64 -> 2000
B65: Total Carried Forward | H65: =SUM(H6:H64) -> R274,137.50
B67: =B1 -> CONSTUCTION OF SEWER RETICULATION IN VUKUZAKHE,WARD 1&2
B68: =B2 -> CONTRACT NO. T05/2026
B69: SCHEDULE OF QUANTITIES
H70: SANS 1200 A : PRELIMINARY AND GENERAL
B71: ITEM NO | C71: PAYMENT | D71: DESCRIPTION | E71: UNIT | F71: QTY | G71: RATE | H71: AMOUNT (RANDS) | NG71: QTY
B72: Brought Forward | H72: =H65 -> R274,137.50
A73: 236 | B73: A.2.9 | D73: Tools and equipment | E73: month | F73: =F64 -> 2 | G73: =K73 -> 875.0 | H73: =(E73 = CHAR(37)) * (F73*G73/100) + (E73 <> CHAR(37)) * (F73*G73) -> R1,750.00 | I73: 2,500.0 | J73: =J64 -> R0.65 | K73: =I73-(I73*J73) -> R875.00 | NG73: R7.00
NJ74: R5,000 | NK74: 0.5 | NL74: =NK74*NJ74 -> 2500
A75: 237 | B75: A.2.10 | D75: Water supplies, electric power and communications | E75: month | F75: =F73 -> 2 | G75: =K75 -> 437.5 | H75: =(E75 = CHAR(37)) * (F75*G75/100) + (E75 <> CHAR(37)) * (F75*G75) -> R875.00 | I75: 1,250.0 | J75: =J73 -> R0.65 | K75: =I75-(I75*J75) -> R437.50 | NG75: R7.00
NJ76: R2,500 | NK76: 0.5 | NL76: =NK76*NJ76 -> 1250
A77: 238 | B77: A.2.11 | D77: Dealing with water (Subclause 5.5) | E77: month | F77: =F75 -> 2 | G77: =K77 -> 262.5 | H77: =(E77 = CHAR(37)) * (F77*G77/100) + (E77 <> CHAR(37)) * (F77*G77) -> R525.00 | I77: 750.0 | J77: =J75 -> R0.65 | K77: =I77-(I77*J77) -> R262.50 | NG77: R7.00
NJ78: R1,500 | NK78: 0.5 | NL78: =NK78*NJ78 -> 750
A79: 239 | B79: A.2.12 | D79: Access (Subclause 5.8) | E79: month | F79: =F77 -> 2 | G79: =K79 -> 875.0 | H79: =(E79 = CHAR(37)) * (F79*G79/100) + (E79 <> CHAR(37)) * (F79*G79) -> R1,750.00 | I79: 2,500.0 | J79: =J77 -> R0.65 | K79: =I79-(I79*J79) -> R875.00 | NG79: R7.00
NJ80: R5,000 | NK80: 0.5 | NL80: =NK80*NJ80 -> 2500
A81: 244 | B81: A.2.13 | C81: 8.4.3 | D81: Supervision | E81: month | F81: =F79 -> 2 | G81: =K81 -> 12,250.0 | H81: =(E81 = CHAR(37)) * (F81*G81/100) + (E81 <> CHAR(37)) * (F81*G81) -> R24,500.00 | I81: 35,000.0 | J81: =J79 -> R0.65 | K81: =I81-(I81*J81) -> R12,250.00 | NG81: R7.00
NJ82: R120,000 | NK82: 0.5 | NL82: =NK82*NJ82 -> 60000
A83: 245 | B83: A.2.14 | C83: 8.4.4 | D83: Company and head office overhead costs | E83: month | F83: =F81 -> 2 | G83: =K83 -> 875.0 | H83: =(E83 = CHAR(37)) * (F83*G83/100) + (E83 <> CHAR(37)) * (F83*G83) -> R1,750.00 | I83: 2,500.0 | J83: =J81 -> R0.65 | K83: =I83-(I83*J83) -> R875.00 | NG83: R7.00
NJ84: R5,000 | NK84: 0.5 | NL84: =NK84*NJ84 -> 2500
A85: 246 | B85: A.2.15 | C85: 8.4.5 | D85: Other time-related obligations | E85: month | F85: =F83 -> 2 | G85: =K85 -> 437.5 | H85: =(E85 = CHAR(37)) * (F85*G85/100) + (E85 <> CHAR(37)) * (F85*G85) -> R875.00 | I85: 1,250.0 | J85: =J83 -> R0.65 | K85: =I85-(I85*J85) -> R437.50 | NG85: R7.00
B87: A.2.16 | C87: 8.8.2 | D87: Deal with traffic and maintain the road (or accommodation of traffic and provide temporary road (detour). | E87: month | F87: =F85 -> 2 | G87: =K87 -> 5,250.0 | H87: =(E87 = CHAR(37)) * (F87*G87/100) + (E87 <> CHAR(37)) * (F87*G87) -> R10,500.00 | I87: 15,000.0 | J87: =J85 -> R0.65 | K87: =I87-(I87*J87) -> R5,250.00 | NG87: R7.00
NJ88: R2,500 | NK88: 0.5 | NL88: =NK88*NJ88 -> 1250
A89: 297 | B89: A.3 | C89: 8.8 | D89: HEALTH & SAFETY
A91: 298 | B91: A.3.1 | C91: 8.8.1 | D91: Provision for use by the Engineer of an independent Health and Safety Agent for the compilation and maintenance of Health and Safety Plan including Risk Assessment, Safe Work Procedure and Method Statement | E91: PC Sum | F91: 1 | G91: =K91 -> 35,000.0 | H91: =(E91 = CHAR(37)) * (F91*G91/100) + (E91 <> CHAR(37)) * (F91*G91) -> R35,000.00 | I91: 100,000.0 | J91: =J87 -> R0.65 | K91: =I91-(I91*J91) -> R35,000.00 | NG91: R1.00
A93: 299 | B93: A.3.2 | C93: 8.8.2 | D93: Cost of health and safety measures required in terms of the Construction Regulations of the Occupation Health and Safety Act (2003) | E93: PC Sum | F93: 1 | G93: =K93 -> 17,500.0 | H93: =(E93 = CHAR(37)) * (F93*G93/100) + (E93 <> CHAR(37)) * (F93*G93) -> R17,500.00 | I93: 50,000.0 | J93: =J91 -> R0.65 | K93: =I93-(I93*J93) -> R17,500.00 | NG93: R1.00
A95: 301 | B95: A.3.4 | D95: Handling cost and profit in respect of sub-item A.4.1 to A.4.3 | E95: % | F95: =SUM(H91:H93) -> 52 500 | G95: 0.1 | H95: =(E95 = CHAR(37)) * (F95*G95/100) + (E95 <> CHAR(37)) * (F95*G95) -> R52.50 | I95: 0.1 | J95: =J93 -> R0.65 | K95: =I95-(I95*J95) -> R0.04 | NG95: R235,000.00
B97: A.4 | C97: 8.8 | D97: TRAINING
B99: A.4.1 | D99: Wages and salaries of local and other labourers employed by Contractor,Sub-Contractor and Emerging Contractors in respet of training periods for on-site training by the Contractor during which no productive work is executed. | E99: PC Sum | F99: 1 | G99: =K99 -> 17,500.0 | H99: =(E99 = CHAR(37)) * (F99*G99/100) + (E99 <> CHAR(37)) * (F99*G99) -> R17,500.00 | I99: 50,000.0 | J99: =J95 -> R0.65 | K99: =I99-(I99*J99) -> R17,500.00 | NG99: R1.00
B101: A.4.2 | D101: Acrredited and approved training courses for selected local and other labourers including wages during training as approved by Client. | E101: Prov. Sum | F101: 1 | G101: =K101 -> 52,500.0 | H101: =(E101 = CHAR(37)) * (F101*G101/100) + (E101 <> CHAR(37)) * (F101*G101) -> R52,500.00 | I101: 150,000.0 | J101: =J99 -> R0.65 | K101: =I101-(I101*J101) -> R52,500.00 | NG101: R1.00
B103: A.4.3 | D103: Contractor's charge to allow for the handling costs and profit in respect of sub-items A.5.1 & A.5.2 abovE. | E103: % | F103: =SUM(H99:H102) -> 70 000 | G103: 0.1 | H103: =(E103 = CHAR(37)) * (F103*G103/100) + (E103 <> CHAR(37)) * (F103*G103) -> R70.00 | I103: 0.1 | J103: =J101 -> R0.65 | K103: =I103-(I103*J103) -> R0.04 | NG103: R200,000.00
B105: A.5 | C105: 8.10 | D105: WAYLEAVE APPLICATIONS TO LOCAL MUNICIPALITY
A107: 302 | B107: A.5.1 | D107: Application of wayleave to relevant stakeholders prior commencement of works. | E107: PC Sum | F107: 1 | G107: =K107 -> 3,500.0 | H107: =(E107 = CHAR(37)) * (F107*G107/100) + (E107 <> CHAR(37)) * (F107*G107) -> R3,500.00 | I107: 10,000.0 | J107: =J103 -> R0.65 | K107: =I107-(I107*J107) -> R3,500.00 | NG107: R1.00
A109: 303 | B109: A.5.2 | C109: 8.10 | D109: WAYLEAVE APPLICATIONS TO ESKOM FOR CONSTRUCTION UNDER PYLONS | E109: PC Sum | F109: 1 | G109: 0 | H109: =(E109 = CHAR(37)) * (F109*G109/100) + (E109 <> CHAR(37)) * (F109*G109) -> R0.00 | I109: 100,000.0 | J109: =J107 -> R0.65 | K109: =I109-(I109*J109) -> R35,000.00 | NG109: R1.00
A111: 305 | B111: A.45.3 | D111: Contractor's charge to allow for the handling costs and profit in respect of sub-items A.5.1 & A.5.2 abovE. | E111: % | F111: =SUM(H107:H109) -> 3 500 | G111: 0.1 | H111: =(E111 = CHAR(37)) * (F111*G111/100) + (E111 <> CHAR(37)) * (F111*G111) -> R3.50 | I111: 0.1 | J111: =J109 -> R0.65 | K111: =I111-(I111*J111) -> R0.04 | NG111: R110,000.00
B114: Total Carried Forward To Summary | H114: =SUM(H72:H113) -> R442,788.50 | I114: =I487 -> R389,432.33 | J114: =H114-I114 -> R53,356.17 | NH114: =NH487 ->  | NJ114: =NH114-H114 -> 
B115: CONSTUCTION OF SEWER RETICULATION IN VUKUZAKHE,WARD 1&2
B116: CONTRACT NO. T05/2026
B117: SCHEDULE OF QUANTITIES
H118: SANS 1200 B : PRIME COST ITEMS
B119: ITEM NO | C119: PAYMENT | D119: DESCRIPTION | E119: UNIT | F119: QTY | G119: RATE | H119: AMOUNT (RANDS) | O119: Provision for use by Engineer of a Geotech Engineer Services, required during the construction stage | P119: Prov. Sum | Q119: 1 | R119: =#REF! ->  | S119: =(P119 = CHAR(37)) * (Q119*R119/100) + (P119 <> CHAR(37)) * (Q119*R119) ->  | NG119: QTY
B120: B | C120: SANS 1200 B | D120: SECTION B : PRIME COST ITEMS
O121: Provision for use by the Engineer of the Mechanical Engineer Services required during construction stage | P121: Prov. Sum | Q121: 1 | R121: =#REF! ->  | S121: =(P121 = CHAR(37)) * (Q121*R121/100) + (P121 <> CHAR(37)) * (Q121*R121) -> 
B122: B.1 | C122: 8.5 | D122: SUMS STATED PROVISIONALLY BY ENGINEER
B124: B.1.1 | D124: Provision of accommodation for Engineer's representative for the duration of the contract | E124: month | F124: =F87 -> 2 | G124: =K124 -> 7,500.0 | H124: =(E124 = CHAR(37)) * (F124*G124/100) + (E124 <> CHAR(37)) * (F124*G124) -> R15,000.00 | I124: 15,000.0 | J124: R0.50 | K124: =I124-(I124*J124) -> R7,500.00 | NG124: R7.00
B126: B.1.2 | D126: Telephone calls for the Engineer | E126: month | F126: =F124 -> 2 | G126: =K126 -> 750.0 | H126: =(E126 = CHAR(37)) * (F126*G126/100) + (E126 <> CHAR(37)) * (F126*G126) -> R1,500.00 | I126: 1,500.0 | J126: =J124 -> R0.50 | K126: =I126-(I126*J126) -> R750.00 | NG126: R7.00
B128: B.1.3 | C128: 8.6 | D128: Prime cost of laboratory testing by other concerns where so directed by the Engineer | E128: month | F128: =F126 -> 2 | G128: 10,000.0 | H128: =(E128 = CHAR(37)) * (F128*G128/100) + (E128 <> CHAR(37)) * (F128*G128) -> R20,000.00 | I128: 35,000.0 | J128: =J126 -> R0.50 | K128: =I128-(I128*J128) -> R17,500.00 | NG128: R7.00
B130: B.1.4 | D130: Comminity and Social Development Support throughout the Project Period | E130: month | F130: =F128 -> 2 | G130: =K130 -> 25,000.0 | H130: =(E130 = CHAR(37)) * (F130*G130/100) + (E130 <> CHAR(37)) * (F130*G130) -> R50,000.00 | I130: 50,000.0 | J130: =J128 -> R0.50 | K130: =I130-(I130*J130) -> R25,000.00 | NG130: R1.00
B132: B.1.5 | D132: Project Social Facilitation | E132: month | F132: =F128 -> 2 | G132: =K132 -> 27,500.0 | H132: =(E132 = CHAR(37)) * (F132*G132/100) + (E132 <> CHAR(37)) * (F132*G132) -> R55,000.00 | I132: 55,000.0 | J132: =J130 -> R0.50 | K132: =I132-(I132*J132) -> R27,500.00 | NG132: R7.00
B134: B.1.6 | D134: Required Additional Survey by Engineer | E134: month | F134: =F132 -> 2 | G134: =K134 -> 17,500.0 | H134: =(E134 = CHAR(37)) * (F134*G134/100) + (E134 <> CHAR(37)) * (F134*G134) -> R35,000.00 | I134: 35,000.0 | J134: =J132 -> R0.50 | K134: =I134-(I134*J134) -> R17,500.00 | NG134: R7.00
B136: B.1.7 | D136: Remuneration of Health and Safety Agent | E136: month | F136: =F134 -> 2 | G136: =K136 -> 27,500.0 | H136: =(E136 = CHAR(37)) * (F136*G136/100) + (E136 <> CHAR(37)) * (F136*G136) -> R55,000.00 | I136: 55,000.0 | J136: =J134 -> R0.50 | K136: =I136-(I136*J136) -> R27,500.00 | NG136: R7.00
B138: B.1.8 | D138: Remuneration of three Community Liaison Officer(CLO x 2) including transport, cellphone and overtime from three wards, 1 & 2 | E138: month | F138: =F136 -> 2 | G138: =K138 -> 16,000.0 | H138: =(E138 = CHAR(37)) * (F138*G138/100) + (E138 <> CHAR(37)) * (F138*G138) -> R32,000.00 | I138: =2*16000 -> 32,000.0 | J138: =J136 -> R0.50 | K138: =I138-(I138*J138) -> R16,000.00 | NG138: R7.00
B140: B.1.9 | D140: Allow for the testing and commissioning of new water and sewer networks, as well as outfall pipes. | E140: sum | F140: 1 | G140: =K140 -> 50,000.0 | H140: =(E140 = CHAR(37)) * (F140*G140/100) + (E140 <> CHAR(37)) * (F140*G140) -> R50,000.00 | I140: 100,000.0 | J140: =J138 -> R0.50 | K140: =I140-(I140*J140) -> R50,000.00 | NG140: R1.00
B142: B.1.10 | D142: Provision shall be made for a specialist to assess the structural integrity of the reservoir and elevated tank, as well as to evaluate the mechanical strength of the outlet pipes, fittings, and couplings associated with these structures. The specialist shall also coordinate and oversee the execution of the water-tightness test following the completion of all connections | E142: Provision sum | F142: 1 | G142: 35,000.0 | H142: =(E142 = CHAR(37)) * (F142*G142/100) + (E142 <> CHAR(37)) * (F142*G142) -> R35,000.00
B144: B.1.11 | D144: Overheads,charges and profit on item B.1.1 to B.1.10 | E144: % | F144: =SUM(H124:H142) -> 348,500 | G144: 0.1 | H144: =(E144 = CHAR(37)) * (F144*G144/100) + (E144 <> CHAR(37)) * (F144*G144) -> R348.50 | NG144: R4,621,500.00
B165: Total Carried Forward To Summary | H165: =SUM(H120:H164) -> R348,848.50 | I165: =H114+H165 -> R791,637.00
B167: =B115 -> CONSTUCTION OF SEWER RETICULATION IN VUKUZAKHE,WARD 1&2
B168: =B116 -> CONTRACT NO. T05/2026
B169: SCHEDULE OF QUANTITIES
H170: SANS 1200 C : SITE CLEARANCE
B171: ITEM NO | C171: PAYMENT | D171: DESCRIPTION | E171: UNIT | F171: QTY | G171: RATE | H171: AMOUNT (RANDS) | NG171: QTY
A172: 2057 | B172: C | C172: SANS 1200 C | D172: SECTION C : SITE CLEARANCE
A174: 2058 | B174: C.1 | D174: CLEAR SITE | I174: Ward 01
A176: 2059 | B176: C.1.1 | C176: 8.2.1 | D176: Clear and grub pipeline route 3m wide | E176: m | F176: =I176+J176+K176 -> 813 | G176: 25.0 | H176: =(E176 = CHAR(37)) * (F176*G176/100) + (E176 <> CHAR(37)) * (F176*G176) -> R20,325.00 | I176: ='[1]Ward 01_Plan1_SEWERLIST'!$G$61 -> R813.21 | NG176: R2,228.00 | NI176: 2130 | NJ176: =NI176*1.046 -> 2 228 | NK176: =NJ176-NI176 -> 98
A178: 11863 | B178: C.1.2 | C178: 8.2.2 | D178: Remove trees of girth: Over and up to
A180: 11864 | B180: C.1.2.1 | D180: 1,0 m 2,0 m | E180: No. | F180: 20 | G180: 2,800.0 | H180: =(E180 = CHAR(37)) * (F180*G180/100) + (E180 <> CHAR(37)) * (F180*G180) -> R56,000.00 | NG180: R10.00 | NJ180: 10
B182: C.1.3 | C182: 8.2.4 | D182: Reclear surfaces (provisional) (where ordered by Engineer)
B184: C.1.3.1 | D184: Clear and grub pipeline route 3m wide | E184: m | F184: =F176*0.15 -> 122 | G184: 25.0 | H184: =(E184 = CHAR(37)) * (F184*G184/100) + (E184 <> CHAR(37)) * (F184*G184) -> R3,050.00 | NG184: R150.00
B186: C.1.3.2 | D186: Working areas | E186: m² | F186: =(F176*0.76*1.5)*0.15 -> 139 | G186: 25.0 | H186: =(E186 = CHAR(37)) * (F186*G186/100) + (E186 <> CHAR(37)) * (F186*G186) -> R3,475.00 | NG186: R1,526.00
B188: C.2 | C188: 8.2.5 | D188: Take down and re-erect existing fences (all types of fences and boundaries) | E188: m | F188: =F176*0.25 -> 203 | G188: 80.0 | H188: =(E188 = CHAR(37)) * (F188*G188/100) + (E188 <> CHAR(37)) * (F188*G188) -> R16,240.00 | NG188: R981.00
A190: 11865 | B190: C.7 | C190: 1200 DA | D190: EXCAVATION
A192: 11866 | B192: C.7.1 | C192: 8.3.1 | D192: Remove topsoil to nominal depth 150 mm, stockpile, and maintain for reinstating. | E192: m³ | F192: =(F176*0.76*0.15) -> 93 | G192: 25.0 | H192: =(E192 = CHAR(37)) * (F192*G192/100) + (E192 <> CHAR(37)) * (F192*G192) -> R2,325.00 | NG192: R1,003.00 | NJ192: =NJ176*3*0.15 -> 1 003
A194: 11867 | B194: C.8 | D194: FINISHINGS
A196: 11868 | B196: C.8.1 | C196: 8.3.6 | D196: Reinstate road surfaces complete with all courses in
A198: 11869 | B198: C.8.1.1 | D198: Block Paved surfaced- the rate shall cover the supply of layer materials and compactions of layers to the existing specification, and supply and lay of paving blocks to existing thickness. | E198: m² | F198: 0 | G198: 180.0 | H198: =(E198 = CHAR(37)) * (F198*G198/100) + (E198 <> CHAR(37)) * (F198*G198) -> R0.00 | NG198: R150.00 | NJ198: =10*3*5 -> 150
A200: 11870 | B200: C.8.1.2 | D200: Gravel shoulders- the rate shall cover the supply of gravel shoulder materials and compactions of material to the existing specification. | E200: m² | F200: =258*1.2*0.08*0.5 -> 12 | G200: 80.0 | H200: =(E200 = CHAR(37)) * (F200*G200/100) + (E200 <> CHAR(37)) * (F200*G200) -> R960.00 | NG200: R24.00 | NJ200: =10*3*0.8 -> 24
A202: 11871 | B202: C.8.1.3 | D202: Kerbing in Ward 02 | E202: m | F202: =258*0.5*0 -> 0 | G202: 80.0 | H202: =(E202 = CHAR(37)) * (F202*G202/100) + (E202 <> CHAR(37)) * (F202*G202) -> R0.00 | NG202: R1,114.00 | NJ202: =NJ176*0.5 -> 1 114
B204: C.8.1.4 | D204: Concrete Surfaced Household Access | E204: m² | F204: 0 | G204: 180.0 | H204: =(E204 = CHAR(37)) * (F204*G204/100) + (E204 <> CHAR(37)) * (F204*G204) -> R0.00 | NG204: R848.00 | NJ204: =(5.3*10)*16 -> 848
B206: C.8.1.5 | D206: Asphalt Surfacing - thickness from 25mm to 50mm in the roadway, the rate shall cover the supply of layer materials and compactions of layers to the existing specification, and supply and lay of asphalt surface to existing thickness IN Ward 02 | E206: m² | F206: =258*2.5*0 -> 0 | G206: 79.2 | H206: =(E206 = CHAR(37)) * (F206*G206/100) + (E206 <> CHAR(37)) * (F206*G206) -> R0.00 | NG206: R1,337.00
D208: Gravel Surfacing - the rate shall cover the supply of layer materials and compaction of layers to the existing specification, and supply and lay of gravel wearing course surface to existing thickness. | E208: m² | F208: =122*2.5*0.5 -> 153 | G208: 180.0 | H208: =(E208 = CHAR(37)) * (F208*G208/100) + (E208 <> CHAR(37)) * (F208*G208) -> R27,540.00
B210: C.8.2 | C210: 8.3.6 | D210: Reinstate stormwater open drains
A212: 11869 | B212: C.8.2.1 | D212: kerb Channel in Ward 02 | E212: m | F212: =258*0.5*0 -> 0 | G212: 230.0 | H212: =(E212 = CHAR(37)) * (F212*G212/100) + (E212 <> CHAR(37)) * (F212*G212) -> R0.00 | NG212: R557.00 | NJ212: =NJ176*0.25 -> 557
A214: 11869 | B214: C.8.2.2 | D214: Side V-drain | E214: m | F214: 0 | G214: 230.0 | H214: =(E214 = CHAR(37)) * (F214*G214/100) + (E214 <> CHAR(37)) * (F214*G214) -> R0.00 | NG214: R1,003.00 | NJ214: =NJ176*0.45 -> 1 003
B216: Total Carried Forward To Summary | H216: =SUM(H172:H215) -> R129,915.00
B218: =B167 -> CONSTUCTION OF SEWER RETICULATION IN VUKUZAKHE,WARD 1&2
B219: =B168 -> CONTRACT NO. T05/2026
B220: SCHEDULE OF QUANTITIES
H221: SANS 1200 DB : PIPE TRENCHES
B222: ITEM NO | C222: PAYMENT | D222: DESCRIPTION | E222: UNIT | F222: QTY | G222: RATE | H222: AMOUNT (RANDS) | NG222: QTY
A223: 1991 | B223: D | C223: SANS 1200 DB | D223: SECTION D : PIPE TRENCHES | NI223: Width = | NJ223: 1.15 | NK223: 1.2
A225: 11873 | B225: D.1 | D225: PIPE TRENCHES | NI225: pipe diameter = | NJ225: 0.65
NI226: Width = | NJ226: =NJ225+0.6 -> 1.25 | NK226: =NJ226*1.045 -> 1.30625
A227: 11874 | C227: 8.3.2(a) | D227: Excavate in all materials for trenches backfill, compact, and dispose of surplus/unsuitable material, for pipes up to 250 mm diam. for total trench depth: | I227: Ward 01 | L227: Total | M227: WIDTH (0.3+0.16+0.3=0.76 | N227: VOLUME | NJ227: =F176 -> 813
A229: 2056 | B229: D.1.1 | D229: Exceeding 0,0 m but not exceeding 1,0 m | E229: m | F229: =L229 -> 0 | G229: 120.0 | H229: =(E229 = CHAR(37)) * (F229*G229/100) + (E229 <> CHAR(37)) * (F229*G229) -> R0.00 | I229: R0.00 | L229: =K229+J229+I229 -> R0.00 | M229: R0.76 | N229: =L229*M229*1 -> R0.00 | NG229: R423.00 | NJ229: 0.19 | NK229: =$NJ$227*NJ229 -> 154.47
A231: 1992 | B231: D.1.2 | D231: Exceeding 1,0 m but not exceeding 2,0 m | E231: m | F231: =L231 -> 485 | G231: 140.0 | H231: =(E231 = CHAR(37)) * (F231*G231/100) + (E231 <> CHAR(37)) * (F231*G231) -> R67,900.00 | I231: ='[1]Ward 01_Plan1_SEWERLIST'!$F$66 -> R485.01 | L231: =K231+J231+I231 -> R485.01 | M231: R0.76 | N231: =L231*M231*1 -> R368.61 | NG231: R1,203.00 | NJ231: 0.54 | NK231: =$NJ$227*NJ231 -> 439.02
A233: 1993 | B233: D.1.3 | D233: Exceeding 2,0 m but not exceeding 3,0 m | E233: m | F233: =L233 -> 328 | G233: 160.0 | H233: =(E233 = CHAR(37)) * (F233*G233/100) + (E233 <> CHAR(37)) * (F233*G233) -> R52,480.00 | I233: ='[1]Ward 01_Plan1_SEWERLIST'!$F$67 -> R328.20 | L233: =K233+J233+I233 -> R328.20 | M233: R0.76 | N233: =L233*M233*1 -> R249.43 | NG233: R446.00 | NJ233: 0.20 | NK233: =$NJ$227*NJ233 -> 162.60
A235: 2015 | B235: D.1.4 | D235: Exceeding 3,0 m but not exceeding 4,0 m | E235: m | F235: =L235 -> 0 | G235: 200.0 | H235: =(E235 = CHAR(37)) * (F235*G235/100) + (E235 <> CHAR(37)) * (F235*G235) -> R0.00 | I235: R0.00 | L235: =K235+J235+I235 -> R0.00 | M235: R0.76 | N235: =L235*M235*1 -> R0.00 | NG235: R156.00 | NJ235: 0.07 | NK235: =$NJ$227*NJ235 -> 56.91
NJ236: =SUM(NJ229:NJ235) -> 1.00 | NK236: =SUM(NK229:NK235) -> 813.00
A237: 2015 | B237: D.1.4 | D237: Exceeding 4,0 m but not exceeding 5,0 m | E237: m | F237: =L237 -> 0 | G237: 280.0 | H237: =(E237 = CHAR(37)) * (F237*G237/100) + (E237 <> CHAR(37)) * (F237*G237) -> R0.00 | I237: R0.00 | L237: =K237+J237+I237 -> R0.00 | M237: R0.76 | N237: =L237*M237*1 -> R0.00 | NG237: R156.00 | NJ237: 0.07 | NK237: =$NJ$227*NJ237 -> 56.91
L238: =SUM(L229:L237) -> R813.21 | N238: =SUM(N229:N237) -> R618.04
A239: 1994 | C239: 8.3.2(b) | D239: Extra-over incl. for (prov):
I240: =N238 -> R618.04 | NJ240: =NJ227*NJ226*4 -> 4 065 | NK240: 3025 | NL240: =NJ240-NK240 -> 1 040
A241: 1995 | B241: D.1.5 | D241: Intermediate excavation | E241: m³ | F241: =J241 -> 93 | G241: 220.0 | H241: =(E241 = CHAR(37)) * (F241*G241/100) + (E241 <> CHAR(37)) * (F241*G241) -> R20,460.00 | I241: R0.15 | J241: =I241*I240 -> R92.71 | NG241: R2,115.00
NI242: =$F$229*4*$NJ$226 -> 0 | NJ242: 0.19 | NK242: =$NJ$240*NJ242 -> 772.35
A243: 1996 | B243: D.1.6 | D243: Hard rock excavation | E243: m³ | F243: =J243 -> 340 | G243: 300.0 | H243: =(E243 = CHAR(37)) * (F243*G243/100) + (E243 <> CHAR(37)) * (F243*G243) -> R102,000.00 | I243: R0.55 | J243: =I243*I240 -> R339.92 | NG243: R6,015.00
NI244: =F231*4*$NJ$226 -> 2425 | NJ244: 0.54 | NK244: =$NJ$240*NJ244 -> 2195.10
A245: 2024 | B245: D.1.7 | D245: Boulder excavation Class A | E245: m³ | F245: =J245 -> 124 | G245: 340.0 | H245: =(E245 = CHAR(37)) * (F245*G245/100) + (E245 <> CHAR(37)) * (F245*G245) -> R42,160.00 | I245: R0.20 | J245: =I245*I240 -> R123.61 | NG245: R2,230.00
NI246: =F233*4*$NJ$226 -> 1640 | NJ246: 0.20 | NK246: =$NJ$240*NJ246 -> 813.00
A247: 2025 | B247: D.1.8 | D247: Boulder excavation Class B | E247: m³ | F247: =J247 -> 62 | G247: 380.0 | H247: =(E247 = CHAR(37)) * (F247*G247/100) + (E247 <> CHAR(37)) * (F247*G247) -> R23,560.00 | I247: R0.10 | J247: =I247*I240 -> R61.80 | NG247: R780.00
I248: =SUM(I241:I247) -> R1.00 | J248: =SUM(J241:J247) -> R618.04 | NI248: =F235*4*$NJ$226 -> 0 | NJ248: 0.07 | NK248: =$NJ$240*NJ248 -> 284.55
A249: 2017 | B249: D.1.9 | C249: 8.3.2(b) | D249: Excavate and dispose of unsuitable material from trench bottom (Provisional) | E249: m³ | F249: =I240*0.25*0.76 -> 117 | G249: 240.0 | H249: =(E249 = CHAR(37)) * (F249*G249/100) + (E249 <> CHAR(37)) * (F249*G249) -> R28,080.00 | NG249: R418.00 | NI249: =SUM(NI242:NI248) -> 4065 | NJ249: =SUM(NJ242:NJ248) -> 1.00 | NK249: =SUM(NK242:NK248) -> 4065.00
NJ250: =NJ226*NJ227*0.15 -> 152.4375
A251: 2026 | B251: D.2 | C251: PSD 8.3.3 | D251: RESTRICTED EXCAVATION
A253: 2018 | D253: Excavate for pipe trenches confined spaces in all materials and use for backfill or embankment , or dispose: | NJ253: =(110+(5*6.5))*1.15*4 -> 655.5 | NK253: road crossings and stream crossing
A255: 2019 | B255: D.2.1 | D255: Depth up to 1,0 m | E255: m³ | F255: =F229*0.15 -> 0 | G255: 140.0 | H255: =(E255 = CHAR(37)) * (F255*G255/100) + (E255 <> CHAR(37)) * (F255*G255) -> R0.00 | NG255: R262.00 | NJ255: 0.40 | NK255: =$NJ$253*NJ255 -> 262.20
A257: 2020 | B257: D.2.2 | D257: Depth over 1,0 m and up to 2,0 m | E257: m³ | F257: =F231*0.15 -> 73 | G257: 160.0 | H257: =(E257 = CHAR(37)) * (F257*G257/100) + (E257 <> CHAR(37)) * (F257*G257) -> R11,680.00 | NG257: R262.00 | NJ257: 0.40 | NK257: =$NJ$253*NJ257 -> 262.20
A259: 2021 | B259: D.2.3 | D259: Depth over 2,0 m and up to 3,0 m | E259: m³ | F259: =F233*0.15 -> 49 | G259: 180.0 | H259: =(E259 = CHAR(37)) * (F259*G259/100) + (E259 <> CHAR(37)) * (F259*G259) -> R8,820.00 | NG259: R131.00 | NJ259: 0.20 | NK259: =$NJ$253*NJ259 -> 131.10
A261: 2022 | D261: Extra over items above for: | I261: =SUM(F255:F260)*0.76*5 -> R463.60 | NJ261: =SUM(NJ255:NJ259) -> 1.00
I262: R0.15 | J262: =I262*I261 -> R69.54 | NJ262: =NJ253 -> 656
A263: 2027 | B263: D.2.4 | D263: Intermediate excavation | E263: m³ | F263: =J262 -> 70 | G263: 220.0 | H263: =(E263 = CHAR(37)) * (F263*G263/100) + (E263 <> CHAR(37)) * (F263*G263) -> R15,400.00 | NG263: R125.00
I264: R0.55 | J264: =I264*I261 -> R254.98 | NJ264: 0.19 | NK264: =$NJ$262*NJ264 -> 124.64
A265: 2028 | B265: D.2.5 | D265: Hard rock excavation | E265: m³ | F265: =J264 -> 255 | G265: 300.0 | H265: =(E265 = CHAR(37)) * (F265*G265/100) + (E265 <> CHAR(37)) * (F265*G265) -> R76,500.00 | NG265: R354.00
I266: R0.20 | J266: =I266*I261 -> R92.72 | NJ266: 0.54 | NK266: =$NJ$262*NJ266 -> 354.24
A267: 2029 | B267: D.2.6 | D267: Boulder excavation Class A | E267: m³ | F267: =J266 -> 93 | G267: 340.0 | H267: =(E267 = CHAR(37)) * (F267*G267/100) + (E267 <> CHAR(37)) * (F267*G267) -> R31,620.00 | NG267: R131.00
I268: R0.10 | J268: =I268*I261 -> R46.36 | NJ268: 0.20 | NK268: =$NJ$262*NJ268 -> 131.20
A269: 2030 | B269: D.2.7 | D269: Boulder excavation Class B | E269: m³ | F269: =J268 -> 46 | G269: 380.0 | H269: =(E269 = CHAR(37)) * (F269*G269/100) + (E269 <> CHAR(37)) * (F269*G269) -> R17,480.00 | I269: =SUM(I262:I268) -> R1.00 | J269: =SUM(J262:J268) -> R463.60 | NG269: R46.00
NJ270: 0.07 | NK270: =$NJ$262*NJ270 -> 45.92
A271: 2023 | B271: D.2.8 | D271: Extra over item 140.02 for hand excavation | E271: m³ | F271: =I261*0.25*0.76 -> 88 | G271: 180.0 | H271: =(E271 = CHAR(37)) * (F271*G271/100) + (E271 <> CHAR(37)) * (F271*G271) -> R15,840.00 | NG271: R295.00 | NJ271: =SUM(NJ264:NJ270) -> 1.00 | NK271: =SUM(NK264:NK270) -> 656.00
NI272: 23.0% | NJ272: =(F255+F257+F259+F263+F265+F267+F269) -> 586 | NK272: =NJ272*NI272 -> 134.78
A273: 1997 | D273: EXCAVATION. ANCILLARIES Make up deficiency in backfill material (Provisional) | NJ273: =NJ227 -> 813
NJ274: =NJ273*1.4*1.15 -> 1 309 | NK274: R80
A275: 1998 | B275: D.2.9 | C275: 8.3.3.1(a) | D275: from other necessary excavations on site | E275: m³ | F275: 0 | G275: 80.0 | H275: =(E275 = CHAR(37)) * (F275*G275/100) + (E275 <> CHAR(37)) * (F275*G275) -> R0.00 | NG275: R3,587.00
NJ276: =NJ274 -> 1 309 | NK276: R240
A277: 1999 | B277: D.2.10 | C277: 8.3.3.1(c) | D277: by importation from commercial or off-site sources selected by the Contractor | E277: m³ | F277: =I240*0.6*0.76 -> 282 | G277: 240.0 | H277: =(E277 = CHAR(37)) * (F277*G277/100) + (E277 <> CHAR(37)) * (F277*G277) -> R67,680.00 | NG277: R3,587.00
A279: 2035 | B279: D.3 | C279: PSD 8.3.3 | D279: SUPPLY ONLY OF BEDDING BY IMPORTATION
B281: Total Carried Forward | H281: =SUM(H223:H280) -> R581,660.00
B283: =B218 -> CONSTUCTION OF SEWER RETICULATION IN VUKUZAKHE,WARD 1&2
B284: =B219 -> CONTRACT NO. T05/2026
B285: SCHEDULE OF QUANTITIES
H286: SANS 1200 DB : PIPE TRENCHES
B287: ITEM NO | C287: PAYMENT | D287: DESCRIPTION | E287: UNIT | F287: QTY | G287: RATE | H287: AMOUNT (RANDS) | NG287: QTY
B288: Brought Forward | H288: =H281 -> R581,660.00
A289: 2040 | D289: From commercial sources: | I289: Length = | J289: =SUM(F229:F237) -> R813.00
NJ290: =#REF!*0.15*NK226 -> 
A291: 2041 | B291: D.3.7 | D291: Bedding Cradle | E291: m³ | F291: =I291 -> 93 | G291: 200.0 | H291: =(E291 = CHAR(37)) * (F291*G291/100) + (E291 <> CHAR(37)) * (F291*G291) -> R18,600.00 | I291: =J289*0.76*0.15 -> R92.68 | NG291: R437.00
NJ292: =#REF!*0.2*NK226 -> 
A293: 2042 | B293: D.3.8 | D293: 200mm layer compaceted seleted fill blanket (Class I) | E293: m³ | F293: =I293 -> 124 | G293: 240.0 | H293: =(E293 = CHAR(37)) * (F293*G293/100) + (E293 <> CHAR(37)) * (F293*G293) -> R29,760.00 | I293: =J289*0.76*0.2 -> R123.58 | NG293: R582.00
NJ294: =#REF!*0.3*NK226 -> 
A295: 2043 | B295: D.3.9 | D295: 300mm layer of consolidaed selected backfil (Class II) | E295: m³ | F295: =I295 -> 185 | G295: 260.0 | H295: =(E295 = CHAR(37)) * (F295*G295/100) + (E295 <> CHAR(37)) * (F295*G295) -> R48,100.00 | I295: =J289*0.76*0.3 -> R185.36 | NG295: R873.00 | NJ295: =NJ253 -> 655.5
A297: 2044 | B297: D.3.10 | D297: 200mm layer of 19mm Aggregate | E297: m³ | F297: =I297 -> 124 | G297: 580.0 | H297: =(E297 = CHAR(37)) * (F297*G297/100) + (E297 <> CHAR(37)) * (F297*G297) -> R71,920.00 | I297: =J289*0.76*0.2 -> R123.58 | NG297: R428.00 | NJ297: =NJ295*0.5*NK226 -> 428.1234375
A299: 2000 | B299: D.4 | C299: 8.3.3.4 | D299: OVERHAUL
A301: 2001 | B301: D.4.1 | D301: Overhaul (provisional) | E301: m³.km | F301: =I301 -> 525 | G301: 8.0 | H301: =(E301 = CHAR(37)) * (F301*G301/100) + (E301 <> CHAR(37)) * (F301*G301) -> R4,200.00 | I301: =SUM(I291:I297) -> R525.20 | NG301: R1,160.00 | NJ301: =NJ290+NJ292+NJ294+NJ297 -> 
A303: 2002 | B303: D.5 | D303: EXISTING SERVICES
A305: 2003 | C305: 8.3.5 | D305: Services across and in trenches
A307: 2004 | C307: PSDB ... | D307: Location
A309: 2005 | B309: D.5.1 | D309: Supply or hire of specialist equipment for the detection of a particular service | E309: Sum | F309: 1 | G309: 150,000.0 | H309: =(E309 = CHAR(37)) * (F309*G309/100) + (E309 <> CHAR(37)) * (F309*G309) -> R150,000.00 | NG309: R1.00 | NJ309: 70
A311: 2006 | B311: D.5.2 | D311: The use of equipment in item 142.4.1 | E311: h | F311: =I311 -> 14 | G311: 120.0 | H311: =(E311 = CHAR(37)) * (F311*G311/100) + (E311 <> CHAR(37)) * (F311*G311) -> R1,680.00 | I311: =(F124*21*8)/24 -> R14.00 | NG311: R120.00 | NJ311: =8*5*NK311 -> 120 | NK311: 3
A313: 2007 | B313: D.5.3 | D313: Excavate by hand in soft material to expose service... | E313: m³ / daywk | F313: =I313 -> 5 | G313: 120.0 | H313: =(E313 = CHAR(37)) * (F313*G313/100) + (E313 <> CHAR(37)) * (F313*G313) -> R600.00 | I313: =(F249+F271)/(8*5) -> R5.13 | NG313: R560.00 | NJ313: =NJ309*2*4 -> 560
A315: 2008 | C315: PSDB ... | D315: Dealing with services
A317: 2009 | C317: 8.3.5(a) | D317: Services that intersect a trench
A319: 2010 | B319: D.5.4 | D319: Cables | E319: No. | F319: =44*0.3 -> 13 | G319: 1,500.0 | H319: =(E319 = CHAR(37)) * (F319*G319/100) + (E319 <> CHAR(37)) * (F319*G319) -> R19,500.00 | NG319: R43.00 | NL319: 43
A321: 2011 | B321: D.5.5 | D321: Water mains up to 300 mm diam. | E321: No. | F321: =26*0.3 -> 8 | G321: 2,000.0 | H321: =(E321 = CHAR(37)) * (F321*G321/100) + (E321 <> CHAR(37)) * (F321*G321) -> R16,000.00 | NG321: R28.00 | NL321: 28
A324: 2012 | C324: 8.3.5(b) | D324: Services that adjoin a trench
A326: 2013 | B326: D.5.7 | D326: Cables | E326: m | F326: =220*0.3 -> 66 | G326: 55.0 | H326: =(E326 = CHAR(37)) * (F326*G326/100) + (E326 <> CHAR(37)) * (F326*G326) -> R3,630.00 | NG326: R1,448.00 | NJ326: =#REF!*0.65 -> 
B328: Total Carried Forward | H328: =SUM(H288:H327) -> R945,650.00
B330: =B283 -> CONSTUCTION OF SEWER RETICULATION IN VUKUZAKHE,WARD 1&2
... 104 more rows

Sheet WARD 02 (hidden)
A1: Rate=G | B1: CONSTUCTION OF SEWER RETICULATION IN VUKUZAKHE,WARD 1&2
A2: <NewDataSet>· <xs:schema id="NewDataSet" xmlns="" xmlns:xs="http://www.w3.org/2001/XMLSchema" xmlns:msdata="urn:schemas-microsoft-com:xml-msdata">· <xs:element name="NewDataSet" msdata:IsDataSet="true" msdata:MainDataTable="SummaryItems" msdata:UseCurrentLocale="true">· <xs:complexType>· <xs:choice minOccurs="0" maxOccurs="unbounded">· <xs:element name="SummaryItems">· <xs:complexType>· <xs:sequence>· <xs:element name="ContractNo" type="xs:short" minOccurs="0" />· <xs:element name="ScheduleNo" type="xs:short" minOccurs="0" />· <xs:element name="SortNo" type="xs:short" minOccurs="0" />· <xs:element name="Item" type="xs:string" minOccurs="0" />· <xs:element name="SubTotalText" type="xs:string" minOccurs="0" />· <xs:element name="Description" type="xs:string" minOccurs="0" />· <xs:element name="CalcType" type="xs:string" minOccurs="0" />· <xs:element name="CalcValue" type="xs:double" minOccurs="0" />· <xs:element name="UseFirstSubTotal" type="xs:boolean" minOccurs="0" />· <xs:element name="ExclFromWorks" type="xs:boolean" minOccurs="0" />· <xs:element name="ExclFromProjected" type="xs:boolean" minOccurs="0" />· </xs:sequence>· </xs:complexType>· </xs:element>· </xs:choice>· </xs:complexType>· </xs:element>· </xs:schema>·</NewDataSet> | B2: CONTRACT NO. T05/2026
B3: SCHEDULE OF QUANTITIES
H4: SANS 1200 A : PRELIMINARY AND GENERAL
B5: ITEM NO | C5: PAYMENT | D5: DESCRIPTION | E5: UNIT | F5: QTY | G5: RATE | H5: AMOUNT (RANDS) | NG5: QTY
A6: 198 | B6: A | C6: SANS 1200 A | D6: SECTION A : PRELIMINARY AND GENERAL
A8: 199 | B8: A.1 | C8: 8.3 | D8: FIXED-CHARGE ITEMS
A10: 200 | B10: A.1.1 | C10: 8.3.1 | D10: Contractual Requirements | E10: Sum | F10: 1 | G10: =K10 -> 157,500.0 | H10: =(E10 = CHAR(37)) * (F10*G10/100) + (E10 <> CHAR(37)) * (F10*G10) -> R157,500.00 | I10: 450,000.0 | J10: R0.65 | K10: =I10-(I10*J10) -> R157,500.00 | NG10: R1.00 | NJ10: R420,000 | NK10: 0.5 | NL10: =NK10*NJ10 -> 210000
A12: 201 | C12: 8.3.2 | D12: Establish Facilities on the Site :
A14: 202 | D14: a) Facilities for Engineer (SANS 1200 AB)
A16: 203 | B16: A.1.2 | D16: Offices: 1 furnished room with a telephone and 3 name-boards | E16: Sum | F16: 1 | G16: =K16 -> 10,500.0 | H16: =(E16 = CHAR(37)) * (F16*G16/100) + (E16 <> CHAR(37)) * (F16*G16) -> R10,500.00 | I16: 30,000.0 | J16: =J10 -> R0.65 | K16: =I16-(I16*J16) -> R10,500.00 | NG16: R1.00 | NJ16: R60,000 | NK16: =NK10 -> 0.5 | NL16: =NK16*NJ16 -> 30000
A18: 206 | D18: b) Facilities for Contractor
A20: 207 | B20: A.1.3 | D20: Offices and storage sheds | E20: Sum | F20: 1 | G20: =K20 -> 5,687.5 | H20: =(E20 = CHAR(37)) * (F20*G20/100) + (E20 <> CHAR(37)) * (F20*G20) -> R5,687.50 | I20: 16,250.0 | J20: =J16 -> R0.65 | K20: =I20-(I20*J20) -> R5,687.50 | NG20: R1.00 | NJ20: R32,500 | NK20: =NK16 -> 0.5 | NL20: =NK20*NJ20 -> 16250
A22: 208 | B22: A.1.4 | D22: Workshops | E22: Sum | F22: 1 | G22: =K22 -> 437.5 | H22: =(E22 = CHAR(37)) * (F22*G22/100) + (E22 <> CHAR(37)) * (F22*G22) -> R437.50 | I22: 1,250.0 | J22: =J20 -> R0.65 | K22: =I22-(I22*J22) -> R437.50 | NG22: R1.00 | NJ22: R2,500 | NK22: =NK20 -> 0.5 | NL22: =NK22*NJ22 -> 1250
A24: 209 | B24: A.1.5 | D24: Laboratories | E24: Sum | F24: 1 | G24: =K24 -> 2,187.5 | H24: =(E24 = CHAR(37)) * (F24*G24/100) + (E24 <> CHAR(37)) * (F24*G24) -> R2,187.50 | I24: 6,250.0 | J24: =J22 -> R0.65 | K24: =I24-(I24*J24) -> R2,187.50 | NG24: R1.00 | NJ24: R12,500 | NK24: =NK22 -> 0.5 | NL24: =NK24*NJ24 -> 6250
A26: 210 | B26: A.1.6 | D26: Living accommodation | E26: Sum | F26: 1 | G26: =K26 -> 4,812.5 | H26: =(E26 = CHAR(37)) * (F26*G26/100) + (E26 <> CHAR(37)) * (F26*G26) -> R4,812.50 | I26: 13,750.0 | J26: =J24 -> R0.65 | K26: =I26-(I26*J26) -> R4,812.50 | NG26: R1.00 | NJ26: R27,500 | NK26: =NK24 -> 0.5 | NL26: =NK26*NJ26 -> 13750
A28: 211 | B28: A.1.7 | D28: Ablution and latrine facilities | E28: Sum | F28: 1 | G28: =K28 -> 875.0 | H28: =(E28 = CHAR(37)) * (F28*G28/100) + (E28 <> CHAR(37)) * (F28*G28) -> R875.00 | I28: 2,500.0 | J28: =J26 -> R0.65 | K28: =I28-(I28*J28) -> R875.00 | NG28: R1.00 | NJ28: R5,000 | NK28: =NK26 -> 0.5 | NL28: =NK28*NJ28 -> 2500
A30: 212 | B30: A.1.8 | D30: Tools and equipment | E30: Sum | F30: 1 | G30: =K30 -> 4,812.5 | H30: =(E30 = CHAR(37)) * (F30*G30/100) + (E30 <> CHAR(37)) * (F30*G30) -> R4,812.50 | I30: 13,750.0 | J30: =J28 -> R0.65 | K30: =I30-(I30*J30) -> R4,812.50 | NG30: R1.00 | NJ30: R27,500 | NK30: =NK28 -> 0.5 | NL30: =NK30*NJ30 -> 13750
A32: 213 | B32: A.1.9 | D32: Water supplies, electric power and communications | E32: Sum | F32: 1 | G32: =K32 -> 8,750.0 | H32: =(E32 = CHAR(37)) * (F32*G32/100) + (E32 <> CHAR(37)) * (F32*G32) -> R8,750.00 | I32: 25,000.0 | J32: =J30 -> R0.65 | K32: =I32-(I32*J32) -> R8,750.00 | NG32: R1.00 | NJ32: R50,000 | NK32: =NK30 -> 0.5 | NL32: =NK32*NJ32 -> 25000
A34: 214 | B34: A.1.10 | D34: Dealing with water (Subclause 5.5) | E34: Sum | F34: 1 | G34: =K34 -> 2,187.5 | H34: =(E34 = CHAR(37)) * (F34*G34/100) + (E34 <> CHAR(37)) * (F34*G34) -> R2,187.50 | I34: 6,250.0 | J34: =J32 -> R0.65 | K34: =I34-(I34*J34) -> R2,187.50 | NG34: R1.00 | NJ34: R12,500 | NK34: =NK32 -> 0.5 | NL34: =NK34*NJ34 -> 6250
A36: 220 | B36: A.1.11 | C36: 8.3.3 | D36: Other fixed-charge obligations | E36: Sum | F36: 1 | G36: =K36 -> 875.0 | H36: =(E36 = CHAR(37)) * (F36*G36/100) + (E36 <> CHAR(37)) * (F36*G36) -> R875.00 | I36: 2,500.0 | J36: =J34 -> R0.65 | K36: =I36-(I36*J36) -> R875.00 | NG36: R1.00 | NJ36: R5,000 | NK36: =NK34 -> 0.5 | NL36: =NK36*NJ36 -> 2500
A38: 221 | B38: A.1.12 | C38: 8.3.4 | D38: Remove Engineer's and Contractor's Site establishment on completion | E38: Sum | F38: 1 | G38: =K38 -> 1,312.5 | H38: =(E38 = CHAR(37)) * (F38*G38/100) + (E38 <> CHAR(37)) * (F38*G38) -> R1,312.50 | I38: 3,750.0 | J38: =J36 -> R0.65 | K38: =I38-(I38*J38) -> R1,312.50 | NG38: R1.00 | NJ38: R7,500 | NK38: 0.5 | NL38: =NK38*NJ38 -> 3750
A40: 293 | B40: A.1.13 | C40: 8.8.2 | D40: Deal with traffic and maintain the road (or accommodation of traffic and provide temporary road (detour). | E40: Sum | F40: 1 | G40: =K40 -> 35,000.0 | H40: =(E40 = CHAR(37)) * (F40*G40/100) + (E40 <> CHAR(37)) * (F40*G40) -> R35,000.00 | I40: 100,000.0 | J40: =J38 -> R0.65 | K40: =I40-(I40*J40) -> R35,000.00 | NG40: R1.00 | NJ40: R100,000 | NK40: 0.5 | NL40: =NK40*NJ40 -> 50000
A42: 222 | B42: A.2 | C42: 8.4 | D42: TIME-RELATED ITEMS
A44: 223 | B44: A.2.1 | C44: 8.4.1 | D44: Contractual Requirements | E44: month | F44: 4 | G44: =K44 -> 12,250.0 | H44: =(E44 = CHAR(37)) * (F44*G44/100) + (E44 <> CHAR(37)) * (F44*G44) -> R49,000.00 | I44: 35,000.0 | J44: =J40 -> R0.65 | K44: =I44-(I44*J44) -> R12,250.00 | NG44: R7.00 | NJ44: R12,000 | NK44: 0.5 | NL44: =NK44*NJ44 -> 6000
A46: 224 | C46: 8.4.2 | D46: Operate and maintain facilities on the Site:
A48: 225 | C48: 8.4.2.1 | D48: a) Facilities for Engineer for duration of construction (SANS 1200 AB)
A50: 226 | B50: A.2.2 | D50: Offices: 1 room, etc., as for item .1.2 | E50: month | F50: =F44 -> 4 | G50: =K50 -> 437.5 | H50: =(E50 = CHAR(37)) * (F50*G50/100) + (E50 <> CHAR(37)) * (F50*G50) -> R1,750.00 | I50: 1,250.0 | J50: =J44 -> R0.65 | K50: =I50-(I50*J50) -> R437.50 | NG50: R7.00 | NJ50: R1,250 | NK50: 0.5 | NL50: =NK50*NJ50 -> 625
A52: 227 | B52: A.2.3 | D52: Survey assistants and material | E52: month | F52: =F50 -> 4 | G52: =K52 -> 2,625.0 | H52: =(E52 = CHAR(37)) * (F52*G52/100) + (E52 <> CHAR(37)) * (F52*G52) -> R10,500.00 | I52: 7,500.0 | J52: =J50 -> R0.65 | K52: =I52-(I52*J52) -> R2,625.00 | NG52: R7.00 | NJ52: R7,500 | NK52: 0.5 | NL52: =NK52*NJ52 -> 3750
A54: 230 | C54: 8.4.2.2 | D54: b) Facilities for Contractor for duration of construction, except where otherwise stated
A56: 231 | B56: A.2.4 | D56: Offices and storage sheds | E56: month | F56: =F52 -> 4 | G56: =K56 -> 437.5 | H56: =(E56 = CHAR(37)) * (F56*G56/100) + (E56 <> CHAR(37)) * (F56*G56) -> R1,750.00 | I56: 1,250.0 | J56: =J52 -> R0.65 | K56: =I56-(I56*J56) -> R437.50 | NG56: R7.00 | NJ56: R1,250 | NK56: 0.5 | NL56: =NK56*NJ56 -> 625
A58: 232 | B58: A.2.5 | D58: Workshops | E58: month | F58: =F56 -> 4 | G58: =K58 -> 437.5 | H58: =(E58 = CHAR(37)) * (F58*G58/100) + (E58 <> CHAR(37)) * (F58*G58) -> R1,750.00 | I58: 1,250.0 | J58: =J56 -> R0.65 | K58: =I58-(I58*J58) -> R437.50 | NG58: R7.00 | NJ58: R750 | NK58: 0.5 | NL58: =NK58*NJ58 -> 375
A60: 233 | B60: A.2.6 | D60: Laboratories | E60: month | F60: =F58 -> 4 | G60: =K60 -> 437.5 | H60: =(E60 = CHAR(37)) * (F60*G60/100) + (E60 <> CHAR(37)) * (F60*G60) -> R1,750.00 | I60: 1,250.0 | J60: =J58 -> R0.65 | K60: =I60-(I60*J60) -> R437.50 | NG60: R7.00 | NJ60: R500 | NK60: 0.5 | NL60: =NK60*NJ60 -> 250
A62: 234 | B62: A.2.7 | D62: Living accommodation | E62: month | F62: =F60 -> 4 | G62: =K62 -> 2,275.0 | H62: =(E62 = CHAR(37)) * (F62*G62/100) + (E62 <> CHAR(37)) * (F62*G62) -> R9,100.00 | I62: 6,500.0 | J62: =J60 -> R0.65 | K62: =I62-(I62*J62) -> R2,275.00 | NG62: R7.00 | NJ62: R6,500 | NK62: 0.5 | NL62: =NK62*NJ62 -> 3250
A64: 235 | B64: A.2.8 | D64: Ablution and latrine facilities | E64: month | F64: =F62 -> 4 | G64: =K64 -> 700.0 | H64: =(E64 = CHAR(37)) * (F64*G64/100) + (E64 <> CHAR(37)) * (F64*G64) -> R2,800.00 | I64: 2,000.0 | J64: =J62 -> R0.65 | K64: =I64-(I64*J64) -> R700.00 | NG64: R7.00 | NJ64: R4,000 | NK64: 0.5 | NL64: =NK64*NJ64 -> 2000
B65: Total Carried Forward | H65: =SUM(H6:H64) -> R313,337.50
B67: =B1 -> CONSTUCTION OF SEWER RETICULATION IN VUKUZAKHE,WARD 1&2
B68: =B2 -> CONTRACT NO. T05/2026
B69: SCHEDULE OF QUANTITIES
H70: SANS 1200 A : PRELIMINARY AND GENERAL
B71: ITEM NO | C71: PAYMENT | D71: DESCRIPTION | E71: UNIT | F71: QTY | G71: RATE | H71: AMOUNT (RANDS) | NG71: QTY
B72: Brought Forward | H72: =H65 -> R313,337.50
A73: 236 | B73: A.2.9 | D73: Tools and equipment | E73: month | F73: =F64 -> 4 | G73: =K73 -> 875.0 | H73: =(E73 = CHAR(37)) * (F73*G73/100) + (E73 <> CHAR(37)) * (F73*G73) -> R3,500.00 | I73: 2,500.0 | J73: =J64 -> R0.65 | K73: =I73-(I73*J73) -> R875.00 | NG73: R7.00
NJ74: R5,000 | NK74: 0.5 | NL74: =NK74*NJ74 -> 2500
A75: 237 | B75: A.2.10 | D75: Water supplies, electric power and communications | E75: month | F75: =F73 -> 4 | G75: =K75 -> 437.5 | H75: =(E75 = CHAR(37)) * (F75*G75/100) + (E75 <> CHAR(37)) * (F75*G75) -> R1,750.00 | I75: 1,250.0 | J75: =J73 -> R0.65 | K75: =I75-(I75*J75) -> R437.50 | NG75: R7.00
NJ76: R2,500 | NK76: 0.5 | NL76: =NK76*NJ76 -> 1250
A77: 238 | B77: A.2.11 | D77: Dealing with water (Subclause 5.5) | E77: month | F77: =F75 -> 4 | G77: =K77 -> 262.5 | H77: =(E77 = CHAR(37)) * (F77*G77/100) + (E77 <> CHAR(37)) * (F77*G77) -> R1,050.00 | I77: 750.0 | J77: =J75 -> R0.65 | K77: =I77-(I77*J77) -> R262.50 | NG77: R7.00
NJ78: R1,500 | NK78: 0.5 | NL78: =NK78*NJ78 -> 750
A79: 239 | B79: A.2.12 | D79: Access (Subclause 5.8) | E79: month | F79: =F77 -> 4 | G79: =K79 -> 875.0 | H79: =(E79 = CHAR(37)) * (F79*G79/100) + (E79 <> CHAR(37)) * (F79*G79) -> R3,500.00 | I79: 2,500.0 | J79: =J77 -> R0.65 | K79: =I79-(I79*J79) -> R875.00 | NG79: R7.00
NJ80: R5,000 | NK80: 0.5 | NL80: =NK80*NJ80 -> 2500
A81: 244 | B81: A.2.13 | C81: 8.4.3 | D81: Supervision | E81: month | F81: =F79 -> 4 | G81: =K81 -> 12,250.0 | H81: =(E81 = CHAR(37)) * (F81*G81/100) + (E81 <> CHAR(37)) * (F81*G81) -> R49,000.00 | I81: 35,000.0 | J81: =J79 -> R0.65 | K81: =I81-(I81*J81) -> R12,250.00 | NG81: R7.00
NJ82: R120,000 | NK82: 0.5 | NL82: =NK82*NJ82 -> 60000
A83: 245 | B83: A.2.14 | C83: 8.4.4 | D83: Company and head office overhead costs | E83: month | F83: =F81 -> 4 | G83: =K83 -> 875.0 | H83: =(E83 = CHAR(37)) * (F83*G83/100) + (E83 <> CHAR(37)) * (F83*G83) -> R3,500.00 | I83: 2,500.0 | J83: =J81 -> R0.65 | K83: =I83-(I83*J83) -> R875.00 | NG83: R7.00
NJ84: R5,000 | NK84: 0.5 | NL84: =NK84*NJ84 -> 2500
A85: 246 | B85: A.2.15 | C85: 8.4.5 | D85: Other time-related obligations | E85: month | F85: =F83 -> 4 | G85: =K85 -> 437.5 | H85: =(E85 = CHAR(37)) * (F85*G85/100) + (E85 <> CHAR(37)) * (F85*G85) -> R1,750.00 | I85: 1,250.0 | J85: =J83 -> R0.65 | K85: =I85-(I85*J85) -> R437.50 | NG85: R7.00
B87: A.2.16 | C87: 8.8.2 | D87: Deal with traffic and maintain the road (or accommodation of traffic and provide temporary road (detour). | E87: month | F87: =F85 -> 4 | G87: =K87 -> 5,250.0 | H87: =(E87 = CHAR(37)) * (F87*G87/100) + (E87 <> CHAR(37)) * (F87*G87) -> R21,000.00 | I87: 15,000.0 | J87: =J85 -> R0.65 | K87: =I87-(I87*J87) -> R5,250.00 | NG87: R7.00
NJ88: R2,500 | NK88: 0.5 | NL88: =NK88*NJ88 -> 1250
A89: 297 | B89: A.3 | C89: 8.8 | D89: HEALTH & SAFETY
A91: 298 | B91: A.3.1 | C91: 8.8.1 | D91: Provision for use by the Engineer of an independent Health and Safety Agent for the compilation and maintenance of Health and Safety Plan including Risk Assessment, Safe Work Procedure and Method Statement | E91: PC Sum | F91: 1 | G91: =K91 -> 35,000.0 | H91: =(E91 = CHAR(37)) * (F91*G91/100) + (E91 <> CHAR(37)) * (F91*G91) -> R35,000.00 | I91: 100,000.0 | J91: =J87 -> R0.65 | K91: =I91-(I91*J91) -> R35,000.00 | NG91: R1.00
A93: 299 | B93: A.3.2 | C93: 8.8.2 | D93: Cost of health and safety measures required in terms of the Construction Regulations of the Occupation Health and Safety Act (2003) | E93: PC Sum | F93: 1 | G93: =K93 -> 17,500.0 | H93: =(E93 = CHAR(37)) * (F93*G93/100) + (E93 <> CHAR(37)) * (F93*G93) -> R17,500.00 | I93: 50,000.0 | J93: =J91 -> R0.65 | K93: =I93-(I93*J93) -> R17,500.00 | NG93: R1.00
A95: 301 | B95: A.3.4 | D95: Handling cost and profit in respect of sub-item A.4.1 to A.4.3 | E95: % | F95: =SUM(H91:H93) -> 52 500 | G95: 0.1 | H95: =(E95 = CHAR(37)) * (F95*G95/100) + (E95 <> CHAR(37)) * (F95*G95) -> R52.50 | I95: 0.1 | J95: =J93 -> R0.65 | K95: =I95-(I95*J95) -> R0.04 | NG95: R235,000.00
B97: A.4 | C97: 8.8 | D97: TRAINING
B99: A.4.1 | D99: Wages and salaries of local and other labourers employed by Contractor,Sub-Contractor and Emerging Contractors in respet of training periods for on-site training by the Contractor during which no productive work is executed. | E99: PC Sum | F99: 1 | G99: =K99 -> 17,500.0 | H99: =(E99 = CHAR(37)) * (F99*G99/100) + (E99 <> CHAR(37)) * (F99*G99) -> R17,500.00 | I99: 50,000.0 | J99: =J95 -> R0.65 | K99: =I99-(I99*J99) -> R17,500.00 | NG99: R1.00
B101: A.4.2 | D101: Acrredited and approved training courses for selected local and other labourers including wages during training as approved by Client. | E101: Prov. Sum | F101: 1 | G101: =K101 -> 52,500.0 | H101: =(E101 = CHAR(37)) * (F101*G101/100) + (E101 <> CHAR(37)) * (F101*G101) -> R52,500.00 | I101: 150,000.0 | J101: =J99 -> R0.65 | K101: =I101-(I101*J101) -> R52,500.00 | NG101: R1.00
B103: A.4.3 | D103: Contractor's charge to allow for the handling costs and profit in respect of sub-items A.5.1 & A.5.2 abovE. | E103: % | F103: =SUM(H99:H102) -> 70 000 | G103: 0.1 | H103: =(E103 = CHAR(37)) * (F103*G103/100) + (E103 <> CHAR(37)) * (F103*G103) -> R70.00 | I103: 0.1 | J103: =J101 -> R0.65 | K103: =I103-(I103*J103) -> R0.04 | NG103: R200,000.00
B105: A.5 | C105: 8.10 | D105: WAYLEAVE APPLICATIONS TO LOCAL MUNICIPALITY
A107: 302 | B107: A.5.1 | D107: Application of wayleave to relevant stakeholders prior commencement of works. | E107: PC Sum | F107: 1 | G107: =K107 -> 3,500.0 | H107: =(E107 = CHAR(37)) * (F107*G107/100) + (E107 <> CHAR(37)) * (F107*G107) -> R3,500.00 | I107: 10,000.0 | J107: =J103 -> R0.65 | K107: =I107-(I107*J107) -> R3,500.00 | NG107: R1.00
A109: 303 | B109: A.5.2 | C109: 8.10 | D109: WAYLEAVE APPLICATIONS TO ESKOM FOR CONSTRUCTION UNDER PYLONS | E109: PC Sum | F109: 1 | G109: =K109 -> 35,000.0 | H109: =(E109 = CHAR(37)) * (F109*G109/100) + (E109 <> CHAR(37)) * (F109*G109) -> R35,000.00 | I109: 100,000.0 | J109: =J107 -> R0.65 | K109: =I109-(I109*J109) -> R35,000.00 | NG109: R1.00
A111: 305 | B111: A.45.3 | D111: Contractor's charge to allow for the handling costs and profit in respect of sub-items A.5.1 & A.5.2 abovE. | E111: % | F111: =SUM(H107:H109) -> 38 500 | G111: 0.1 | H111: =(E111 = CHAR(37)) * (F111*G111/100) + (E111 <> CHAR(37)) * (F111*G111) -> R38.50 | I111: 0.1 | J111: =J109 -> R0.65 | K111: =I111-(I111*J111) -> R0.04 | NG111: R110,000.00
B114: Total Carried Forward To Summary | H114: =SUM(H72:H113) -> R559,548.50 | I114: =I487 -> R0.00 | J114: =H114-I114 -> R559,548.50 | NH114: =NH561 -> R706,214.16 | NJ114: =NH114-H114 -> 146,665.66
B115: CONSTUCTION OF SEWER RETICULATION IN VUKUZAKHE,WARD 1&2
B116: CONTRACT NO. T05/2026
B117: SCHEDULE OF QUANTITIES
H118: SANS 1200 B : PRIME COST ITEMS
B119: ITEM NO | C119: PAYMENT | D119: DESCRIPTION | E119: UNIT | F119: QTY | G119: RATE | H119: AMOUNT (RANDS) | O119: Provision for use by Engineer of a Geotech Engineer Services, required during the construction stage | P119: Prov. Sum | Q119: 1 | R119: =#REF! ->  | S119: =(P119 = CHAR(37)) * (Q119*R119/100) + (P119 <> CHAR(37)) * (Q119*R119) ->  | NG119: QTY
B120: B | C120: SANS 1200 B | D120: SECTION B : PRIME COST ITEMS
O121: Provision for use by the Engineer of the Mechanical Engineer Services required during construction stage | P121: Prov. Sum | Q121: 1 | R121: =#REF! ->  | S121: =(P121 = CHAR(37)) * (Q121*R121/100) + (P121 <> CHAR(37)) * (Q121*R121) -> 
B122: B.1 | C122: 8.5 | D122: SUMS STATED PROVISIONALLY BY ENGINEER
B124: B.1.1 | D124: Provision of accommodation for Engineer's representative for the duration of the contract | E124: month | F124: =F87 -> 4 | G124: =K124 -> 7,500.0 | H124: =(E124 = CHAR(37)) * (F124*G124/100) + (E124 <> CHAR(37)) * (F124*G124) -> R30,000.00 | I124: 15,000.0 | J124: R0.50 | K124: =I124-(I124*J124) -> R7,500.00 | NG124: R7.00
B126: B.1.2 | D126: Telephone calls for the Engineer | E126: month | F126: =F124 -> 4 | G126: =K126 -> 750.0 | H126: =(E126 = CHAR(37)) * (F126*G126/100) + (E126 <> CHAR(37)) * (F126*G126) -> R3,000.00 | I126: 1,500.0 | J126: =J124 -> R0.50 | K126: =I126-(I126*J126) -> R750.00 | NG126: R7.00
B128: B.1.3 | C128: 8.6 | D128: Prime cost of laboratory testing by other concerns where so directed by the Engineer | E128: month | F128: =F126 -> 4 | G128: 10,000.0 | H128: =(E128 = CHAR(37)) * (F128*G128/100) + (E128 <> CHAR(37)) * (F128*G128) -> R40,000.00 | I128: 35,000.0 | J128: =J126 -> R0.50 | K128: =I128-(I128*J128) -> R17,500.00 | NG128: R7.00
B130: B.1.4 | D130: Comminity and Social Development Support throughout the Project Period | E130: month | F130: =F128 -> 4 | G130: =K130 -> 25,000.0 | H130: =(E130 = CHAR(37)) * (F130*G130/100) + (E130 <> CHAR(37)) * (F130*G130) -> R100,000.00 | I130: 50,000.0 | J130: =J128 -> R0.50 | K130: =I130-(I130*J130) -> R25,000.00 | NG130: R1.00
B132: B.1.5 | D132: Project Social Facilitation | E132: month | F132: =F128 -> 4 | G132: =K132 -> 27,500.0 | H132: =(E132 = CHAR(37)) * (F132*G132/100) + (E132 <> CHAR(37)) * (F132*G132) -> R110,000.00 | I132: 55,000.0 | J132: =J130 -> R0.50 | K132: =I132-(I132*J132) -> R27,500.00 | NG132: R7.00
B134: B.1.6 | D134: Required Additional Survey by Engineer | E134: month | F134: =F132 -> 4 | G134: =K134 -> 17,500.0 | H134: =(E134 = CHAR(37)) * (F134*G134/100) + (E134 <> CHAR(37)) * (F134*G134) -> R70,000.00 | I134: 35,000.0 | J134: =J132 -> R0.50 | K134: =I134-(I134*J134) -> R17,500.00 | NG134: R7.00
B136: B.1.7 | D136: Remuneration of Health and Safety Agent | E136: month | F136: =F134 -> 4 | G136: =K136 -> 27,500.0 | H136: =(E136 = CHAR(37)) * (F136*G136/100) + (E136 <> CHAR(37)) * (F136*G136) -> R110,000.00 | I136: 55,000.0 | J136: =J134 -> R0.50 | K136: =I136-(I136*J136) -> R27,500.00 | NG136: R7.00
B138: B.1.8 | D138: Remuneration of three Community Liaison Officer(CLO x 2) including transport, cellphone and overtime from three wards, 1 & 2 | E138: month | F138: =F136 -> 4 | G138: =K138 -> 16,000.0 | H138: =(E138 = CHAR(37)) * (F138*G138/100) + (E138 <> CHAR(37)) * (F138*G138) -> R64,000.00 | I138: =2*16000 -> 32,000.0 | J138: =J136 -> R0.50 | K138: =I138-(I138*J138) -> R16,000.00 | NG138: R7.00
B140: B.1.9 | D140: Allow for the testing and commissioning of new water and sewer networks, as well as outfall pipes. | E140: sum | F140: 1 | G140: =K140 -> 50,000.0 | H140: =(E140 = CHAR(37)) * (F140*G140/100) + (E140 <> CHAR(37)) * (F140*G140) -> R50,000.00 | I140: 100,000.0 | J140: =J138 -> R0.50 | K140: =I140-(I140*J140) -> R50,000.00 | NG140: R1.00
B142: B.1.10 | D142: Provision shall be made for a specialist to assess the structural integrity of the reservoir and elevated tank, as well as to evaluate the mechanical strength of the outlet pipes, fittings, and couplings associated with these structures. The specialist shall also coordinate and oversee the execution of the water-tightness test following the completion of all connections | E142: Provision sum | F142: 1 | G142: 35,000.0 | H142: =(E142 = CHAR(37)) * (F142*G142/100) + (E142 <> CHAR(37)) * (F142*G142) -> R35,000.00
B144: B.1.11 | D144: Overheads,charges and profit on item B.1.1 to B.1.10 | E144: % | F144: =SUM(H124:H142) -> 612,000 | G144: 0.1 | H144: =(E144 = CHAR(37)) * (F144*G144/100) + (E144 <> CHAR(37)) * (F144*G144) -> R612.00 | NG144: R4,621,500.00
B165: Total Carried Forward To Summary | H165: =SUM(H120:H164) -> R612,612.00 | I165: =H114+H165 -> R1,172,160.50
B167: =B115 -> CONSTUCTION OF SEWER RETICULATION IN VUKUZAKHE,WARD 1&2
B168: =B116 -> CONTRACT NO. T05/2026
B169: SCHEDULE OF QUANTITIES
H170: SANS 1200 C : SITE CLEARANCE
B171: ITEM NO | C171: PAYMENT | D171: DESCRIPTION | E171: UNIT | F171: QTY | G171: RATE | H171: AMOUNT (RANDS) | NG171: QTY
A172: 2057 | B172: C | C172: SANS 1200 C | D172: SECTION C : SITE CLEARANCE
A174: 2058 | B174: C.1 | D174: CLEAR SITE | J174: Ward 02 Sewer | K174: Ward 02 Water
A176: 2059 | B176: C.1.1 | C176: 8.2.1 | D176: Clear and grub pipeline route 3m wide | E176: m | F176: =I176+J176+K176 -> 2 222 | G176: 25.0 | H176: =(E176 = CHAR(37)) * (F176*G176/100) + (E176 <> CHAR(37)) * (F176*G176) -> R55,550.00 | J176: R1,965.10 | K176: R256.83 | NG176: R2,228.00 | NI176: 2130 | NJ176: =NI176*1.046 -> 2 228 | NK176: =NJ176-NI176 -> 98
A178: 11863 | B178: C.1.2 | C178: 8.2.2 | D178: Remove trees of girth: Over and up to
A180: 11864 | B180: C.1.2.1 | D180: 1,0 m 2,0 m | E180: No. | F180: 20 | G180: 2,800.0 | H180: =(E180 = CHAR(37)) * (F180*G180/100) + (E180 <> CHAR(37)) * (F180*G180) -> R56,000.00 | NG180: R10.00 | NJ180: 10
B182: C.1.3 | C182: 8.2.4 | D182: Reclear surfaces (provisional) (where ordered by Engineer)
B184: C.1.3.1 | D184: Clear and grub pipeline route 3m wide | E184: m | F184: =F176*0.15 -> 333 | G184: 25.0 | H184: =(E184 = CHAR(37)) * (F184*G184/100) + (E184 <> CHAR(37)) * (F184*G184) -> R8,325.00 | NG184: R150.00
B186: C.1.3.2 | D186: Working areas | E186: m² | F186: =(F176*0.76*1.5)*0.15 -> 380 | G186: 25.0 | H186: =(E186 = CHAR(37)) * (F186*G186/100) + (E186 <> CHAR(37)) * (F186*G186) -> R9,500.00 | NG186: R1,526.00
B188: C.2 | C188: 8.2.5 | D188: Take down and re-erect existing fences (all types of fences and boundaries) | E188: m | F188: =F176*0.25 -> 556 | G188: 80.0 | H188: =(E188 = CHAR(37)) * (F188*G188/100) + (E188 <> CHAR(37)) * (F188*G188) -> R44,480.00 | NG188: R981.00
A190: 11865 | B190: C.7 | C190: 1200 DA | D190: EXCAVATION
A192: 11866 | B192: C.7.1 | C192: 8.3.1 | D192: Remove topsoil to nominal depth 150 mm, stockpile, and maintain for reinstating. | E192: m³ | F192: =(F176*0.76*0.15) -> 253 | G192: 25.0 | H192: =(E192 = CHAR(37)) * (F192*G192/100) + (E192 <> CHAR(37)) * (F192*G192) -> R6,325.00 | NG192: R1,003.00 | NJ192: =NJ176*3*0.15 -> 1 003
A194: 11867 | B194: C.8 | D194: FINISHINGS
A196: 11868 | B196: C.8.1 | C196: 8.3.6 | D196: Reinstate road surfaces complete with all courses in
A198: 11869 | B198: C.8.1.1 | D198: Block Paved surfaced- the rate shall cover the supply of layer materials and compactions of layers to the existing specification, and supply and lay of paving blocks to existing thickness. | E198: m² | F198: 0 | G198: 180.0 | H198: =(E198 = CHAR(37)) * (F198*G198/100) + (E198 <> CHAR(37)) * (F198*G198) -> R0.00 | NG198: R150.00 | NJ198: =10*3*5 -> 150
A200: 11870 | B200: C.8.1.2 | D200: Gravel shoulders- the rate shall cover the supply of gravel shoulder materials and compactions of material to the existing specification. | E200: m² | F200: =258*1.2*0.08*0.5 -> 12 | G200: 80.0 | H200: =(E200 = CHAR(37)) * (F200*G200/100) + (E200 <> CHAR(37)) * (F200*G200) -> R960.00 | NG200: R24.00 | NJ200: =10*3*0.8 -> 24
A202: 11871 | B202: C.8.1.3 | D202: Kerbing in Ward 02 | E202: m | F202: =258*0.5 -> 129 | G202: 80.0 | H202: =(E202 = CHAR(37)) * (F202*G202/100) + (E202 <> CHAR(37)) * (F202*G202) -> R10,320.00 | NG202: R1,114.00 | NJ202: =NJ176*0.5 -> 1 114
B204: C.8.1.4 | D204: Concrete Surfaced Household Access | E204: m² | F204: 0 | G204: 180.0 | H204: =(E204 = CHAR(37)) * (F204*G204/100) + (E204 <> CHAR(37)) * (F204*G204) -> R0.00 | NG204: R848.00 | NJ204: =(5.3*10)*16 -> 848
B206: C.8.1.5 | D206: Asphalt Surfacing - thickness from 25mm to 50mm in the roadway, the rate shall cover the supply of layer materials and compactions of layers to the existing specification, and supply and lay of asphalt surface to existing thickness IN Ward 02 | E206: m² | F206: =258*2.5 -> 645 | G206: 79.2 | H206: =(E206 = CHAR(37)) * (F206*G206/100) + (E206 <> CHAR(37)) * (F206*G206) -> R51,084.00 | NG206: R1,337.00
D208: Gravel Surfacing - the rate shall cover the supply of layer materials and compaction of layers to the existing specification, and supply and lay of gravel wearing course surface to existing thickness. | E208: m² | F208: =122*2.5*0.5 -> 153 | G208: 180.0 | H208: =(E208 = CHAR(37)) * (F208*G208/100) + (E208 <> CHAR(37)) * (F208*G208) -> R27,540.00
B210: C.8.2 | C210: 8.3.6 | D210: Reinstate stormwater open drains
A212: 11869 | B212: C.8.2.1 | D212: kerb Channel in Ward 02 | E212: m | F212: =258*0.5 -> 129 | G212: 230.0 | H212: =(E212 = CHAR(37)) * (F212*G212/100) + (E212 <> CHAR(37)) * (F212*G212) -> R29,670.00 | NG212: R557.00 | NJ212: =NJ176*0.25 -> 557
A214: 11869 | B214: C.8.2.2 | D214: Side V-drain | E214: m | F214: 0 | G214: 230.0 | H214: =(E214 = CHAR(37)) * (F214*G214/100) + (E214 <> CHAR(37)) * (F214*G214) -> R0.00 | NG214: R1,003.00 | NJ214: =NJ176*0.45 -> 1 003
B216: Total Carried Forward To Summary | H216: =SUM(H172:H215) -> R299,754.00
B218: =B167 -> CONSTUCTION OF SEWER RETICULATION IN VUKUZAKHE,WARD 1&2
B219: =B168 -> CONTRACT NO. T05/2026
B220: SCHEDULE OF QUANTITIES
H221: SANS 1200 DB : PIPE TRENCHES
B222: ITEM NO | C222: PAYMENT | D222: DESCRIPTION | E222: UNIT | F222: QTY | G222: RATE | H222: AMOUNT (RANDS) | NG222: QTY
A223: 1991 | B223: D | C223: SANS 1200 DB | D223: SECTION D : PIPE TRENCHES | NI223: Width = | NJ223: 1.15 | NK223: 1.2
A225: 11873 | B225: D.1 | D225: PIPE TRENCHES | NI225: pipe diameter = | NJ225: 0.65
NI226: Width = | NJ226: =NJ225+0.6 -> 1.25 | NK226: =NJ226*1.045 -> 1.30625
A227: 11874 | C227: 8.3.2(a) | D227: Excavate in all materials for trenches backfill, compact, and dispose of surplus/unsuitable material, for pipes up to 250 mm diam. for total trench depth: | J227: Ward 02 Sewer | K227: Ward 02 Water | L227: Total | M227: WIDTH (0.3+0.16+0.3=0.76 | N227: VOLUME | NJ227: =F176 -> 2 222
A229: 2056 | B229: D.1.1 | D229: Exceeding 0,0 m but not exceeding 1,0 m | E229: m | F229: =L229 -> 277 | G229: 120.0 | H229: =(E229 = CHAR(37)) * (F229*G229/100) + (E229 <> CHAR(37)) * (F229*G229) -> R33,240.00 | J229: ='[2]SEWER QUANTITIES'!$D$817 -> R20.06 | K229: R256.82 | L229: =K229+J229+I229 -> R276.88 | M229: R0.76 | N229: =L229*M229*1 -> R210.43 | NG229: R423.00 | NJ229: 0.19 | NK229: =$NJ$227*NJ229 -> 422.18
A231: 1992 | B231: D.1.2 | D231: Exceeding 1,0 m but not exceeding 2,0 m | E231: m | F231: =L231 -> 973 | G231: 140.0 | H231: =(E231 = CHAR(37)) * (F231*G231/100) + (E231 <> CHAR(37)) * (F231*G231) -> R136,220.00 | J231: ='[2]SEWER QUANTITIES'!$E$817 -> R972.55 | K231: R0.00 | L231: =K231+J231+I231 -> R972.55 | M231: R0.76 | N231: =L231*M231*1 -> R739.14 | NG231: R1,203.00 | NJ231: 0.54 | NK231: =$NJ$227*NJ231 -> 1199.88
A233: 1993 | B233: D.1.3 | D233: Exceeding 2,0 m but not exceeding 3,0 m | E233: m | F233: =L233 -> 759 | G233: 160.0 | H233: =(E233 = CHAR(37)) * (F233*G233/100) + (E233 <> CHAR(37)) * (F233*G233) -> R121,440.00 | J233: ='[2]SEWER QUANTITIES'!$F$817 -> R759.16 | K233: R0.00 | L233: =K233+J233+I233 -> R759.16 | M233: R0.76 | N233: =L233*M233*1 -> R576.96 | NG233: R446.00 | NJ233: 0.20 | NK233: =$NJ$227*NJ233 -> 444.40
A235: 2015 | B235: D.1.4 | D235: Exceeding 3,0 m but not exceeding 4,0 m | E235: m | F235: =L235 -> 542 | G235: 200.0 | H235: =(E235 = CHAR(37)) * (F235*G235/100) + (E235 <> CHAR(37)) * (F235*G235) -> R108,400.00 | J235: ='[2]SEWER QUANTITIES'!$G$817 -> R541.66 | K235: R0.00 | L235: =K235+J235+I235 -> R541.66 | M235: R0.76 | N235: =L235*M235*1 -> R411.66 | NG235: R156.00 | NJ235: 0.07 | NK235: =$NJ$227*NJ235 -> 155.54
NJ236: =SUM(NJ229:NJ235) -> 1.00 | NK236: =SUM(NK229:NK235) -> 2222.00
A237: 2015 | B237: D.1.4 | D237: Exceeding 4,0 m but not exceeding 5,0 m | E237: m | F237: =L237 -> 163 | G237: 280.0 | H237: =(E237 = CHAR(37)) * (F237*G237/100) + (E237 <> CHAR(37)) * (F237*G237) -> R45,640.00 | J237: ='[2]SEWER QUANTITIES'!$H$817+'[2]SEWER QUANTITIES'!$I$817 -> R162.94 | K237: R0.00 | L237: =K237+J237+I237 -> R162.94 | M237: R0.76 | N237: =L237*M237*1 -> R123.83 | NG237: R156.00 | NJ237: 0.07 | NK237: =$NJ$227*NJ237 -> 155.54
L238: =SUM(L229:L237) -> R2,713.19 | N238: =SUM(N229:N237) -> R2,062.02
A239: 1994 | C239: 8.3.2(b) | D239: Extra-over incl. for (prov):
I240: =N238 -> R2,062.02 | NJ240: =NJ227*NJ226*4 -> 11 110 | NK240: 3025 | NL240: =NJ240-NK240 -> 8 085
A241: 1995 | B241: D.1.5 | D241: Intermediate excavation | E241: m³ | F241: =J241 -> 309 | G241: 220.0 | H241: =(E241 = CHAR(37)) * (F241*G241/100) + (E241 <> CHAR(37)) * (F241*G241) -> R67,980.00 | I241: R0.15 | J241: =I241*I240 -> R309.30 | NG241: R2,115.00
NI242: =$F$229*4*$NJ$226 -> 1385 | NJ242: 0.19 | NK242: =$NJ$240*NJ242 -> 2110.90
A243: 1996 | B243: D.1.6 | D243: Hard rock excavation | E243: m³ | F243: =J243 -> 1 134 | G243: 300.0 | H243: =(E243 = CHAR(37)) * (F243*G243/100) + (E243 <> CHAR(37)) * (F243*G243) -> R340,200.00 | I243: R0.55 | J243: =I243*I240 -> R1,134.11 | NG243: R6,015.00
NI244: =F231*4*$NJ$226 -> 4865 | NJ244: 0.54 | NK244: =$NJ$240*NJ244 -> 5999.40
A245: 2024 | B245: D.1.7 | D245: Boulder excavation Class A | E245: m³ | F245: =J245 -> 412 | G245: 340.0 | H245: =(E245 = CHAR(37)) * (F245*G245/100) + (E245 <> CHAR(37)) * (F245*G245) -> R140,080.00 | I245: R0.20 | J245: =I245*I240 -> R412.40 | NG245: R2,230.00
NI246: =F233*4*$NJ$226 -> 3795 | NJ246: 0.20 | NK246: =$NJ$240*NJ246 -> 2222.00
A247: 2025 | B247: D.1.8 | D247: Boulder excavation Class B | E247: m³ | F247: =J247 -> 206 | G247: 380.0 | H247: =(E247 = CHAR(37)) * (F247*G247/100) + (E247 <> CHAR(37)) * (F247*G247) -> R78,280.00 | I247: R0.10 | J247: =I247*I240 -> R206.20 | NG247: R780.00
I248: =SUM(I241:I247) -> R1.00 | J248: =SUM(J241:J247) -> R2,062.01 | NI248: =F235*4*$NJ$226 -> 2710 | NJ248: 0.07 | NK248: =$NJ$240*NJ248 -> 777.70
A249: 2017 | B249: D.1.9 | C249: 8.3.2(b) | D249: Excavate and dispose of unsuitable material from trench bottom (Provisional) | E249: m³ | F249: =I240*0.25*0.76 -> 392 | G249: 240.0 | H249: =(E249 = CHAR(37)) * (F249*G249/100) + (E249 <> CHAR(37)) * (F249*G249) -> R94,080.00 | NG249: R418.00 | NI249: =SUM(NI242:NI248) -> 12755 | NJ249: =SUM(NJ242:NJ248) -> 1.00 | NK249: =SUM(NK242:NK248) -> 11110.00
NJ250: =NJ226*NJ227*0.15 -> 416.625
A251: 2026 | B251: D.2 | C251: PSD 8.3.3 | D251: RESTRICTED EXCAVATION
A253: 2018 | D253: Excavate for pipe trenches confined spaces in all materials and use for backfill or embankment , or dispose: | NJ253: =(110+(5*6.5))*1.15*4 -> 655.5 | NK253: road crossings and stream crossing
A255: 2019 | B255: D.2.1 | D255: Depth up to 1,0 m | E255: m³ | F255: =F229*0.15 -> 42 | G255: 140.0 | H255: =(E255 = CHAR(37)) * (F255*G255/100) + (E255 <> CHAR(37)) * (F255*G255) -> R5,880.00 | NG255: R262.00 | NJ255: 0.40 | NK255: =$NJ$253*NJ255 -> 262.20
A257: 2020 | B257: D.2.2 | D257: Depth over 1,0 m and up to 2,0 m | E257: m³ | F257: =F231*0.15 -> 146 | G257: 160.0 | H257: =(E257 = CHAR(37)) * (F257*G257/100) + (E257 <> CHAR(37)) * (F257*G257) -> R23,360.00 | NG257: R262.00 | NJ257: 0.40 | NK257: =$NJ$253*NJ257 -> 262.20
A259: 2021 | B259: D.2.3 | D259: Depth over 2,0 m and up to 3,0 m | E259: m³ | F259: =F233*0.15 -> 114 | G259: 180.0 | H259: =(E259 = CHAR(37)) * (F259*G259/100) + (E259 <> CHAR(37)) * (F259*G259) -> R20,520.00 | NG259: R131.00 | NJ259: 0.20 | NK259: =$NJ$253*NJ259 -> 131.10
A261: 2022 | D261: Extra over items above for: | I261: =SUM(F255:F260)*0.76*5 -> R1,147.60 | NJ261: =SUM(NJ255:NJ259) -> 1.00
I262: R0.15 | J262: =I262*I261 -> R172.14 | NJ262: =NJ253 -> 656
A263: 2027 | B263: D.2.4 | D263: Intermediate excavation | E263: m³ | F263: =J262 -> 172 | G263: 220.0 | H263: =(E263 = CHAR(37)) * (F263*G263/100) + (E263 <> CHAR(37)) * (F263*G263) -> R37,840.00 | NG263: R125.00
I264: R0.55 | J264: =I264*I261 -> R631.18 | NJ264: 0.19 | NK264: =$NJ$262*NJ264 -> 124.64
A265: 2028 | B265: D.2.5 | D265: Hard rock excavation | E265: m³ | F265: =J264 -> 631 | G265: 300.0 | H265: =(E265 = CHAR(37)) * (F265*G265/100) + (E265 <> CHAR(37)) * (F265*G265) -> R189,300.00 | NG265: R354.00
I266: R0.20 | J266: =I266*I261 -> R229.52 | NJ266: 0.54 | NK266: =$NJ$262*NJ266 -> 354.24
A267: 2029 | B267: D.2.6 | D267: Boulder excavation Class A | E267: m³ | F267: =J266 -> 230 | G267: 340.0 | H267: =(E267 = CHAR(37)) * (F267*G267/100) + (E267 <> CHAR(37)) * (F267*G267) -> R78,200.00 | NG267: R131.00
I268: R0.10 | J268: =I268*I261 -> R114.76 | NJ268: 0.20 | NK268: =$NJ$262*NJ268 -> 131.20
A269: 2030 | B269: D.2.7 | D269: Boulder excavation Class B | E269: m³ | F269: =J268 -> 115 | G269: 380.0 | H269: =(E269 = CHAR(37)) * (F269*G269/100) + (E269 <> CHAR(37)) * (F269*G269) -> R43,700.00 | I269: =SUM(I262:I268) -> R1.00 | J269: =SUM(J262:J268) -> R1,147.60 | NG269: R46.00
NJ270: 0.07 | NK270: =$NJ$262*NJ270 -> 45.92
A271: 2023 | B271: D.2.8 | D271: Extra over item 140.02 for hand excavation | E271: m³ | F271: =I261*0.25*0.76 -> 218 | G271: 180.0 | H271: =(E271 = CHAR(37)) * (F271*G271/100) + (E271 <> CHAR(37)) * (F271*G271) -> R39,240.00 | NG271: R295.00 | NJ271: =SUM(NJ264:NJ270) -> 1.00 | NK271: =SUM(NK264:NK270) -> 656.00
NI272: 23.0% | NJ272: =(F255+F257+F259+F263+F265+F267+F269) -> 1 450 | NK272: =NJ272*NI272 -> 333.5
A273: 1997 | D273: EXCAVATION. ANCILLARIES Make up deficiency in backfill material (Provisional) | NJ273: =NJ227 -> 2 222
NJ274: =NJ273*1.4*1.15 -> 3 577 | NK274: R80
A275: 1998 | B275: D.2.9 | C275: 8.3.3.1(a) | D275: from other necessary excavations on site | E275: m³ | F275: 0 | G275: 80.0 | H275: =(E275 = CHAR(37)) * (F275*G275/100) + (E275 <> CHAR(37)) * (F275*G275) -> R0.00 | NG275: R3,587.00
NJ276: =NJ274 -> 3 577 | NK276: R240
A277: 1999 | B277: D.2.10 | C277: 8.3.3.1(c) | D277: by importation from commercial or off-site sources selected by the Contractor | E277: m³ | F277: =I240*0.6*0.76 -> 940 | G277: 240.0 | H277: =(E277 = CHAR(37)) * (F277*G277/100) + (E277 <> CHAR(37)) * (F277*G277) -> R225,600.00 | NG277: R3,587.00
A279: 2035 | B279: D.3 | C279: PSD 8.3.3 | D279: SUPPLY ONLY OF BEDDING BY IMPORTATION
B281: Total Carried Forward | H281: =SUM(H223:H280) -> R1,829,200.00
B283: =B218 -> CONSTUCTION OF SEWER RETICULATION IN VUKUZAKHE,WARD 1&2
B284: =B219 -> CONTRACT NO. T05/2026
B285: SCHEDULE OF QUANTITIES
H286: SANS 1200 DB : PIPE TRENCHES
B287: ITEM NO | C287: PAYMENT | D287: DESCRIPTION | E287: UNIT | F287: QTY | G287: RATE | H287: AMOUNT (RANDS) | NG287: QTY
B288: Brought Forward | H288: =H281 -> R1,829,200.00
A289: 2040 | D289: From commercial sources: | I289: Length = | J289: =SUM(F229:F237) -> R2,714.00
NJ290: =#REF!*0.15*NK226 -> 
A291: 2041 | B291: D.3.7 | D291: Bedding Cradle | E291: m³ | F291: =I291 -> 309 | G291: 200.0 | H291: =(E291 = CHAR(37)) * (F291*G291/100) + (E291 <> CHAR(37)) * (F291*G291) -> R61,800.00 | I291: =J289*0.76*0.15 -> R309.40 | NG291: R437.00
NJ292: =#REF!*0.2*NK226 -> 
A293: 2042 | B293: D.3.8 | D293: 200mm layer compaceted seleted fill blanket (Class I) | E293: m³ | F293: =I293 -> 413 | G293: 240.0 | H293: =(E293 = CHAR(37)) * (F293*G293/100) + (E293 <> CHAR(37)) * (F293*G293) -> R99,120.00 | I293: =J289*0.76*0.2 -> R412.53 | NG293: R582.00
NJ294: =#REF!*0.3*NK226 -> 
A295: 2043 | B295: D.3.9 | D295: 300mm layer of consolidaed selected backfil (Class II) | E295: m³ | F295: =I295 -> 619 | G295: 260.0 | H295: =(E295 = CHAR(37)) * (F295*G295/100) + (E295 <> CHAR(37)) * (F295*G295) -> R160,940.00 | I295: =J289*0.76*0.3 -> R618.79 | NG295: R873.00 | NJ295: =NJ253 -> 655.5
A297: 2044 | B297: D.3.10 | D297: 200mm layer of 19mm Aggregate | E297: m³ | F297: =I297 -> 413 | G297: 580.0 | H297: =(E297 = CHAR(37)) * (F297*G297/100) + (E297 <> CHAR(37)) * (F297*G297) -> R239,540.00 | I297: =J289*0.76*0.2 -> R412.53 | NG297: R428.00 | NJ297: =NJ295*0.5*NK226 -> 428.1234375
A299: 2000 | B299: D.4 | C299: 8.3.3.4 | D299: OVERHAUL
A301: 2001 | B301: D.4.1 | D301: Overhaul (provisional) | E301: m³.km | F301: =I301 -> 1 753 | G301: 8.0 | H301: =(E301 = CHAR(37)) * (F301*G301/100) + (E301 <> CHAR(37)) * (F301*G301) -> R14,024.00 | I301: =SUM(I291:I297) -> R1,753.25 | NG301: R1,160.00 | NJ301: =NJ290+NJ292+NJ294+NJ297 -> 
A303: 2002 | B303: D.5 | D303: EXISTING SERVICES
A305: 2003 | C305: 8.3.5 | D305: Services across and in trenches
A307: 2004 | C307: PSDB ... | D307: Location
A309: 2005 | B309: D.5.1 | D309: Supply or hire of specialist equipment for the detection of a particular service | E309: Sum | F309: 1 | G309: 150,000.0 | H309: =(E309 = CHAR(37)) * (F309*G309/100) + (E309 <> CHAR(37)) * (F309*G309) -> R150,000.00 | NG309: R1.00 | NJ309: 70
A311: 2006 | B311: D.5.2 | D311: The use of equipment in item 142.4.1 | E311: h | F311: =I311 -> 28 | G311: 120.0 | H311: =(E311 = CHAR(37)) * (F311*G311/100) + (E311 <> CHAR(37)) * (F311*G311) -> R3,360.00 | I311: =(F124*21*8)/24 -> R28.00 | NG311: R120.00 | NJ311: =8*5*NK311 -> 120 | NK311: 3
A313: 2007 | B313: D.5.3 | D313: Excavate by hand in soft material to expose service... | E313: m³ / daywk | F313: =I313 -> 15 | G313: 120.0 | H313: =(E313 = CHAR(37)) * (F313*G313/100) + (E313 <> CHAR(37)) * (F313*G313) -> R1,800.00 | I313: =(F249+F271)/(8*5) -> R15.25 | NG313: R560.00 | NJ313: =NJ309*2*4 -> 560
A315: 2008 | C315: PSDB ... | D315: Dealing with services
A317: 2009 | C317: 8.3.5(a) | D317: Services that intersect a trench
A319: 2010 | B319: D.5.4 | D319: Cables | E319: No. | F319: =44*0.7 -> 31 | G319: 1,500.0 | H319: =(E319 = CHAR(37)) * (F319*G319/100) + (E319 <> CHAR(37)) * (F319*G319) -> R46,500.00 | NG319: R43.00 | NL319: 43
A321: 2011 | B321: D.5.5 | D321: Water mains up to 300 mm diam. | E321: No. | F321: =26*0.7 -> 18 | G321: 2,000.0 | H321: =(E321 = CHAR(37)) * (F321*G321/100) + (E321 <> CHAR(37)) * (F321*G321) -> R36,000.00 | NG321: R28.00 | NL321: 28
A324: 2012 | C324: 8.3.5(b) | D324: Services that adjoin a trench
A326: 2013 | B326: D.5.7 | D326: Cables | E326: m | F326: =220*0.7 -> 154 | G326: 55.0 | H326: =(E326 = CHAR(37)) * (F326*G326/100) + (E326 <> CHAR(37)) * (F326*G326) -> R8,470.00 | NG326: R1,448.00 | NJ326: =#REF!*0.65 -> 
B328: Total Carried Forward | H328: =SUM(H288:H327) -> R2,650,754.00
B330: =B283 -> CONSTUCTION OF SEWER RETICULATION IN VUKUZAKHE,WARD 1&2
... 154 more rows

Sheet WARD 02 no water (hidden)
A1: Rate=G | B1: CONSTUCTION OF SEWER RETICULATION IN VUKUZAKHE,WARD 1&2
A2: <NewDataSet>· <xs:schema id="NewDataSet" xmlns="" xmlns:xs="http://www.w3.org/2001/XMLSchema" xmlns:msdata="urn:schemas-microsoft-com:xml-msdata">· <xs:element name="NewDataSet" msdata:IsDataSet="true" msdata:MainDataTable="SummaryItems" msdata:UseCurrentLocale="true">· <xs:complexType>· <xs:choice minOccurs="0" maxOccurs="unbounded">· <xs:element name="SummaryItems">· <xs:complexType>· <xs:sequence>· <xs:element name="ContractNo" type="xs:short" minOccurs="0" />· <xs:element name="ScheduleNo" type="xs:short" minOccurs="0" />· <xs:element name="SortNo" type="xs:short" minOccurs="0" />· <xs:element name="Item" type="xs:string" minOccurs="0" />· <xs:element name="SubTotalText" type="xs:string" minOccurs="0" />· <xs:element name="Description" type="xs:string" minOccurs="0" />· <xs:element name="CalcType" type="xs:string" minOccurs="0" />· <xs:element name="CalcValue" type="xs:double" minOccurs="0" />· <xs:element name="UseFirstSubTotal" type="xs:boolean" minOccurs="0" />· <xs:element name="ExclFromWorks" type="xs:boolean" minOccurs="0" />· <xs:element name="ExclFromProjected" type="xs:boolean" minOccurs="0" />· </xs:sequence>· </xs:complexType>· </xs:element>· </xs:choice>· </xs:complexType>· </xs:element>· </xs:schema>·</NewDataSet> | B2: CONTRACT NO. T05/2026
B3: SCHEDULE OF QUANTITIES
H4: SANS 1200 A : PRELIMINARY AND GENERAL
B5: ITEM NO | C5: PAYMENT | D5: DESCRIPTION | E5: UNIT | F5: QTY | G5: RATE | H5: AMOUNT (RANDS) | NG5: QTY
A6: 198 | B6: A | C6: SANS 1200 A | D6: SECTION A : PRELIMINARY AND GENERAL
A8: 199 | B8: A.1 | C8: 8.3 | D8: FIXED-CHARGE ITEMS
A10: 200 | B10: A.1.1 | C10: 8.3.1 | D10: Contractual Requirements | E10: Sum | F10: 1 | G10: =K10 -> 157,500.0 | H10: =(E10 = CHAR(37)) * (F10*G10/100) + (E10 <> CHAR(37)) * (F10*G10) -> R157,500.00 | I10: 450,000.0 | J10: R0.65 | K10: =I10-(I10*J10) -> R157,500.00 | NG10: R1.00 | NJ10: R420,000 | NK10: 0.5 | NL10: =NK10*NJ10 -> 210000
A12: 201 | C12: 8.3.2 | D12: Establish Facilities on the Site :
A14: 202 | D14: a) Facilities for Engineer (SANS 1200 AB)
A16: 203 | B16: A.1.2 | D16: Offices: 1 furnished room with a telephone and 3 name-boards | E16: Sum | F16: 1 | G16: =K16 -> 10,500.0 | H16: =(E16 = CHAR(37)) * (F16*G16/100) + (E16 <> CHAR(37)) * (F16*G16) -> R10,500.00 | I16: 30,000.0 | J16: =J10 -> R0.65 | K16: =I16-(I16*J16) -> R10,500.00 | NG16: R1.00 | NJ16: R60,000 | NK16: =NK10 -> 0.5 | NL16: =NK16*NJ16 -> 30000
A18: 206 | D18: b) Facilities for Contractor
A20: 207 | B20: A.1.3 | D20: Offices and storage sheds | E20: Sum | F20: 1 | G20: =K20 -> 5,687.5 | H20: =(E20 = CHAR(37)) * (F20*G20/100) + (E20 <> CHAR(37)) * (F20*G20) -> R5,687.50 | I20: 16,250.0 | J20: =J16 -> R0.65 | K20: =I20-(I20*J20) -> R5,687.50 | NG20: R1.00 | NJ20: R32,500 | NK20: =NK16 -> 0.5 | NL20: =NK20*NJ20 -> 16250
A22: 208 | B22: A.1.4 | D22: Workshops | E22: Sum | F22: 1 | G22: =K22 -> 437.5 | H22: =(E22 = CHAR(37)) * (F22*G22/100) + (E22 <> CHAR(37)) * (F22*G22) -> R437.50 | I22: 1,250.0 | J22: =J20 -> R0.65 | K22: =I22-(I22*J22) -> R437.50 | NG22: R1.00 | NJ22: R2,500 | NK22: =NK20 -> 0.5 | NL22: =NK22*NJ22 -> 1250
A24: 209 | B24: A.1.5 | D24: Laboratories | E24: Sum | F24: 1 | G24: =K24 -> 2,187.5 | H24: =(E24 = CHAR(37)) * (F24*G24/100) + (E24 <> CHAR(37)) * (F24*G24) -> R2,187.50 | I24: 6,250.0 | J24: =J22 -> R0.65 | K24: =I24-(I24*J24) -> R2,187.50 | NG24: R1.00 | NJ24: R12,500 | NK24: =NK22 -> 0.5 | NL24: =NK24*NJ24 -> 6250
A26: 210 | B26: A.1.6 | D26: Living accommodation | E26: Sum | F26: 1 | G26: =K26 -> 4,812.5 | H26: =(E26 = CHAR(37)) * (F26*G26/100) + (E26 <> CHAR(37)) * (F26*G26) -> R4,812.50 | I26: 13,750.0 | J26: =J24 -> R0.65 | K26: =I26-(I26*J26) -> R4,812.50 | NG26: R1.00 | NJ26: R27,500 | NK26: =NK24 -> 0.5 | NL26: =NK26*NJ26 -> 13750
A28: 211 | B28: A.1.7 | D28: Ablution and latrine facilities | E28: Sum | F28: 1 | G28: =K28 -> 875.0 | H28: =(E28 = CHAR(37)) * (F28*G28/100) + (E28 <> CHAR(37)) * (F28*G28) -> R875.00 | I28: 2,500.0 | J28: =J26 -> R0.65 | K28: =I28-(I28*J28) -> R875.00 | NG28: R1.00 | NJ28: R5,000 | NK28: =NK26 -> 0.5 | NL28: =NK28*NJ28 -> 2500
A30: 212 | B30: A.1.8 | D30: Tools and equipment | E30: Sum | F30: 1 | G30: =K30 -> 4,812.5 | H30: =(E30 = CHAR(37)) * (F30*G30/100) + (E30 <> CHAR(37)) * (F30*G30) -> R4,812.50 | I30: 13,750.0 | J30: =J28 -> R0.65 | K30: =I30-(I30*J30) -> R4,812.50 | NG30: R1.00 | NJ30: R27,500 | NK30: =NK28 -> 0.5 | NL30: =NK30*NJ30 -> 13750
A32: 213 | B32: A.1.9 | D32: Water supplies, electric power and communications | E32: Sum | F32: 1 | G32: =K32 -> 8,750.0 | H32: =(E32 = CHAR(37)) * (F32*G32/100) + (E32 <> CHAR(37)) * (F32*G32) -> R8,750.00 | I32: 25,000.0 | J32: =J30 -> R0.65 | K32: =I32-(I32*J32) -> R8,750.00 | NG32: R1.00 | NJ32: R50,000 | NK32: =NK30 -> 0.5 | NL32: =NK32*NJ32 -> 25000
A34: 214 | B34: A.1.10 | D34: Dealing with water (Subclause 5.5) | E34: Sum | F34: 1 | G34: =K34 -> 2,187.5 | H34: =(E34 = CHAR(37)) * (F34*G34/100) + (E34 <> CHAR(37)) * (F34*G34) -> R2,187.50 | I34: 6,250.0 | J34: =J32 -> R0.65 | K34: =I34-(I34*J34) -> R2,187.50 | NG34: R1.00 | NJ34: R12,500 | NK34: =NK32 -> 0.5 | NL34: =NK34*NJ34 -> 6250
A36: 220 | B36: A.1.11 | C36: 8.3.3 | D36: Other fixed-charge obligations | E36: Sum | F36: 1 | G36: =K36 -> 875.0 | H36: =(E36 = CHAR(37)) * (F36*G36/100) + (E36 <> CHAR(37)) * (F36*G36) -> R875.00 | I36: 2,500.0 | J36: =J34 -> R0.65 | K36: =I36-(I36*J36) -> R875.00 | NG36: R1.00 | NJ36: R5,000 | NK36: =NK34 -> 0.5 | NL36: =NK36*NJ36 -> 2500
A38: 221 | B38: A.1.12 | C38: 8.3.4 | D38: Remove Engineer's and Contractor's Site establishment on completion | E38: Sum | F38: 1 | G38: =K38 -> 1,312.5 | H38: =(E38 = CHAR(37)) * (F38*G38/100) + (E38 <> CHAR(37)) * (F38*G38) -> R1,312.50 | I38: 3,750.0 | J38: =J36 -> R0.65 | K38: =I38-(I38*J38) -> R1,312.50 | NG38: R1.00 | NJ38: R7,500 | NK38: 0.5 | NL38: =NK38*NJ38 -> 3750
A40: 293 | B40: A.1.13 | C40: 8.8.2 | D40: Deal with traffic and maintain the road (or accommodation of traffic and provide temporary road (detour). | E40: Sum | F40: 1 | G40: =K40 -> 35,000.0 | H40: =(E40 = CHAR(37)) * (F40*G40/100) + (E40 <> CHAR(37)) * (F40*G40) -> R35,000.00 | I40: 100,000.0 | J40: =J38 -> R0.65 | K40: =I40-(I40*J40) -> R35,000.00 | NG40: R1.00 | NJ40: R100,000 | NK40: 0.5 | NL40: =NK40*NJ40 -> 50000
A42: 222 | B42: A.2 | C42: 8.4 | D42: TIME-RELATED ITEMS
A44: 223 | B44: A.2.1 | C44: 8.4.1 | D44: Contractual Requirements | E44: month | F44: 4 | G44: =K44 -> 12,250.0 | H44: =(E44 = CHAR(37)) * (F44*G44/100) + (E44 <> CHAR(37)) * (F44*G44) -> R49,000.00 | I44: 35,000.0 | J44: =J40 -> R0.65 | K44: =I44-(I44*J44) -> R12,250.00 | NG44: R7.00 | NJ44: R12,000 | NK44: 0.5 | NL44: =NK44*NJ44 -> 6000
A46: 224 | C46: 8.4.2 | D46: Operate and maintain facilities on the Site:
A48: 225 | C48: 8.4.2.1 | D48: a) Facilities for Engineer for duration of construction (SANS 1200 AB)
A50: 226 | B50: A.2.2 | D50: Offices: 1 room, etc., as for item .1.2 | E50: month | F50: =F44 -> 4 | G50: =K50 -> 437.5 | H50: =(E50 = CHAR(37)) * (F50*G50/100) + (E50 <> CHAR(37)) * (F50*G50) -> R1,750.00 | I50: 1,250.0 | J50: =J44 -> R0.65 | K50: =I50-(I50*J50) -> R437.50 | NG50: R7.00 | NJ50: R1,250 | NK50: 0.5 | NL50: =NK50*NJ50 -> 625
A52: 227 | B52: A.2.3 | D52: Survey assistants and material | E52: month | F52: =F50 -> 4 | G52: =K52 -> 2,625.0 | H52: =(E52 = CHAR(37)) * (F52*G52/100) + (E52 <> CHAR(37)) * (F52*G52) -> R10,500.00 | I52: 7,500.0 | J52: =J50 -> R0.65 | K52: =I52-(I52*J52) -> R2,625.00 | NG52: R7.00 | NJ52: R7,500 | NK52: 0.5 | NL52: =NK52*NJ52 -> 3750
A54: 230 | C54: 8.4.2.2 | D54: b) Facilities for Contractor for duration of construction, except where otherwise stated
A56: 231 | B56: A.2.4 | D56: Offices and storage sheds | E56: month | F56: =F52 -> 4 | G56: =K56 -> 437.5 | H56: =(E56 = CHAR(37)) * (F56*G56/100) + (E56 <> CHAR(37)) * (F56*G56) -> R1,750.00 | I56: 1,250.0 | J56: =J52 -> R0.65 | K56: =I56-(I56*J56) -> R437.50 | NG56: R7.00 | NJ56: R1,250 | NK56: 0.5 | NL56: =NK56*NJ56 -> 625
A58: 232 | B58: A.2.5 | D58: Workshops | E58: month | F58: =F56 -> 4 | G58: =K58 -> 437.5 | H58: =(E58 = CHAR(37)) * (F58*G58/100) + (E58 <> CHAR(37)) * (F58*G58) -> R1,750.00 | I58: 1,250.0 | J58: =J56 -> R0.65 | K58: =I58-(I58*J58) -> R437.50 | NG58: R7.00 | NJ58: R750 | NK58: 0.5 | NL58: =NK58*NJ58 -> 375
A60: 233 | B60: A.2.6 | D60: Laboratories | E60: month | F60: =F58 -> 4 | G60: =K60 -> 437.5 | H60: =(E60 = CHAR(37)) * (F60*G60/100) + (E60 <> CHAR(37)) * (F60*G60) -> R1,750.00 | I60: 1,250.0 | J60: =J58 -> R0.65 | K60: =I60-(I60*J60) -> R437.50 | NG60: R7.00 | NJ60: R500 | NK60: 0.5 | NL60: =NK60*NJ60 -> 250
A62: 234 | B62: A.2.7 | D62: Living accommodation | E62: month | F62: =F60 -> 4 | G62: =K62 -> 2,275.0 | H62: =(E62 = CHAR(37)) * (F62*G62/100) + (E62 <> CHAR(37)) * (F62*G62) -> R9,100.00 | I62: 6,500.0 | J62: =J60 -> R0.65 | K62: =I62-(I62*J62) -> R2,275.00 | NG62: R7.00 | NJ62: R6,500 | NK62: 0.5 | NL62: =NK62*NJ62 -> 3250
A64: 235 | B64: A.2.8 | D64: Ablution and latrine facilities | E64: month | F64: =F62 -> 4 | G64: =K64 -> 700.0 | H64: =(E64 = CHAR(37)) * (F64*G64/100) + (E64 <> CHAR(37)) * (F64*G64) -> R2,800.00 | I64: 2,000.0 | J64: =J62 -> R0.65 | K64: =I64-(I64*J64) -> R700.00 | NG64: R7.00 | NJ64: R4,000 | NK64: 0.5 | NL64: =NK64*NJ64 -> 2000
B65: Total Carried Forward | H65: =SUM(H6:H64) -> R313,337.50
B67: =B1 -> CONSTUCTION OF SEWER RETICULATION IN VUKUZAKHE,WARD 1&2
B68: =B2 -> CONTRACT NO. T05/2026
B69: SCHEDULE OF QUANTITIES
H70: SANS 1200 A : PRELIMINARY AND GENERAL
B71: ITEM NO | C71: PAYMENT | D71: DESCRIPTION | E71: UNIT | F71: QTY | G71: RATE | H71: AMOUNT (RANDS) | NG71: QTY
B72: Brought Forward | H72: =H65 -> R313,337.50
A73: 236 | B73: A.2.9 | D73: Tools and equipment | E73: month | F73: =F64 -> 4 | G73: =K73 -> 875.0 | H73: =(E73 = CHAR(37)) * (F73*G73/100) + (E73 <> CHAR(37)) * (F73*G73) -> R3,500.00 | I73: 2,500.0 | J73: =J64 -> R0.65 | K73: =I73-(I73*J73) -> R875.00 | NG73: R7.00
NJ74: R5,000 | NK74: 0.5 | NL74: =NK74*NJ74 -> 2500
A75: 237 | B75: A.2.10 | D75: Water supplies, electric power and communications | E75: month | F75: =F73 -> 4 | G75: =K75 -> 437.5 | H75: =(E75 = CHAR(37)) * (F75*G75/100) + (E75 <> CHAR(37)) * (F75*G75) -> R1,750.00 | I75: 1,250.0 | J75: =J73 -> R0.65 | K75: =I75-(I75*J75) -> R437.50 | NG75: R7.00
NJ76: R2,500 | NK76: 0.5 | NL76: =NK76*NJ76 -> 1250
A77: 238 | B77: A.2.11 | D77: Dealing with water (Subclause 5.5) | E77: month | F77: =F75 -> 4 | G77: =K77 -> 262.5 | H77: =(E77 = CHAR(37)) * (F77*G77/100) + (E77 <> CHAR(37)) * (F77*G77) -> R1,050.00 | I77: 750.0 | J77: =J75 -> R0.65 | K77: =I77-(I77*J77) -> R262.50 | NG77: R7.00
NJ78: R1,500 | NK78: 0.5 | NL78: =NK78*NJ78 -> 750
A79: 239 | B79: A.2.12 | D79: Access (Subclause 5.8) | E79: month | F79: =F77 -> 4 | G79: =K79 -> 875.0 | H79: =(E79 = CHAR(37)) * (F79*G79/100) + (E79 <> CHAR(37)) * (F79*G79) -> R3,500.00 | I79: 2,500.0 | J79: =J77 -> R0.65 | K79: =I79-(I79*J79) -> R875.00 | NG79: R7.00
NJ80: R5,000 | NK80: 0.5 | NL80: =NK80*NJ80 -> 2500
A81: 244 | B81: A.2.13 | C81: 8.4.3 | D81: Supervision | E81: month | F81: =F79 -> 4 | G81: =K81 -> 12,250.0 | H81: =(E81 = CHAR(37)) * (F81*G81/100) + (E81 <> CHAR(37)) * (F81*G81) -> R49,000.00 | I81: 35,000.0 | J81: =J79 -> R0.65 | K81: =I81-(I81*J81) -> R12,250.00 | NG81: R7.00
NJ82: R120,000 | NK82: 0.5 | NL82: =NK82*NJ82 -> 60000
A83: 245 | B83: A.2.14 | C83: 8.4.4 | D83: Company and head office overhead costs | E83: month | F83: =F81 -> 4 | G83: =K83 -> 875.0 | H83: =(E83 = CHAR(37)) * (F83*G83/100) + (E83 <> CHAR(37)) * (F83*G83) -> R3,500.00 | I83: 2,500.0 | J83: =J81 -> R0.65 | K83: =I83-(I83*J83) -> R875.00 | NG83: R7.00
NJ84: R5,000 | NK84: 0.5 | NL84: =NK84*NJ84 -> 2500
A85: 246 | B85: A.2.15 | C85: 8.4.5 | D85: Other time-related obligations | E85: month | F85: =F83 -> 4 | G85: =K85 -> 437.5 | H85: =(E85 = CHAR(37)) * (F85*G85/100) + (E85 <> CHAR(37)) * (F85*G85) -> R1,750.00 | I85: 1,250.0 | J85: =J83 -> R0.65 | K85: =I85-(I85*J85) -> R437.50 | NG85: R7.00
B87: A.2.16 | C87: 8.8.2 | D87: Deal with traffic and maintain the road (or accommodation of traffic and provide temporary road (detour). | E87: month | F87: =F85 -> 4 | G87: =K87 -> 5,250.0 | H87: =(E87 = CHAR(37)) * (F87*G87/100) + (E87 <> CHAR(37)) * (F87*G87) -> R21,000.00 | I87: 15,000.0 | J87: =J85 -> R0.65 | K87: =I87-(I87*J87) -> R5,250.00 | NG87: R7.00
NJ88: R2,500 | NK88: 0.5 | NL88: =NK88*NJ88 -> 1250
A89: 297 | B89: A.3 | C89: 8.8 | D89: HEALTH & SAFETY
A91: 298 | B91: A.3.1 | C91: 8.8.1 | D91: Provision for use by the Engineer of an independent Health and Safety Agent for the compilation and maintenance of Health and Safety Plan including Risk Assessment, Safe Work Procedure and Method Statement | E91: PC Sum | F91: 1 | G91: =K91 -> 35,000.0 | H91: =(E91 = CHAR(37)) * (F91*G91/100) + (E91 <> CHAR(37)) * (F91*G91) -> R35,000.00 | I91: 100,000.0 | J91: =J87 -> R0.65 | K91: =I91-(I91*J91) -> R35,000.00 | NG91: R1.00
A93: 299 | B93: A.3.2 | C93: 8.8.2 | D93: Cost of health and safety measures required in terms of the Construction Regulations of the Occupation Health and Safety Act (2003) | E93: PC Sum | F93: 1 | G93: =K93 -> 17,500.0 | H93: =(E93 = CHAR(37)) * (F93*G93/100) + (E93 <> CHAR(37)) * (F93*G93) -> R17,500.00 | I93: 50,000.0 | J93: =J91 -> R0.65 | K93: =I93-(I93*J93) -> R17,500.00 | NG93: R1.00
A95: 301 | B95: A.3.4 | D95: Handling cost and profit in respect of sub-item A.4.1 to A.4.3 | E95: % | F95: =SUM(H91:H93) -> 52 500 | G95: 0.1 | H95: =(E95 = CHAR(37)) * (F95*G95/100) + (E95 <> CHAR(37)) * (F95*G95) -> R52.50 | I95: 0.1 | J95: =J93 -> R0.65 | K95: =I95-(I95*J95) -> R0.04 | NG95: R235,000.00
B97: A.4 | C97: 8.8 | D97: TRAINING
B99: A.4.1 | D99: Wages and salaries of local and other labourers employed by Contractor,Sub-Contractor and Emerging Contractors in respet of training periods for on-site training by the Contractor during which no productive work is executed. | E99: PC Sum | F99: 1 | G99: =K99 -> 17,500.0 | H99: =(E99 = CHAR(37)) * (F99*G99/100) + (E99 <> CHAR(37)) * (F99*G99) -> R17,500.00 | I99: 50,000.0 | J99: =J95 -> R0.65 | K99: =I99-(I99*J99) -> R17,500.00 | NG99: R1.00
B101: A.4.2 | D101: Acrredited and approved training courses for selected local and other labourers including wages during training as approved by Client. | E101: Prov. Sum | F101: 1 | G101: =K101 -> 52,500.0 | H101: =(E101 = CHAR(37)) * (F101*G101/100) + (E101 <> CHAR(37)) * (F101*G101) -> R52,500.00 | I101: 150,000.0 | J101: =J99 -> R0.65 | K101: =I101-(I101*J101) -> R52,500.00 | NG101: R1.00
B103: A.4.3 | D103: Contractor's charge to allow for the handling costs and profit in respect of sub-items A.5.1 & A.5.2 abovE. | E103: % | F103: =SUM(H99:H102) -> 70 000 | G103: 0.1 | H103: =(E103 = CHAR(37)) * (F103*G103/100) + (E103 <> CHAR(37)) * (F103*G103) -> R70.00 | I103: 0.1 | J103: =J101 -> R0.65 | K103: =I103-(I103*J103) -> R0.04 | NG103: R200,000.00
B105: A.5 | C105: 8.10 | D105: WAYLEAVE APPLICATIONS TO LOCAL MUNICIPALITY
A107: 302 | B107: A.5.1 | D107: Application of wayleave to relevant stakeholders prior commencement of works. | E107: PC Sum | F107: 1 | G107: =K107 -> 3,500.0 | H107: =(E107 = CHAR(37)) * (F107*G107/100) + (E107 <> CHAR(37)) * (F107*G107) -> R3,500.00 | I107: 10,000.0 | J107: =J103 -> R0.65 | K107: =I107-(I107*J107) -> R3,500.00 | NG107: R1.00
A109: 303 | B109: A.5.2 | C109: 8.10 | D109: WAYLEAVE APPLICATIONS TO ESKOM FOR CONSTRUCTION UNDER PYLONS | E109: PC Sum | F109: 1 | G109: =K109 -> 35,000.0 | H109: =(E109 = CHAR(37)) * (F109*G109/100) + (E109 <> CHAR(37)) * (F109*G109) -> R35,000.00 | I109: 100,000.0 | J109: =J107 -> R0.65 | K109: =I109-(I109*J109) -> R35,000.00 | NG109: R1.00
A111: 305 | B111: A.45.3 | D111: Contractor's charge to allow for the handling costs and profit in respect of sub-items A.5.1 & A.5.2 abovE. | E111: % | F111: =SUM(H107:H109) -> 38 500 | G111: 0.1 | H111: =(E111 = CHAR(37)) * (F111*G111/100) + (E111 <> CHAR(37)) * (F111*G111) -> R38.50 | I111: 0.1 | J111: =J109 -> R0.65 | K111: =I111-(I111*J111) -> R0.04 | NG111: R110,000.00
B114: Total Carried Forward To Summary | H114: =SUM(H72:H113) -> R559,548.50 | I114: =#REF! ->  | J114: =H114-I114 ->  | NH114: =NH487 ->  | NJ114: =NH114-H114 -> 
B115: CONSTUCTION OF SEWER RETICULATION IN VUKUZAKHE,WARD 1&2
B116: CONTRACT NO. T05/2026
B117: SCHEDULE OF QUANTITIES
H118: SANS 1200 B : PRIME COST ITEMS
B119: ITEM NO | C119: PAYMENT | D119: DESCRIPTION | E119: UNIT | F119: QTY | G119: RATE | H119: AMOUNT (RANDS) | O119: Provision for use by Engineer of a Geotech Engineer Services, required during the construction stage | P119: Prov. Sum | Q119: 1 | R119: =#REF! ->  | S119: =(P119 = CHAR(37)) * (Q119*R119/100) + (P119 <> CHAR(37)) * (Q119*R119) ->  | NG119: QTY
B120: B | C120: SANS 1200 B | D120: SECTION B : PRIME COST ITEMS
O121: Provision for use by the Engineer of the Mechanical Engineer Services required during construction stage | P121: Prov. Sum | Q121: 1 | R121: =#REF! ->  | S121: =(P121 = CHAR(37)) * (Q121*R121/100) + (P121 <> CHAR(37)) * (Q121*R121) -> 
B122: B.1 | C122: 8.5 | D122: SUMS STATED PROVISIONALLY BY ENGINEER
B124: B.1.1 | D124: Provision of accommodation for Engineer's representative for the duration of the contract | E124: month | F124: =F87 -> 4 | G124: =K124 -> 7,500.0 | H124: =(E124 = CHAR(37)) * (F124*G124/100) + (E124 <> CHAR(37)) * (F124*G124) -> R30,000.00 | I124: 15,000.0 | J124: R0.50 | K124: =I124-(I124*J124) -> R7,500.00 | NG124: R7.00
B126: B.1.2 | D126: Telephone calls for the Engineer | E126: month | F126: =F124 -> 4 | G126: =K126 -> 750.0 | H126: =(E126 = CHAR(37)) * (F126*G126/100) + (E126 <> CHAR(37)) * (F126*G126) -> R3,000.00 | I126: 1,500.0 | J126: =J124 -> R0.50 | K126: =I126-(I126*J126) -> R750.00 | NG126: R7.00
B128: B.1.3 | C128: 8.6 | D128: Prime cost of laboratory testing by other concerns where so directed by the Engineer | E128: month | F128: =F126 -> 4 | G128: 10,000.0 | H128: =(E128 = CHAR(37)) * (F128*G128/100) + (E128 <> CHAR(37)) * (F128*G128) -> R40,000.00 | I128: 35,000.0 | J128: =J126 -> R0.50 | K128: =I128-(I128*J128) -> R17,500.00 | NG128: R7.00
B130: B.1.4 | D130: Comminity and Social Development Support throughout the Project Period | E130: month | F130: =F128 -> 4 | G130: =K130 -> 25,000.0 | H130: =(E130 = CHAR(37)) * (F130*G130/100) + (E130 <> CHAR(37)) * (F130*G130) -> R100,000.00 | I130: 50,000.0 | J130: =J128 -> R0.50 | K130: =I130-(I130*J130) -> R25,000.00 | NG130: R1.00
B132: B.1.5 | D132: Project Social Facilitation | E132: month | F132: =F128 -> 4 | G132: =K132 -> 27,500.0 | H132: =(E132 = CHAR(37)) * (F132*G132/100) + (E132 <> CHAR(37)) * (F132*G132) -> R110,000.00 | I132: 55,000.0 | J132: =J130 -> R0.50 | K132: =I132-(I132*J132) -> R27,500.00 | NG132: R7.00
B134: B.1.6 | D134: Required Additional Survey by Engineer | E134: month | F134: =F132 -> 4 | G134: =K134 -> 17,500.0 | H134: =(E134 = CHAR(37)) * (F134*G134/100) + (E134 <> CHAR(37)) * (F134*G134) -> R70,000.00 | I134: 35,000.0 | J134: =J132 -> R0.50 | K134: =I134-(I134*J134) -> R17,500.00 | NG134: R7.00
B136: B.1.7 | D136: Remuneration of Health and Safety Agent | E136: month | F136: =F134 -> 4 | G136: =K136 -> 27,500.0 | H136: =(E136 = CHAR(37)) * (F136*G136/100) + (E136 <> CHAR(37)) * (F136*G136) -> R110,000.00 | I136: 55,000.0 | J136: =J134 -> R0.50 | K136: =I136-(I136*J136) -> R27,500.00 | NG136: R7.00
B138: B.1.8 | D138: Remuneration of three Community Liaison Officer(CLO x 2) including transport, cellphone and overtime from three wards, 1 & 2 | E138: month | F138: =F136 -> 4 | G138: =K138 -> 16,000.0 | H138: =(E138 = CHAR(37)) * (F138*G138/100) + (E138 <> CHAR(37)) * (F138*G138) -> R64,000.00 | I138: =2*16000 -> 32,000.0 | J138: =J136 -> R0.50 | K138: =I138-(I138*J138) -> R16,000.00 | NG138: R7.00
B140: B.1.9 | D140: Allow for the testing and commissioning of new water and sewer networks, as well as outfall pipes. | E140: sum | F140: 1 | G140: =K140 -> 50,000.0 | H140: =(E140 = CHAR(37)) * (F140*G140/100) + (E140 <> CHAR(37)) * (F140*G140) -> R50,000.00 | I140: 100,000.0 | J140: =J138 -> R0.50 | K140: =I140-(I140*J140) -> R50,000.00 | NG140: R1.00
B142: B.1.10 | D142: Provision shall be made for a specialist to assess the structural integrity of the reservoir and elevated tank, as well as to evaluate the mechanical strength of the outlet pipes, fittings, and couplings associated with these structures. The specialist shall also coordinate and oversee the execution of the water-tightness test following the completion of all connections | E142: Provision sum | F142: 1 | G142: 35,000.0 | H142: =(E142 = CHAR(37)) * (F142*G142/100) + (E142 <> CHAR(37)) * (F142*G142) -> R35,000.00
B144: B.1.11 | D144: Overheads,charges and profit on item B.1.1 to B.1.10 | E144: % | F144: =SUM(H124:H142) -> 612,000 | G144: 0.1 | H144: =(E144 = CHAR(37)) * (F144*G144/100) + (E144 <> CHAR(37)) * (F144*G144) -> R612.00 | NG144: R4,621,500.00
B165: Total Carried Forward To Summary | H165: =SUM(H120:H164) -> R612,612.00 | I165: =H114+H165 -> R1,172,160.50
B167: =B115 -> CONSTUCTION OF SEWER RETICULATION IN VUKUZAKHE,WARD 1&2
B168: =B116 -> CONTRACT NO. T05/2026
B169: SCHEDULE OF QUANTITIES
H170: SANS 1200 C : SITE CLEARANCE
B171: ITEM NO | C171: PAYMENT | D171: DESCRIPTION | E171: UNIT | F171: QTY | G171: RATE | H171: AMOUNT (RANDS) | NG171: QTY
A172: 2057 | B172: C | C172: SANS 1200 C | D172: SECTION C : SITE CLEARANCE
A174: 2058 | B174: C.1 | D174: CLEAR SITE | J174: Ward 02 Sewer
A176: 2059 | B176: C.1.1 | C176: 8.2.1 | D176: Clear and grub pipeline route 3m wide | E176: m | F176: =I176+J176+K176 -> 1 965 | G176: 25.0 | H176: =(E176 = CHAR(37)) * (F176*G176/100) + (E176 <> CHAR(37)) * (F176*G176) -> R49,125.00 | J176: R1,965.10 | NG176: R2,228.00 | NI176: 2130 | NJ176: =NI176*1.046 -> 2 228 | NK176: =NJ176-NI176 -> 98
A178: 11863 | B178: C.1.2 | C178: 8.2.2 | D178: Remove trees of girth: Over and up to
A180: 11864 | B180: C.1.2.1 | D180: 1,0 m 2,0 m | E180: No. | F180: 20 | G180: 2,800.0 | H180: =(E180 = CHAR(37)) * (F180*G180/100) + (E180 <> CHAR(37)) * (F180*G180) -> R56,000.00 | NG180: R10.00 | NJ180: 10
B182: C.1.3 | C182: 8.2.4 | D182: Reclear surfaces (provisional) (where ordered by Engineer)
B184: C.1.3.1 | D184: Clear and grub pipeline route 3m wide | E184: m | F184: =F176*0.15 -> 295 | G184: 25.0 | H184: =(E184 = CHAR(37)) * (F184*G184/100) + (E184 <> CHAR(37)) * (F184*G184) -> R7,375.00 | NG184: R150.00
B186: C.1.3.2 | D186: Working areas | E186: m² | F186: =(F176*0.76*1.5)*0.15 -> 336 | G186: 25.0 | H186: =(E186 = CHAR(37)) * (F186*G186/100) + (E186 <> CHAR(37)) * (F186*G186) -> R8,400.00 | NG186: R1,526.00
B188: C.2 | C188: 8.2.5 | D188: Take down and re-erect existing fences (all types of fences and boundaries) | E188: m | F188: =F176*0.25 -> 491 | G188: 80.0 | H188: =(E188 = CHAR(37)) * (F188*G188/100) + (E188 <> CHAR(37)) * (F188*G188) -> R39,280.00 | NG188: R981.00
A190: 11865 | B190: C.7 | C190: 1200 DA | D190: EXCAVATION
A192: 11866 | B192: C.7.1 | C192: 8.3.1 | D192: Remove topsoil to nominal depth 150 mm, stockpile, and maintain for reinstating. | E192: m³ | F192: =(F176*0.76*0.15) -> 224 | G192: 25.0 | H192: =(E192 = CHAR(37)) * (F192*G192/100) + (E192 <> CHAR(37)) * (F192*G192) -> R5,600.00 | NG192: R1,003.00 | NJ192: =NJ176*3*0.15 -> 1 003
A194: 11867 | B194: C.8 | D194: FINISHINGS
A196: 11868 | B196: C.8.1 | C196: 8.3.6 | D196: Reinstate road surfaces complete with all courses in
A198: 11869 | B198: C.8.1.1 | D198: Block Paved surfaced- the rate shall cover the supply of layer materials and compactions of layers to the existing specification, and supply and lay of paving blocks to existing thickness. | E198: m² | F198: 0 | G198: 180.0 | H198: =(E198 = CHAR(37)) * (F198*G198/100) + (E198 <> CHAR(37)) * (F198*G198) -> R0.00 | NG198: R150.00 | NJ198: =10*3*5 -> 150
A200: 11870 | B200: C.8.1.2 | D200: Gravel shoulders- the rate shall cover the supply of gravel shoulder materials and compactions of material to the existing specification. | E200: m² | F200: =258*1.2*0.08*0.5 -> 12 | G200: 80.0 | H200: =(E200 = CHAR(37)) * (F200*G200/100) + (E200 <> CHAR(37)) * (F200*G200) -> R960.00 | NG200: R24.00 | NJ200: =10*3*0.8 -> 24
A202: 11871 | B202: C.8.1.3 | D202: Kerbing in Ward 02 | E202: m | F202: =258*0.5 -> 129 | G202: 80.0 | H202: =(E202 = CHAR(37)) * (F202*G202/100) + (E202 <> CHAR(37)) * (F202*G202) -> R10,320.00 | NG202: R1,114.00 | NJ202: =NJ176*0.5 -> 1 114
B204: C.8.1.4 | D204: Concrete Surfaced Household Access | E204: m² | F204: 0 | G204: 180.0 | H204: =(E204 = CHAR(37)) * (F204*G204/100) + (E204 <> CHAR(37)) * (F204*G204) -> R0.00 | NG204: R848.00 | NJ204: =(5.3*10)*16 -> 848
B206: C.8.1.5 | D206: Asphalt Surfacing - thickness from 25mm to 50mm in the roadway, the rate shall cover the supply of layer materials and compactions of layers to the existing specification, and supply and lay of asphalt surface to existing thickness IN Ward 02 | E206: m² | F206: =258*2.5 -> 645 | G206: 79.2 | H206: =(E206 = CHAR(37)) * (F206*G206/100) + (E206 <> CHAR(37)) * (F206*G206) -> R51,084.00 | NG206: R1,337.00
D208: Gravel Surfacing - the rate shall cover the supply of layer materials and compaction of layers to the existing specification, and supply and lay of gravel wearing course surface to existing thickness. | E208: m² | F208: =122*2.5*0.5 -> 153 | G208: 180.0 | H208: =(E208 = CHAR(37)) * (F208*G208/100) + (E208 <> CHAR(37)) * (F208*G208) -> R27,540.00
B210: C.8.2 | C210: 8.3.6 | D210: Reinstate stormwater open drains
A212: 11869 | B212: C.8.2.1 | D212: kerb Channel in Ward 02 | E212: m | F212: =258*0.5 -> 129 | G212: 230.0 | H212: =(E212 = CHAR(37)) * (F212*G212/100) + (E212 <> CHAR(37)) * (F212*G212) -> R29,670.00 | NG212: R557.00 | NJ212: =NJ176*0.25 -> 557
A214: 11869 | B214: C.8.2.2 | D214: Side V-drain | E214: m | F214: 0 | G214: 230.0 | H214: =(E214 = CHAR(37)) * (F214*G214/100) + (E214 <> CHAR(37)) * (F214*G214) -> R0.00 | NG214: R1,003.00 | NJ214: =NJ176*0.45 -> 1 003
B216: Total Carried Forward To Summary | H216: =SUM(H172:H215) -> R285,354.00
B218: =B167 -> CONSTUCTION OF SEWER RETICULATION IN VUKUZAKHE,WARD 1&2
B219: =B168 -> CONTRACT NO. T05/2026
B220: SCHEDULE OF QUANTITIES
H221: SANS 1200 DB : PIPE TRENCHES
B222: ITEM NO | C222: PAYMENT | D222: DESCRIPTION | E222: UNIT | F222: QTY | G222: RATE | H222: AMOUNT (RANDS) | NG222: QTY
A223: 1991 | B223: D | C223: SANS 1200 DB | D223: SECTION D : PIPE TRENCHES | NI223: Width = | NJ223: 1.15 | NK223: 1.2
A225: 11873 | B225: D.1 | D225: PIPE TRENCHES | NI225: pipe diameter = | NJ225: 0.65
NI226: Width = | NJ226: =NJ225+0.6 -> 1.25 | NK226: =NJ226*1.045 -> 1.30625
A227: 11874 | C227: 8.3.2(a) | D227: Excavate in all materials for trenches backfill, compact, and dispose of surplus/unsuitable material, for pipes up to 250 mm diam. for total trench depth: | J227: Ward 02 Sewer | L227: Total | M227: WIDTH (0.3+0.16+0.3=0.76 | N227: VOLUME | NJ227: =F176 -> 1 965
A229: 2056 | B229: D.1.1 | D229: Exceeding 0,0 m but not exceeding 1,0 m | E229: m | F229: =L229 -> 20 | G229: 120.0 | H229: =(E229 = CHAR(37)) * (F229*G229/100) + (E229 <> CHAR(37)) * (F229*G229) -> R2,400.00 | J229: ='[2]SEWER QUANTITIES'!$D$817 -> R20.06 | L229: =K229+J229+I229 -> R20.06 | M229: R0.76 | N229: =L229*M229*1 -> R15.25 | NG229: R423.00 | NJ229: 0.19 | NK229: =$NJ$227*NJ229 -> 373.35
A231: 1992 | B231: D.1.2 | D231: Exceeding 1,0 m but not exceeding 2,0 m | E231: m | F231: =L231 -> 973 | G231: 140.0 | H231: =(E231 = CHAR(37)) * (F231*G231/100) + (E231 <> CHAR(37)) * (F231*G231) -> R136,220.00 | J231: ='[2]SEWER QUANTITIES'!$E$817 -> R972.55 | L231: =K231+J231+I231 -> R972.55 | M231: R0.76 | N231: =L231*M231*1 -> R739.14 | NG231: R1,203.00 | NJ231: 0.54 | NK231: =$NJ$227*NJ231 -> 1061.10
A233: 1993 | B233: D.1.3 | D233: Exceeding 2,0 m but not exceeding 3,0 m | E233: m | F233: =L233 -> 759 | G233: 160.0 | H233: =(E233 = CHAR(37)) * (F233*G233/100) + (E233 <> CHAR(37)) * (F233*G233) -> R121,440.00 | J233: ='[2]SEWER QUANTITIES'!$F$817 -> R759.16 | L233: =K233+J233+I233 -> R759.16 | M233: R0.76 | N233: =L233*M233*1 -> R576.96 | NG233: R446.00 | NJ233: 0.20 | NK233: =$NJ$227*NJ233 -> 393.00
A235: 2015 | B235: D.1.4 | D235: Exceeding 3,0 m but not exceeding 4,0 m | E235: m | F235: =L235 -> 542 | G235: 200.0 | H235: =(E235 = CHAR(37)) * (F235*G235/100) + (E235 <> CHAR(37)) * (F235*G235) -> R108,400.00 | J235: ='[2]SEWER QUANTITIES'!$G$817 -> R541.66 | L235: =K235+J235+I235 -> R541.66 | M235: R0.76 | N235: =L235*M235*1 -> R411.66 | NG235: R156.00 | NJ235: 0.07 | NK235: =$NJ$227*NJ235 -> 137.55
NJ236: =SUM(NJ229:NJ235) -> 1.00 | NK236: =SUM(NK229:NK235) -> 1965.00
A237: 2015 | B237: D.1.4 | D237: Exceeding 4,0 m but not exceeding 5,0 m | E237: m | F237: =L237 -> 163 | G237: 280.0 | H237: =(E237 = CHAR(37)) * (F237*G237/100) + (E237 <> CHAR(37)) * (F237*G237) -> R45,640.00 | J237: ='[2]SEWER QUANTITIES'!$H$817+'[2]SEWER QUANTITIES'!$I$817 -> R162.94 | L237: =K237+J237+I237 -> R162.94 | M237: R0.76 | N237: =L237*M237*1 -> R123.83 | NG237: R156.00 | NJ237: 0.07 | NK237: =$NJ$227*NJ237 -> 137.55
L238: =SUM(L229:L237) -> R2,456.37 | N238: =SUM(N229:N237) -> R1,866.84
A239: 1994 | C239: 8.3.2(b) | D239: Extra-over incl. for (prov):
I240: =N238 -> R1,866.84 | NJ240: =NJ227*NJ226*4 -> 9 825 | NK240: 3025 | NL240: =NJ240-NK240 -> 6 800
A241: 1995 | B241: D.1.5 | D241: Intermediate excavation | E241: m³ | F241: =J241 -> 280 | G241: 220.0 | H241: =(E241 = CHAR(37)) * (F241*G241/100) + (E241 <> CHAR(37)) * (F241*G241) -> R61,600.00 | I241: R0.15 | J241: =I241*I240 -> R280.03 | NG241: R2,115.00
NI242: =$F$229*4*$NJ$226 -> 100 | NJ242: 0.19 | NK242: =$NJ$240*NJ242 -> 1866.75
A243: 1996 | B243: D.1.6 | D243: Hard rock excavation | E243: m³ | F243: =J243 -> 1 027 | G243: 300.0 | H243: =(E243 = CHAR(37)) * (F243*G243/100) + (E243 <> CHAR(37)) * (F243*G243) -> R308,100.00 | I243: R0.55 | J243: =I243*I240 -> R1,026.76 | NG243: R6,015.00
NI244: =F231*4*$NJ$226 -> 4865 | NJ244: 0.54 | NK244: =$NJ$240*NJ244 -> 5305.50
A245: 2024 | B245: D.1.7 | D245: Boulder excavation Class A | E245: m³ | F245: =J245 -> 373 | G245: 340.0 | H245: =(E245 = CHAR(37)) * (F245*G245/100) + (E245 <> CHAR(37)) * (F245*G245) -> R126,820.00 | I245: R0.20 | J245: =I245*I240 -> R373.37 | NG245: R2,230.00
NI246: =F233*4*$NJ$226 -> 3795 | NJ246: 0.20 | NK246: =$NJ$240*NJ246 -> 1965.00
A247: 2025 | B247: D.1.8 | D247: Boulder excavation Class B | E247: m³ | F247: =J247 -> 187 | G247: 380.0 | H247: =(E247 = CHAR(37)) * (F247*G247/100) + (E247 <> CHAR(37)) * (F247*G247) -> R71,060.00 | I247: R0.10 | J247: =I247*I240 -> R186.68 | NG247: R780.00
I248: =SUM(I241:I247) -> R1.00 | J248: =SUM(J241:J247) -> R1,866.84 | NI248: =F235*4*$NJ$226 -> 2710 | NJ248: 0.07 | NK248: =$NJ$240*NJ248 -> 687.75
A249: 2017 | B249: D.1.9 | C249: 8.3.2(b) | D249: Excavate and dispose of unsuitable material from trench bottom (Provisional) | E249: m³ | F249: =I240*0.25*0.76 -> 355 | G249: 240.0 | H249: =(E249 = CHAR(37)) * (F249*G249/100) + (E249 <> CHAR(37)) * (F249*G249) -> R85,200.00 | NG249: R418.00 | NI249: =SUM(NI242:NI248) -> 11470 | NJ249: =SUM(NJ242:NJ248) -> 1.00 | NK249: =SUM(NK242:NK248) -> 9825.00
NJ250: =NJ226*NJ227*0.15 -> 368.4375
A251: 2026 | B251: D.2 | C251: PSD 8.3.3 | D251: RESTRICTED EXCAVATION
A253: 2018 | D253: Excavate for pipe trenches confined spaces in all materials and use for backfill or embankment , or dispose: | NJ253: =(110+(5*6.5))*1.15*4 -> 655.5 | NK253: road crossings and stream crossing
A255: 2019 | B255: D.2.1 | D255: Depth up to 1,0 m | E255: m³ | F255: =F229*0.15 -> 3 | G255: 140.0 | H255: =(E255 = CHAR(37)) * (F255*G255/100) + (E255 <> CHAR(37)) * (F255*G255) -> R420.00 | NG255: R262.00 | NJ255: 0.40 | NK255: =$NJ$253*NJ255 -> 262.20
A257: 2020 | B257: D.2.2 | D257: Depth over 1,0 m and up to 2,0 m | E257: m³ | F257: =F231*0.15 -> 146 | G257: 160.0 | H257: =(E257 = CHAR(37)) * (F257*G257/100) + (E257 <> CHAR(37)) * (F257*G257) -> R23,360.00 | NG257: R262.00 | NJ257: 0.40 | NK257: =$NJ$253*NJ257 -> 262.20
A259: 2021 | B259: D.2.3 | D259: Depth over 2,0 m and up to 3,0 m | E259: m³ | F259: =F233*0.15 -> 114 | G259: 180.0 | H259: =(E259 = CHAR(37)) * (F259*G259/100) + (E259 <> CHAR(37)) * (F259*G259) -> R20,520.00 | NG259: R131.00 | NJ259: 0.20 | NK259: =$NJ$253*NJ259 -> 131.10
A261: 2022 | D261: Extra over items above for: | I261: =SUM(F255:F260)*0.76*5 -> R999.40 | NJ261: =SUM(NJ255:NJ259) -> 1.00
I262: R0.15 | J262: =I262*I261 -> R149.91 | NJ262: =NJ253 -> 656
A263: 2027 | B263: D.2.4 | D263: Intermediate excavation | E263: m³ | F263: =J262 -> 150 | G263: 220.0 | H263: =(E263 = CHAR(37)) * (F263*G263/100) + (E263 <> CHAR(37)) * (F263*G263) -> R33,000.00 | NG263: R125.00
I264: R0.55 | J264: =I264*I261 -> R549.67 | NJ264: 0.19 | NK264: =$NJ$262*NJ264 -> 124.64
A265: 2028 | B265: D.2.5 | D265: Hard rock excavation | E265: m³ | F265: =J264 -> 550 | G265: 300.0 | H265: =(E265 = CHAR(37)) * (F265*G265/100) + (E265 <> CHAR(37)) * (F265*G265) -> R165,000.00 | NG265: R354.00
I266: R0.20 | J266: =I266*I261 -> R199.88 | NJ266: 0.54 | NK266: =$NJ$262*NJ266 -> 354.24
A267: 2029 | B267: D.2.6 | D267: Boulder excavation Class A | E267: m³ | F267: =J266 -> 200 | G267: 340.0 | H267: =(E267 = CHAR(37)) * (F267*G267/100) + (E267 <> CHAR(37)) * (F267*G267) -> R68,000.00 | NG267: R131.00
I268: R0.10 | J268: =I268*I261 -> R99.94 | NJ268: 0.20 | NK268: =$NJ$262*NJ268 -> 131.20
A269: 2030 | B269: D.2.7 | D269: Boulder excavation Class B | E269: m³ | F269: =J268 -> 100 | G269: 380.0 | H269: =(E269 = CHAR(37)) * (F269*G269/100) + (E269 <> CHAR(37)) * (F269*G269) -> R38,000.00 | I269: =SUM(I262:I268) -> R1.00 | J269: =SUM(J262:J268) -> R999.40 | NG269: R46.00
NJ270: 0.07 | NK270: =$NJ$262*NJ270 -> 45.92
A271: 2023 | B271: D.2.8 | D271: Extra over item 140.02 for hand excavation | E271: m³ | F271: =I261*0.25*0.76 -> 190 | G271: 180.0 | H271: =(E271 = CHAR(37)) * (F271*G271/100) + (E271 <> CHAR(37)) * (F271*G271) -> R34,200.00 | NG271: R295.00 | NJ271: =SUM(NJ264:NJ270) -> 1.00 | NK271: =SUM(NK264:NK270) -> 656.00
NI272: 23.0% | NJ272: =(F255+F257+F259+F263+F265+F267+F269) -> 1 263 | NK272: =NJ272*NI272 -> 290.49
A273: 1997 | D273: EXCAVATION. ANCILLARIES Make up deficiency in backfill material (Provisional) | NJ273: =NJ227 -> 1 965
NJ274: =NJ273*1.4*1.15 -> 3 164 | NK274: R80
A275: 1998 | B275: D.2.9 | C275: 8.3.3.1(a) | D275: from other necessary excavations on site | E275: m³ | F275: 0 | G275: 80.0 | H275: =(E275 = CHAR(37)) * (F275*G275/100) + (E275 <> CHAR(37)) * (F275*G275) -> R0.00 | NG275: R3,587.00
NJ276: =NJ274 -> 3 164 | NK276: R240
A277: 1999 | B277: D.2.10 | C277: 8.3.3.1(c) | D277: by importation from commercial or off-site sources selected by the Contractor | E277: m³ | F277: =I240*0.6*0.76 -> 851 | G277: 240.0 | H277: =(E277 = CHAR(37)) * (F277*G277/100) + (E277 <> CHAR(37)) * (F277*G277) -> R204,240.00 | NG277: R3,587.00
A279: 2035 | B279: D.3 | C279: PSD 8.3.3 | D279: SUPPLY ONLY OF BEDDING BY IMPORTATION
B281: Total Carried Forward | H281: =SUM(H223:H280) -> R1,653,620.00
B283: =B218 -> CONSTUCTION OF SEWER RETICULATION IN VUKUZAKHE,WARD 1&2
B284: =B219 -> CONTRACT NO. T05/2026
B285: SCHEDULE OF QUANTITIES
H286: SANS 1200 DB : PIPE TRENCHES
B287: ITEM NO | C287: PAYMENT | D287: DESCRIPTION | E287: UNIT | F287: QTY | G287: RATE | H287: AMOUNT (RANDS) | NG287: QTY
B288: Brought Forward | H288: =H281 -> R1,653,620.00
A289: 2040 | D289: From commercial sources: | I289: Length = | J289: =SUM(F229:F237) -> R2,457.00
NJ290: =#REF!*0.15*NK226 -> 
A291: 2041 | B291: D.3.7 | D291: Bedding Cradle | E291: m³ | F291: =I291 -> 280 | G291: 200.0 | H291: =(E291 = CHAR(37)) * (F291*G291/100) + (E291 <> CHAR(37)) * (F291*G291) -> R56,000.00 | I291: =J289*0.76*0.15 -> R280.10 | NG291: R437.00
NJ292: =#REF!*0.2*NK226 -> 
A293: 2042 | B293: D.3.8 | D293: 200mm layer compaceted seleted fill blanket (Class I) | E293: m³ | F293: =I293 -> 373 | G293: 240.0 | H293: =(E293 = CHAR(37)) * (F293*G293/100) + (E293 <> CHAR(37)) * (F293*G293) -> R89,520.00 | I293: =J289*0.76*0.2 -> R373.46 | NG293: R582.00
NJ294: =#REF!*0.3*NK226 -> 
A295: 2043 | B295: D.3.9 | D295: 300mm layer of consolidaed selected backfil (Class II) | E295: m³ | F295: =I295 -> 560 | G295: 260.0 | H295: =(E295 = CHAR(37)) * (F295*G295/100) + (E295 <> CHAR(37)) * (F295*G295) -> R145,600.00 | I295: =J289*0.76*0.3 -> R560.20 | NG295: R873.00 | NJ295: =NJ253 -> 655.5
A297: 2044 | B297: D.3.10 | D297: 200mm layer of 19mm Aggregate | E297: m³ | F297: =I297 -> 373 | G297: 580.0 | H297: =(E297 = CHAR(37)) * (F297*G297/100) + (E297 <> CHAR(37)) * (F297*G297) -> R216,340.00 | I297: =J289*0.76*0.2 -> R373.46 | NG297: R428.00 | NJ297: =NJ295*0.5*NK226 -> 428.1234375
A299: 2000 | B299: D.4 | C299: 8.3.3.4 | D299: OVERHAUL
A301: 2001 | B301: D.4.1 | D301: Overhaul (provisional) | E301: m³.km | F301: =I301 -> 1 587 | G301: 8.0 | H301: =(E301 = CHAR(37)) * (F301*G301/100) + (E301 <> CHAR(37)) * (F301*G301) -> R12,696.00 | I301: =SUM(I291:I297) -> R1,587.22 | NG301: R1,160.00 | NJ301: =NJ290+NJ292+NJ294+NJ297 -> 
A303: 2002 | B303: D.5 | D303: EXISTING SERVICES
A305: 2003 | C305: 8.3.5 | D305: Services across and in trenches
A307: 2004 | C307: PSDB ... | D307: Location
A309: 2005 | B309: D.5.1 | D309: Supply or hire of specialist equipment for the detection of a particular service | E309: Sum | F309: 1 | G309: 150,000.0 | H309: =(E309 = CHAR(37)) * (F309*G309/100) + (E309 <> CHAR(37)) * (F309*G309) -> R150,000.00 | NG309: R1.00 | NJ309: 70
A311: 2006 | B311: D.5.2 | D311: The use of equipment in item 142.4.1 | E311: h | F311: =I311 -> 28 | G311: 120.0 | H311: =(E311 = CHAR(37)) * (F311*G311/100) + (E311 <> CHAR(37)) * (F311*G311) -> R3,360.00 | I311: =(F124*21*8)/24 -> R28.00 | NG311: R120.00 | NJ311: =8*5*NK311 -> 120 | NK311: 3
A313: 2007 | B313: D.5.3 | D313: Excavate by hand in soft material to expose service... | E313: m³ / daywk | F313: =I313 -> 14 | G313: 120.0 | H313: =(E313 = CHAR(37)) * (F313*G313/100) + (E313 <> CHAR(37)) * (F313*G313) -> R1,680.00 | I313: =(F249+F271)/(8*5) -> R13.63 | NG313: R560.00 | NJ313: =NJ309*2*4 -> 560
A315: 2008 | C315: PSDB ... | D315: Dealing with services
A317: 2009 | C317: 8.3.5(a) | D317: Services that intersect a trench
A319: 2010 | B319: D.5.4 | D319: Cables | E319: No. | F319: =44*0.7 -> 31 | G319: 1,500.0 | H319: =(E319 = CHAR(37)) * (F319*G319/100) + (E319 <> CHAR(37)) * (F319*G319) -> R46,500.00 | NG319: R43.00 | NL319: 43
A321: 2011 | B321: D.5.5 | D321: Water mains up to 300 mm diam. | E321: No. | F321: =26*0.7 -> 18 | G321: 2,000.0 | H321: =(E321 = CHAR(37)) * (F321*G321/100) + (E321 <> CHAR(37)) * (F321*G321) -> R36,000.00 | NG321: R28.00 | NL321: 28
A324: 2012 | C324: 8.3.5(b) | D324: Services that adjoin a trench
A326: 2013 | B326: D.5.7 | D326: Cables | E326: m | F326: =220*0.7 -> 154 | G326: 55.0 | H326: =(E326 = CHAR(37)) * (F326*G326/100) + (E326 <> CHAR(37)) * (F326*G326) -> R8,470.00 | NG326: R1,448.00 | NJ326: =#REF!*0.65 -> 
B328: Total Carried Forward | H328: =SUM(H288:H327) -> R2,419,786.00
B330: =B283 -> CONSTUCTION OF SEWER RETICULATION IN VUKUZAKHE,WARD 1&2
... 104 more rows

Sheet ACTUAL BOQ less sewer (hidden)
A1: Rate=G | B1: CONSTUCTION OF SEWER RETICULATION IN VUKUZAKHE,WARD 1&2
A2: <NewDataSet>· <xs:schema id="NewDataSet" xmlns="" xmlns:xs="http://www.w3.org/2001/XMLSchema" xmlns:msdata="urn:schemas-microsoft-com:xml-msdata">· <xs:element name="NewDataSet" msdata:IsDataSet="true" msdata:MainDataTable="SummaryItems" msdata:UseCurrentLocale="true">· <xs:complexType>· <xs:choice minOccurs="0" maxOccurs="unbounded">· <xs:element name="SummaryItems">· <xs:complexType>· <xs:sequence>· <xs:element name="ContractNo" type="xs:short" minOccurs="0" />· <xs:element name="ScheduleNo" type="xs:short" minOccurs="0" />· <xs:element name="SortNo" type="xs:short" minOccurs="0" />· <xs:element name="Item" type="xs:string" minOccurs="0" />· <xs:element name="SubTotalText" type="xs:string" minOccurs="0" />· <xs:element name="Description" type="xs:string" minOccurs="0" />· <xs:element name="CalcType" type="xs:string" minOccurs="0" />· <xs:element name="CalcValue" type="xs:double" minOccurs="0" />· <xs:element name="UseFirstSubTotal" type="xs:boolean" minOccurs="0" />· <xs:element name="ExclFromWorks" type="xs:boolean" minOccurs="0" />· <xs:element name="ExclFromProjected" type="xs:boolean" minOccurs="0" />· </xs:sequence>· </xs:complexType>· </xs:element>· </xs:choice>· </xs:complexType>· </xs:element>· </xs:schema>·</NewDataSet> | B2: CONTRACT NO. T12/2026
B3: SCHEDULE OF QUANTITIES
H4: SANS 1200 A : PRELIMINARY AND GENERAL
B5: ITEM NO | C5: PAYMENT | D5: DESCRIPTION | E5: UNIT | F5: QTY | G5: RATE | H5: AMOUNT (RANDS) | NG5: QTY
A6: 198 | B6: A | C6: SANS 1200 A | D6: SECTION A : PRELIMINARY AND GENERAL
A8: 199 | B8: A.1 | C8: 8.3 | D8: FIXED-CHARGE ITEMS
A10: 200 | B10: A.1.1 | C10: 8.3.1 | D10: Contractual Requirements | E10: Sum | F10: 1 | G10: =K10 -> 180,000.0 | H10: =(E10 = CHAR(37)) * (F10*G10/100) + (E10 <> CHAR(37)) * (F10*G10) -> R180,000.00 | I10: 450,000.0 | J10: R0.60 | K10: =I10-(I10*J10) -> R180,000.00 | NG10: R1.00 | NJ10: R420,000 | NK10: 0.5 | NL10: =NK10*NJ10 -> 210000
A12: 201 | C12: 8.3.2 | D12: Establish Facilities on the Site :
A14: 202 | D14: a) Facilities for Engineer (SANS 1200 AB)
A16: 203 | B16: A.1.2 | D16: Offices: 1 furnished room with a telephone and 3 name-boards | E16: Sum | F16: 1 | G16: =K16 -> 12,000.0 | H16: =(E16 = CHAR(37)) * (F16*G16/100) + (E16 <> CHAR(37)) * (F16*G16) -> R12,000.00 | I16: 30,000.0 | J16: =J10 -> R0.60 | K16: =I16-(I16*J16) -> R12,000.00 | NG16: R1.00 | NJ16: R60,000 | NK16: =NK10 -> 0.5 | NL16: =NK16*NJ16 -> 30000
A18: 206 | D18: b) Facilities for Contractor
A20: 207 | B20: A.1.3 | D20: Offices and storage sheds | E20: Sum | F20: 1 | G20: =K20 -> 6,500.0 | H20: =(E20 = CHAR(37)) * (F20*G20/100) + (E20 <> CHAR(37)) * (F20*G20) -> R6,500.00 | I20: 16,250.0 | J20: =J16 -> R0.60 | K20: =I20-(I20*J20) -> R6,500.00 | NG20: R1.00 | NJ20: R32,500 | NK20: =NK16 -> 0.5 | NL20: =NK20*NJ20 -> 16250
A22: 208 | B22: A.1.4 | D22: Workshops | E22: Sum | F22: 1 | G22: =K22 -> 500.0 | H22: =(E22 = CHAR(37)) * (F22*G22/100) + (E22 <> CHAR(37)) * (F22*G22) -> R500.00 | I22: 1,250.0 | J22: =J20 -> R0.60 | K22: =I22-(I22*J22) -> R500.00 | NG22: R1.00 | NJ22: R2,500 | NK22: =NK20 -> 0.5 | NL22: =NK22*NJ22 -> 1250
A24: 209 | B24: A.1.5 | D24: Laboratories | E24: Sum | F24: 1 | G24: =K24 -> 2,500.0 | H24: =(E24 = CHAR(37)) * (F24*G24/100) + (E24 <> CHAR(37)) * (F24*G24) -> R2,500.00 | I24: 6,250.0 | J24: =J22 -> R0.60 | K24: =I24-(I24*J24) -> R2,500.00 | NG24: R1.00 | NJ24: R12,500 | NK24: =NK22 -> 0.5 | NL24: =NK24*NJ24 -> 6250
A26: 210 | B26: A.1.6 | D26: Living accommodation | E26: Sum | F26: 1 | G26: =K26 -> 5,500.0 | H26: =(E26 = CHAR(37)) * (F26*G26/100) + (E26 <> CHAR(37)) * (F26*G26) -> R5,500.00 | I26: 13,750.0 | J26: =J24 -> R0.60 | K26: =I26-(I26*J26) -> R5,500.00 | NG26: R1.00 | NJ26: R27,500 | NK26: =NK24 -> 0.5 | NL26: =NK26*NJ26 -> 13750
A28: 211 | B28: A.1.7 | D28: Ablution and latrine facilities | E28: Sum | F28: 1 | G28: =K28 -> 1,000.0 | H28: =(E28 = CHAR(37)) * (F28*G28/100) + (E28 <> CHAR(37)) * (F28*G28) -> R1,000.00 | I28: 2,500.0 | J28: =J26 -> R0.60 | K28: =I28-(I28*J28) -> R1,000.00 | NG28: R1.00 | NJ28: R5,000 | NK28: =NK26 -> 0.5 | NL28: =NK28*NJ28 -> 2500
A30: 212 | B30: A.1.8 | D30: Tools and equipment | E30: Sum | F30: 1 | G30: =K30 -> 5,500.0 | H30: =(E30 = CHAR(37)) * (F30*G30/100) + (E30 <> CHAR(37)) * (F30*G30) -> R5,500.00 | I30: 13,750.0 | J30: =J28 -> R0.60 | K30: =I30-(I30*J30) -> R5,500.00 | NG30: R1.00 | NJ30: R27,500 | NK30: =NK28 -> 0.5 | NL30: =NK30*NJ30 -> 13750
A32: 213 | B32: A.1.9 | D32: Water supplies, electric power and communications | E32: Sum | F32: 1 | G32: =K32 -> 10,000.0 | H32: =(E32 = CHAR(37)) * (F32*G32/100) + (E32 <> CHAR(37)) * (F32*G32) -> R10,000.00 | I32: 25,000.0 | J32: =J30 -> R0.60 | K32: =I32-(I32*J32) -> R10,000.00 | NG32: R1.00 | NJ32: R50,000 | NK32: =NK30 -> 0.5 | NL32: =NK32*NJ32 -> 25000
A34: 214 | B34: A.1.10 | D34: Dealing with water (Subclause 5.5) | E34: Sum | F34: 1 | G34: =K34 -> 2,500.0 | H34: =(E34 = CHAR(37)) * (F34*G34/100) + (E34 <> CHAR(37)) * (F34*G34) -> R2,500.00 | I34: 6,250.0 | J34: =J32 -> R0.60 | K34: =I34-(I34*J34) -> R2,500.00 | NG34: R1.00 | NJ34: R12,500 | NK34: =NK32 -> 0.5 | NL34: =NK34*NJ34 -> 6250
A36: 220 | B36: A.1.11 | C36: 8.3.3 | D36: Other fixed-charge obligations | E36: Sum | F36: 1 | G36: =K36 -> 1,000.0 | H36: =(E36 = CHAR(37)) * (F36*G36/100) + (E36 <> CHAR(37)) * (F36*G36) -> R1,000.00 | I36: 2,500.0 | J36: =J34 -> R0.60 | K36: =I36-(I36*J36) -> R1,000.00 | NG36: R1.00 | NJ36: R5,000 | NK36: =NK34 -> 0.5 | NL36: =NK36*NJ36 -> 2500
A38: 221 | B38: A.1.12 | C38: 8.3.4 | D38: Remove Engineer's and Contractor's Site establishment on completion | E38: Sum | F38: 1 | G38: =K38 -> 1,500.0 | H38: =(E38 = CHAR(37)) * (F38*G38/100) + (E38 <> CHAR(37)) * (F38*G38) -> R1,500.00 | I38: 3,750.0 | J38: =J36 -> R0.60 | K38: =I38-(I38*J38) -> R1,500.00 | NG38: R1.00 | NJ38: R7,500 | NK38: 0.5 | NL38: =NK38*NJ38 -> 3750
A40: 293 | B40: A.1.13 | C40: 8.8.2 | D40: Deal with traffic and maintain the road (or accommodation of traffic and provide temporary road (detour). | E40: Sum | F40: 1 | G40: =K40 -> 40,000.0 | H40: =(E40 = CHAR(37)) * (F40*G40/100) + (E40 <> CHAR(37)) * (F40*G40) -> R40,000.00 | I40: 100,000.0 | J40: =J38 -> R0.60 | K40: =I40-(I40*J40) -> R40,000.00 | NG40: R1.00 | NJ40: R100,000 | NK40: 0.5 | NL40: =NK40*NJ40 -> 50000
A42: 222 | B42: A.2 | C42: 8.4 | D42: TIME-RELATED ITEMS
A44: 223 | B44: A.2.1 | C44: 8.4.1 | D44: Contractual Requirements | E44: month | F44: 6 | G44: =K44 -> 14,000.0 | H44: =(E44 = CHAR(37)) * (F44*G44/100) + (E44 <> CHAR(37)) * (F44*G44) -> R84,000.00 | I44: 35,000.0 | J44: =J40 -> R0.60 | K44: =I44-(I44*J44) -> R14,000.00 | NG44: R7.00 | NJ44: R12,000 | NK44: 0.5 | NL44: =NK44*NJ44 -> 6000
A46: 224 | C46: 8.4.2 | D46: Operate and maintain facilities on the Site:
A48: 225 | C48: 8.4.2.1 | D48: a) Facilities for Engineer for duration of construction (SANS 1200 AB)
A50: 226 | B50: A.2.2 | D50: Offices: 1 room, etc., as for item .1.2 | E50: month | F50: =F44 -> 6 | G50: =K50 -> 500.0 | H50: =(E50 = CHAR(37)) * (F50*G50/100) + (E50 <> CHAR(37)) * (F50*G50) -> R3,000.00 | I50: 1,250.0 | J50: =J44 -> R0.60 | K50: =I50-(I50*J50) -> R500.00 | NG50: R7.00 | NJ50: R1,250 | NK50: 0.5 | NL50: =NK50*NJ50 -> 625
A52: 227 | B52: A.2.3 | D52: Survey assistants and material | E52: month | F52: =F50 -> 6 | G52: =K52 -> 3,000.0 | H52: =(E52 = CHAR(37)) * (F52*G52/100) + (E52 <> CHAR(37)) * (F52*G52) -> R18,000.00 | I52: 7,500.0 | J52: =J50 -> R0.60 | K52: =I52-(I52*J52) -> R3,000.00 | NG52: R7.00 | NJ52: R7,500 | NK52: 0.5 | NL52: =NK52*NJ52 -> 3750
A54: 230 | C54: 8.4.2.2 | D54: b) Facilities for Contractor for duration of construction, except where otherwise stated
A56: 231 | B56: A.2.4 | D56: Offices and storage sheds | E56: month | F56: =F52 -> 6 | G56: =K56 -> 500.0 | H56: =(E56 = CHAR(37)) * (F56*G56/100) + (E56 <> CHAR(37)) * (F56*G56) -> R3,000.00 | I56: 1,250.0 | J56: =J52 -> R0.60 | K56: =I56-(I56*J56) -> R500.00 | NG56: R7.00 | NJ56: R1,250 | NK56: 0.5 | NL56: =NK56*NJ56 -> 625
A58: 232 | B58: A.2.5 | D58: Workshops | E58: month | F58: =F56 -> 6 | G58: =K58 -> 500.0 | H58: =(E58 = CHAR(37)) * (F58*G58/100) + (E58 <> CHAR(37)) * (F58*G58) -> R3,000.00 | I58: 1,250.0 | J58: =J56 -> R0.60 | K58: =I58-(I58*J58) -> R500.00 | NG58: R7.00 | NJ58: R750 | NK58: 0.5 | NL58: =NK58*NJ58 -> 375
A60: 233 | B60: A.2.6 | D60: Laboratories | E60: month | F60: =F58 -> 6 | G60: =K60 -> 500.0 | H60: =(E60 = CHAR(37)) * (F60*G60/100) + (E60 <> CHAR(37)) * (F60*G60) -> R3,000.00 | I60: 1,250.0 | J60: =J58 -> R0.60 | K60: =I60-(I60*J60) -> R500.00 | NG60: R7.00 | NJ60: R500 | NK60: 0.5 | NL60: =NK60*NJ60 -> 250
A62: 234 | B62: A.2.7 | D62: Living accommodation | E62: month | F62: =F60 -> 6 | G62: =K62 -> 2,600.0 | H62: =(E62 = CHAR(37)) * (F62*G62/100) + (E62 <> CHAR(37)) * (F62*G62) -> R15,600.00 | I62: 6,500.0 | J62: =J60 -> R0.60 | K62: =I62-(I62*J62) -> R2,600.00 | NG62: R7.00 | NJ62: R6,500 | NK62: 0.5 | NL62: =NK62*NJ62 -> 3250
A64: 235 | B64: A.2.8 | D64: Ablution and latrine facilities | E64: month | F64: =F62 -> 6 | G64: =K64 -> 800.0 | H64: =(E64 = CHAR(37)) * (F64*G64/100) + (E64 <> CHAR(37)) * (F64*G64) -> R4,800.00 | I64: 2,000.0 | J64: =J62 -> R0.60 | K64: =I64-(I64*J64) -> R800.00 | NG64: R7.00 | NJ64: R4,000 | NK64: 0.5 | NL64: =NK64*NJ64 -> 2000
B65: Total Carried Forward | H65: =SUM(H6:H64) -> R402,900.00
B67: =B1 -> CONSTUCTION OF SEWER RETICULATION IN VUKUZAKHE,WARD 1&2
B68: =B2 -> CONTRACT NO. T12/2026
B69: SCHEDULE OF QUANTITIES
H70: SANS 1200 A : PRELIMINARY AND GENERAL
B71: ITEM NO | C71: PAYMENT | D71: DESCRIPTION | E71: UNIT | F71: QTY | G71: RATE | H71: AMOUNT (RANDS) | NG71: QTY
B72: Brought Forward | H72: =H65 -> R402,900.00
A73: 236 | B73: A.2.9 | D73: Tools and equipment | E73: month | F73: =F64 -> 6 | G73: =K73 -> 1,000.0 | H73: =(E73 = CHAR(37)) * (F73*G73/100) + (E73 <> CHAR(37)) * (F73*G73) -> R6,000.00 | I73: 2,500.0 | J73: =J64 -> R0.60 | K73: =I73-(I73*J73) -> R1,000.00 | NG73: R7.00
NJ74: R5,000 | NK74: 0.5 | NL74: =NK74*NJ74 -> 2500
A75: 237 | B75: A.2.10 | D75: Water supplies, electric power and communications | E75: month | F75: =F73 -> 6 | G75: =K75 -> 500.0 | H75: =(E75 = CHAR(37)) * (F75*G75/100) + (E75 <> CHAR(37)) * (F75*G75) -> R3,000.00 | I75: 1,250.0 | J75: =J73 -> R0.60 | K75: =I75-(I75*J75) -> R500.00 | NG75: R7.00
NJ76: R2,500 | NK76: 0.5 | NL76: =NK76*NJ76 -> 1250
A77: 238 | B77: A.2.11 | D77: Dealing with water (Subclause 5.5) | E77: month | F77: =F75 -> 6 | G77: =K77 -> 300.0 | H77: =(E77 = CHAR(37)) * (F77*G77/100) + (E77 <> CHAR(37)) * (F77*G77) -> R1,800.00 | I77: 750.0 | J77: =J75 -> R0.60 | K77: =I77-(I77*J77) -> R300.00 | NG77: R7.00
NJ78: R1,500 | NK78: 0.5 | NL78: =NK78*NJ78 -> 750
A79: 239 | B79: A.2.12 | D79: Access (Subclause 5.8) | E79: month | F79: =F77 -> 6 | G79: =K79 -> 1,000.0 | H79: =(E79 = CHAR(37)) * (F79*G79/100) + (E79 <> CHAR(37)) * (F79*G79) -> R6,000.00 | I79: 2,500.0 | J79: =J77 -> R0.60 | K79: =I79-(I79*J79) -> R1,000.00 | NG79: R7.00
NJ80: R5,000 | NK80: 0.5 | NL80: =NK80*NJ80 -> 2500
A81: 244 | B81: A.2.13 | C81: 8.4.3 | D81: Supervision | E81: month | F81: =F79 -> 6 | G81: =K81 -> 14,000.0 | H81: =(E81 = CHAR(37)) * (F81*G81/100) + (E81 <> CHAR(37)) * (F81*G81) -> R84,000.00 | I81: 35,000.0 | J81: =J79 -> R0.60 | K81: =I81-(I81*J81) -> R14,000.00 | NG81: R7.00
NJ82: R120,000 | NK82: 0.5 | NL82: =NK82*NJ82 -> 60000
A83: 245 | B83: A.2.14 | C83: 8.4.4 | D83: Company and head office overhead costs | E83: month | F83: =F81 -> 6 | G83: =K83 -> 1,000.0 | H83: =(E83 = CHAR(37)) * (F83*G83/100) + (E83 <> CHAR(37)) * (F83*G83) -> R6,000.00 | I83: 2,500.0 | J83: =J81 -> R0.60 | K83: =I83-(I83*J83) -> R1,000.00 | NG83: R7.00
NJ84: R5,000 | NK84: 0.5 | NL84: =NK84*NJ84 -> 2500
A85: 246 | B85: A.2.15 | C85: 8.4.5 | D85: Other time-related obligations | E85: month | F85: =F83 -> 6 | G85: =K85 -> 500.0 | H85: =(E85 = CHAR(37)) * (F85*G85/100) + (E85 <> CHAR(37)) * (F85*G85) -> R3,000.00 | I85: 1,250.0 | J85: =J83 -> R0.60 | K85: =I85-(I85*J85) -> R500.00 | NG85: R7.00
B87: A.2.16 | C87: 8.8.2 | D87: Deal with traffic and maintain the road (or accommodation of traffic and provide temporary road (detour). | E87: month | F87: =F85 -> 6 | G87: =K87 -> 6,000.0 | H87: =(E87 = CHAR(37)) * (F87*G87/100) + (E87 <> CHAR(37)) * (F87*G87) -> R36,000.00 | I87: 15,000.0 | J87: =J85 -> R0.60 | K87: =I87-(I87*J87) -> R6,000.00 | NG87: R7.00
NJ88: R2,500 | NK88: 0.5 | NL88: =NK88*NJ88 -> 1250
A89: 297 | B89: A.3 | C89: 8.8 | D89: HEALTH & SAFETY
A91: 298 | B91: A.3.1 | C91: 8.8.1 | D91: Provision for use by the Engineer of an independent Health and Safety Agent for the compilation and maintenance of Health and Safety Plan including Risk Assessment, Safe Work Procedure and Method Statement | E91: PC Sum | F91: 1 | G91: =K91 -> 40,000.0 | H91: =(E91 = CHAR(37)) * (F91*G91/100) + (E91 <> CHAR(37)) * (F91*G91) -> R40,000.00 | I91: 100,000.0 | J91: =J87 -> R0.60 | K91: =I91-(I91*J91) -> R40,000.00 | NG91: R1.00
A93: 299 | B93: A.3.2 | C93: 8.8.2 | D93: Cost of health and safety measures required in terms of the Construction Regulations of the Occupation Health and Safety Act (2003) | E93: PC Sum | F93: 1 | G93: =K93 -> 20,000.0 | H93: =(E93 = CHAR(37)) * (F93*G93/100) + (E93 <> CHAR(37)) * (F93*G93) -> R20,000.00 | I93: 50,000.0 | J93: =J91 -> R0.60 | K93: =I93-(I93*J93) -> R20,000.00 | NG93: R1.00
A95: 301 | B95: A.3.4 | D95: Handling cost and profit in respect of sub-item A.4.1 to A.4.3 | E95: % | F95: =SUM(H91:H93) -> 60 000 | G95: 0.1 | H95: =(E95 = CHAR(37)) * (F95*G95/100) + (E95 <> CHAR(37)) * (F95*G95) -> R60.00 | I95: 0.1 | J95: =J93 -> R0.60 | K95: =I95-(I95*J95) -> R0.04 | NG95: R235,000.00
B97: A.4 | C97: 8.8 | D97: TRAINING
B99: A.4.1 | D99: Wages and salaries of local and other labourers employed by Contractor,Sub-Contractor and Emerging Contractors in respet of training periods for on-site training by the Contractor during which no productive work is executed. | E99: PC Sum | F99: 1 | G99: =K99 -> 20,000.0 | H99: =(E99 = CHAR(37)) * (F99*G99/100) + (E99 <> CHAR(37)) * (F99*G99) -> R20,000.00 | I99: 50,000.0 | J99: =J95 -> R0.60 | K99: =I99-(I99*J99) -> R20,000.00 | NG99: R1.00
B101: A.4.2 | D101: Acrredited and approved training courses for selected local and other labourers including wages during training as approved by Client. | E101: Prov. Sum | F101: 1 | G101: 50,000.0 | H101: =(E101 = CHAR(37)) * (F101*G101/100) + (E101 <> CHAR(37)) * (F101*G101) -> R50,000.00 | I101: 150,000.0 | J101: =J99 -> R0.60 | K101: =I101-(I101*J101) -> R60,000.00 | NG101: R1.00
B103: A.4.3 | D103: Contractor's charge to allow for the handling costs and profit in respect of sub-items A.5.1 & A.5.2 abovE. | E103: % | F103: =SUM(H99:H102) -> 70 000 | G103: 0.1 | H103: =(E103 = CHAR(37)) * (F103*G103/100) + (E103 <> CHAR(37)) * (F103*G103) -> R70.00 | I103: 0.1 | J103: =J101 -> R0.60 | K103: =I103-(I103*J103) -> R0.04 | NG103: R200,000.00
B105: A.5 | C105: 8.10 | D105: WAYLEAVE APPLICATIONS TO LOCAL MUNICIPALITY
A107: 302 | B107: A.5.1 | D107: Application of wayleave to relevant stakeholders prior commencement of works. | E107: PC Sum | F107: 1 | G107: 3,500.0 | H107: =(E107 = CHAR(37)) * (F107*G107/100) + (E107 <> CHAR(37)) * (F107*G107) -> R3,500.00 | I107: 10,000.0 | J107: =J103 -> R0.60 | K107: =I107-(I107*J107) -> R4,000.00 | NG107: R1.00
A109: 303 | B109: A.5.2 | C109: 8.10 | D109: WAYLEAVE APPLICATIONS TO ESKOM FOR CONSTRUCTION UNDER PYLONS | E109: PC Sum | F109: 1 | G109: 35,000.0 | H109: =(E109 = CHAR(37)) * (F109*G109/100) + (E109 <> CHAR(37)) * (F109*G109) -> R35,000.00 | I109: 100,000.0 | J109: =J107 -> R0.60 | K109: =I109-(I109*J109) -> R40,000.00 | NG109: R1.00
A111: 305 | B111: A.45.3 | D111: Contractor's charge to allow for the handling costs and profit in respect of sub-items A.5.1 & A.5.2 abovE. | E111: % | F111: =SUM(H107:H109) -> 38 500 | G111: 0.1 | H111: =(E111 = CHAR(37)) * (F111*G111/100) + (E111 <> CHAR(37)) * (F111*G111) -> R38.50 | I111: 0.1 | J111: =J109 -> R0.60 | K111: =I111-(I111*J111) -> R0.04 | NG111: R110,000.00
B114: Total Carried Forward To Summary | H114: =SUM(H72:H113) -> R717,368.50 | I114: =I624 -> R701,589.30 | J114: =H114-I114 -> R15,779.20 | NH114: =NH624 -> R586,334.16 | NJ114: =NH114-H114 -> -131,034.34
B115: CONSTUCTION OF SEWER RETICULATION IN VUKUZAKHE,WARD 1&2
B116: CONTRACT NO. T12/2026
B117: SCHEDULE OF QUANTITIES
H118: SANS 1200 B : PRIME COST ITEMS
B119: ITEM NO | C119: PAYMENT | D119: DESCRIPTION | E119: UNIT | F119: QTY | G119: RATE | H119: AMOUNT (RANDS) | O119: Provision for use by Engineer of a Geotech Engineer Services, required during the construction stage | P119: Prov. Sum | Q119: 1 | R119: =#REF! ->  | S119: =(P119 = CHAR(37)) * (Q119*R119/100) + (P119 <> CHAR(37)) * (Q119*R119) ->  | NG119: QTY
B120: B | C120: SANS 1200 B | D120: SECTION B : PRIME COST ITEMS
O121: Provision for use by the Engineer of the Mechanical Engineer Services required during construction stage | P121: Prov. Sum | Q121: 1 | R121: =#REF! ->  | S121: =(P121 = CHAR(37)) * (Q121*R121/100) + (P121 <> CHAR(37)) * (Q121*R121) -> 
B122: B.1 | C122: 8.5 | D122: SUMS STATED PROVISIONALLY BY ENGINEER
B124: B.1.1 | D124: Provision of accommodation for Engineer's representative for the duration of the contract | E124: month | F124: =F87 -> 6 | G124: 15,000.0 | H124: =(E124 = CHAR(37)) * (F124*G124/100) + (E124 <> CHAR(37)) * (F124*G124) -> R90,000.00 | I124: 15,000.0 | J124: R0.95 | K124: =I124-(I124*J124) -> R750.00 | NG124: R7.00
B126: B.1.2 | D126: Telephone calls for the Engineer | E126: month | F126: =F124 -> 6 | G126: 750.0 | H126: =(E126 = CHAR(37)) * (F126*G126/100) + (E126 <> CHAR(37)) * (F126*G126) -> R4,500.00 | I126: 1,500.0 | J126: =J124 -> R0.95 | K126: =I126-(I126*J126) -> R75.00 | NG126: R7.00
B128: B.1.3 | C128: 8.6 | D128: Prime cost of laboratory testing by other concerns where so directed by the Engineer | E128: month | F128: =F126 -> 6 | G128: 25,000.0 | H128: =(E128 = CHAR(37)) * (F128*G128/100) + (E128 <> CHAR(37)) * (F128*G128) -> R150,000.00 | I128: 35,000.0 | J128: =J126 -> R0.95 | K128: =I128-(I128*J128) -> R1,750.00 | NG128: R7.00
B130: B.1.4 | D130: Required Additional Survey by Engineer | E130: month | F130: =F128 -> 6 | G130: 25,000.0 | H130: =(E130 = CHAR(37)) * (F130*G130/100) + (E130 <> CHAR(37)) * (F130*G130) -> R150,000.00 | I130: 35,000.0 | J130: =J128 -> R0.95 | K130: =I130-(I130*J130) -> R1,750.00 | NG130: R7.00
B132: B.1.5 | D132: Remuneration of Health and Safety Agent | E132: month | F132: =F130 -> 6 | G132: 45,000.0 | H132: =(E132 = CHAR(37)) * (F132*G132/100) + (E132 <> CHAR(37)) * (F132*G132) -> R270,000.00 | I132: 55,000.0 | J132: =J130 -> R0.95 | K132: =I132-(I132*J132) -> R2,750.00 | NG132: R7.00
B134: B.1.6 | D134: Remuneration of SHE Representative from Local Municipality | E134: month | F134: =F130 -> 6 | G134: 10,000.0 | H134: =(E134 = CHAR(37)) * (F134*G134/100) + (E134 <> CHAR(37)) * (F134*G134) -> R60,000.00
B136: B.1.7 | D136: Remuneration of three Community Liaison Officer(CLO x 1) including transport, cellphone and overtime from either wards 1or 2 | E136: month | F136: =F132 -> 6 | G136: 10,000.0 | H136: =(E136 = CHAR(37)) * (F136*G136/100) + (E136 <> CHAR(37)) * (F136*G136) -> R60,000.00 | I136: =2*16000 -> 32,000.0 | J136: =J132 -> R0.95 | K136: =I136-(I136*J136) -> R1,600.00 | NG136: R7.00
B138: B.1.8 | D138: Allow for the testing and commissioning of new sewer and water networks, as well as outfall pipes. | E138: sum | F138: 1 | G138: 100,000.0 | H138: =(E138 = CHAR(37)) * (F138*G138/100) + (E138 <> CHAR(37)) * (F138*G138) -> R100,000.00 | I138: 100,000.0 | J138: =J136 -> R0.95 | K138: =I138-(I138*J138) -> R5,000.00 | NG138: R1.00
B140: B.1.9 | D140: Provision shall be made for a specialist to assess the structural integrity of the reservoir and elevated tank, as well as to evaluate the mechanical strength of the outlet pipes, fittings, and couplings associated with these structures. The specialist shall also coordinate and oversee the execution of the water-tightness test following the completion of all connections | E140: Provision sum | F140: 1 | G140: 75,000.0 | H140: =(E140 = CHAR(37)) * (F140*G140/100) + (E140 <> CHAR(37)) * (F140*G140) -> R75,000.00
B142: B.1.10 | D142: Overheads,charges and profit on item B.1.1 to B.1.09 | E142: % | F142: =SUM(H124:H140) -> 959,500 | G142: 0.1 | H142: =(E142 = CHAR(37)) * (F142*G142/100) + (E142 <> CHAR(37)) * (F142*G142) -> R959.50 | NG142: R4,621,500.00
B163: Total Carried Forward To Summary | H163: =SUM(H120:H162) -> R960,459.50 | I163: =H114+H163 -> R1,677,828.00 | J163: =#REF!+#REF! ->  | K163: =#REF! ->  | L163: =J163-I163 -> 
B165: =B115 -> CONSTUCTION OF SEWER RETICULATION IN VUKUZAKHE,WARD 1&2
B166: =B116 -> CONTRACT NO. T12/2026
B167: SCHEDULE OF QUANTITIES
H168: SANS 1200 C : SITE CLEARANCE
B169: ITEM NO | C169: PAYMENT | D169: DESCRIPTION | E169: UNIT | F169: QTY | G169: RATE | H169: AMOUNT (RANDS) | NG169: QTY
A170: 2057 | B170: C | C170: SANS 1200 C | D170: SECTION C : SITE CLEARANCE
A172: 2058 | B172: C.1 | D172: CLEAR SITE | I172: Ward 01 | J172: Ward 02 Sewer | K172: Ward 02 Water
A174: 2059 | B174: C.1.1 | C174: 8.2.1 | D174: Clear and grub pipeline route 3m wide | E174: m | F174: =I174+J174+K174 -> 1 758 | G174: 25.0 | H174: =(E174 = CHAR(37)) * (F174*G174/100) + (E174 <> CHAR(37)) * (F174*G174) -> R43,950.00 | I174: ='[1]Ward 01_Plan1_SEWERLIST'!$G$61 -> R813.21 | J174: R688.23 | K174: R256.83 | NG174: R2,228.00 | NI174: 2130 | NJ174: =NI174*1.046 -> 2 228 | NK174: =NJ174-NI174 -> 98
A176: 11863 | B176: C.1.2 | C176: 8.2.2 | D176: Remove trees of girth: Over and up to
A178: 11864 | B178: C.1.2.1 | D178: 1,0 m 2,0 m | E178: No. | F178: 20 | G178: 2,800.0 | H178: =(E178 = CHAR(37)) * (F178*G178/100) + (E178 <> CHAR(37)) * (F178*G178) -> R56,000.00 | NG178: R10.00 | NJ178: 10
B180: C.1.3 | C180: 8.2.4 | D180: Reclear surfaces (provisional) (where ordered by Engineer)
B182: C.1.3.1 | D182: Clear and grub pipeline route 3m wide | E182: m | F182: =F174*0.15 -> 264 | G182: 25.0 | H182: =(E182 = CHAR(37)) * (F182*G182/100) + (E182 <> CHAR(37)) * (F182*G182) -> R6,600.00 | NG182: R150.00
B184: C.1.3.2 | D184: Working areas | E184: m² | F184: =(F174*0.76*1.5)*0.15 -> 301 | G184: 25.0 | H184: =(E184 = CHAR(37)) * (F184*G184/100) + (E184 <> CHAR(37)) * (F184*G184) -> R7,525.00 | NG184: R1,526.00
B186: C.2 | C186: 8.2.5 | D186: Take down and re-erect existing fences (all types of fences and boundaries) | E186: m | F186: =F174*0.25 -> 440 | G186: 80.0 | H186: =(E186 = CHAR(37)) * (F186*G186/100) + (E186 <> CHAR(37)) * (F186*G186) -> R35,200.00 | NG186: R981.00
A188: 11865 | B188: C.7 | C188: 1200 DA | D188: EXCAVATION
A190: 11866 | B190: C.7.1 | C190: 8.3.1 | D190: Remove topsoil to nominal depth 150 mm, stockpile, and maintain for reinstating. | E190: m³ | F190: =(F174*0.76*0.15) -> 200 | G190: 25.0 | H190: =(E190 = CHAR(37)) * (F190*G190/100) + (E190 <> CHAR(37)) * (F190*G190) -> R5,000.00 | NG190: R1,003.00 | NJ190: =NJ174*3*0.15 -> 1 003
A192: 11867 | B192: C.8 | D192: FINISHINGS
A194: 11868 | B194: C.8.1 | C194: 8.3.6 | D194: Reinstate road surfaces complete with all courses
A196: 11869 | B196: C.8.1.1 | D196: Block Paved surfaced- the rate shall cover the supply of layer materials and compactions of layers to the existing specification, and supply and lay of paving blocks to existing thickness. | E196: m² | F196: 0 | G196: 180.0 | H196: =(E196 = CHAR(37)) * (F196*G196/100) + (E196 <> CHAR(37)) * (F196*G196) -> R0.00 | NG196: R150.00 | NJ196: =10*3*5 -> 150
A198: 11870 | B198: C.8.1.2 | D198: Gravel shoulders- the rate shall cover the supply of gravel shoulder materials and compactions of material to the existing specification. | E198: m² | F198: =258*1.2*0.08 -> 25 | G198: 80.0 | H198: =(E198 = CHAR(37)) * (F198*G198/100) + (E198 <> CHAR(37)) * (F198*G198) -> R2,000.00 | NG198: R24.00 | NJ198: =10*3*0.8 -> 24
A200: 11871 | B200: C.8.1.3 | D200: Kerbing | E200: m | F200: =258*0.5 -> 129 | G200: 80.0 | H200: =(E200 = CHAR(37)) * (F200*G200/100) + (E200 <> CHAR(37)) * (F200*G200) -> R10,320.00 | NG200: R1,114.00 | NJ200: =NJ174*0.5 -> 1 114
B202: C.8.1.4 | D202: Concrete Surfaced Household Access | E202: m² | F202: 0 | G202: 180.0 | H202: =(E202 = CHAR(37)) * (F202*G202/100) + (E202 <> CHAR(37)) * (F202*G202) -> R0.00 | NG202: R848.00 | NJ202: =(5.3*10)*16 -> 848
B204: C.8.1.5 | D204: Asphalt Surfacing - thickness from 25mm to 50mm in the roadway, the rate shall cover the supply of layer materials and compactions of layers to the existing specification, and supply and lay of asphalt surface to existing thickness. | E204: m² | F204: =258*2.5 -> 645 | G204: =H204/F204 -> 79.2 | H204: R51,100.00 | NG204: R1,337.00
D206: Gravel Surfacing - the rate shall cover the supply of layer materials and compaction of layers to the existing specification, and supply and lay of gravel wearing course surface to existing thickness. | E206: m² | F206: =122*2.5 -> 305 | G206: 180.0 | H206: =(E206 = CHAR(37)) * (F206*G206/100) + (E206 <> CHAR(37)) * (F206*G206) -> R54,900.00
B208: C.8.2 | C208: 8.3.6 | D208: Reinstate stormwater open drains
A210: 11869 | B210: C.8.2.1 | D210: kerb Channel | E210: m | F210: =258*0.5 -> 129 | G210: 230.0 | H210: =(E210 = CHAR(37)) * (F210*G210/100) + (E210 <> CHAR(37)) * (F210*G210) -> R29,670.00 | NG210: R557.00 | NJ210: =NJ174*0.25 -> 557
A212: 11869 | B212: C.8.2.2 | D212: Side V-drain | E212: m | F212: 0 | G212: 230.0 | H212: =(E212 = CHAR(37)) * (F212*G212/100) + (E212 <> CHAR(37)) * (F212*G212) -> R0.00 | NG212: R1,003.00 | NJ212: =NJ174*0.45 -> 1 003
B214: Total Carried Forward To Summary | H214: =SUM(H170:H213) -> R302,265.00
B216: =B165 -> CONSTUCTION OF SEWER RETICULATION IN VUKUZAKHE,WARD 1&2
B217: =B166 -> CONTRACT NO. T12/2026
B218: SCHEDULE OF QUANTITIES
H219: SANS 1200 DB : PIPE TRENCHES
B220: ITEM NO | C220: PAYMENT | D220: DESCRIPTION | E220: UNIT | F220: QTY | G220: RATE | H220: AMOUNT (RANDS) | NG220: QTY
A221: 1991 | B221: D | C221: SANS 1200 DB | D221: SECTION D : PIPE TRENCHES | NI221: Width = | NJ221: 1.15 | NK221: 1.2
A223: 11873 | B223: D.1 | D223: PIPE TRENCHES | NI223: pipe diameter = | NJ223: 0.65
J224: =SUM(J227:J235) -> R688.23 | NI224: Width = | NJ224: =NJ223+0.6 -> 1.25 | NK224: =NJ224*1.045 -> 1.30625
A225: 11874 | C225: 8.3.2(a) | D225: Excavate in all materials for trenches backfill, compact, and dispose of surplus/unsuitable material, for pipes up to 250 mm diam. for total trench depth: | I225: Ward 01 | J225: Ward 02 Sewer | K225: Ward 02 Water | L225: Total | M225: WIDTH (0.3+0.16+0.3=0.76 | N225: VOLUME | NJ225: =F174 -> 1 758
A227: 2056 | B227: D.1.1 | D227: Exceeding 0,0 m but not exceeding 1,0 m | E227: m | F227: =L227 -> 260 | G227: 120.0 | H227: =(E227 = CHAR(37)) * (F227*G227/100) + (E227 <> CHAR(37)) * (F227*G227) -> R31,200.00 | I227: R0.00 | J227: R3.15 | K227: R256.82 | L227: =K227+J227+I227 -> R259.97 | M227: R0.76 | N227: =L227*M227*1 -> R197.58 | NG227: R423.00 | NJ227: 0.19 | NK227: =$NJ$225*NJ227 -> 334.02
A229: 1992 | B229: D.1.2 | D229: Exceeding 1,0 m but not exceeding 2,0 m | E229: m | F229: =L229 -> 1 146 | G229: 140.0 | H229: =(E229 = CHAR(37)) * (F229*G229/100) + (E229 <> CHAR(37)) * (F229*G229) -> R160,440.00 | I229: ='[1]Ward 01_Plan1_SEWERLIST'!$F$66 -> R485.01 | J229: R660.78 | K229: R0.00 | L229: =K229+J229+I229 -> R1,145.79 | M229: R0.76 | N229: =L229*M229*1 -> R870.80 | NG229: R1,203.00 | NJ229: 0.54 | NK229: =$NJ$225*NJ229 -> 949.32
A231: 1993 | B231: D.1.3 | D231: Exceeding 2,0 m but not exceeding 3,0 m | E231: m | F231: =L231 -> 353 | G231: 160.0 | H231: =(E231 = CHAR(37)) * (F231*G231/100) + (E231 <> CHAR(37)) * (F231*G231) -> R56,480.00 | I231: ='[1]Ward 01_Plan1_SEWERLIST'!$F$67 -> R328.20 | J231: R24.30 | K231: R0.00 | L231: =K231+J231+I231 -> R352.50 | M231: R0.76 | N231: =L231*M231*1 -> R267.90 | NG231: R446.00 | NJ231: 0.20 | NK231: =$NJ$225*NJ231 -> 351.60
A233: 2015 | B233: D.1.4 | D233: Exceeding 3,0 m but not exceeding 4,0 m | E233: m | F233: =L233 -> 0 | G233: 200.0 | H233: =(E233 = CHAR(37)) * (F233*G233/100) + (E233 <> CHAR(37)) * (F233*G233) -> R0.00 | I233: R0.00 | J233: R0.00 | K233: R0.00 | L233: =K233+J233+I233 -> R0.00 | M233: R0.76 | N233: =L233*M233*1 -> R0.00 | NG233: R156.00 | NJ233: 0.07 | NK233: =$NJ$225*NJ233 -> 123.06
NJ234: =SUM(NJ227:NJ233) -> 1.00 | NK234: =SUM(NK227:NK233) -> 1758.00
A235: 2015 | B235: D.1.4 | D235: Exceeding 4,0 m but not exceeding 5,0 m | E235: m | F235: =L235 -> 0 | G235: 280.0 | H235: =(E235 = CHAR(37)) * (F235*G235/100) + (E235 <> CHAR(37)) * (F235*G235) -> R0.00 | I235: R0.00 | J235: R0.00 | K235: R0.00 | L235: =K235+J235+I235 -> R0.00 | M235: R0.76 | N235: =L235*M235*1 -> R0.00 | NG235: R156.00 | NJ235: 0.07 | NK235: =$NJ$225*NJ235 -> 123.06
L236: =SUM(L227:L235) -> R1,758.26 | N236: =SUM(N227:N235) -> R1,336.28
A237: 1994 | C237: 8.3.2(b) | D237: Extra-over incl. for (prov):
I238: =N236 -> R1,336.28 | NJ238: =NJ225*NJ224*4 -> 8 790 | NK238: 3025 | NL238: =NJ238-NK238 -> 5 765
A239: 1995 | B239: D.1.5 | D239: Intermediate excavation | E239: m³ | F239: =J239 -> 200 | G239: 220.0 | H239: =(E239 = CHAR(37)) * (F239*G239/100) + (E239 <> CHAR(37)) * (F239*G239) -> R44,000.00 | I239: R0.15 | J239: =I239*I238 -> R200.44 | NG239: R2,115.00
NI240: =$F$227*4*$NJ$224 -> 1300 | NJ240: 0.19 | NK240: =$NJ$238*NJ240 -> 1670.10
A241: 1996 | B241: D.1.6 | D241: Hard rock excavation | E241: m³ | F241: =J241 -> 735 | G241: 300.0 | H241: =(E241 = CHAR(37)) * (F241*G241/100) + (E241 <> CHAR(37)) * (F241*G241) -> R220,500.00 | I241: R0.55 | J241: =I241*I238 -> R734.95 | NG241: R6,015.00
NI242: =F229*4*$NJ$224 -> 5730 | NJ242: 0.54 | NK242: =$NJ$238*NJ242 -> 4746.60
A243: 2024 | B243: D.1.7 | D243: Boulder excavation Class A | E243: m³ | F243: =J243 -> 267 | G243: 340.0 | H243: =(E243 = CHAR(37)) * (F243*G243/100) + (E243 <> CHAR(37)) * (F243*G243) -> R90,780.00 | I243: R0.20 | J243: =I243*I238 -> R267.26 | NG243: R2,230.00
NI244: =F231*4*$NJ$224 -> 1765 | NJ244: 0.20 | NK244: =$NJ$238*NJ244 -> 1758.00
A245: 2025 | B245: D.1.8 | D245: Boulder excavation Class B | E245: m³ | F245: =J245 -> 134 | G245: 380.0 | H245: =(E245 = CHAR(37)) * (F245*G245/100) + (E245 <> CHAR(37)) * (F245*G245) -> R50,920.00 | I245: R0.10 | J245: =I245*I238 -> R133.63 | NG245: R780.00
I246: =SUM(I239:I245) -> R1.00 | J246: =SUM(J239:J245) -> R1,336.28 | NI246: =F233*4*$NJ$224 -> 0 | NJ246: 0.07 | NK246: =$NJ$238*NJ246 -> 615.30
A247: 2017 | B247: D.1.9 | C247: 8.3.2(b) | D247: Excavate and dispose of unsuitable material from trench bottom (Provisional) | E247: m³ | F247: =I238*0.25*0.76 -> 254 | G247: 240.0 | H247: =(E247 = CHAR(37)) * (F247*G247/100) + (E247 <> CHAR(37)) * (F247*G247) -> R60,960.00 | NG247: R418.00 | NI247: =SUM(NI240:NI246) -> 8795 | NJ247: =SUM(NJ240:NJ246) -> 1.00 | NK247: =SUM(NK240:NK246) -> 8790.00
NJ248: =NJ224*NJ225*0.15 -> 329.625
A249: 2026 | B249: D.2 | C249: PSD 8.3.3 | D249: RESTRICTED EXCAVATION
A251: 2018 | D251: Excavate for pipe trenches confined spaces in all materials and use for backfill or embankment , or dispose: | NJ251: =(110+(5*6.5))*1.15*4 -> 655.5 | NK251: road crossings and stream crossing
A253: 2019 | B253: D.2.1 | D253: Depth up to 1,0 m | E253: m³ | F253: =F227*0.15 -> 39 | G253: 140.0 | H253: =(E253 = CHAR(37)) * (F253*G253/100) + (E253 <> CHAR(37)) * (F253*G253) -> R5,460.00 | NG253: R262.00 | NJ253: 0.40 | NK253: =$NJ$251*NJ253 -> 262.20
A255: 2020 | B255: D.2.2 | D255: Depth over 1,0 m and up to 2,0 m | E255: m³ | F255: =F229*0.15 -> 172 | G255: 160.0 | H255: =(E255 = CHAR(37)) * (F255*G255/100) + (E255 <> CHAR(37)) * (F255*G255) -> R27,520.00 | NG255: R262.00 | NJ255: 0.40 | NK255: =$NJ$251*NJ255 -> 262.20
A257: 2021 | B257: D.2.3 | D257: Depth over 2,0 m and up to 3,0 m | E257: m³ | F257: =F231*0.15 -> 53 | G257: 180.0 | H257: =(E257 = CHAR(37)) * (F257*G257/100) + (E257 <> CHAR(37)) * (F257*G257) -> R9,540.00 | NG257: R131.00 | NJ257: 0.20 | NK257: =$NJ$251*NJ257 -> 131.10
A259: 2022 | D259: Extra over items above for: | I259: =SUM(F253:F258)*0.76*5 -> R1,003.20 | NJ259: =SUM(NJ253:NJ257) -> 1.00
I260: R0.15 | J260: =I260*I259 -> R150.48 | NJ260: =NJ251 -> 656
A261: 2027 | B261: D.2.4 | D261: Intermediate excavation | E261: m³ | F261: =J260 -> 150 | G261: 220.0 | H261: =(E261 = CHAR(37)) * (F261*G261/100) + (E261 <> CHAR(37)) * (F261*G261) -> R33,000.00 | NG261: R125.00
I262: R0.55 | J262: =I262*I259 -> R551.76 | NJ262: 0.19 | NK262: =$NJ$260*NJ262 -> 124.64
A263: 2028 | B263: D.2.5 | D263: Hard rock excavation | E263: m³ | F263: =J262 -> 552 | G263: 300.0 | H263: =(E263 = CHAR(37)) * (F263*G263/100) + (E263 <> CHAR(37)) * (F263*G263) -> R165,600.00 | NG263: R354.00
I264: R0.20 | J264: =I264*I259 -> R200.64 | NJ264: 0.54 | NK264: =$NJ$260*NJ264 -> 354.24
A265: 2029 | B265: D.2.6 | D265: Boulder excavation Class A | E265: m³ | F265: =J264 -> 201 | G265: 340.0 | H265: =(E265 = CHAR(37)) * (F265*G265/100) + (E265 <> CHAR(37)) * (F265*G265) -> R68,340.00 | NG265: R131.00
I266: R0.10 | J266: =I266*I259 -> R100.32 | NJ266: 0.20 | NK266: =$NJ$260*NJ266 -> 131.20
A267: 2030 | B267: D.2.7 | D267: Boulder excavation Class B | E267: m³ | F267: =J266 -> 100 | G267: 380.0 | H267: =(E267 = CHAR(37)) * (F267*G267/100) + (E267 <> CHAR(37)) * (F267*G267) -> R38,000.00 | I267: =SUM(I260:I266) -> R1.00 | J267: =SUM(J260:J266) -> R1,003.20 | NG267: R46.00
NJ268: 0.07 | NK268: =$NJ$260*NJ268 -> 45.92
A269: 2023 | B269: D.2.8 | D269: Extra over item 140.02 for hand excavation | E269: m³ | F269: =I259*0.25*0.76 -> 191 | G269: 180.0 | H269: =(E269 = CHAR(37)) * (F269*G269/100) + (E269 <> CHAR(37)) * (F269*G269) -> R34,380.00 | NG269: R295.00 | NJ269: =SUM(NJ262:NJ268) -> 1.00 | NK269: =SUM(NK262:NK268) -> 656.00
NI270: 23.0% | NJ270: =(F253+F255+F257+F261+F263+F265+F267) -> 1 267 | NK270: =NJ270*NI270 -> 291.41
A271: 1997 | D271: EXCAVATION. ANCILLARIES Make up deficiency in backfill material (Provisional) | NJ271: =NJ225 -> 1 758
NJ272: =NJ271*1.4*1.15 -> 2 830 | NK272: R80
A273: 1998 | B273: D.2.9 | C273: 8.3.3.1(a) | D273: from other necessary excavations on site | E273: m³ | F273: 0 | G273: 80.0 | H273: =(E273 = CHAR(37)) * (F273*G273/100) + (E273 <> CHAR(37)) * (F273*G273) -> R0.00 | NG273: R3,587.00
NJ274: =NJ272 -> 2 830 | NK274: R240
A275: 1999 | B275: D.2.10 | C275: 8.3.3.1(c) | D275: by importation from commercial or off-site sources selected by the Contractor | E275: m³ | F275: =I238*0.6*0.76 -> 609 | G275: 240.0 | H275: =(E275 = CHAR(37)) * (F275*G275/100) + (E275 <> CHAR(37)) * (F275*G275) -> R146,160.00 | NG275: R3,587.00
A277: 2035 | B277: D.3 | C277: PSD 8.3.3 | D277: SUPPLY ONLY OF BEDDING BY IMPORTATION
B279: Total Carried Forward | H279: =SUM(H221:H278) -> R1,243,280.00
B281: =B216 -> CONSTUCTION OF SEWER RETICULATION IN VUKUZAKHE,WARD 1&2
B282: =B217 -> CONTRACT NO. T12/2026
B283: SCHEDULE OF QUANTITIES
H284: SANS 1200 DB : PIPE TRENCHES
B285: ITEM NO | C285: PAYMENT | D285: DESCRIPTION | E285: UNIT | F285: QTY | G285: RATE | H285: AMOUNT (RANDS) | NG285: QTY
B286: Brought Forward | H286: =H279 -> R1,243,280.00
A287: 2040 | D287: From commercial sources: | I287: Length = | J287: =SUM(F227:F235) -> R1,759.00
NJ288: =#REF!*0.15*NK224 -> 
A289: 2041 | B289: D.3.7 | D289: Bedding Cradle | E289: m³ | F289: =I289 -> 201 | G289: 200.0 | H289: =(E289 = CHAR(37)) * (F289*G289/100) + (E289 <> CHAR(37)) * (F289*G289) -> R40,200.00 | I289: =J287*0.76*0.15 -> R200.53 | NG289: R437.00
NJ290: =#REF!*0.2*NK224 -> 
A291: 2042 | B291: D.3.8 | D291: 200mm layer compaceted seleted fill blanket (Class I) | E291: m³ | F291: =I291 -> 267 | G291: 240.0 | H291: =(E291 = CHAR(37)) * (F291*G291/100) + (E291 <> CHAR(37)) * (F291*G291) -> R64,080.00 | I291: =J287*0.76*0.2 -> R267.37 | NG291: R582.00
NJ292: =#REF!*0.3*NK224 -> 
A293: 2043 | B293: D.3.9 | D293: 300mm layer of consolidaed selected backfil (Class II) | E293: m³ | F293: =I293 -> 401 | G293: 260.0 | H293: =(E293 = CHAR(37)) * (F293*G293/100) + (E293 <> CHAR(37)) * (F293*G293) -> R104,260.00 | I293: =J287*0.76*0.3 -> R401.05 | NG293: R873.00 | NJ293: =NJ251 -> 655.5
A295: 2044 | B295: D.3.10 | D295: 200mm layer of 19mm Aggregate | E295: m³ | F295: =I295 -> 267 | G295: 580.0 | H295: =(E295 = CHAR(37)) * (F295*G295/100) + (E295 <> CHAR(37)) * (F295*G295) -> R154,860.00 | I295: =J287*0.76*0.2 -> R267.37 | NG295: R428.00 | NJ295: =NJ293*0.5*NK224 -> 428.1234375
A297: 2000 | B297: D.4 | C297: 8.3.3.4 | D297: OVERHAUL
A299: 2001 | B299: D.4.1 | D299: Overhaul (provisional) | E299: m³.km | F299: =I299 -> 1 136 | G299: 8.0 | H299: =(E299 = CHAR(37)) * (F299*G299/100) + (E299 <> CHAR(37)) * (F299*G299) -> R9,088.00 | I299: =SUM(I289:I295) -> R1,136.32 | NG299: R1,160.00 | NJ299: =NJ288+NJ290+NJ292+NJ295 -> 
A301: 2002 | B301: D.5 | D301: EXISTING SERVICES
A303: 2003 | C303: 8.3.5 | D303: Services across and in trenches
A305: 2004 | C305: PSDB ... | D305: Location
A307: 2005 | B307: D.5.1 | D307: Supply or hire of specialist equipment for the detection of a particular service | E307: Sum | F307: 1 | G307: 75,000.0 | H307: =(E307 = CHAR(37)) * (F307*G307/100) + (E307 <> CHAR(37)) * (F307*G307) -> R75,000.00 | NG307: R1.00 | NJ307: 70
A309: 2006 | B309: D.5.2 | D309: The use of equipment in item 142.4.1 | E309: h | F309: =I309 -> 42 | G309: 120.0 | H309: =(E309 = CHAR(37)) * (F309*G309/100) + (E309 <> CHAR(37)) * (F309*G309) -> R5,040.00 | I309: =(F124*21*8)/24 -> R42.00 | NG309: R120.00 | NJ309: =8*5*NK309 -> 120 | NK309: 3
A311: 2007 | B311: D.5.3 | D311: Excavate by hand in soft material to expose service... | E311: m³ / daywk | F311: =I311 -> 11 | G311: 120.0 | H311: =(E311 = CHAR(37)) * (F311*G311/100) + (E311 <> CHAR(37)) * (F311*G311) -> R1,320.00 | I311: =(F247+F269)/(8*5) -> R11.13 | NG311: R560.00 | NJ311: =NJ307*2*4 -> 560
A313: 2008 | C313: PSDB ... | D313: Dealing with services
A315: 2009 | C315: 8.3.5(a) | D315: Services that intersect a trench
A317: 2010 | B317: D.5.4 | D317: Cables | E317: No. | F317: ='[4]DISCHARGE '!$C$128*0.25 -> 44 | G317: 1,500.0 | H317: =(E317 = CHAR(37)) * (F317*G317/100) + (E317 <> CHAR(37)) * (F317*G317) -> R66,000.00 | NG317: R43.00 | NL317: 43
A319: 2011 | B319: D.5.5 | D319: Water mains up to 300 mm diam. | E319: No. | F319: ='[4]DISCHARGE '!$C$128*0.15 -> 26 | G319: 2,000.0 | H319: =(E319 = CHAR(37)) * (F319*G319/100) + (E319 <> CHAR(37)) * (F319*G319) -> R52,000.00 | NG319: R28.00 | NL319: 28
A322: 2012 | C322: 8.3.5(b) | D322: Services that adjoin a trench
A324: 2013 | B324: D.5.7 | D324: Cables | E324: m | F324: =F317*5 -> 220 | G324: 55.0 | H324: =(E324 = CHAR(37)) * (F324*G324/100) + (E324 <> CHAR(37)) * (F324*G324) -> R12,100.00 | NG324: R1,448.00 | NJ324: =#REF!*0.65 -> 
B326: Total Carried Forward | H326: =SUM(H286:H325) -> R1,827,228.00
B328: =B281 -> CONSTUCTION OF SEWER RETICULATION IN VUKUZAKHE,WARD 1&2
B329: =B282 -> CONTRACT NO. T12/2026
... 153 more rows

Sheet ACTUAL BOQ NO RATE
A1: Rate=G | B1: CONSTUCTION OF SEWER RETICULATION IN VUKUZAKHE,WARD 1&2
A2: <NewDataSet>· <xs:schema id="NewDataSet" xmlns="" xmlns:xs="http://www.w3.org/2001/XMLSchema" xmlns:msdata="urn:schemas-microsoft-com:xml-msdata">· <xs:element name="NewDataSet" msdata:IsDataSet="true" msdata:MainDataTable="SummaryItems" msdata:UseCurrentLocale="true">· <xs:complexType>· <xs:choice minOccurs="0" maxOccurs="unbounded">· <xs:element name="SummaryItems">· <xs:complexType>· <xs:sequence>· <xs:element name="ContractNo" type="xs:short" minOccurs="0" />· <xs:element name="ScheduleNo" type="xs:short" minOccurs="0" />· <xs:element name="SortNo" type="xs:short" minOccurs="0" />· <xs:element name="Item" type="xs:string" minOccurs="0" />· <xs:element name="SubTotalText" type="xs:string" minOccurs="0" />· <xs:element name="Description" type="xs:string" minOccurs="0" />· <xs:element name="CalcType" type="xs:string" minOccurs="0" />· <xs:element name="CalcValue" type="xs:double" minOccurs="0" />· <xs:element name="UseFirstSubTotal" type="xs:boolean" minOccurs="0" />· <xs:element name="ExclFromWorks" type="xs:boolean" minOccurs="0" />· <xs:element name="ExclFromProjected" type="xs:boolean" minOccurs="0" />· </xs:sequence>· </xs:complexType>· </xs:element>· </xs:choice>· </xs:complexType>· </xs:element>· </xs:schema>·</NewDataSet> | B2: CONTRACT NO. T12/2026
B3: SCHEDULE OF QUANTITIES
H4: SANS 1200 A : PRELIMINARY AND GENERAL
B5: ITEM NO | C5: PAYMENT | D5: DESCRIPTION | E5: UNIT | F5: QTY | G5: RATE | H5: AMOUNT (RANDS) | EQ5: QTY
A6: 198 | B6: A | C6: SANS 1200 A | D6: SECTION A : PRELIMINARY AND GENERAL
A8: 199 | B8: A.1 | C8: 8.3 | D8: FIXED-CHARGE ITEMS
A10: 200 | B10: A.1.1 | C10: 8.3.1 | D10: Contractual Requirements | E10: Sum | F10: 1 | EQ10: R1.00 | ET10: R420,000 | EU10: 0.5 | EV10: =EU10*ET10 -> 210000
A12: 201 | C12: 8.3.2 | D12: Establish Facilities on the Site :
A14: 202 | D14: a) Facilities for Engineer (SANS 1200 AB)
A16: 203 | B16: A.1.2 | D16: Offices: 1 furnished room with a telephone and 2 name-boards | E16: Sum | F16: 1 | EQ16: R1.00 | ET16: R60,000 | EU16: =EU10 -> 0.5 | EV16: =EU16*ET16 -> 30000
A18: 206 | D18: b) Facilities for Contractor
A20: 207 | B20: A.1.3 | D20: Offices and storage sheds | E20: Sum | F20: 1 | EQ20: R1.00 | ET20: R32,500 | EU20: =EU16 -> 0.5 | EV20: =EU20*ET20 -> 16250
A22: 210 | B22: A.1.4 | D22: Living accommodation | E22: Sum | F22: 1 | EQ22: R1.00 | ET22: R27,500 | EU22: =#REF! ->  | EV22: =EU22*ET22 -> 
A24: 211 | B24: A.1.5 | D24: Ablution and latrine facilities | E24: Sum | F24: 1 | EQ24: R1.00 | ET24: R5,000 | EU24: =EU22 ->  | EV24: =EU24*ET24 -> 
A26: 212 | B26: A.1.6 | D26: Tools and equipment | E26: Sum | F26: 1 | EQ26: R1.00 | ET26: R27,500 | EU26: =EU24 ->  | EV26: =EU26*ET26 -> 
A28: 213 | B28: A.1.7 | D28: Water supplies, electric power and communications | E28: Sum | F28: 1 | EQ28: R1.00 | ET28: R50,000 | EU28: =EU26 ->  | EV28: =EU28*ET28 -> 
A30: 214 | B30: A.1.8 | D30: Dealing with water (Subclause 5.5) | E30: Sum | F30: 1 | EQ30: R1.00 | ET30: R12,500 | EU30: =EU28 ->  | EV30: =EU30*ET30 -> 
A32: 220 | B32: A.1.9 | C32: 8.3.3 | D32: Other fixed-charge obligations | E32: Sum | F32: 1 | EQ32: R1.00 | ET32: R5,000 | EU32: =EU30 ->  | EV32: =EU32*ET32 -> 
A34: 221 | B34: A.1.10 | C34: 8.3.4 | D34: Remove Engineer's and Contractor's Site establishment on completion | E34: Sum | F34: 1 | EQ34: R1.00 | ET34: R7,500 | EU34: 0.5 | EV34: =EU34*ET34 -> 3750
A36: 293 | B36: A.1.11 | C36: 8.8.2 | D36: Deal with traffic and maintain the road (or accommodation of traffic and provide temporary road (detour). | E36: Sum | F36: 1 | EQ36: R1.00 | ET36: R100,000 | EU36: 0.5 | EV36: =EU36*ET36 -> 50000
A38: 222 | B38: A.2 | C38: 8.4 | D38: TIME-RELATED ITEMS
A40: 223 | B40: A.2.1 | C40: 8.4.1 | D40: Contractual Requirements | E40: month | F40: 6 | EQ40: R7.00 | ET40: R12,000 | EU40: 0.5 | EV40: =EU40*ET40 -> 6000
A42: 224 | C42: 8.4.2 | D42: Operate and maintain facilities on the Site:
A44: 225 | C44: 8.4.2.1 | D44: a) Facilities for Engineer for duration of construction (SANS 1200 AB)
A46: 226 | B46: A.2.2 | D46: Offices: 1 room, etc., as for item .1.2 | E46: month | F46: 6 | EQ46: R7.00 | ET46: R1,250 | EU46: 0.5 | EV46: =EU46*ET46 -> 625
A48: 227 | B48: A.2.3 | D48: Survey assistants and material | E48: month | F48: 6 | EQ48: R7.00 | ET48: R7,500 | EU48: 0.5 | EV48: =EU48*ET48 -> 3750
A50: 230 | C50: 8.4.2.2 | D50: b) Facilities for Contractor for duration of construction, except where otherwise stated
A52: 231 | B52: A.2.4 | D52: Offices and storage sheds | E52: month | F52: 6 | EQ52: R7.00 | ET52: R1,250 | EU52: 0.5 | EV52: =EU52*ET52 -> 625
A54: 234 | B54: A.2.5 | D54: Living accommodation | E54: month | F54: 6 | EQ54: R7.00 | ET54: R6,500 | EU54: 0.5 | EV54: =EU54*ET54 -> 3250
A56: 235 | B56: A.2.6 | D56: Ablution and latrine facilities | E56: month | F56: 6 | EQ56: R7.00 | ET56: R4,000 | EU56: 0.5 | EV56: =EU56*ET56 -> 2000
B57: Total Carried Forward
B59: =B1 -> CONSTUCTION OF SEWER RETICULATION IN VUKUZAKHE,WARD 1&2
B60: =B2 -> CONTRACT NO. T12/2026
B61: SCHEDULE OF QUANTITIES
H62: SANS 1200 A : PRELIMINARY AND GENERAL
B63: ITEM NO | C63: PAYMENT | D63: DESCRIPTION | E63: UNIT | F63: QTY | G63: RATE | H63: AMOUNT (RANDS) | EQ63: QTY
B64: Brought Forward
A65: 236 | B65: A.2.7 | D65: Tools and equipment | E65: month | F65: 6 | EQ65: R7.00
ET66: R5,000 | EU66: 0.5 | EV66: =EU66*ET66 -> 2500
A67: 237 | B67: A.2.8 | D67: Water supplies, electric power and communications | E67: month | F67: 6 | EQ67: R7.00
ET68: R2,500 | EU68: 0.5 | EV68: =EU68*ET68 -> 1250
A69: 238 | B69: A.2.9 | D69: Dealing with water (Subclause 5.5) | E69: month | F69: 6 | EQ69: R7.00
ET70: R1,500 | EU70: 0.5 | EV70: =EU70*ET70 -> 750
A71: 239 | B71: A.2.10 | D71: Access (Subclause 5.8) | E71: month | F71: 6 | EQ71: R7.00
ET72: R5,000 | EU72: 0.5 | EV72: =EU72*ET72 -> 2500
A73: 244 | B73: A.2.11 | C73: 8.4.3 | D73: Supervision | E73: month | F73: 6 | EQ73: R7.00
ET74: R120,000 | EU74: 0.5 | EV74: =EU74*ET74 -> 60000
A75: 245 | B75: A.2.12 | C75: 8.4.4 | D75: Company and head office overhead costs | E75: month | F75: 6 | EQ75: R7.00
ET76: R5,000 | EU76: 0.5 | EV76: =EU76*ET76 -> 2500
A77: 246 | B77: A.2.13 | C77: 8.4.5 | D77: Other time-related obligations | E77: month | F77: 6 | EQ77: R7.00
B79: A.2.14 | C79: 8.8.2 | D79: Deal with traffic and maintain the road (or accommodation of traffic and provide temporary road (detour). | E79: month | F79: 6 | EQ79: R7.00
ET80: R2,500 | EU80: 0.5 | EV80: =EU80*ET80 -> 1250
A81: 297 | B81: A.3 | C81: 8.8 | D81: HEALTH & SAFETY
A83: 298 | B83: A.3.1 | C83: 8.8.1 | D83: Provision for use by the Engineer of an independent Health and Safety Agent for the compilation and maintenance of Health and Safety Plan including Risk Assessment, Safe Work Procedure and Method Statement | E83: PC Sum | F83: 1 | G83: 40,000.0 | H83: =G83*F83 -> R40,000.00 | EQ83: R1.00
A85: 299 | B85: A.3.2 | C85: 8.8.2 | D85: Cost of health and safety measures required in terms of the Construction Regulations of the Occupation Health and Safety Act (2003) | E85: PC Sum | F85: 1 | G85: 20,000.0 | H85: =G85*F85 -> R20,000.00 | EQ85: R1.00
A87: 301 | B87: A.3.4 | D87: Handling cost and profit in respect of sub-item A.4.1 to A.4.3 | E87: % | F87: 60 000 | EQ87: R235,000.00
B89: A.4 | C89: 8.8 | D89: TRAINING
B91: A.4.1 | D91: Acrredited and approved training courses for selected local and other labourers including wages during training as approved by Client. | E91: Prov. Sum | F91: 1 | G91: 50,000.0 | H91: =G91*F91 -> R50,000.00 | EQ91: R1.00
B93: A.4.2 | D93: Contractor's charge to allow for the handling costs and profit in respect of sub-items items. | E93: % | F93: 50 000 | EQ93: R200,000.00
A96: 303 | B96: A.5.1 | C96: 8.10 | D96: WAYLEAVE APPLICATIONS TO ESKOM FOR CONSTRUCTION UNDER PYLONS | E96: PC Sum | F96: 1 | G96: 40,000.0 | H96: R40,000.00 | EQ96: R1.00
A98: 305 | D98: Contractor's charge to allow for the handling costs and profit in respect of sub-items A.5.1 above. | E98: % | F98: 40 000 | EQ98: R110,000.00
B101: Total Carried Forward To Summary | ER101: =ER585 -> 0 | ET101: =ER101-H101 -> 0
B102: =B59 -> CONSTUCTION OF SEWER RETICULATION IN VUKUZAKHE,WARD 1&2
B103: CONTRACT NO. T12/2026
B104: SCHEDULE OF QUANTITIES
H105: SANS 1200 B : PRIME COST ITEMS
B106: ITEM NO | C106: PAYMENT | D106: DESCRIPTION | E106: UNIT | F106: QTY | G106: RATE | H106: AMOUNT (RANDS)
B107: B | C107: SANS 1200 B | D107: SECTION B : PRIME COST ITEMS | EQ107: QTY
B109: B.1 | C109: 8.5 | D109: SUMS STATED PROVISIONALLY BY ENGINEER
B111: B.1.1 | D111: Provision of accommodation for Engineer's representative for the duration of the contract | E111: month | F111: 6 | G111: 15,000.0 | H111: R90,000.00
EQ112: R7.00
B113: B.1.2 | D113: Telephone calls for the Engineer | E113: month | F113: 6 | G113: 750.0 | H113: R4,500.00
EQ114: R7.00
B115: B.1.3 | C115: 8.6 | D115: Prime cost of laboratory testing by other concerns where so directed by the Engineer | E115: month | F115: 6 | G115: 25,000.0 | H115: R150,000.00
EQ116: R7.00
B117: B.1.4 | D117: Required Additional Survey by Engineer | E117: month | F117: 6 | G117: 35,000.0 | H117: R210,000.00
EQ118: R7.00
B119: B.1.5 | D119: Remuneration of Health and Safety Agent | E119: month | F119: 6 | G119: 45,000.0 | H119: R270,000.00
EQ120: R7.00
B121: B.1.6 | D121: Remuneration of SHE Representative from Local Municipality | E121: month | F121: 6 | G121: 10,000.0 | H121: R60,000.00
B123: B.1.7 | D123: Remuneration of three Community Liaison Officer (CLO x 1) including transport, cellphone and overtime from either wards 1 or 2 | E123: month | F123: 6 | G123: 10,000.0 | H123: R60,000.00
EQ124: R7.00
B125: B.1.8 | D125: Allow for the testing and commissioning of sewer networks and water networks, as well as outfall pipes. | E125: sum | F125: 1 | G125: 50,000.0 | H125: R50,000.00
EQ126: R1.00
B127: B.1.9 | D127: Overheads,charges and profit on item B.1.1 to B.1.08 | E127: % | F127: 894,500
EQ128: R4,621,500.00
B148: Total Carried Forward To Summary
B150: =B102 -> CONSTUCTION OF SEWER RETICULATION IN VUKUZAKHE,WARD 1&2
B151: =B103 -> CONTRACT NO. T12/2026
B152: SCHEDULE OF QUANTITIES
G153: SANS 1200 C : SITE CLEARANCE
B154: ITEM NO | C154: PAYMENT | D154: DESCRIPTION | E154: UNIT | F154: QTY | G154: RATE | H154: AMOUNT (RANDS) | EQ154: QTY
A155: 2057 | B155: C | C155: SANS 1200 C | D155: SECTION C : SITE CLEARANCE
A157: 2058 | B157: C.1 | D157: CLEAR SITE
A159: 2059 | B159: C.1.1 | C159: 8.2.1 | D159: Clear and grub pipeline route 3m wide | E159: m | F159: 1,758 | EQ159: R2,228.00 | ES159: 2130 | ET159: =ES159*1.046 -> 2 228 | EU159: =ET159-ES159 -> 98
B161: C.1.3 | C161: 8.2.4 | D161: Reclear surfaces (provisional) (where ordered by Engineer)
B163: C.1.3.1 | D163: Clear and grub pipeline route 3m wide | E163: m | F163: 264 | EQ163: R150.00
B165: C.1.3.2 | D165: Working areas | E165: m² | F165: 301 | EQ165: R1,526.00
B167: C.2 | C167: 8.2.5 | D167: Take down and re-erect existing fences (all types of fences and boundaries) | E167: m | F167: 440 | EQ167: R981.00
A169: 11865 | B169: C.7 | C169: 1200 DA | D169: EXCAVATION
A171: 11866 | B171: C.7.1 | C171: 8.3.1 | D171: Remove topsoil to nominal depth 150 mm, stockpile, and maintain for reinstating. | E171: m³ | F171: 200 | EQ171: R1,003.00 | ET171: =ET159*3*0.15 -> 1 003
A173: 11867 | B173: C.8 | D173: FINISHINGS
A175: 11868 | B175: C.8.1 | C175: 8.3.6 | D175: Reinstate road surfaces complete with all courses
A177: 11869 | B177: C.8.1.1 | D177: Block Paved surfaced- the rate shall cover the supply of layer materials and compactions of layers to the existing specification, and supply and lay of paving blocks to existing thickness. | E177: m² | F177: 0 | EQ177: R150.00 | ET177: =10*3*5 -> 150
A179: 11870 | B179: C.8.1.2 | D179: Gravel shoulders- the rate shall cover the supply of gravel shoulder materials and compactions of material to the existing specification. | E179: m² | F179: 25 | EQ179: R24.00 | ET179: =10*3*0.8 -> 24
A181: 11871 | B181: C.8.1.3 | D181: Kerbing | E181: m | F181: 129 | EQ181: R1,114.00 | ET181: =ET159*0.5 -> 1 114
B183: C.8.1.4 | D183: Concrete Surfaced Household Access | E183: m² | F183: 0 | EQ183: R848.00 | ET183: =(5.3*10)*16 -> 848
B185: C.8.1.5 | D185: Asphalt Surfacing - thickness from 25mm to 50mm in the roadway, the rate shall cover the supply of layer materials and compactions of layers to the existing specification, and supply and lay of asphalt surface to existing thickness. | E185: m² | F185: 645 | EQ185: R1,337.00
D187: Gravel Surfacing - the rate shall cover the supply of layer materials and compaction of layers to the existing specification, and supply and lay of gravel wearing course surface to existing thickness. | E187: m² | F187: 305
B189: C.8.2 | C189: 8.3.6 | D189: Reinstate stormwater open drains
A191: 11869 | B191: C.8.2.1 | D191: kerb Channel | E191: m | F191: 129 | EQ191: R557.00 | ET191: =ET159*0.25 -> 557
A193: 11869 | B193: C.8.2.2 | D193: Side V-drain | E193: m | F193: 0 | EQ193: R1,003.00 | ET193: =ET159*0.45 -> 1 003
B195: Total Carried Forward To Summary
B196: =B149 -> 0
B197: =B150 -> CONSTUCTION OF SEWER RETICULATION IN VUKUZAKHE,WARD 1&2
B198: =B151 -> CONTRACT NO. T12/2026
B199: SCHEDULE OF QUANTITIES
G200: SANS 1200 DB : PIPE TRENCHES
B201: ITEM NO | C201: PAYMENT | D201: DESCRIPTION | E201: UNIT | F201: QTY | G201: RATE | H201: AMOUNT (RANDS) | EQ201: QTY
A202: 1991 | B202: D | C202: SANS 1200 DB | D202: SECTION D : PIPE TRENCHES | ES202: Width = | ET202: 1.15 | EU202: 1.2
A204: 11873 | B204: D.1 | D204: PIPE TRENCHES | ES204: pipe diameter = | ET204: 0.65
ES205: Width = | ET205: =ET204+0.6 -> 1.25 | EU205: =ET205*1.045 -> 1.30625
A206: 11874 | C206: 8.3.2(a) | D206: Excavate in all materials for trenches backfill, compact, and dispose of surplus/unsuitable material, for pipes up to 250 mm diam. for total trench depth: | ET206: =F159 -> 1 758
A208: 2056 | B208: D.1.1 | D208: Exceeding 0,0 m but not exceeding 1,0 m | E208: m | F208: 260 | EQ208: R423.00 | ET208: 0.19 | EU208: =$ET$206*ET208 -> 334.02
A210: 1992 | B210: D.1.2 | D210: Exceeding 1,0 m but not exceeding 2,0 m | E210: m | F210: 1 146 | EQ210: R1,203.00 | ET210: 0.54 | EU210: =$ET$206*ET210 -> 949.32
A212: 1993 | B212: D.1.3 | D212: Exceeding 2,0 m but not exceeding 3,0 m | E212: m | F212: 353 | EQ212: R446.00 | ET212: 0.20 | EU212: =$ET$206*ET212 -> 351.60
A214: 2015 | B214: D.1.4 | D214: Exceeding 3,0 m but not exceeding 4,0 m | E214: m | F214: 0 | EQ214: R156.00 | ET214: 0.07 | EU214: =$ET$206*ET214 -> 123.06
ET215: =SUM(ET208:ET214) -> 1.00 | EU215: =SUM(EU208:EU214) -> 1758.00
A216: 2015 | B216: D.1.4 | D216: Exceeding 4,0 m but not exceeding 5,0 m | E216: m | F216: 0 | EQ216: R156.00 | ET216: 0.07 | EU216: =$ET$206*ET216 -> 123.06
A218: 1994 | C218: 8.3.2(b) | D218: Extra-over incl. for (prov):
ET219: =ET206*ET205*4 -> 8 790 | EU219: 3025 | EV219: =ET219-EU219 -> 5 765
A220: 1995 | B220: D.1.5 | D220: Intermediate excavation | E220: m³ | F220: 200 | EQ220: R2,115.00
ES221: =$F$208*4*$ET$205 -> 1300 | ET221: 0.19 | EU221: =$ET$219*ET221 -> 1670.10
A222: 1996 | B222: D.1.6 | D222: Hard rock excavation | E222: m³ | F222: 735 | EQ222: R6,015.00
ES223: =F210*4*$ET$205 -> 5730 | ET223: 0.54 | EU223: =$ET$219*ET223 -> 4746.60
A224: 2024 | B224: D.1.7 | D224: Boulder excavation Class A | E224: m³ | F224: 267 | EQ224: R2,230.00
ES225: =F212*4*$ET$205 -> 1765 | ET225: 0.20 | EU225: =$ET$219*ET225 -> 1758.00
A226: 2025 | B226: D.1.8 | D226: Boulder excavation Class B | E226: m³ | F226: 134 | EQ226: R780.00
ES227: =F214*4*$ET$205 -> 0 | ET227: 0.07 | EU227: =$ET$219*ET227 -> 615.30
A228: 2017 | B228: D.1.9 | C228: 8.3.2(b) | D228: Excavate and dispose of unsuitable material from trench bottom (Provisional) | E228: m³ | F228: 254 | EQ228: R418.00 | ES228: =SUM(ES221:ES227) -> 8795 | ET228: =SUM(ET221:ET227) -> 1.00 | EU228: =SUM(EU221:EU227) -> 8790.00
ET229: =ET205*ET206*0.15 -> 329.625
A230: 2026 | B230: D.2 | C230: PSD 8.3.3 | D230: RESTRICTED EXCAVATION
A232: 2018 | D232: Excavate for pipe trenches confined spaces in all materials and use for backfill or embankment , or dispose: | ET232: =(110+(5*6.5))*1.15*4 -> 655.5 | EU232: road crossings and stream crossing
A234: 2019 | B234: D.2.1 | D234: Depth up to 1,0 m | E234: m³ | F234: 39 | EQ234: R262.00 | ET234: 0.40 | EU234: =$ET$232*ET234 -> 262.20
A236: 2020 | B236: D.2.2 | D236: Depth over 1,0 m and up to 2,0 m | E236: m³ | F236: 172 | EQ236: R262.00 | ET236: 0.40 | EU236: =$ET$232*ET236 -> 262.20
A238: 2021 | B238: D.2.3 | D238: Depth over 2,0 m and up to 3,0 m | E238: m³ | F238: 53 | EQ238: R131.00 | ET238: 0.20 | EU238: =$ET$232*ET238 -> 131.10
A240: 2022 | D240: Extra over items above for: | ET240: =SUM(ET234:ET238) -> 1.00
ET241: =ET232 -> 656
A242: 2027 | B242: D.2.4 | D242: Intermediate excavation | E242: m³ | F242: 150 | EQ242: R125.00
ET243: 0.19 | EU243: =$ET$241*ET243 -> 124.64
A244: 2028 | B244: D.2.5 | D244: Hard rock excavation | E244: m³ | F244: 552 | EQ244: R354.00
ET245: 0.54 | EU245: =$ET$241*ET245 -> 354.24
A246: 2029 | B246: D.2.6 | D246: Boulder excavation Class A | E246: m³ | F246: 201 | EQ246: R131.00
ET247: 0.20 | EU247: =$ET$241*ET247 -> 131.20
A248: 2030 | B248: D.2.7 | D248: Boulder excavation Class B | E248: m³ | F248: 100 | EQ248: R46.00
ET249: 0.07 | EU249: =$ET$241*ET249 -> 45.92
A250: 2023 | B250: D.2.8 | D250: Extra over item 140.02 for hand excavation | E250: m³ | F250: 191 | EQ250: R295.00 | ET250: =SUM(ET243:ET249) -> 1.00 | EU250: =SUM(EU243:EU249) -> 656.00
ES251: 23.0% | ET251: =(F234+F236+F238+F242+F244+F246+F248) -> 1 267 | EU251: =ET251*ES251 -> 291.41
A252: 1997 | D252: EXCAVATION. ANCILLARIES Make up deficiency in backfill material (Provisional) | ET252: =ET206 -> 1 758
ET253: =ET252*1.4*1.15 -> 2 830 | EU253: R80
A254: 1998 | B254: D.2.9 | C254: 8.3.3.1(a) | D254: from other necessary excavations on site | E254: m³ | F254: 0 | EQ254: R3,587.00
ET255: =ET253 -> 2 830 | EU255: R240
A256: 1999 | B256: D.2.10 | C256: 8.3.3.1(c) | D256: by importation from commercial or off-site sources selected by the Contractor | E256: m³ | F256: 609 | EQ256: R3,587.00
A258: 2035 | B258: D.3 | C258: PSD 8.3.3 | D258: SUPPLY ONLY OF BEDDING BY IMPORTATION
B260: Total Carried Forward
B261: =B196 -> 0
B262: =B197 -> CONSTUCTION OF SEWER RETICULATION IN VUKUZAKHE,WARD 1&2
B263: =B198 -> CONTRACT NO. T12/2026
B264: SCHEDULE OF QUANTITIES
G265: SANS 1200 DB : PIPE TRENCHES
B266: ITEM NO | C266: PAYMENT | D266: DESCRIPTION | E266: UNIT | F266: QTY | G266: RATE | H266: AMOUNT (RANDS) | EQ266: QTY
B267: Brought Forward
A268: 2040 | D268: From commercial sources:
ET269: =#REF!*0.15*EU205 -> 
A270: 2041 | B270: D.3.7 | D270: Bedding Cradle | E270: m³ | F270: 201 | EQ270: R437.00
ET271: =#REF!*0.2*EU205 -> 
A272: 2042 | B272: D.3.8 | D272: 200mm layer compaceted seleted fill blanket (Class I) | E272: m³ | F272: 267 | EQ272: R582.00
ET273: =#REF!*0.3*EU205 -> 
A274: 2043 | B274: D.3.9 | D274: 300mm layer of consolidaed selected backfil (Class II) | E274: m³ | F274: 401 | EQ274: R873.00 | ET274: =ET232 -> 655.5
A276: 2044 | B276: D.3.10 | D276: 200mm layer of 19mm Aggregate | E276: m³ | F276: 267 | EQ276: R428.00 | ET276: =ET274*0.5*EU205 -> 428.1234375
A278: 2000 | B278: D.4 | C278: 8.3.3.4 | D278: OVERHAUL
A280: 2001 | B280: D.4.1 | D280: Overhaul (provisional) | E280: m³.km | F280: 1 136 | EQ280: R1,160.00 | ET280: =ET269+ET271+ET273+ET276 -> 
A282: 2002 | B282: D.5 | D282: EXISTING SERVICES
A284: 2003 | C284: 8.3.5 | D284: Services across and in trenches
A286: 2004 | C286: PSDB ... | D286: Location
A288: 2005 | B288: D.5.1 | D288: Supply or hire of specialist equipment for the detection of a particular service | E288: Sum | F288: 1 | EQ288: R1.00 | ET288: 70
A290: 2006 | B290: D.5.2 | D290: The use of equipment in item 142.4.1 | E290: h | F290: 42 | EQ290: R120.00 | ET290: =8*5*EU290 -> 120 | EU290: 3
A292: 2007 | B292: D.5.3 | D292: Excavate by hand in soft material to expose service... | E292: m³ / daywk | F292: 11 | EQ292: R560.00 | ET292: =ET288*2*4 -> 560
A294: 2008 | C294: PSDB ... | D294: Dealing with services
A296: 2009 | C296: 8.3.5(a) | D296: Services that intersect a trench
A298: 2010 | B298: D.5.4 | D298: Cables | E298: No. | F298: 44 | EQ298: R43.00 | EV298: 43
A300: 2011 | B300: D.5.5 | D300: Water mains up to 300 mm diam. | E300: No. | F300: 26 | EQ300: R28.00 | EV300: 28
A303: 2012 | C303: 8.3.5(b) | D303: Services that adjoin a trench
A305: 2013 | B305: D.5.7 | D305: Cables | E305: m | F305: 220 | EQ305: R1,448.00 | ET305: =#REF!*0.65 -> 
B307: Total Carried Forward
B308: =B261 -> 0
B309: =B262 -> CONSTUCTION OF SEWER RETICULATION IN VUKUZAKHE,WARD 1&2
B310: =B263 -> CONTRACT NO. T12/2026
B311: SCHEDULE OF QUANTITIES
... 142 more rows

Sheet REDUCED BOQ (hidden)
A1: Rate=G | B1: CONSTUCTION OF SEWER RETICULATION IN VUKUZAKHE,WARD 1&2
A2: <NewDataSet>· <xs:schema id="NewDataSet" xmlns="" xmlns:xs="http://www.w3.org/2001/XMLSchema" xmlns:msdata="urn:schemas-microsoft-com:xml-msdata">· <xs:element name="NewDataSet" msdata:IsDataSet="true" msdata:MainDataTable="SummaryItems" msdata:UseCurrentLocale="true">· <xs:complexType>· <xs:choice minOccurs="0" maxOccurs="unbounded">· <xs:element name="SummaryItems">· <xs:complexType>· <xs:sequence>· <xs:element name="ContractNo" type="xs:short" minOccurs="0" />· <xs:element name="ScheduleNo" type="xs:short" minOccurs="0" />· <xs:element name="SortNo" type="xs:short" minOccurs="0" />· <xs:element name="Item" type="xs:string" minOccurs="0" />· <xs:element name="SubTotalText" type="xs:string" minOccurs="0" />· <xs:element name="Description" type="xs:string" minOccurs="0" />· <xs:element name="CalcType" type="xs:string" minOccurs="0" />· <xs:element name="CalcValue" type="xs:double" minOccurs="0" />· <xs:element name="UseFirstSubTotal" type="xs:boolean" minOccurs="0" />· <xs:element name="ExclFromWorks" type="xs:boolean" minOccurs="0" />· <xs:element name="ExclFromProjected" type="xs:boolean" minOccurs="0" />· </xs:sequence>· </xs:complexType>· </xs:element>· </xs:choice>· </xs:complexType>· </xs:element>· </xs:schema>·</NewDataSet> | B2: CONTRACT NO. T05/2026
B3: SCHEDULE OF QUANTITIES
H4: SANS 1200 A : PRELIMINARY AND GENERAL
B5: ITEM NO | C5: PAYMENT | D5: DESCRIPTION | E5: UNIT | F5: QTY | G5: RATE | H5: AMOUNT (RANDS) | NG5: QTY
A6: 198 | B6: A | C6: SANS 1200 A | D6: SECTION A : PRELIMINARY AND GENERAL
A8: 199 | B8: A.1 | C8: 8.3 | D8: FIXED-CHARGE ITEMS
A10: 200 | B10: A.1.1 | C10: 8.3.1 | D10: Contractual Requirements | E10: Sum | F10: 1 | G10: =K10 -> 171,000.0 | H10: =(E10 = CHAR(37)) * (F10*G10/100) + (E10 <> CHAR(37)) * (F10*G10) -> R171,000.00 | I10: 450,000.0 | J10: R0.62 | K10: =I10-(I10*J10) -> R171,000.00 | NG10: R1.00 | NJ10: R420,000 | NK10: 0.5 | NL10: =NK10*NJ10 -> 210000
A12: 201 | C12: 8.3.2 | D12: Establish Facilities on the Site :
A14: 202 | D14: a) Facilities for Engineer (SANS 1200 AB)
A16: 203 | B16: A.1.2 | D16: Offices: 1 furnished room with a telephone and 3 name-boards | E16: Sum | F16: 1 | G16: =K16 -> 11,400.0 | H16: =(E16 = CHAR(37)) * (F16*G16/100) + (E16 <> CHAR(37)) * (F16*G16) -> R11,400.00 | I16: 30,000.0 | J16: =J10 -> R0.62 | K16: =I16-(I16*J16) -> R11,400.00 | NG16: R1.00 | NJ16: R60,000 | NK16: =NK10 -> 0.5 | NL16: =NK16*NJ16 -> 30000
A18: 206 | D18: b) Facilities for Contractor
A20: 207 | B20: A.1.3 | D20: Offices and storage sheds | E20: Sum | F20: 1 | G20: =K20 -> 6,175.0 | H20: =(E20 = CHAR(37)) * (F20*G20/100) + (E20 <> CHAR(37)) * (F20*G20) -> R6,175.00 | I20: 16,250.0 | J20: =J16 -> R0.62 | K20: =I20-(I20*J20) -> R6,175.00 | NG20: R1.00 | NJ20: R32,500 | NK20: =NK16 -> 0.5 | NL20: =NK20*NJ20 -> 16250
A22: 208 | B22: A.1.4 | D22: Workshops | E22: Sum | F22: 1 | G22: =K22 -> 475.0 | H22: =(E22 = CHAR(37)) * (F22*G22/100) + (E22 <> CHAR(37)) * (F22*G22) -> R475.00 | I22: 1,250.0 | J22: =J20 -> R0.62 | K22: =I22-(I22*J22) -> R475.00 | NG22: R1.00 | NJ22: R2,500 | NK22: =NK20 -> 0.5 | NL22: =NK22*NJ22 -> 1250
A24: 209 | B24: A.1.5 | D24: Laboratories | E24: Sum | F24: 1 | G24: =K24 -> 2,375.0 | H24: =(E24 = CHAR(37)) * (F24*G24/100) + (E24 <> CHAR(37)) * (F24*G24) -> R2,375.00 | I24: 6,250.0 | J24: =J22 -> R0.62 | K24: =I24-(I24*J24) -> R2,375.00 | NG24: R1.00 | NJ24: R12,500 | NK24: =NK22 -> 0.5 | NL24: =NK24*NJ24 -> 6250
A26: 210 | B26: A.1.6 | D26: Living accommodation | E26: Sum | F26: 1 | G26: =K26 -> 5,225.0 | H26: =(E26 = CHAR(37)) * (F26*G26/100) + (E26 <> CHAR(37)) * (F26*G26) -> R5,225.00 | I26: 13,750.0 | J26: =J24 -> R0.62 | K26: =I26-(I26*J26) -> R5,225.00 | NG26: R1.00 | NJ26: R27,500 | NK26: =NK24 -> 0.5 | NL26: =NK26*NJ26 -> 13750
A28: 211 | B28: A.1.7 | D28: Ablution and latrine facilities | E28: Sum | F28: 1 | G28: =K28 -> 950.0 | H28: =(E28 = CHAR(37)) * (F28*G28/100) + (E28 <> CHAR(37)) * (F28*G28) -> R950.00 | I28: 2,500.0 | J28: =J26 -> R0.62 | K28: =I28-(I28*J28) -> R950.00 | NG28: R1.00 | NJ28: R5,000 | NK28: =NK26 -> 0.5 | NL28: =NK28*NJ28 -> 2500
A30: 212 | B30: A.1.8 | D30: Tools and equipment | E30: Sum | F30: 1 | G30: =K30 -> 5,225.0 | H30: =(E30 = CHAR(37)) * (F30*G30/100) + (E30 <> CHAR(37)) * (F30*G30) -> R5,225.00 | I30: 13,750.0 | J30: =J28 -> R0.62 | K30: =I30-(I30*J30) -> R5,225.00 | NG30: R1.00 | NJ30: R27,500 | NK30: =NK28 -> 0.5 | NL30: =NK30*NJ30 -> 13750
A32: 213 | B32: A.1.9 | D32: Water supplies, electric power and communications | E32: Sum | F32: 1 | G32: =K32 -> 9,500.0 | H32: =(E32 = CHAR(37)) * (F32*G32/100) + (E32 <> CHAR(37)) * (F32*G32) -> R9,500.00 | I32: 25,000.0 | J32: =J30 -> R0.62 | K32: =I32-(I32*J32) -> R9,500.00 | NG32: R1.00 | NJ32: R50,000 | NK32: =NK30 -> 0.5 | NL32: =NK32*NJ32 -> 25000
A34: 214 | B34: A.1.10 | D34: Dealing with water (Subclause 5.5) | E34: Sum | F34: 1 | G34: =K34 -> 2,375.0 | H34: =(E34 = CHAR(37)) * (F34*G34/100) + (E34 <> CHAR(37)) * (F34*G34) -> R2,375.00 | I34: 6,250.0 | J34: =J32 -> R0.62 | K34: =I34-(I34*J34) -> R2,375.00 | NG34: R1.00 | NJ34: R12,500 | NK34: =NK32 -> 0.5 | NL34: =NK34*NJ34 -> 6250
A36: 220 | B36: A.1.11 | C36: 8.3.3 | D36: Other fixed-charge obligations | E36: Sum | F36: 1 | G36: =K36 -> 950.0 | H36: =(E36 = CHAR(37)) * (F36*G36/100) + (E36 <> CHAR(37)) * (F36*G36) -> R950.00 | I36: 2,500.0 | J36: =J34 -> R0.62 | K36: =I36-(I36*J36) -> R950.00 | NG36: R1.00 | NJ36: R5,000 | NK36: =NK34 -> 0.5 | NL36: =NK36*NJ36 -> 2500
A38: 221 | B38: A.1.12 | C38: 8.3.4 | D38: Remove Engineer's and Contractor's Site establishment on completion | E38: Sum | F38: 1 | G38: =K38 -> 1,425.0 | H38: =(E38 = CHAR(37)) * (F38*G38/100) + (E38 <> CHAR(37)) * (F38*G38) -> R1,425.00 | I38: 3,750.0 | J38: =J36 -> R0.62 | K38: =I38-(I38*J38) -> R1,425.00 | NG38: R1.00 | NJ38: R7,500 | NK38: 0.5 | NL38: =NK38*NJ38 -> 3750
A40: 293 | B40: A.1.13 | C40: 8.8.2 | D40: Deal with traffic and maintain the road (or accommodation of traffic and provide temporary road (detour). | E40: Sum | F40: 1 | G40: =K40 -> 38,000.0 | H40: =(E40 = CHAR(37)) * (F40*G40/100) + (E40 <> CHAR(37)) * (F40*G40) -> R38,000.00 | I40: 100,000.0 | J40: =J38 -> R0.62 | K40: =I40-(I40*J40) -> R38,000.00 | NG40: R1.00 | NJ40: R100,000 | NK40: 0.5 | NL40: =NK40*NJ40 -> 50000
A42: 222 | B42: A.2 | C42: 8.4 | D42: TIME-RELATED ITEMS
A44: 223 | B44: A.2.1 | C44: 8.4.1 | D44: Contractual Requirements | E44: month | F44: 6 | G44: =K44 -> 13,300.0 | H44: =(E44 = CHAR(37)) * (F44*G44/100) + (E44 <> CHAR(37)) * (F44*G44) -> R79,800.00 | I44: 35,000.0 | J44: =J40 -> R0.62 | K44: =I44-(I44*J44) -> R13,300.00 | NG44: R7.00 | NJ44: R12,000 | NK44: 0.5 | NL44: =NK44*NJ44 -> 6000
A46: 224 | C46: 8.4.2 | D46: Operate and maintain facilities on the Site:
A48: 225 | C48: 8.4.2.1 | D48: a) Facilities for Engineer for duration of construction (SANS 1200 AB)
A50: 226 | B50: A.2.2 | D50: Offices: 1 room, etc., as for item .1.2 | E50: month | F50: =F44 -> 6 | G50: =K50 -> 475.0 | H50: =(E50 = CHAR(37)) * (F50*G50/100) + (E50 <> CHAR(37)) * (F50*G50) -> R2,850.00 | I50: 1,250.0 | J50: =J44 -> R0.62 | K50: =I50-(I50*J50) -> R475.00 | NG50: R7.00 | NJ50: R1,250 | NK50: 0.5 | NL50: =NK50*NJ50 -> 625
A52: 227 | B52: A.2.3 | D52: Survey assistants and material | E52: month | F52: =F50 -> 6 | G52: =K52 -> 2,850.0 | H52: =(E52 = CHAR(37)) * (F52*G52/100) + (E52 <> CHAR(37)) * (F52*G52) -> R17,100.00 | I52: 7,500.0 | J52: =J50 -> R0.62 | K52: =I52-(I52*J52) -> R2,850.00 | NG52: R7.00 | NJ52: R7,500 | NK52: 0.5 | NL52: =NK52*NJ52 -> 3750
A54: 230 | C54: 8.4.2.2 | D54: b) Facilities for Contractor for duration of construction, except where otherwise stated
A56: 231 | B56: A.2.4 | D56: Offices and storage sheds | E56: month | F56: =F52 -> 6 | G56: =K56 -> 475.0 | H56: =(E56 = CHAR(37)) * (F56*G56/100) + (E56 <> CHAR(37)) * (F56*G56) -> R2,850.00 | I56: 1,250.0 | J56: =J52 -> R0.62 | K56: =I56-(I56*J56) -> R475.00 | NG56: R7.00 | NJ56: R1,250 | NK56: 0.5 | NL56: =NK56*NJ56 -> 625
A58: 232 | B58: A.2.5 | D58: Workshops | E58: month | F58: =F56 -> 6 | G58: =K58 -> 475.0 | H58: =(E58 = CHAR(37)) * (F58*G58/100) + (E58 <> CHAR(37)) * (F58*G58) -> R2,850.00 | I58: 1,250.0 | J58: =J56 -> R0.62 | K58: =I58-(I58*J58) -> R475.00 | NG58: R7.00 | NJ58: R750 | NK58: 0.5 | NL58: =NK58*NJ58 -> 375
A60: 233 | B60: A.2.6 | D60: Laboratories | E60: month | F60: =F58 -> 6 | G60: =K60 -> 475.0 | H60: =(E60 = CHAR(37)) * (F60*G60/100) + (E60 <> CHAR(37)) * (F60*G60) -> R2,850.00 | I60: 1,250.0 | J60: =J58 -> R0.62 | K60: =I60-(I60*J60) -> R475.00 | NG60: R7.00 | NJ60: R500 | NK60: 0.5 | NL60: =NK60*NJ60 -> 250
A62: 234 | B62: A.2.7 | D62: Living accommodation | E62: month | F62: =F60 -> 6 | G62: =K62 -> 2,470.0 | H62: =(E62 = CHAR(37)) * (F62*G62/100) + (E62 <> CHAR(37)) * (F62*G62) -> R14,820.00 | I62: 6,500.0 | J62: =J60 -> R0.62 | K62: =I62-(I62*J62) -> R2,470.00 | NG62: R7.00 | NJ62: R6,500 | NK62: 0.5 | NL62: =NK62*NJ62 -> 3250
A64: 235 | B64: A.2.8 | D64: Ablution and latrine facilities | E64: month | F64: =F62 -> 6 | G64: =K64 -> 760.0 | H64: =(E64 = CHAR(37)) * (F64*G64/100) + (E64 <> CHAR(37)) * (F64*G64) -> R4,560.00 | I64: 2,000.0 | J64: =J62 -> R0.62 | K64: =I64-(I64*J64) -> R760.00 | NG64: R7.00 | NJ64: R4,000 | NK64: 0.5 | NL64: =NK64*NJ64 -> 2000
B65: Total Carried Forward | H65: =SUM(H6:H64) -> R382,755.00
B67: =B1 -> CONSTUCTION OF SEWER RETICULATION IN VUKUZAKHE,WARD 1&2
B68: =B2 -> CONTRACT NO. T05/2026
B69: SCHEDULE OF QUANTITIES
H70: SANS 1200 A : PRELIMINARY AND GENERAL
B71: ITEM NO | C71: PAYMENT | D71: DESCRIPTION | E71: UNIT | F71: QTY | G71: RATE | H71: AMOUNT (RANDS) | NG71: QTY
B72: Brought Forward | H72: =H65 -> R382,755.00
A73: 236 | B73: A.2.9 | D73: Tools and equipment | E73: month | F73: =F64 -> 6 | G73: =K73 -> 950.0 | H73: =(E73 = CHAR(37)) * (F73*G73/100) + (E73 <> CHAR(37)) * (F73*G73) -> R5,700.00 | I73: 2,500.0 | J73: =J64 -> R0.62 | K73: =I73-(I73*J73) -> R950.00 | NG73: R7.00
NJ74: R5,000 | NK74: 0.5 | NL74: =NK74*NJ74 -> 2500
A75: 237 | B75: A.2.10 | D75: Water supplies, electric power and communications | E75: month | F75: =F73 -> 6 | G75: =K75 -> 475.0 | H75: =(E75 = CHAR(37)) * (F75*G75/100) + (E75 <> CHAR(37)) * (F75*G75) -> R2,850.00 | I75: 1,250.0 | J75: =J73 -> R0.62 | K75: =I75-(I75*J75) -> R475.00 | NG75: R7.00
NJ76: R2,500 | NK76: 0.5 | NL76: =NK76*NJ76 -> 1250
A77: 238 | B77: A.2.11 | D77: Dealing with water (Subclause 5.5) | E77: month | F77: =F75 -> 6 | G77: =K77 -> 285.0 | H77: =(E77 = CHAR(37)) * (F77*G77/100) + (E77 <> CHAR(37)) * (F77*G77) -> R1,710.00 | I77: 750.0 | J77: =J75 -> R0.62 | K77: =I77-(I77*J77) -> R285.00 | NG77: R7.00
NJ78: R1,500 | NK78: 0.5 | NL78: =NK78*NJ78 -> 750
A79: 239 | B79: A.2.12 | D79: Access (Subclause 5.8) | E79: month | F79: =F77 -> 6 | G79: =K79 -> 950.0 | H79: =(E79 = CHAR(37)) * (F79*G79/100) + (E79 <> CHAR(37)) * (F79*G79) -> R5,700.00 | I79: 2,500.0 | J79: =J77 -> R0.62 | K79: =I79-(I79*J79) -> R950.00 | NG79: R7.00
NJ80: R5,000 | NK80: 0.5 | NL80: =NK80*NJ80 -> 2500
A81: 244 | B81: A.2.13 | C81: 8.4.3 | D81: Supervision | E81: month | F81: =F79 -> 6 | G81: =K81 -> 13,300.0 | H81: =(E81 = CHAR(37)) * (F81*G81/100) + (E81 <> CHAR(37)) * (F81*G81) -> R79,800.00 | I81: 35,000.0 | J81: =J79 -> R0.62 | K81: =I81-(I81*J81) -> R13,300.00 | NG81: R7.00
NJ82: R120,000 | NK82: 0.5 | NL82: =NK82*NJ82 -> 60000
A83: 245 | B83: A.2.14 | C83: 8.4.4 | D83: Company and head office overhead costs | E83: month | F83: =F81 -> 6 | G83: =K83 -> 950.0 | H83: =(E83 = CHAR(37)) * (F83*G83/100) + (E83 <> CHAR(37)) * (F83*G83) -> R5,700.00 | I83: 2,500.0 | J83: =J81 -> R0.62 | K83: =I83-(I83*J83) -> R950.00 | NG83: R7.00
NJ84: R5,000 | NK84: 0.5 | NL84: =NK84*NJ84 -> 2500
A85: 246 | B85: A.2.15 | C85: 8.4.5 | D85: Other time-related obligations | E85: month | F85: =F83 -> 6 | G85: =K85 -> 475.0 | H85: =(E85 = CHAR(37)) * (F85*G85/100) + (E85 <> CHAR(37)) * (F85*G85) -> R2,850.00 | I85: 1,250.0 | J85: =J83 -> R0.62 | K85: =I85-(I85*J85) -> R475.00 | NG85: R7.00
B87: A.2.16 | C87: 8.8.2 | D87: Deal with traffic and maintain the road (or accommodation of traffic and provide temporary road (detour). | E87: month | F87: =F85 -> 6 | G87: =K87 -> 5,700.0 | H87: =(E87 = CHAR(37)) * (F87*G87/100) + (E87 <> CHAR(37)) * (F87*G87) -> R34,200.00 | I87: 15,000.0 | J87: =J85 -> R0.62 | K87: =I87-(I87*J87) -> R5,700.00 | NG87: R7.00
NJ88: R2,500 | NK88: 0.5 | NL88: =NK88*NJ88 -> 1250
A89: 297 | B89: A.3 | C89: 8.8 | D89: HEALTH & SAFETY
A91: 298 | B91: A.3.1 | C91: 8.8.1 | D91: Provision for use by the Engineer of an independent Health and Safety Agent for the compilation and maintenance of Health and Safety Plan including Risk Assessment, Safe Work Procedure and Method Statement | E91: PC Sum | F91: 1 | G91: =K91 -> 38,000.0 | H91: =(E91 = CHAR(37)) * (F91*G91/100) + (E91 <> CHAR(37)) * (F91*G91) -> R38,000.00 | I91: 100,000.0 | J91: =J87 -> R0.62 | K91: =I91-(I91*J91) -> R38,000.00 | NG91: R1.00
A93: 299 | B93: A.3.2 | C93: 8.8.2 | D93: Cost of health and safety measures required in terms of the Construction Regulations of the Occupation Health and Safety Act (2003) | E93: PC Sum | F93: 1 | G93: =K93 -> 19,000.0 | H93: =(E93 = CHAR(37)) * (F93*G93/100) + (E93 <> CHAR(37)) * (F93*G93) -> R19,000.00 | I93: 50,000.0 | J93: =J91 -> R0.62 | K93: =I93-(I93*J93) -> R19,000.00 | NG93: R1.00
A95: 301 | B95: A.3.4 | D95: Handling cost and profit in respect of sub-item A.4.1 to A.4.3 | E95: % | F95: =SUM(H91:H93) -> 57 000 | G95: 0.1 | H95: =(E95 = CHAR(37)) * (F95*G95/100) + (E95 <> CHAR(37)) * (F95*G95) -> R57.00 | I95: 0.1 | J95: =J93 -> R0.62 | K95: =I95-(I95*J95) -> R0.04 | NG95: R235,000.00
B97: A.4 | C97: 8.8 | D97: TRAINING
B99: A.4.1 | D99: Wages and salaries of local and other labourers employed by Contractor,Sub-Contractor and Emerging Contractors in respet of training periods for on-site training by the Contractor during which no productive work is executed. | E99: PC Sum | F99: 1 | G99: =K99 -> 19,000.0 | H99: =(E99 = CHAR(37)) * (F99*G99/100) + (E99 <> CHAR(37)) * (F99*G99) -> R19,000.00 | I99: 50,000.0 | J99: =J95 -> R0.62 | K99: =I99-(I99*J99) -> R19,000.00 | NG99: R1.00
B101: A.4.2 | D101: Acrredited and approved training courses for selected local and other labourers including wages during training as approved by Client. | E101: Prov. Sum | F101: 1 | G101: =K101 -> 57,000.0 | H101: =(E101 = CHAR(37)) * (F101*G101/100) + (E101 <> CHAR(37)) * (F101*G101) -> R57,000.00 | I101: 150,000.0 | J101: =J99 -> R0.62 | K101: =I101-(I101*J101) -> R57,000.00 | NG101: R1.00
B103: A.4.3 | D103: Contractor's charge to allow for the handling costs and profit in respect of sub-items A.5.1 & A.5.2 abovE. | E103: % | F103: =SUM(H99:H102) -> 76 000 | G103: 0.1 | H103: =(E103 = CHAR(37)) * (F103*G103/100) + (E103 <> CHAR(37)) * (F103*G103) -> R76.00 | I103: 0.1 | J103: =J101 -> R0.62 | K103: =I103-(I103*J103) -> R0.04 | NG103: R200,000.00
B105: A.5 | C105: 8.10 | D105: WAYLEAVE APPLICATIONS TO LOCAL MUNICIPALITY
A107: 302 | B107: A.5.1 | D107: Application of wayleave to relevant stakeholders prior commencement of works. | E107: PC Sum | F107: 1 | G107: =K107 -> 3,800.0 | H107: =(E107 = CHAR(37)) * (F107*G107/100) + (E107 <> CHAR(37)) * (F107*G107) -> R3,800.00 | I107: 10,000.0 | J107: =J103 -> R0.62 | K107: =I107-(I107*J107) -> R3,800.00 | NG107: R1.00
A109: 303 | B109: A.5.2 | C109: 8.10 | D109: WAYLEAVE APPLICATIONS TO ESKOM FOR CONSTRUCTION UNDER PYLONS | E109: PC Sum | F109: 1 | G109: =K109 -> 38,000.0 | H109: =(E109 = CHAR(37)) * (F109*G109/100) + (E109 <> CHAR(37)) * (F109*G109) -> R38,000.00 | I109: 100,000.0 | J109: =J107 -> R0.62 | K109: =I109-(I109*J109) -> R38,000.00 | NG109: R1.00
A111: 305 | B111: A.45.3 | D111: Contractor's charge to allow for the handling costs and profit in respect of sub-items A.5.1 & A.5.2 abovE. | E111: % | F111: =SUM(H107:H109) -> 41 800 | G111: 0.1 | H111: =(E111 = CHAR(37)) * (F111*G111/100) + (E111 <> CHAR(37)) * (F111*G111) -> R41.80 | I111: 0.1 | J111: =J109 -> R0.62 | K111: =I111-(I111*J111) -> R0.04 | NG111: R110,000.00
B114: Total Carried Forward To Summary | H114: =SUM(H72:H113) -> R696,239.80 | I114: =I561 -> R693,917.33 | J114: =H114-I114 -> R2,322.47 | NH114: =NH561 -> R781,989.60 | NJ114: =NH114-H114 -> 85,749.80
B115: CONSTUCTION OF SEWER RETICULATION IN VUKUZAKHE,WARD 1&2
B116: CONTRACT NO. T05/2026
B117: SCHEDULE OF QUANTITIES
H118: SANS 1200 B : PRIME COST ITEMS
B119: ITEM NO | C119: PAYMENT | D119: DESCRIPTION | E119: UNIT | F119: QTY | G119: RATE | H119: AMOUNT (RANDS) | O119: Provision for use by Engineer of a Geotech Engineer Services, required during the construction stage | P119: Prov. Sum | Q119: 1 | R119: =#REF! ->  | S119: =(P119 = CHAR(37)) * (Q119*R119/100) + (P119 <> CHAR(37)) * (Q119*R119) ->  | NG119: QTY
B120: B | C120: SANS 1200 B | D120: SECTION B : PRIME COST ITEMS
O121: Provision for use by the Engineer of the Mechanical Engineer Services required during construction stage | P121: Prov. Sum | Q121: 1 | R121: =#REF! ->  | S121: =(P121 = CHAR(37)) * (Q121*R121/100) + (P121 <> CHAR(37)) * (Q121*R121) -> 
B122: B.1 | C122: 8.5 | D122: SUMS STATED PROVISIONALLY BY ENGINEER
B124: B.1.1 | D124: Provision of accommodation for Engineer's representative for the duration of the contract | E124: month | F124: =F87 -> 6 | G124: =K124 -> 3,300.0 | H124: =(E124 = CHAR(37)) * (F124*G124/100) + (E124 <> CHAR(37)) * (F124*G124) -> R19,800.00 | I124: 15,000.0 | J124: R0.78 | K124: =I124-(I124*J124) -> R3,300.00 | NG124: R7.00
B126: B.1.2 | D126: Telephone calls for the Engineer | E126: month | F126: =F124 -> 6 | G126: =K126 -> 330.0 | H126: =(E126 = CHAR(37)) * (F126*G126/100) + (E126 <> CHAR(37)) * (F126*G126) -> R1,980.00 | I126: 1,500.0 | J126: =J124 -> R0.78 | K126: =I126-(I126*J126) -> R330.00 | NG126: R7.00
B128: B.1.3 | C128: 8.6 | D128: Prime cost of laboratory testing by other concerns where so directed by the Engineer | E128: month | F128: =F126 -> 6 | G128: =K128 -> 7,700.0 | H128: =(E128 = CHAR(37)) * (F128*G128/100) + (E128 <> CHAR(37)) * (F128*G128) -> R46,200.00 | I128: 35,000.0 | J128: =J126 -> R0.78 | K128: =I128-(I128*J128) -> R7,700.00 | NG128: R7.00
B130: B.1.4 | D130: Comminity and Social Development Support throughout the Project Period | E130: month | F130: =F128 -> 6 | G130: =K130 -> 11,000.0 | H130: =(E130 = CHAR(37)) * (F130*G130/100) + (E130 <> CHAR(37)) * (F130*G130) -> R66,000.00 | I130: 50,000.0 | J130: =J128 -> R0.78 | K130: =I130-(I130*J130) -> R11,000.00 | NG130: R1.00
B132: B.1.5 | D132: Project Social Facilitation | E132: month | F132: =F128 -> 6 | G132: =K132 -> 12,100.0 | H132: =(E132 = CHAR(37)) * (F132*G132/100) + (E132 <> CHAR(37)) * (F132*G132) -> R72,600.00 | I132: 55,000.0 | J132: =J130 -> R0.78 | K132: =I132-(I132*J132) -> R12,100.00 | NG132: R7.00
B134: B.1.6 | D134: Required Additional Survey by Engineer | E134: month | F134: =F132 -> 6 | G134: =K134 -> 7,700.0 | H134: =(E134 = CHAR(37)) * (F134*G134/100) + (E134 <> CHAR(37)) * (F134*G134) -> R46,200.00 | I134: 35,000.0 | J134: =J132 -> R0.78 | K134: =I134-(I134*J134) -> R7,700.00 | NG134: R7.00
B136: B.1.7 | D136: Remuneration of Health and Safety Agent | E136: month | F136: =F134 -> 6 | G136: =K136 -> 12,100.0 | H136: =(E136 = CHAR(37)) * (F136*G136/100) + (E136 <> CHAR(37)) * (F136*G136) -> R72,600.00 | I136: 55,000.0 | J136: =J134 -> R0.78 | K136: =I136-(I136*J136) -> R12,100.00 | NG136: R7.00
B138: B.1.8 | D138: Remuneration of three Community Liaison Officer(CLO x 2) including transport, cellphone and overtime from three wards, 1 & 2 | E138: month | F138: =F136 -> 6 | G138: =K138 -> 7,040.0 | H138: =(E138 = CHAR(37)) * (F138*G138/100) + (E138 <> CHAR(37)) * (F138*G138) -> R42,240.00 | I138: =2*16000 -> 32,000.0 | J138: =J136 -> R0.78 | K138: =I138-(I138*J138) -> R7,040.00 | NG138: R7.00
B140: B.1.9 | D140: Allow for the testing and commissioning of new water and sewer networks, as well as outfall pipes. | E140: sum | F140: 1 | G140: =K140 -> 22,000.0 | H140: =(E140 = CHAR(37)) * (F140*G140/100) + (E140 <> CHAR(37)) * (F140*G140) -> R22,000.00 | I140: 100,000.0 | J140: =J138 -> R0.78 | K140: =I140-(I140*J140) -> R22,000.00 | NG140: R1.00
B142: B.1.10 | D142: Provision shall be made for a specialist to assess the structural integrity of the reservoir and elevated tank, as well as to evaluate the mechanical strength of the outlet pipes, fittings, and couplings associated with these structures. The specialist shall also coordinate and oversee the execution of the water-tightness test following the completion of all connections | E142: Provision sum | F142: 1 | G142: =K142 -> 77,000.0 | H142: =(E142 = CHAR(37)) * (F142*G142/100) + (E142 <> CHAR(37)) * (F142*G142) -> R77,000.00 | I142: 350,000.0 | J142: =J140 -> R0.78 | K142: =I142-(I142*J142) -> R77,000.00
B144: B.1.11 | D144: Overheads,charges and profit on item B.1.1 to B.1.10 | E144: % | F144: =SUM(H124:H142) -> 466,620 | G144: 0.1 | H144: =(E144 = CHAR(37)) * (F144*G144/100) + (E144 <> CHAR(37)) * (F144*G144) -> R466.62 | NG144: R4,621,500.00
I163: =I165/J165 -> R103.38
B165: Total Carried Forward To Summary | H165: =SUM(H120:H164) -> R467,086.62 | I165: =I563 -> R462,611.56 | J165: =H165-I165 -> R4,475.06
B167: =B115 -> CONSTUCTION OF SEWER RETICULATION IN VUKUZAKHE,WARD 1&2
B168: =B116 -> CONTRACT NO. T05/2026
B169: SCHEDULE OF QUANTITIES
H170: SANS 1200 C : SITE CLEARANCE
B171: ITEM NO | C171: PAYMENT | D171: DESCRIPTION | E171: UNIT | F171: QTY | G171: RATE | H171: AMOUNT (RANDS) | NG171: QTY
A172: 2057 | B172: C | C172: SANS 1200 C | D172: SECTION C : SITE CLEARANCE
A174: 2058 | B174: C.1 | D174: CLEAR SITE | L174: Ward 01 | M174: Ward 02 Sewer | N174: Ward 02 Water
A176: 2059 | B176: C.1.1 | C176: 8.2.1 | D176: Clear and grub pipeline route 3m wide | E176: m | F176: =L176+M176+N176 -> 3 035 | G176: 25.0 | H176: =(E176 = CHAR(37)) * (F176*G176/100) + (E176 <> CHAR(37)) * (F176*G176) -> R75,875.00 | L176: ='[1]Ward 01_Plan1_SEWERLIST'!$G$61 -> R813.21 | M176: R1,965.10 | N176: R256.82 | NG176: R2,228.00 | NI176: 2130 | NJ176: =NI176*1.046 -> 2 228 | NK176: =NJ176-NI176 -> 98
A178: 11863 | B178: C.1.2 | C178: 8.2.2 | D178: Remove trees of girth: Over and up to
A180: 11864 | B180: C.1.2.1 | D180: 1,0 m 2,0 m | E180: No. | F180: 20 | G180: 2,800.0 | H180: =(E180 = CHAR(37)) * (F180*G180/100) + (E180 <> CHAR(37)) * (F180*G180) -> R56,000.00 | NG180: R10.00 | NJ180: 10
B182: C.1.3 | C182: 8.2.4 | D182: Reclear surfaces (provisional) (where ordered by Engineer)
B184: C.1.3.1 | D184: Clear and grub pipeline route 3m wide | E184: m | F184: =F176*0.15 -> 455 | G184: 25.0 | H184: =(E184 = CHAR(37)) * (F184*G184/100) + (E184 <> CHAR(37)) * (F184*G184) -> R11,375.00 | NG184: R150.00
B186: C.1.3.2 | D186: Working areas | E186: m² | F186: =(F176*0.76*1.5)*0.15 -> 519 | G186: 25.0 | H186: =(E186 = CHAR(37)) * (F186*G186/100) + (E186 <> CHAR(37)) * (F186*G186) -> R12,975.00 | NG186: R1,526.00
B188: C.2 | C188: 8.2.5 | D188: Take down and re-erect existing fences (all types of fences and boundaries) | E188: m | F188: =F176*0.25 -> 759 | G188: 80.0 | H188: =(E188 = CHAR(37)) * (F188*G188/100) + (E188 <> CHAR(37)) * (F188*G188) -> R60,720.00 | NG188: R981.00
A190: 11865 | B190: C.7 | C190: 1200 DA | D190: EXCAVATION
A192: 11866 | B192: C.7.1 | C192: 8.3.1 | D192: Remove topsoil to nominal depth 150 mm, stockpile, and maintain for reinstating. | E192: m³ | F192: =(F176*0.76*0.15) -> 346 | G192: 25.0 | H192: =(E192 = CHAR(37)) * (F192*G192/100) + (E192 <> CHAR(37)) * (F192*G192) -> R8,650.00 | NG192: R1,003.00 | NJ192: =NJ176*3*0.15 -> 1 003
A194: 11867 | B194: C.8 | D194: FINISHINGS
A196: 11868 | B196: C.8.1 | C196: 8.3.6 | D196: Reinstate road surfaces complete with all courses
A198: 11869 | B198: C.8.1.1 | D198: Block Paved surfaced- the rate shall cover the supply of layer materials and compactions of layers to the existing specification, and supply and lay of paving blocks to existing thickness. | E198: m² | F198: =258*5*0.08 -> 103 | G198: 180.0 | H198: =(E198 = CHAR(37)) * (F198*G198/100) + (E198 <> CHAR(37)) * (F198*G198) -> R18,540.00 | NG198: R150.00 | NJ198: =10*3*5 -> 150
A200: 11870 | B200: C.8.1.2 | D200: Gravel shoulders- the rate shall cover the supply of gravel shoulder materials and compactions of material to the existing specification. | E200: m² | F200: =258*1.2*0.08 -> 25 | G200: 80.0 | H200: =(E200 = CHAR(37)) * (F200*G200/100) + (E200 <> CHAR(37)) * (F200*G200) -> R2,000.00 | NG200: R24.00 | NJ200: =10*3*0.8 -> 24
A202: 11871 | B202: C.8.1.3 | D202: Kerbing | E202: m | F202: 258 | G202: 80.0 | H202: =(E202 = CHAR(37)) * (F202*G202/100) + (E202 <> CHAR(37)) * (F202*G202) -> R20,640.00 | NG202: R1,114.00 | NJ202: =NJ176*0.5 -> 1 114
B204: C.8.1.4 | D204: Concrete Surfaced Household Access | E204: m² | F204: =2.5*0.16*3*10 -> 12.000 | G204: 180.0 | H204: =(E204 = CHAR(37)) * (F204*G204/100) + (E204 <> CHAR(37)) * (F204*G204) -> R2,160.00 | NG204: R848.00 | NJ204: =(5.3*10)*16 -> 848
B206: C.8.1.5 | D206: Asphalt Surfacing - thickness from 25mm to 50mm in the roadway, the rate shall cover the supply of layer materials and compactions of layers to the existing specification, and supply and lay of asphalt surface to existing thickness. | E206: m² | F206: =258*2.5 -> 645 | G206: =H206/F206 -> 79.2 | H206: R51,100.00 | NG206: R1,337.00
D208: Gravel Surfacing - the rate shall cover the supply of layer materials and compaction of layers to the existing specification, and supply and lay of gravel wearing course surface to existing thickness. | E208: m² | F208: =122*2.5 -> 305 | G208: 180.0 | H208: =(E208 = CHAR(37)) * (F208*G208/100) + (E208 <> CHAR(37)) * (F208*G208) -> R54,900.00
B210: C.8.2 | C210: 8.3.6 | D210: Reinstate stormwater open drains
A212: 11869 | B212: C.8.2.1 | D212: kerb Channel | E212: m | F212: 258 | G212: 230.0 | H212: =(E212 = CHAR(37)) * (F212*G212/100) + (E212 <> CHAR(37)) * (F212*G212) -> R59,340.00 | NG212: R557.00 | NJ212: =NJ176*0.25 -> 557
A214: 11869 | B214: C.8.2.2 | D214: Side V-drain | E214: m | F214: 258 | G214: 230.0 | H214: =(E214 = CHAR(37)) * (F214*G214/100) + (E214 <> CHAR(37)) * (F214*G214) -> R59,340.00 | NG214: R1,003.00 | NJ214: =NJ176*0.45 -> 1 003
B216: Total Carried Forward To Summary | H216: =SUM(H172:H215) -> R493,615.00
B218: =B167 -> CONSTUCTION OF SEWER RETICULATION IN VUKUZAKHE,WARD 1&2
B219: =B168 -> CONTRACT NO. T05/2026
B220: SCHEDULE OF QUANTITIES
H221: SANS 1200 DB : PIPE TRENCHES
B222: ITEM NO | C222: PAYMENT | D222: DESCRIPTION | E222: UNIT | F222: QTY | G222: RATE | H222: AMOUNT (RANDS) | NG222: QTY
A223: 1991 | B223: D | C223: SANS 1200 DB | D223: SECTION D : PIPE TRENCHES | NI223: Width = | NJ223: 1.15 | NK223: 1.2
A225: 11873 | B225: D.1 | D225: PIPE TRENCHES | NI225: pipe diameter = | NJ225: 0.65
NI226: Width = | NJ226: =NJ225+0.6 -> 1.25 | NK226: =NJ226*1.045 -> 1.30625
A227: 11874 | C227: 8.3.2(a) | D227: Excavate in all materials for trenches backfill, compact, and dispose of surplus/unsuitable material, for pipes up to 710 mm diam. for total trench depth: | L227: Ward 01 | M227: Ward 02 Sewer | N227: Ward 02 Water | O227: Total | P227: WIDTH (0.3+0.16+0.3=0.76 | Q227: VOLUME | NJ227: =F176 -> 3 035
A229: 2056 | B229: D.1.1 | D229: Exceeding 0,0 m but not exceeding 1,0 m | E229: m | F229: =O229 -> 277 | G229: =K229 -> 96.0 | H229: =(E229 = CHAR(37)) * (F229*G229/100) + (E229 <> CHAR(37)) * (F229*G229) -> R26,592.00 | I229: 120.0 | J229: R0.20 | K229: =I229-(I229*J229) -> R96.00 | L229: R0.00 | M229: ='[2]SEWER QUANTITIES'!$D$817 -> R20.06 | N229: R256.82 | O229: =N229+M229+L229 -> R276.88 | P229: R0.76 | Q229: =O229*P229*1 -> R210.43 | NG229: R423.00 | NJ229: 0.19 | NK229: =$NJ$227*NJ229 -> 576.65
A231: 1992 | B231: D.1.2 | D231: Exceeding 1,0 m but not exceeding 2,0 m | E231: m | F231: =O231 -> 1 458 | G231: =K231 -> 112.0 | H231: =(E231 = CHAR(37)) * (F231*G231/100) + (E231 <> CHAR(37)) * (F231*G231) -> R163,296.00 | I231: 140.0 | J231: =J229 -> R0.20 | K231: =I231-(I231*J231) -> R112.00 | L231: ='[1]Ward 01_Plan1_SEWERLIST'!$F$66 -> R485.01 | M231: ='[2]SEWER QUANTITIES'!$E$817 -> R972.55 | N231: R0.00 | O231: =N231+M231+L231 -> R1,457.56 | P231: R0.76 | Q231: =O231*P231*1 -> R1,107.75 | NG231: R1,203.00 | NJ231: 0.54 | NK231: =$NJ$227*NJ231 -> 1638.90
A233: 1993 | B233: D.1.3 | D233: Exceeding 2,0 m but not exceeding 3,0 m | E233: m | F233: =O233 -> 1 087 | G233: =K233 -> 128.0 | H233: =(E233 = CHAR(37)) * (F233*G233/100) + (E233 <> CHAR(37)) * (F233*G233) -> R139,136.00 | I233: 160.0 | J233: =J231 -> R0.20 | K233: =I233-(I233*J233) -> R128.00 | L233: ='[1]Ward 01_Plan1_SEWERLIST'!$F$67 -> R328.20 | M233: ='[2]SEWER QUANTITIES'!$F$817 -> R759.16 | N233: R0.00 | O233: =N233+M233+L233 -> R1,087.36 | P233: R0.76 | Q233: =O233*P233*1 -> R826.39 | NG233: R446.00 | NJ233: 0.20 | NK233: =$NJ$227*NJ233 -> 607.00
A235: 2015 | B235: D.1.4 | D235: Exceeding 3,0 m but not exceeding 4,0 m | E235: m | F235: =O235 -> 542 | G235: =K235 -> 160.0 | H235: =(E235 = CHAR(37)) * (F235*G235/100) + (E235 <> CHAR(37)) * (F235*G235) -> R86,720.00 | I235: 200.0 | J235: =J233 -> R0.20 | K235: =I235-(I235*J235) -> R160.00 | L235: R0.00 | M235: ='[2]SEWER QUANTITIES'!$G$817 -> R541.66 | N235: R0.00 | O235: =N235+M235+L235 -> R541.66 | P235: R0.76 | Q235: =O235*P235*1 -> R411.66 | NG235: R156.00 | NJ235: 0.07 | NK235: =$NJ$227*NJ235 -> 212.45
NJ236: =SUM(NJ229:NJ235) -> 1.00 | NK236: =SUM(NK229:NK235) -> 3035.00
A237: 2015 | B237: D.1.4 | D237: Exceeding 4,0 m but not exceeding 5,0 m | E237: m | F237: =O237 -> 163 | G237: =K237 -> 224.0 | H237: =(E237 = CHAR(37)) * (F237*G237/100) + (E237 <> CHAR(37)) * (F237*G237) -> R36,512.00 | I237: 280.0 | J237: =J235 -> R0.20 | K237: =I237-(I237*J237) -> R224.00 | L237: R0.00 | M237: ='[2]SEWER QUANTITIES'!$H$817+'[2]SEWER QUANTITIES'!$I$817 -> R162.94 | N237: R0.00 | O237: =N237+M237+L237 -> R162.94 | P237: R0.76 | Q237: =O237*P237*1 -> R123.83 | NG237: R156.00 | NJ237: 0.07 | NK237: =$NJ$227*NJ237 -> 212.45
O238: =SUM(O229:O237) -> R3,526.40 | Q238: =SUM(Q229:Q237) -> R2,680.06
A239: 1994 | C239: 8.3.2(b) | D239: Extra-over incl. for (prov):
L240: =Q238 -> R2,680.06 | M240: =O238*P237*1 -> R2,680.06 | NJ240: =NJ227*NJ226*4 -> 15 175 | NK240: 3025 | NL240: =NJ240-NK240 -> 12 150
A241: 1995 | B241: D.1.5 | D241: Intermediate excavation | E241: m³ | F241: =M241 -> 402 | G241: =K241 -> 176.0 | H241: =(E241 = CHAR(37)) * (F241*G241/100) + (E241 <> CHAR(37)) * (F241*G241) -> R70,752.00 | I241: 220.0 | J241: =J237 -> R0.20 | K241: =I241-(I241*J241) -> R176.00 | L241: R0.15 | M241: =L241*L240 -> R402.01 | NG241: R2,115.00
NI242: =$F$229*4*$NJ$226 -> 1385 | NJ242: 0.19 | NK242: =$NJ$240*NJ242 -> 2883.25
A243: 1996 | B243: D.1.6 | D243: Hard rock excavation | E243: m³ | F243: =M243 -> 1 474 | G243: =K243 -> 240.0 | H243: =(E243 = CHAR(37)) * (F243*G243/100) + (E243 <> CHAR(37)) * (F243*G243) -> R353,760.00 | I243: 300.0 | J243: =J241 -> R0.20 | K243: =I243-(I243*J243) -> R240.00 | L243: R0.55 | M243: =L243*L240 -> R1,474.03 | NG243: R6,015.00
NI244: =F231*4*$NJ$226 -> 7290 | NJ244: 0.54 | NK244: =$NJ$240*NJ244 -> 8194.50
A245: 2024 | B245: D.1.7 | D245: Boulder excavation Class A | E245: m³ | F245: =M245 -> 536 | G245: =K245 -> 272.0 | H245: =(E245 = CHAR(37)) * (F245*G245/100) + (E245 <> CHAR(37)) * (F245*G245) -> R145,792.00 | I245: 340.0 | J245: =J243 -> R0.20 | K245: =I245-(I245*J245) -> R272.00 | L245: R0.20 | M245: =L245*L240 -> R536.01 | NG245: R2,230.00
NI246: =F233*4*$NJ$226 -> 5435 | NJ246: 0.20 | NK246: =$NJ$240*NJ246 -> 3035.00
A247: 2025 | B247: D.1.8 | D247: Boulder excavation Class B | E247: m³ | F247: =M247 -> 268 | G247: =K247 -> 304.0 | H247: =(E247 = CHAR(37)) * (F247*G247/100) + (E247 <> CHAR(37)) * (F247*G247) -> R81,472.00 | I247: 380.0 | J247: =J245 -> R0.20 | K247: =I247-(I247*J247) -> R304.00 | L247: R0.10 | M247: =L247*L240 -> R268.01 | NG247: R780.00
L248: =SUM(L241:L247) -> R1.00 | M248: =SUM(M241:M247) -> R2,680.06 | NI248: =F235*4*$NJ$226 -> 2710 | NJ248: 0.07 | NK248: =$NJ$240*NJ248 -> 1062.25
A249: 2017 | B249: D.1.9 | C249: 8.3.2(b) | D249: Excavate and dispose of unsuitable material from trench bottom (Provisional) | E249: m³ | F249: =L240*0.25*0.76 -> 509 | G249: =K249 -> 192.0 | H249: =(E249 = CHAR(37)) * (F249*G249/100) + (E249 <> CHAR(37)) * (F249*G249) -> R97,728.00 | I249: 240.0 | J249: =J247 -> R0.20 | K249: =I249-(I249*J249) -> R192.00 | NG249: R418.00 | NI249: =SUM(NI242:NI248) -> 16820 | NJ249: =SUM(NJ242:NJ248) -> 1.00 | NK249: =SUM(NK242:NK248) -> 15175.00
NJ250: =NJ226*NJ227*0.15 -> 569.0625
A251: 2026 | B251: D.2 | C251: PSD 8.3.3 | D251: RESTRICTED EXCAVATION
A253: 2018 | D253: Excavate for pipe trenches confined spaces in all materials and use for backfill or embankment , or dispose: | NJ253: =(110+(5*6.5))*1.15*4 -> 655.5 | NK253: road crossings and stream crossing
A255: 2019 | B255: D.2.1 | D255: Depth up to 1,0 m | E255: m³ | F255: =F229*0.15 -> 42 | G255: =K255 -> 112.0 | H255: =(E255 = CHAR(37)) * (F255*G255/100) + (E255 <> CHAR(37)) * (F255*G255) -> R4,704.00 | I255: 140.0 | J255: =J249 -> R0.20 | K255: =I255-(I255*J255) -> R112.00 | NG255: R262.00 | NJ255: 0.40 | NK255: =$NJ$253*NJ255 -> 262.20
A257: 2020 | B257: D.2.2 | D257: Depth over 1,0 m and up to 2,0 m | E257: m³ | F257: =F231*0.15 -> 219 | G257: =K257 -> 128.0 | H257: =(E257 = CHAR(37)) * (F257*G257/100) + (E257 <> CHAR(37)) * (F257*G257) -> R28,032.00 | I257: 160.0 | J257: =J255 -> R0.20 | K257: =I257-(I257*J257) -> R128.00 | NG257: R262.00 | NJ257: 0.40 | NK257: =$NJ$253*NJ257 -> 262.20
A259: 2021 | B259: D.2.3 | D259: Depth over 2,0 m and up to 3,0 m | E259: m³ | F259: =F233*0.15 -> 163 | G259: =K259 -> 144.0 | H259: =(E259 = CHAR(37)) * (F259*G259/100) + (E259 <> CHAR(37)) * (F259*G259) -> R23,472.00 | I259: 180.0 | J259: =J257 -> R0.20 | K259: =I259-(I259*J259) -> R144.00 | NG259: R131.00 | NJ259: 0.20 | NK259: =$NJ$253*NJ259 -> 131.10
M260: =SUM(F255:F260)*0.76*5 -> R1,611.20
A261: 2022 | D261: Extra over items above for: | M261: R0.15 | N261: =M261*M260 -> R241.68 | NJ261: =SUM(NJ255:NJ259) -> 1.00
NJ262: =NJ253 -> 656
A263: 2027 | B263: D.2.4 | D263: Intermediate excavation | E263: m³ | F263: =N261 -> 242 | G263: =K263 -> 176.0 | H263: =(E263 = CHAR(37)) * (F263*G263/100) + (E263 <> CHAR(37)) * (F263*G263) -> R42,592.00 | I263: 220.0 | J263: =J259 -> R0.20 | K263: =I263-(I263*J263) -> R176.00 | M263: R0.55 | N263: =M263*M260 -> R886.16 | NG263: R125.00
NJ264: 0.19 | NK264: =$NJ$262*NJ264 -> 124.64
A265: 2028 | B265: D.2.5 | D265: Hard rock excavation | E265: m³ | F265: =N263 -> 886 | G265: =K265 -> 240.0 | H265: =(E265 = CHAR(37)) * (F265*G265/100) + (E265 <> CHAR(37)) * (F265*G265) -> R212,640.00 | I265: 300.0 | J265: =J263 -> R0.20 | K265: =I265-(I265*J265) -> R240.00 | M265: R0.20 | N265: =M265*M260 -> R322.24 | NG265: R354.00
NJ266: 0.54 | NK266: =$NJ$262*NJ266 -> 354.24
A267: 2029 | B267: D.2.6 | D267: Boulder excavation Class A | E267: m³ | F267: =N265 -> 322 | G267: =K267 -> 272.0 | H267: =(E267 = CHAR(37)) * (F267*G267/100) + (E267 <> CHAR(37)) * (F267*G267) -> R87,584.00 | I267: 340.0 | J267: =J265 -> R0.20 | K267: =I267-(I267*J267) -> R272.00 | M267: R0.10 | N267: =M267*M260 -> R161.12 | NG267: R131.00
M268: =SUM(M261:M267) -> R1.00 | N268: =SUM(N261:N267) -> R1,611.20 | NJ268: 0.20 | NK268: =$NJ$262*NJ268 -> 131.20
A269: 2030 | B269: D.2.7 | D269: Boulder excavation Class B | E269: m³ | F269: =N267 -> 161 | G269: =K269 -> 304.0 | H269: =(E269 = CHAR(37)) * (F269*G269/100) + (E269 <> CHAR(37)) * (F269*G269) -> R48,944.00 | I269: 380.0 | J269: =J267 -> R0.20 | K269: =I269-(I269*J269) -> R304.00 | NG269: R46.00
NJ270: 0.07 | NK270: =$NJ$262*NJ270 -> 45.92
A271: 2023 | B271: D.2.8 | D271: Extra over item 140.02 for hand excavation | E271: m³ | F271: =M260*0.25*0.76 -> 306 | G271: =K271 -> 144.0 | H271: =(E271 = CHAR(37)) * (F271*G271/100) + (E271 <> CHAR(37)) * (F271*G271) -> R44,064.00 | I271: 180.0 | J271: =J269 -> R0.20 | K271: =I271-(I271*J271) -> R144.00 | NG271: R295.00 | NJ271: =SUM(NJ264:NJ270) -> 1.00 | NK271: =SUM(NK264:NK270) -> 656.00
NI272: 23.0% | NJ272: =(F255+F257+F259+F263+F265+F267+F269) -> 2 035 | NK272: =NJ272*NI272 -> 468.05
A273: 1997 | D273: EXCAVATION. ANCILLARIES Make up deficiency in backfill material (Provisional) | NJ273: =NJ227 -> 3 035
NJ274: =NJ273*1.4*1.15 -> 4 886 | NK274: R80
A275: 1998 | B275: D.2.9 | C275: 8.3.3.1(a) | D275: from other necessary excavations on site | E275: m³ | F275: 0 | G275: 80.0 | H275: =(E275 = CHAR(37)) * (F275*G275/100) + (E275 <> CHAR(37)) * (F275*G275) -> R0.00 | I275: 80.0 | J275: =J271 -> R0.20 | K275: =I275-(I275*J275) -> R64.00 | NG275: R3,587.00
NJ276: =NJ274 -> 4 886 | NK276: R240
A277: 1999 | B277: D.2.10 | C277: 8.3.3.1(c) | D277: by importation from commercial or off-site sources selected by the Contractor | E277: m³ | F277: =L240*0.6*0.76 -> 1 222 | G277: 240.0 | H277: =(E277 = CHAR(37)) * (F277*G277/100) + (E277 <> CHAR(37)) * (F277*G277) -> R293,280.00 | I277: 240.0 | J277: =J275 -> R0.20 | K277: =I277-(I277*J277) -> R192.00 | NG277: R3,587.00
A279: 2035 | B279: D.3 | C279: PSD 8.3.3 | D279: SUPPLY ONLY OF BEDDING BY IMPORTATION
B281: Total Carried Forward | H281: =SUM(H223:H280) -> R1,987,072.00
B283: =B218 -> CONSTUCTION OF SEWER RETICULATION IN VUKUZAKHE,WARD 1&2
B284: =B219 -> CONTRACT NO. T05/2026
B285: SCHEDULE OF QUANTITIES
H286: SANS 1200 DB : PIPE TRENCHES
B287: ITEM NO | C287: PAYMENT | D287: DESCRIPTION | E287: UNIT | F287: QTY | G287: RATE | H287: AMOUNT (RANDS) | NG287: QTY
B288: Brought Forward | H288: =H281 -> R1,987,072.00
A289: 2040 | D289: From commercial sources: | L289: Length = | M289: =SUM(F229:F237) -> R3,527.00
NJ290: =#REF!*0.15*NK226 -> 
A291: 2041 | B291: D.3.7 | D291: Bedding Cradle | E291: m³ | F291: =L291 -> 402 | G291: =K291 -> 160.0 | H291: =(E291 = CHAR(37)) * (F291*G291/100) + (E291 <> CHAR(37)) * (F291*G291) -> R64,320.00 | I291: 200.0 | J291: =J277 -> R0.20 | K291: =I291-(I291*J291) -> R160.00 | L291: =M289*0.76*0.15 -> R402.08 | NG291: R437.00
NJ292: =#REF!*0.2*NK226 -> 
A293: 2042 | B293: D.3.8 | D293: 200mm layer compaceted seleted fill blanket (Class I) | E293: m³ | F293: =L293 -> 536 | G293: =K293 -> 192.0 | H293: =(E293 = CHAR(37)) * (F293*G293/100) + (E293 <> CHAR(37)) * (F293*G293) -> R102,912.00 | I293: 240.0 | J293: =J291 -> R0.20 | K293: =I293-(I293*J293) -> R192.00 | L293: =M289*0.76*0.2 -> R536.10 | NG293: R582.00
NJ294: =#REF!*0.3*NK226 -> 
A295: 2043 | B295: D.3.9 | D295: 300mm layer of consolidaed selected backfil (Class II) | E295: m³ | F295: =L295 -> 536 | G295: =K295 -> 208.0 | H295: =(E295 = CHAR(37)) * (F295*G295/100) + (E295 <> CHAR(37)) * (F295*G295) -> R111,488.00 | I295: 260.0 | J295: =J293 -> R0.20 | K295: =I295-(I295*J295) -> R208.00 | L295: =M289*0.76*0.2 -> R536.10 | NG295: R873.00 | NJ295: =NJ253 -> 655.5
A297: 2044 | B297: D.3.10 | D297: 200mm layer of 19mm Aggregate | E297: m³ | F297: =L297 -> 536 | G297: =K297 -> 464.0 | H297: =(E297 = CHAR(37)) * (F297*G297/100) + (E297 <> CHAR(37)) * (F297*G297) -> R248,704.00 | I297: 580.0 | J297: =J295 -> R0.20 | K297: =I297-(I297*J297) -> R464.00 | L297: =M289*0.76*0.2 -> R536.10 | NG297: R428.00 | NJ297: =NJ295*0.5*NK226 -> 428.1234375
A299: 2000 | B299: D.4 | C299: 8.3.3.4 | D299: OVERHAUL
A301: 2001 | B301: D.4.1 | D301: Overhaul (provisional) | E301: m³.km | F301: =L301 -> 2 010 | G301: =K301 -> 6.4 | H301: =(E301 = CHAR(37)) * (F301*G301/100) + (E301 <> CHAR(37)) * (F301*G301) -> R12,864.00 | I301: 8.0 | J301: =J297 -> R0.20 | K301: =I301-(I301*J301) -> R6.40 | L301: =SUM(L291:L297) -> R2,010.38 | NG301: R1,160.00 | NJ301: =NJ290+NJ292+NJ294+NJ297 -> 
A303: 2002 | B303: D.5 | D303: EXISTING SERVICES
A305: 2003 | C305: 8.3.5 | D305: Services across and in trenches
A307: 2004 | C307: PSDB ... | D307: Location
A309: 2005 | B309: D.5.1 | D309: Supply or hire of specialist equipment for the detection of a particular service | E309: Sum | F309: 1 | G309: =K309 -> 120,000.0 | H309: =(E309 = CHAR(37)) * (F309*G309/100) + (E309 <> CHAR(37)) * (F309*G309) -> R120,000.00 | I309: 150,000.0 | J309: =J301 -> R0.20 | K309: =I309-(I309*J309) -> R120,000.00 | NG309: R1.00 | NJ309: 70
A311: 2006 | B311: D.5.2 | D311: The use of equipment in item 142.4.1 | E311: h | F311: =L311 -> 42 | G311: =K311 -> 96.0 | H311: =(E311 = CHAR(37)) * (F311*G311/100) + (E311 <> CHAR(37)) * (F311*G311) -> R4,032.00 | I311: 120.0 | J311: =J309 -> R0.20 | K311: =I311-(I311*J311) -> R96.00 | L311: =(F124*21*8)/24 -> R42.00 | NG311: R120.00 | NJ311: =8*5*NK311 -> 120 | NK311: 3
A313: 2007 | B313: D.5.3 | D313: Excavate by hand in soft material to expose service... | E313: m³ / daywk | F313: =L313 -> 20 | G313: =K313 -> 96.0 | H313: =(E313 = CHAR(37)) * (F313*G313/100) + (E313 <> CHAR(37)) * (F313*G313) -> R1,920.00 | I313: 120.0 | J313: =J311 -> R0.20 | K313: =I313-(I313*J313) -> R96.00 | L313: =(F249+F271)/(8*5) -> R20.38 | NG313: R560.00 | NJ313: =NJ309*2*4 -> 560
A315: 2008 | C315: PSDB ... | D315: Dealing with services
A317: 2009 | C317: 8.3.5(a) | D317: Services that intersect a trench
A319: 2010 | B319: D.5.4 | D319: Cables | E319: No. | F319: ='[4]DISCHARGE '!$C$128*0.25 -> 44 | G319: =K319 -> 1,200.0 | H319: =(E319 = CHAR(37)) * (F319*G319/100) + (E319 <> CHAR(37)) * (F319*G319) -> R52,800.00 | I319: 1,500.0 | J319: =J313 -> R0.20 | K319: =I319-(I319*J319) -> R1,200.00 | NG319: R43.00 | NL319: 43
A321: 2011 | B321: D.5.5 | D321: Water mains up to 300 mm diam. | E321: No. | F321: ='[4]DISCHARGE '!$C$128*0.15 -> 26 | G321: =K321 -> 1,600.0 | H321: =(E321 = CHAR(37)) * (F321*G321/100) + (E321 <> CHAR(37)) * (F321*G321) -> R41,600.00 | I321: 2,000.0 | J321: =J319 -> R0.20 | K321: =I321-(I321*J321) -> R1,600.00 | NG321: R28.00 | NL321: 28
A324: 2012 | C324: 8.3.5(b) | D324: Services that adjoin a trench
A326: 2013 | B326: D.5.7 | D326: Cables | E326: m | F326: =F319*5 -> 220 | G326: =K326 -> 44.0 | H326: =(E326 = CHAR(37)) * (F326*G326/100) + (E326 <> CHAR(37)) * (F326*G326) -> R9,680.00 | I326: 55.0 | J326: =J321 -> R0.20 | K326: =I326-(I326*J326) -> R44.00 | NG326: R1,448.00 | NJ326: =#REF!*0.65 -> 
... 149 more rows

Sheet BOQ R4.4M (hidden)
A1: Rate=G | B1: CONSTUCTION OF SEWER RETICULATION IN VUKUZAKHE,WARD 1&2
A2: <NewDataSet>· <xs:schema id="NewDataSet" xmlns="" xmlns:xs="http://www.w3.org/2001/XMLSchema" xmlns:msdata="urn:schemas-microsoft-com:xml-msdata">· <xs:element name="NewDataSet" msdata:IsDataSet="true" msdata:MainDataTable="SummaryItems" msdata:UseCurrentLocale="true">· <xs:complexType>· <xs:choice minOccurs="0" maxOccurs="unbounded">· <xs:element name="SummaryItems">· <xs:complexType>· <xs:sequence>· <xs:element name="ContractNo" type="xs:short" minOccurs="0" />· <xs:element name="ScheduleNo" type="xs:short" minOccurs="0" />· <xs:element name="SortNo" type="xs:short" minOccurs="0" />· <xs:element name="Item" type="xs:string" minOccurs="0" />· <xs:element name="SubTotalText" type="xs:string" minOccurs="0" />· <xs:element name="Description" type="xs:string" minOccurs="0" />· <xs:element name="CalcType" type="xs:string" minOccurs="0" />· <xs:element name="CalcValue" type="xs:double" minOccurs="0" />· <xs:element name="UseFirstSubTotal" type="xs:boolean" minOccurs="0" />· <xs:element name="ExclFromWorks" type="xs:boolean" minOccurs="0" />· <xs:element name="ExclFromProjected" type="xs:boolean" minOccurs="0" />· </xs:sequence>· </xs:complexType>· </xs:element>· </xs:choice>· </xs:complexType>· </xs:element>· </xs:schema>·</NewDataSet> | B2: CONTRACT NO. T05/2026
B3: SCHEDULE OF QUANTITIES
H4: SANS 1200 A : PRELIMINARY AND GENERAL
B5: ITEM NO | C5: PAYMENT | D5: DESCRIPTION | E5: UNIT | F5: QTY | G5: RATE | H5: AMOUNT (RANDS) | NL5: QTY
A6: 198 | B6: A | C6: SANS 1200 A | D6: SECTION A : PRELIMINARY AND GENERAL
A8: 199 | B8: A.1 | C8: 8.3 | D8: FIXED-CHARGE ITEMS
A10: 200 | B10: A.1.1 | C10: 8.3.1 | D10: Contractual Requirements | E10: Sum | F10: 1 | G10: 50,000.0 | H10: =(E10 = CHAR(37)) * (F10*G10/100) + (E10 <> CHAR(37)) * (F10*G10) -> R50,000.00 | N10: 450,000.0 | O10: R0.80 | P10: =N10-(N10*O10) -> R90,000.00 | NL10: R1.00 | NO10: R420,000 | NP10: 0.5 | NQ10: =NP10*NO10 -> 210000
A12: 201 | C12: 8.3.2 | D12: Establish Facilities on the Site :
A14: 202 | D14: a) Facilities for Engineer (SANS 1200 AB)
A16: 203 | B16: A.1.2 | D16: Offices: 1 furnished room with a telephone and 3 name-boards | E16: Sum | F16: 1 | G16: =P16 -> 6,000.0 | H16: =(E16 = CHAR(37)) * (F16*G16/100) + (E16 <> CHAR(37)) * (F16*G16) -> R6,000.00 | N16: 30,000.0 | O16: =O10 -> R0.80 | P16: =N16-(N16*O16) -> R6,000.00 | NL16: R1.00 | NO16: R60,000 | NP16: =NP10 -> 0.5 | NQ16: =NP16*NO16 -> 30000
A18: 206 | D18: b) Facilities for Contractor
A20: 207 | B20: A.1.3 | D20: Offices and storage sheds | E20: Sum | F20: 1 | G20: =P20 -> 3,250.0 | H20: =(E20 = CHAR(37)) * (F20*G20/100) + (E20 <> CHAR(37)) * (F20*G20) -> R3,250.00 | N20: 16,250.0 | O20: =O16 -> R0.80 | P20: =N20-(N20*O20) -> R3,250.00 | NL20: R1.00 | NO20: R32,500 | NP20: =NP16 -> 0.5 | NQ20: =NP20*NO20 -> 16250
A22: 208 | B22: A.1.4 | D22: Workshops | E22: Sum | F22: 1 | G22: =P22 -> 250.0 | H22: =(E22 = CHAR(37)) * (F22*G22/100) + (E22 <> CHAR(37)) * (F22*G22) -> R250.00 | N22: 1,250.0 | O22: =O20 -> R0.80 | P22: =N22-(N22*O22) -> R250.00 | NL22: R1.00 | NO22: R2,500 | NP22: =NP20 -> 0.5 | NQ22: =NP22*NO22 -> 1250
A24: 209 | B24: A.1.5 | D24: Laboratories | E24: Sum | F24: 1 | G24: =P24 -> 1,250.0 | H24: =(E24 = CHAR(37)) * (F24*G24/100) + (E24 <> CHAR(37)) * (F24*G24) -> R1,250.00 | N24: 6,250.0 | O24: =O22 -> R0.80 | P24: =N24-(N24*O24) -> R1,250.00 | NL24: R1.00 | NO24: R12,500 | NP24: =NP22 -> 0.5 | NQ24: =NP24*NO24 -> 6250
A26: 210 | B26: A.1.6 | D26: Living accommodation | E26: Sum | F26: 1 | G26: =P26 -> 2,750.0 | H26: =(E26 = CHAR(37)) * (F26*G26/100) + (E26 <> CHAR(37)) * (F26*G26) -> R2,750.00 | N26: 13,750.0 | O26: =O24 -> R0.80 | P26: =N26-(N26*O26) -> R2,750.00 | NL26: R1.00 | NO26: R27,500 | NP26: =NP24 -> 0.5 | NQ26: =NP26*NO26 -> 13750
A28: 211 | B28: A.1.7 | D28: Ablution and latrine facilities | E28: Sum | F28: 1 | G28: =P28 -> 500.0 | H28: =(E28 = CHAR(37)) * (F28*G28/100) + (E28 <> CHAR(37)) * (F28*G28) -> R500.00 | N28: 2,500.0 | O28: =O26 -> R0.80 | P28: =N28-(N28*O28) -> R500.00 | NL28: R1.00 | NO28: R5,000 | NP28: =NP26 -> 0.5 | NQ28: =NP28*NO28 -> 2500
A30: 212 | B30: A.1.8 | D30: Tools and equipment | E30: Sum | F30: 1 | G30: =P30 -> 2,750.0 | H30: =(E30 = CHAR(37)) * (F30*G30/100) + (E30 <> CHAR(37)) * (F30*G30) -> R2,750.00 | N30: 13,750.0 | O30: =O28 -> R0.80 | P30: =N30-(N30*O30) -> R2,750.00 | NL30: R1.00 | NO30: R27,500 | NP30: =NP28 -> 0.5 | NQ30: =NP30*NO30 -> 13750
A32: 213 | B32: A.1.9 | D32: Water supplies, electric power and communications | E32: Sum | F32: 1 | G32: 1,200.0 | H32: =(E32 = CHAR(37)) * (F32*G32/100) + (E32 <> CHAR(37)) * (F32*G32) -> R1,200.00 | N32: 25,000.0 | O32: =O30 -> R0.80 | P32: =N32-(N32*O32) -> R5,000.00 | NL32: R1.00 | NO32: R50,000 | NP32: =NP30 -> 0.5 | NQ32: =NP32*NO32 -> 25000
A34: 214 | B34: A.1.10 | D34: Dealing with water (Subclause 5.5) | E34: Sum | F34: 1 | G34: =P34 -> 1,250.0 | H34: =(E34 = CHAR(37)) * (F34*G34/100) + (E34 <> CHAR(37)) * (F34*G34) -> R1,250.00 | N34: 6,250.0 | O34: =O32 -> R0.80 | P34: =N34-(N34*O34) -> R1,250.00 | NL34: R1.00 | NO34: R12,500 | NP34: =NP32 -> 0.5 | NQ34: =NP34*NO34 -> 6250
A36: 220 | B36: A.1.11 | C36: 8.3.3 | D36: Other fixed-charge obligations | E36: Sum | F36: 1 | G36: =P36 -> 500.0 | H36: =(E36 = CHAR(37)) * (F36*G36/100) + (E36 <> CHAR(37)) * (F36*G36) -> R500.00 | N36: 2,500.0 | O36: =O34 -> R0.80 | P36: =N36-(N36*O36) -> R500.00 | NL36: R1.00 | NO36: R5,000 | NP36: =NP34 -> 0.5 | NQ36: =NP36*NO36 -> 2500
A38: 221 | B38: A.1.12 | C38: 8.3.4 | D38: Remove Engineer's and Contractor's Site establishment on completion | E38: Sum | F38: 1 | G38: 6,000.0 | H38: =(E38 = CHAR(37)) * (F38*G38/100) + (E38 <> CHAR(37)) * (F38*G38) -> R6,000.00 | N38: 3,750.0 | O38: =O36 -> R0.80 | P38: =N38-(N38*O38) -> R750.00 | NL38: R1.00 | NO38: R7,500 | NP38: 0.5 | NQ38: =NP38*NO38 -> 3750
A40: 293 | B40: A.1.13 | C40: 8.8.2 | D40: Deal with traffic and maintain the road (or accommodation of traffic and provide temporary road (detour). | E40: Sum | F40: 1 | G40: 5,000.0 | H40: =(E40 = CHAR(37)) * (F40*G40/100) + (E40 <> CHAR(37)) * (F40*G40) -> R5,000.00 | N40: 100,000.0 | O40: =O38 -> R0.80 | P40: =N40-(N40*O40) -> R20,000.00 | NL40: R1.00 | NO40: R100,000 | NP40: 0.5 | NQ40: =NP40*NO40 -> 50000
A42: 222 | B42: A.2 | C42: 8.4 | D42: TIME-RELATED ITEMS
A44: 223 | B44: A.2.1 | C44: 8.4.1 | D44: Contractual Requirements | E44: month | F44: 6 | G44: 5,000.0 | H44: =(E44 = CHAR(37)) * (F44*G44/100) + (E44 <> CHAR(37)) * (F44*G44) -> R30,000.00 | N44: 35,000.0 | O44: =O40 -> R0.80 | P44: =N44-(N44*O44) -> R7,000.00 | NL44: R7.00 | NO44: R12,000 | NP44: 0.5 | NQ44: =NP44*NO44 -> 6000
A46: 224 | C46: 8.4.2 | D46: Operate and maintain facilities on the Site:
A48: 225 | C48: 8.4.2.1 | D48: a) Facilities for Engineer for duration of construction (SANS 1200 AB)
A50: 226 | B50: A.2.2 | D50: Offices: 1 room, etc., as for item .1.2 | E50: month | F50: =F44 -> 6 | G50: =P50 -> 250.0 | H50: =(E50 = CHAR(37)) * (F50*G50/100) + (E50 <> CHAR(37)) * (F50*G50) -> R1,500.00 | N50: 1,250.0 | O50: =O44 -> R0.80 | P50: =N50-(N50*O50) -> R250.00 | NL50: R7.00 | NO50: R1,250 | NP50: 0.5 | NQ50: =NP50*NO50 -> 625
A52: 227 | B52: A.2.3 | D52: Survey assistants and material | E52: month | F52: =F50 -> 6 | G52: =P52 -> 1,500.0 | H52: =(E52 = CHAR(37)) * (F52*G52/100) + (E52 <> CHAR(37)) * (F52*G52) -> R9,000.00 | N52: 7,500.0 | O52: =O50 -> R0.80 | P52: =N52-(N52*O52) -> R1,500.00 | NL52: R7.00 | NO52: R7,500 | NP52: 0.5 | NQ52: =NP52*NO52 -> 3750
A54: 230 | C54: 8.4.2.2 | D54: b) Facilities for Contractor for duration of construction, except where otherwise stated
A56: 231 | B56: A.2.4 | D56: Offices and storage sheds | E56: month | F56: =F52 -> 6 | G56: =P56 -> 250.0 | H56: =(E56 = CHAR(37)) * (F56*G56/100) + (E56 <> CHAR(37)) * (F56*G56) -> R1,500.00 | N56: 1,250.0 | O56: =O52 -> R0.80 | P56: =N56-(N56*O56) -> R250.00 | NL56: R7.00 | NO56: R1,250 | NP56: 0.5 | NQ56: =NP56*NO56 -> 625
A58: 232 | B58: A.2.5 | D58: Workshops | E58: month | F58: =F56 -> 6 | G58: =P58 -> 250.0 | H58: =(E58 = CHAR(37)) * (F58*G58/100) + (E58 <> CHAR(37)) * (F58*G58) -> R1,500.00 | N58: 1,250.0 | O58: =O56 -> R0.80 | P58: =N58-(N58*O58) -> R250.00 | NL58: R7.00 | NO58: R750 | NP58: 0.5 | NQ58: =NP58*NO58 -> 375
A60: 233 | B60: A.2.6 | D60: Laboratories | E60: month | F60: =F58 -> 6 | G60: =P60 -> 250.0 | H60: =(E60 = CHAR(37)) * (F60*G60/100) + (E60 <> CHAR(37)) * (F60*G60) -> R1,500.00 | N60: 1,250.0 | O60: =O58 -> R0.80 | P60: =N60-(N60*O60) -> R250.00 | NL60: R7.00 | NO60: R500 | NP60: 0.5 | NQ60: =NP60*NO60 -> 250
A62: 234 | B62: A.2.7 | D62: Living accommodation | E62: month | F62: =F60 -> 6 | G62: 1,100.0 | H62: =(E62 = CHAR(37)) * (F62*G62/100) + (E62 <> CHAR(37)) * (F62*G62) -> R6,600.00 | N62: 6,500.0 | O62: =O60 -> R0.80 | P62: =N62-(N62*O62) -> R1,300.00 | NL62: R7.00 | NO62: R6,500 | NP62: 0.5 | NQ62: =NP62*NO62 -> 3250
A64: 235 | B64: A.2.8 | D64: Ablution and latrine facilities | E64: month | F64: =F62 -> 6 | G64: =P64 -> 400.0 | H64: =(E64 = CHAR(37)) * (F64*G64/100) + (E64 <> CHAR(37)) * (F64*G64) -> R2,400.00 | N64: 2,000.0 | O64: =O62 -> R0.80 | P64: =N64-(N64*O64) -> R400.00 | NL64: R7.00 | NO64: R4,000 | NP64: 0.5 | NQ64: =NP64*NO64 -> 2000
B65: Total Carried Forward | H65: =SUM(H6:H64) -> R134,700.00
B67: =B1 -> CONSTUCTION OF SEWER RETICULATION IN VUKUZAKHE,WARD 1&2
B68: =B2 -> CONTRACT NO. T05/2026
B69: SCHEDULE OF QUANTITIES
H70: SANS 1200 A : PRELIMINARY AND GENERAL
B71: ITEM NO | C71: PAYMENT | D71: DESCRIPTION | E71: UNIT | F71: QTY | G71: RATE | H71: AMOUNT (RANDS) | NL71: QTY
B72: Brought Forward | H72: =H65 -> R134,700.00
A73: 236 | B73: A.2.9 | D73: Tools and equipment | E73: month | F73: =F64 -> 6 | G73: =P74 -> 500.0 | H73: =(E73 = CHAR(37)) * (F73*G73/100) + (E73 <> CHAR(37)) * (F73*G73) -> R3,000.00 | NL73: R7.00
N74: 2,500.0 | O74: =O64 -> R0.80 | P74: =N74-(N74*O74) -> R500.00 | NO74: R5,000 | NP74: 0.5 | NQ74: =NP74*NO74 -> 2500
A75: 237 | B75: A.2.10 | D75: Water supplies, electric power and communications | E75: month | F75: =F73 -> 6 | G75: =P76 -> 250.0 | H75: =(E75 = CHAR(37)) * (F75*G75/100) + (E75 <> CHAR(37)) * (F75*G75) -> R1,500.00 | NL75: R7.00
N76: 1,250.0 | O76: =O74 -> R0.80 | P76: =N76-(N76*O76) -> R250.00 | NO76: R2,500 | NP76: 0.5 | NQ76: =NP76*NO76 -> 1250
A77: 238 | B77: A.2.11 | D77: Dealing with water (Subclause 5.5) | E77: month | F77: =F75 -> 6 | G77: =P78 -> 150.0 | H77: =(E77 = CHAR(37)) * (F77*G77/100) + (E77 <> CHAR(37)) * (F77*G77) -> R900.00 | NL77: R7.00
N78: 750.0 | O78: =O76 -> R0.80 | P78: =N78-(N78*O78) -> R150.00 | NO78: R1,500 | NP78: 0.5 | NQ78: =NP78*NO78 -> 750
A79: 239 | B79: A.2.12 | D79: Access (Subclause 5.8) | E79: month | F79: =F77 -> 6 | G79: =P80 -> 500.0 | H79: =(E79 = CHAR(37)) * (F79*G79/100) + (E79 <> CHAR(37)) * (F79*G79) -> R3,000.00 | NL79: R7.00
N80: 2,500.0 | O80: =O78 -> R0.80 | P80: =N80-(N80*O80) -> R500.00 | NO80: R5,000 | NP80: 0.5 | NQ80: =NP80*NO80 -> 2500
A81: 244 | B81: A.2.13 | C81: 8.4.3 | D81: Supervision | E81: month | F81: =F79 -> 6 | G81: 2,500.0 | H81: =(E81 = CHAR(37)) * (F81*G81/100) + (E81 <> CHAR(37)) * (F81*G81) -> R15,000.00 | NL81: R7.00
N82: 35,000.0 | O82: =O80 -> R0.80 | P82: =N82-(N82*O82) -> R7,000.00 | NO82: R120,000 | NP82: 0.5 | NQ82: =NP82*NO82 -> 60000
A83: 245 | B83: A.2.14 | C83: 8.4.4 | D83: Company and head office overhead costs | E83: month | F83: =F81 -> 6 | G83: =P84 -> 500.0 | H83: =(E83 = CHAR(37)) * (F83*G83/100) + (E83 <> CHAR(37)) * (F83*G83) -> R3,000.00 | NL83: R7.00
N84: 2,500.0 | O84: =O82 -> R0.80 | P84: =N84-(N84*O84) -> R500.00 | NO84: R5,000 | NP84: 0.5 | NQ84: =NP84*NO84 -> 2500
A85: 246 | B85: A.2.15 | C85: 8.4.5 | D85: Other time-related obligations | E85: month | F85: =F83 -> 6 | G85: =P86 -> 250.0 | H85: =(E85 = CHAR(37)) * (F85*G85/100) + (E85 <> CHAR(37)) * (F85*G85) -> R1,500.00 | NL85: R7.00
N86: 1,250.0 | O86: =O84 -> R0.80 | P86: =N86-(N86*O86) -> R250.00
B87: A.2.16 | C87: 8.8.2 | D87: Deal with traffic and maintain the road (or accommodation of traffic and provide temporary road (detour). | E87: month | F87: =F85 -> 6 | G87: 1,500.0 | H87: =(E87 = CHAR(37)) * (F87*G87/100) + (E87 <> CHAR(37)) * (F87*G87) -> R9,000.00 | NL87: R7.00
N88: 15,000.0 | O88: =O86 -> R0.80 | P88: =N88-(N88*O88) -> R3,000.00 | NO88: R2,500 | NP88: 0.5 | NQ88: =NP88*NO88 -> 1250
A89: 297 | B89: A.3 | C89: 8.8 | D89: HEALTH & SAFETY
A91: 298 | B91: A.3.1 | C91: 8.8.1 | D91: Provision for use by the Engineer of an independent Health and Safety Agent for the compilation and maintenance of Health and Safety Plan including Risk Assessment, Safe Work Procedure and Method Statement | E91: PC Sum | F91: 1 | G91: 10,000.0 | H91: =(E91 = CHAR(37)) * (F91*G91/100) + (E91 <> CHAR(37)) * (F91*G91) -> R10,000.00 | NL91: R1.00
N92: 100,000.0 | O92: =O88 -> R0.80 | P92: =N92-(N92*O92) -> R20,000.00
A93: 299 | B93: A.3.2 | C93: 8.8.2 | D93: Cost of health and safety measures required in terms of the Construction Regulations of the Occupation Health and Safety Act (2003) | E93: PC Sum | F93: 1 | G93: =P94 -> 10,000.0 | H93: =(E93 = CHAR(37)) * (F93*G93/100) + (E93 <> CHAR(37)) * (F93*G93) -> R10,000.00 | NL93: R1.00
N94: 50,000.0 | O94: =O92 -> R0.80 | P94: =N94-(N94*O94) -> R10,000.00
A95: 301 | B95: A.3.4 | D95: Handling cost and profit in respect of sub-item A.4.1 to A.4.3 | E95: % | F95: =SUM(H91:H94) -> 20 000 | G95: 0.5 | H95: =(E95 = CHAR(37)) * (F95*G95/100) + (E95 <> CHAR(37)) * (F95*G95) -> R100.00 | NL95: R235,000.00
N96: 0.1 | O96: =O94 -> R0.80 | P96: =N96-(N96*O96) -> R0.02
B97: A.4 | C97: 8.8 | D97: TRAINING
B99: A.4.1 | D99: Wages and salaries of local and other labourers employed by Contractor,Sub-Contractor and Emerging Contractors in respet of training periods for on-site training by the Contractor during which no productive work is executed. | E99: PC Sum | F99: 1 | G99: 15,000.0 | H99: =(E99 = CHAR(37)) * (F99*G99/100) + (E99 <> CHAR(37)) * (F99*G99) -> R15,000.00 | NL99: R1.00
N100: 50,000.0 | O100: =O96 -> R0.80 | P100: =N100-(N100*O100) -> R10,000.00
B101: A.4.2 | D101: Acrredited and approved training courses for selected local and other labourers including wages during training as approved by Client. | E101: Prov. Sum | F101: 1 | G101: 15,000.0 | H101: =(E101 = CHAR(37)) * (F101*G101/100) + (E101 <> CHAR(37)) * (F101*G101) -> R15,000.00 | NL101: R1.00
N102: 150,000.0 | O102: =O100 -> R0.80 | P102: =N102-(N102*O102) -> R30,000.00
B103: A.4.3 | D103: Contractor's charge to allow for the handling costs and profit in respect of sub-items A.5.1 & A.5.2 abovE. | E103: % | F103: =SUM(H99:H101) -> 30 000 | G103: 0.5 | H103: =(E103 = CHAR(37)) * (F103*G103/100) + (E103 <> CHAR(37)) * (F103*G103) -> R150.00 | NL103: R200,000.00
N104: 0.1 | O104: =O102 -> R0.80 | P104: =N104-(N104*O104) -> R0.02
B105: A.5 | C105: 8.10 | D105: WAYLEAVE APPLICATIONS TO LOCAL MUNICIPALITY
A107: 302 | B107: A.5.1 | D107: Application of wayleave to relevant stakeholders prior commencement of works. | E107: PC Sum | F107: 1 | G107: 5,000.0 | H107: =(E107 = CHAR(37)) * (F107*G107/100) + (E107 <> CHAR(37)) * (F107*G107) -> R5,000.00 | NL107: R1.00
N108: 10,000.0 | O108: =O104 -> R0.80 | P108: =N108-(N108*O108) -> R2,000.00
A109: 303 | B109: A.5.2 | C109: 8.10 | D109: WAYLEAVE APPLICATIONS TO ESKOM FOR CONSTRUCTION UNDER PYLONS | E109: PC Sum | F109: 1 | G109: 5,000.0 | H109: =(E109 = CHAR(37)) * (F109*G109/100) + (E109 <> CHAR(37)) * (F109*G109) -> R5,000.00 | NL109: R1.00
N110: 100,000.0 | O110: =O108 -> R0.80 | P110: =N110-(N110*O110) -> R20,000.00
A111: 305 | B111: A.45.3 | D111: Contractor's charge to allow for the handling costs and profit in respect of sub-items A.5.1 & A.5.2 abovE. | E111: % | F111: =SUM(H107:H109) -> 10 000 | G111: 0.5 | H111: =(E111 = CHAR(37)) * (F111*G111/100) + (E111 <> CHAR(37)) * (F111*G111) -> R50.00 | NL111: R110,000.00
N112: 0.1 | O112: =O110 -> R0.80 | P112: =N112-(N112*O112) -> R0.02
B114: Total Carried Forward To Summary | H114: =SUM(H72:H113) -> R231,900.00 | I114: =I561*0.75 -> R313,043.48 | N114: =I114-H114 -> R81,143.48 | NM114: =NM561 -> R357,511.36 | NO114: =NM114-H114 -> 125,611.36
B115: CONSTUCTION OF SEWER RETICULATION IN VUKUZAKHE,WARD 1&2
B116: CONTRACT NO. T05/2026
B117: SCHEDULE OF QUANTITIES
H118: SANS 1200 B : PRIME COST ITEMS
B119: ITEM NO | C119: PAYMENT | D119: DESCRIPTION | E119: UNIT | F119: QTY | G119: RATE | H119: AMOUNT (RANDS) | T119: Provision for use by Engineer of a Geotech Engineer Services, required during the construction stage | U119: Prov. Sum | V119: 1 | W119: =#REF! ->  | X119: =(U119 = CHAR(37)) * (V119*W119/100) + (U119 <> CHAR(37)) * (V119*W119) ->  | NL119: QTY
B120: B | C120: SANS 1200 B | D120: SECTION B : PRIME COST ITEMS
T121: Provision for use by the Engineer of the Mechanical Engineer Services required during construction stage | U121: Prov. Sum | V121: 1 | W121: =#REF! ->  | X121: =(U121 = CHAR(37)) * (V121*W121/100) + (U121 <> CHAR(37)) * (V121*W121) -> 
B122: B.1 | C122: 8.5 | D122: SUMS STATED PROVISIONALLY BY ENGINEER
B124: B.1.1 | D124: Provision of accommodation for Engineer's representative for the duration of the contract | E124: month | F124: =F87 -> 6 | G124: 7,500.0 | H124: =(E124 = CHAR(37)) * (F124*G124/100) + (E124 <> CHAR(37)) * (F124*G124) -> R45,000.00 | N124: 15,000.0 | O124: R0.95 | P124: =N124-(N124*O124) -> R750.00 | NL124: R7.00
B126: B.1.2 | D126: Telephone calls for the Engineer | E126: month | F126: =F124 -> 6 | G126: =P126 -> 75.0 | H126: =(E126 = CHAR(37)) * (F126*G126/100) + (E126 <> CHAR(37)) * (F126*G126) -> R450.00 | N126: 1,500.0 | O126: =O124 -> R0.95 | P126: =N126-(N126*O126) -> R75.00 | NL126: R7.00
B128: B.1.3 | C128: 8.6 | D128: Prime cost of laboratory testing by other concerns where so directed by the Engineer | E128: month | F128: =F126 -> 6 | G128: 1,200.0 | H128: =(E128 = CHAR(37)) * (F128*G128/100) + (E128 <> CHAR(37)) * (F128*G128) -> R7,200.00 | N128: 35,000.0 | O128: =O126 -> R0.95 | P128: =N128-(N128*O128) -> R1,750.00 | NL128: R7.00
B130: B.1.4 | D130: Comminity and Social Development Support throughout the Project Period | E130: month | F130: =F128 -> 6 | G130: 4,500.0 | H130: =(E130 = CHAR(37)) * (F130*G130/100) + (E130 <> CHAR(37)) * (F130*G130) -> R27,000.00 | N130: 50,000.0 | O130: =O128 -> R0.95 | P130: =N130-(N130*O130) -> R2,500.00 | NL130: R1.00
B132: B.1.5 | D132: Project Social Facilitation | E132: month | F132: =F128 -> 6 | G132: =P132 -> 2,750.0 | H132: =(E132 = CHAR(37)) * (F132*G132/100) + (E132 <> CHAR(37)) * (F132*G132) -> R16,500.00 | N132: 55,000.0 | O132: =O130 -> R0.95 | P132: =N132-(N132*O132) -> R2,750.00 | NL132: R7.00
B134: B.1.6 | D134: Required Additional Survey by Engineer | E134: month | F134: =F132 -> 6 | G134: 1,200.0 | H134: =(E134 = CHAR(37)) * (F134*G134/100) + (E134 <> CHAR(37)) * (F134*G134) -> R7,200.00 | N134: 35,000.0 | O134: =O132 -> R0.95 | P134: =N134-(N134*O134) -> R1,750.00 | NL134: R7.00
B136: B.1.7 | D136: Remuneration of Health and Safety Agent | E136: month | F136: =F134 -> 6 | G136: =P136 -> 2,750.0 | H136: =(E136 = CHAR(37)) * (F136*G136/100) + (E136 <> CHAR(37)) * (F136*G136) -> R16,500.00 | N136: 55,000.0 | O136: =O134 -> R0.95 | P136: =N136-(N136*O136) -> R2,750.00 | NL136: R7.00
B138: B.1.8 | D138: Remuneration of three Community Liaison Officer(CLO x 2) including transport, cellphone and overtime from three wards, 1 & 2 | E138: month | F138: =F136 -> 6 | G138: 9,000.0 | H138: =(E138 = CHAR(37)) * (F138*G138/100) + (E138 <> CHAR(37)) * (F138*G138) -> R54,000.00 | N138: =2*16000 -> 32,000.0 | O138: =O136 -> R0.95 | P138: =N138-(N138*O138) -> R1,600.00 | NL138: R7.00
B140: B.1.9 | D140: Allow for testing and commissioning of new sewer networks,outfall pipes. | E140: sum | F140: 1 | G140: =P140 -> 5,000.0 | H140: =(E140 = CHAR(37)) * (F140*G140/100) + (E140 <> CHAR(37)) * (F140*G140) -> R5,000.00 | N140: 100,000.0 | O140: =O138 -> R0.95 | P140: =N140-(N140*O140) -> R5,000.00 | NL140: R1.00
B142: B.1.10 | D142: Provision shall be made for a specialist to assess the structural integrity of the reservoir and elevated tank, as well as to evaluate the mechanical strength of the outlet pipes, fittings, and couplings associated with these structures. The specialist shall also coordinate and oversee the execution of the water-tightness test following the completion of all connections | E142: Provision sum | F142: 1 | G142: 35,000.0 | H142: =(E142 = CHAR(37)) * (F142*G142/100) + (E142 <> CHAR(37)) * (F142*G142) -> R35,000.00
B144: B.1.11 | D144: Overheads,charges and profit on item A.3.1 to A.3.12 | E144: % | F144: =SUM(H124:H142) -> 213,850 | G144: 0.5 | H144: =(E144 = CHAR(37)) * (F144*G144/100) + (E144 <> CHAR(37)) * (F144*G144) -> R1,069.25 | NL144: R4,621,500.00
B165: Total Carried Forward To Summary | H165: =SUM(H120:H164) -> R214,919.25 | I165: =I561-I114 -> R104,347.82 | N165: =H114+H165 -> R446,819.25 | O165: =I114+I165 -> R417,391.30 | P165: =I561 -> R417,391.30 | Q165: =O165-N165 -> -R29,427.95
B167: =B115 -> CONSTUCTION OF SEWER RETICULATION IN VUKUZAKHE,WARD 1&2
B168: =B116 -> CONTRACT NO. T05/2026
B169: SCHEDULE OF QUANTITIES
H170: SANS 1200 C : SITE CLEARANCE
B171: ITEM NO | C171: PAYMENT | D171: DESCRIPTION | E171: UNIT | F171: QTY | G171: RATE | H171: AMOUNT (RANDS) | NL171: QTY
A172: 2057 | B172: C | C172: SANS 1200 C | D172: SECTION C : SITE CLEARANCE
A174: 2058 | B174: C.1 | D174: CLEAR SITE | N174: Ward 01 | O174: Ward 02 Sewer | P174: Ward 02 Water
A176: 2059 | B176: C.1.1 | C176: 8.2.1 | D176: Clear and grub pipeline route 3m wide | E176: m | F176: =N176+O176+P176 -> 4 107 | G176: 25.0 | H176: =(E176 = CHAR(37)) * (F176*G176/100) + (E176 <> CHAR(37)) * (F176*G176) -> R102,675.00 | N176: ='[1]Ward 01_Plan1_SEWERLIST'!$G$61 -> R813.21 | O176: R1,965.10 | P176: R1,329.15 | NL176: R2,228.00 | NN176: 2130 | NO176: =NN176*1.046 -> 2 228 | NP176: =NO176-NN176 -> 98
A178: 11863 | B178: C.1.2 | C178: 8.2.2 | D178: Remove trees of girth: Over and up to
A180: 11864 | B180: C.1.2.1 | D180: 1,0 m 2,0 m | E180: No. | F180: 20 | G180: 2,800.0 | H180: =(E180 = CHAR(37)) * (F180*G180/100) + (E180 <> CHAR(37)) * (F180*G180) -> R56,000.00 | NL180: R10.00 | NO180: 10
B182: C.1.3 | C182: 8.2.4 | D182: Reclear surfaces (provisional) (where ordered by Engineer)
B184: C.1.3.1 | D184: Clear and grub pipeline route 3m wide | E184: m | F184: =F176*0.15 -> 616 | G184: 25.0 | H184: =(E184 = CHAR(37)) * (F184*G184/100) + (E184 <> CHAR(37)) * (F184*G184) -> R15,400.00 | NL184: R150.00
B186: C.1.3.2 | D186: Working areas | E186: m² | F186: =(F176*0.76*1.5)*0.15 -> 702 | G186: 25.0 | H186: =(E186 = CHAR(37)) * (F186*G186/100) + (E186 <> CHAR(37)) * (F186*G186) -> R17,550.00 | NL186: R1,526.00
B188: C.2 | C188: 8.2.5 | D188: Take down and re-erect existing fences (all types of fences and boundaries) | E188: m | F188: =F176*0.25 -> 1,027 | G188: 80.0 | H188: =(E188 = CHAR(37)) * (F188*G188/100) + (E188 <> CHAR(37)) * (F188*G188) -> R82,160.00 | NL188: R981.00
A190: 11865 | B190: C.7 | C190: 1200 DA | D190: EXCAVATION
A192: 11866 | B192: C.7.1 | C192: 8.3.1 | D192: Remove topsoil to nominal depth 150 mm, stockpile, and maintain for reinstating. | E192: m³ | F192: =(F176*0.76*0.15) -> 468 | G192: 25.0 | H192: =(E192 = CHAR(37)) * (F192*G192/100) + (E192 <> CHAR(37)) * (F192*G192) -> R11,700.00 | NL192: R1,003.00 | NO192: =NO176*3*0.15 -> 1 003
A194: 11867 | B194: C.8 | D194: FINISHINGS
A196: 11868 | B196: C.8.1 | C196: 8.3.6 | D196: Reinstate road surfaces complete with all courses
A198: 11869 | B198: C.8.1.1 | D198: Block Paved surfaced- the rate shall cover the supply of layer materials and compactions of layers to the existing specification, and supply and lay of paving blocks to existing thickness. | E198: m² | F198: =258*5*0.08 -> 103 | G198: 180.0 | H198: =(E198 = CHAR(37)) * (F198*G198/100) + (E198 <> CHAR(37)) * (F198*G198) -> R18,540.00 | NL198: R150.00 | NO198: =10*3*5 -> 150
A200: 11870 | B200: C.8.1.2 | D200: Gravel shoulders- the rate shall cover the supply of gravel shoulder materials and compactions of material to the existing specification. | E200: m² | F200: =258*1.2*0.08 -> 25 | G200: 80.0 | H200: =(E200 = CHAR(37)) * (F200*G200/100) + (E200 <> CHAR(37)) * (F200*G200) -> R2,000.00 | NL200: R24.00 | NO200: =10*3*0.8 -> 24
A202: 11871 | B202: C.8.1.3 | D202: Kerbing | E202: m | F202: 258 | G202: 80.0 | H202: =(E202 = CHAR(37)) * (F202*G202/100) + (E202 <> CHAR(37)) * (F202*G202) -> R20,640.00 | NL202: R1,114.00 | NO202: =NO176*0.5 -> 1 114
B204: C.8.1.4 | D204: Concrete Surfaced Household Access | E204: m² | F204: =2.5*0.16*3*10 -> 12.000 | G204: 180.0 | H204: =(E204 = CHAR(37)) * (F204*G204/100) + (E204 <> CHAR(37)) * (F204*G204) -> R2,160.00 | NL204: R848.00 | NO204: =(5.3*10)*16 -> 848
B206: C.8.1.5 | D206: Asphalt Surfacing - thickness from 25mm to 50mm in the roadway, the rate shall cover the supply of layer materials and compactions of layers to the existing specification, and supply and lay of asphalt surface to existing thickness. | E206: m² | F206: =258*2.5 -> 645 | G206: =H206/F206 -> 79.2 | H206: R51,100.00 | I206: =30000+35000 -> R65,000.00 | NL206: R1,337.00
D208: Gravel Surfacing - the rate shall cover the supply of layer materials and compaction of layers to the existing specification, and supply and lay of gravel wearing course surface to existing thickness. | E208: m² | F208: =122*2.5 -> 305 | G208: 180.0 | H208: =(E208 = CHAR(37)) * (F208*G208/100) + (E208 <> CHAR(37)) * (F208*G208) -> R54,900.00
B210: C.8.2 | C210: 8.3.6 | D210: Reinstate stormwater open drains
A212: 11869 | B212: C.8.2.1 | D212: kerb Channel | E212: m | F212: 258 | G212: 230.0 | H212: =(E212 = CHAR(37)) * (F212*G212/100) + (E212 <> CHAR(37)) * (F212*G212) -> R59,340.00 | NL212: R557.00 | NO212: =NO176*0.25 -> 557
A214: 11869 | B214: C.8.2.2 | D214: Side V-drain | E214: m | F214: 258 | G214: 230.0 | H214: =(E214 = CHAR(37)) * (F214*G214/100) + (E214 <> CHAR(37)) * (F214*G214) -> R59,340.00 | NL214: R1,003.00 | NO214: =NO176*0.45 -> 1 003
B216: Total Carried Forward To Summary | H216: =SUM(H172:H215) -> R553,505.00
B218: =B167 -> CONSTUCTION OF SEWER RETICULATION IN VUKUZAKHE,WARD 1&2
B219: =B168 -> CONTRACT NO. T05/2026
B220: SCHEDULE OF QUANTITIES
H221: SANS 1200 DB : PIPE TRENCHES
B222: ITEM NO | C222: PAYMENT | D222: DESCRIPTION | E222: UNIT | F222: QTY | G222: RATE | H222: AMOUNT (RANDS) | NL222: QTY
A223: 1991 | B223: D | C223: SANS 1200 DB | D223: SECTION D : PIPE TRENCHES | NN223: Width = | NO223: 1.15 | NP223: 1.2
A225: 11873 | B225: D.1 | D225: PIPE TRENCHES | NN225: pipe diameter = | NO225: 0.65
NN226: Width = | NO226: =NO225+0.6 -> 1.25 | NP226: =NO226*1.045 -> 1.30625
A227: 11874 | C227: 8.3.2(a) | D227: Excavate in all materials for trenches backfill, compact, and dispose of surplus/unsuitable material, for pipes up to 710 mm diam. for total trench depth: | N227: Ward 01 | O227: Ward 02 Sewer | P227: Ward 02 Water | Q227: Total | NO227: =F176 -> 4 107
A229: 2056 | B229: D.1.1 | D229: Exceeding 0,0 m but not exceeding 1,0 m | E229: m | F229: =Q229 -> 46 | G229: 120.0 | H229: =(E229 = CHAR(37)) * (F229*G229/100) + (E229 <> CHAR(37)) * (F229*G229) -> R5,520.00 | J229: 120.0 | K229: 0.9 | L229: =J229-(K229*J229) -> 12.0 | M229: R0.50 | N229: R0.00 | O229: ='[2]SEWER QUANTITIES'!$D$817 -> R20.06 | P229: =[3]QUANTITIES!$D$12 -> R25.86 | Q229: =P229+O229+N229 -> R45.92 | NL229: R423.00 | NO229: 0.19 | NP229: =$NO$227*NO229 -> 780.33
A231: 1992 | B231: D.1.2 | D231: Exceeding 1,0 m but not exceeding 2,0 m | E231: m | F231: =Q231 -> 2 760 | G231: =L231 -> 14.0 | H231: =(E231 = CHAR(37)) * (F231*G231/100) + (E231 <> CHAR(37)) * (F231*G231) -> R38,640.00 | J231: 140.0 | K231: =K229 -> 0.9 | L231: =J231-(K231*J231) -> 14.0 | N231: ='[1]Ward 01_Plan1_SEWERLIST'!$F$66 -> R485.01 | O231: ='[2]SEWER QUANTITIES'!$E$817 -> R972.55 | P231: =[3]QUANTITIES!$E$12+[3]QUANTITIES!$F$12 -> R1,302.72 | Q231: =P231+O231+N231 -> R2,760.28 | NL231: R1,203.00 | NO231: 0.54 | NP231: =$NO$227*NO231 -> 2217.78
A233: 1993 | B233: D.1.3 | D233: Exceeding 2,0 m but not exceeding 3,0 m | E233: m | F233: =Q233 -> 1 087 | G233: =L233 -> 16.0 | H233: =(E233 = CHAR(37)) * (F233*G233/100) + (E233 <> CHAR(37)) * (F233*G233) -> R17,392.00 | J233: 160.0 | K233: =K231 -> 0.9 | L233: =J233-(K233*J233) -> 16.0 | N233: ='[1]Ward 01_Plan1_SEWERLIST'!$F$67 -> R328.20 | O233: ='[2]SEWER QUANTITIES'!$F$817 -> R759.16 | P233: R0.00 | Q233: =P233+O233+N233 -> R1,087.36 | NL233: R446.00 | NO233: 0.20 | NP233: =$NO$227*NO233 -> 821.40
A235: 2015 | B235: D.1.4 | D235: Exceeding 3,0 m but not exceeding 4,0 m | E235: m | F235: =Q235 -> 542 | G235: 20.0 | H235: =(E235 = CHAR(37)) * (F235*G235/100) + (E235 <> CHAR(37)) * (F235*G235) -> R10,840.00 | J235: 200.0 | K235: =K233 -> 0.9 | L235: =J235-(K235*J235) -> 20.0 | N235: R0.00 | O235: ='[2]SEWER QUANTITIES'!$G$817 -> R541.66 | P235: R0.00 | Q235: =P235+O235+N235 -> R541.66 | NL235: R156.00 | NO235: 0.07 | NP235: =$NO$227*NO235 -> 287.49
NO236: =SUM(NO229:NO235) -> 1.00 | NP236: =SUM(NP229:NP235) -> 4107.00
A237: 2015 | B237: D.1.4 | D237: Exceeding 4,0 m but not exceeding 5,0 m | E237: m | F237: =Q237 -> 163 | G237: 35.0 | H237: =(E237 = CHAR(37)) * (F237*G237/100) + (E237 <> CHAR(37)) * (F237*G237) -> R5,705.00 | J237: 210.0 | K237: =K235 -> 0.9 | L237: =J237-(K237*J237) -> 21.0 | N237: R0.00 | O237: ='[2]SEWER QUANTITIES'!$H$817+'[2]SEWER QUANTITIES'!$I$817 -> R162.94 | P237: R0.00 | Q237: =P237+O237+N237 -> R162.94 | NL237: R156.00 | NO237: 0.07 | NP237: =$NO$227*NO237 -> 287.49
A239: 1994 | C239: 8.3.2(b) | D239: Extra-over incl. for (prov):
N240: =SUM(F229:F237)*0.76*5 -> R17,472.40 | NO240: =NO227*NO226*4 -> 20 535 | NP240: 3025 | NQ240: =NO240-NP240 -> 17 510
A241: 1995 | B241: D.1.5 | D241: Intermediate excavation | E241: m³ | F241: =O241 -> 2 621 | G241: =L241 -> 22.0 | H241: =(E241 = CHAR(37)) * (F241*G241/100) + (E241 <> CHAR(37)) * (F241*G241) -> R57,662.00 | J241: 220.0 | K241: =K237 -> 0.9 | L241: =J241-(K241*J241) -> 22.0 | N241: R0.15 | O241: =N241*N240 -> R2,620.86 | NL241: R2,115.00
NN242: =$F$229*4*$NO$226 -> 230 | NO242: 0.19 | NP242: =$NO$240*NO242 -> 3901.65
A243: 1996 | B243: D.1.6 | D243: Hard rock excavation | E243: m³ | F243: =O243 -> 9 610 | G243: 28.0 | H243: =(E243 = CHAR(37)) * (F243*G243/100) + (E243 <> CHAR(37)) * (F243*G243) -> R269,080.00 | J243: 300.0 | K243: =K241 -> 0.9 | L243: =J243-(K243*J243) -> 30.0 | N243: R0.55 | O243: =N243*N240 -> R9,609.82 | NL243: R6,015.00
NN244: =F231*4*$NO$226 -> 13800 | NO244: 0.54 | NP244: =$NO$240*NO244 -> 11088.90
A245: 2024 | B245: D.1.7 | D245: Boulder excavation Class A | E245: m³ | F245: =O245 -> 3 494 | G245: 45.0 | H245: =(E245 = CHAR(37)) * (F245*G245/100) + (E245 <> CHAR(37)) * (F245*G245) -> R157,230.00 | J245: 340.0 | K245: =K243 -> 0.9 | L245: =J245-(K245*J245) -> 34.0 | N245: R0.20 | O245: =N245*N240 -> R3,494.48 | NL245: R2,230.00
NN246: =F233*4*$NO$226 -> 5435 | NO246: 0.20 | NP246: =$NO$240*NO246 -> 4107.00
A247: 2025 | B247: D.1.8 | D247: Boulder excavation Class B | E247: m³ | F247: =O247 -> 1 747 | G247: 58.0 | H247: =(E247 = CHAR(37)) * (F247*G247/100) + (E247 <> CHAR(37)) * (F247*G247) -> R101,326.00 | I247: =H581 -> R4,333,991.90 | J247: 380.0 | K247: =K245 -> 0.9 | L247: =J247-(K247*J247) -> 38.0 | N247: R0.10 | O247: =N247*N240 -> R1,747.24 | NL247: R780.00
N248: =SUM(N241:N247) -> R1.00 | O248: =SUM(O241:O247) -> R17,472.40 | NN248: =F235*4*$NO$226 -> 2710 | NO248: 0.07 | NP248: =$NO$240*NO248 -> 1437.45
A249: 2017 | B249: D.1.9 | C249: 8.3.2(b) | D249: Excavate and dispose of unsuitable material from trench bottom (Provisional) | E249: m³ | F249: =N240*0.25*0.76 -> 3 320 | G249: 20.0 | H249: =(E249 = CHAR(37)) * (F249*G249/100) + (E249 <> CHAR(37)) * (F249*G249) -> R66,400.00 | J249: 240.0 | K249: =K247 -> 0.9 | L249: =J249-(K249*J249) -> 24.0 | NL249: R418.00 | NN249: =SUM(NN242:NN248) -> 22175 | NO249: =SUM(NO242:NO248) -> 1.00 | NP249: =SUM(NP242:NP248) -> 20535.00
NO250: =NO226*NO227*0.15 -> 770.0625
A251: 2026 | B251: D.2 | C251: PSD 8.3.3 | D251: RESTRICTED EXCAVATION
A253: 2018 | D253: Excavate for pipe trenches confined spaces in all materials and use for backfill or embankment , or dispose: | NO253: =(110+(5*6.5))*1.15*4 -> 655.5 | NP253: road crossings and stream crossing
A255: 2019 | B255: D.2.1 | D255: Depth up to 1,0 m | E255: m³ | F255: =F229*0.15 -> 7 | G255: =L255 -> 14.0 | H255: =(E255 = CHAR(37)) * (F255*G255/100) + (E255 <> CHAR(37)) * (F255*G255) -> R98.00 | J255: 140.0 | K255: =K249 -> 0.9 | L255: =J255-(K255*J255) -> 14.0 | NL255: R262.00 | NO255: 0.40 | NP255: =$NO$253*NO255 -> 262.20
A257: 2020 | B257: D.2.2 | D257: Depth over 1,0 m and up to 2,0 m | E257: m³ | F257: =F231*0.15 -> 414 | G257: =L257 -> 16.0 | H257: =(E257 = CHAR(37)) * (F257*G257/100) + (E257 <> CHAR(37)) * (F257*G257) -> R6,624.00 | J257: 160.0 | K257: =K255 -> 0.9 | L257: =J257-(K257*J257) -> 16.0 | NL257: R262.00 | NO257: 0.40 | NP257: =$NO$253*NO257 -> 262.20
A259: 2021 | B259: D.2.3 | D259: Depth over 2,0 m and up to 3,0 m | E259: m³ | F259: =F233*0.15 -> 163 | G259: =L259 -> 18.0 | H259: =(E259 = CHAR(37)) * (F259*G259/100) + (E259 <> CHAR(37)) * (F259*G259) -> R2,934.00 | J259: 180.0 | K259: =K257 -> 0.9 | L259: =J259-(K259*J259) -> 18.0 | NL259: R131.00 | NO259: 0.20 | NP259: =$NO$253*NO259 -> 131.10
A261: 2022 | D261: Extra over items above for: | N261: =SUM(F255:F260)*0.76*5 -> R2,219.20 | NO261: =SUM(NO255:NO259) -> 1.00
N262: R0.15 | O262: =N262*N261 -> R332.88 | NO262: =NO253 -> 656
A263: 2027 | B263: D.2.4 | D263: Intermediate excavation | E263: m³ | F263: =O262 -> 333 | G263: =L263 -> 22.0 | H263: =(E263 = CHAR(37)) * (F263*G263/100) + (E263 <> CHAR(37)) * (F263*G263) -> R7,326.00 | J263: 220.0 | K263: =K259 -> 0.9 | L263: =J263-(K263*J263) -> 22.0 | NL263: R125.00
N264: R0.55 | O264: =N264*N261 -> R1,220.56 | NO264: 0.19 | NP264: =$NO$262*NO264 -> 124.64
A265: 2028 | B265: D.2.5 | D265: Hard rock excavation | E265: m³ | F265: =O264 -> 1 221 | G265: 28.0 | H265: =(E265 = CHAR(37)) * (F265*G265/100) + (E265 <> CHAR(37)) * (F265*G265) -> R34,188.00 | J265: 300.0 | K265: =K263 -> 0.9 | L265: =J265-(K265*J265) -> 30.0 | NL265: R354.00
N266: R0.20 | O266: =N266*N261 -> R443.84 | NO266: 0.54 | NP266: =$NO$262*NO266 -> 354.24
A267: 2029 | B267: D.2.6 | D267: Boulder excavation Class A | E267: m³ | F267: =O266 -> 444 | G267: 45.0 | H267: =(E267 = CHAR(37)) * (F267*G267/100) + (E267 <> CHAR(37)) * (F267*G267) -> R19,980.00 | J267: 340.0 | K267: =K265 -> 0.9 | L267: =J267-(K267*J267) -> 34.0 | NL267: R131.00
N268: R0.10 | O268: =N268*N261 -> R221.92 | NO268: 0.20 | NP268: =$NO$262*NO268 -> 131.20
A269: 2030 | B269: D.2.7 | D269: Boulder excavation Class B | E269: m³ | F269: =O268 -> 222 | G269: 58.0 | H269: =(E269 = CHAR(37)) * (F269*G269/100) + (E269 <> CHAR(37)) * (F269*G269) -> R12,876.00 | J269: 380.0 | K269: =K267 -> 0.9 | L269: =J269-(K269*J269) -> 38.0 | N269: =SUM(N262:N268) -> R1.00 | O269: =SUM(O262:O268) -> R2,219.20 | NL269: R46.00
NO270: 0.07 | NP270: =$NO$262*NO270 -> 45.92
A271: 2023 | B271: D.2.8 | D271: Extra over item 140.02 for hand excavation | E271: m³ | F271: =N261*0.25*0.76 -> 422 | G271: 20.0 | H271: =(E271 = CHAR(37)) * (F271*G271/100) + (E271 <> CHAR(37)) * (F271*G271) -> R8,440.00 | J271: 180.0 | K271: =K269 -> 0.9 | L271: =J271-(K271*J271) -> 18.0 | NL271: R295.00 | NO271: =SUM(NO264:NO270) -> 1.00 | NP271: =SUM(NP264:NP270) -> 656.00
NN272: 23.0% | NO272: =(F255+F257+F259+F263+F265+F267+F269) -> 2 804 | NP272: =NO272*NN272 -> 644.92
A273: 1997 | D273: EXCAVATION. ANCILLARIES Make up deficiency in backfill material (Provisional) | NO273: =NO227 -> 4 107
NO274: =NO273*1.4*1.15 -> 6 612 | NP274: R80
A275: 1998 | B275: D.2.9 | C275: 8.3.3.1(a) | D275: from other necessary excavations on site | E275: m³ | F275: 0 | G275: =L275 -> 8.0 | H275: =(E275 = CHAR(37)) * (F275*G275/100) + (E275 <> CHAR(37)) * (F275*G275) -> R0.00 | J275: 80.0 | K275: =K271 -> 0.9 | L275: =J275-(K275*J275) -> 8.0 | NL275: R3,587.00
NO276: =NO274 -> 6 612 | NP276: R240
A277: 1999 | B277: D.2.10 | C277: 8.3.3.1(c) | D277: by importation from commercial or off-site sources selected by the Contractor | E277: m³ | F277: =N240*0.6*0.76 -> 7 967 | G277: =L277 -> 24.0 | H277: =(E277 = CHAR(37)) * (F277*G277/100) + (E277 <> CHAR(37)) * (F277*G277) -> R191,208.00 | J277: 240.0 | K277: =K275 -> 0.9 | L277: =J277-(K277*J277) -> 24.0 | NL277: R3,587.00
A279: 2035 | B279: D.3 | C279: PSD 8.3.3 | D279: SUPPLY ONLY OF BEDDING BY IMPORTATION
B281: Total Carried Forward | H281: =SUM(H223:H280) -> R1,013,469.00
B283: =B218 -> CONSTUCTION OF SEWER RETICULATION IN VUKUZAKHE,WARD 1&2
B284: =B219 -> CONTRACT NO. T05/2026
B285: SCHEDULE OF QUANTITIES
H286: SANS 1200 DB : PIPE TRENCHES
B287: ITEM NO | C287: PAYMENT | D287: DESCRIPTION | E287: UNIT | F287: QTY | G287: RATE | H287: AMOUNT (RANDS) | NL287: QTY
B288: Brought Forward | H288: =H281 -> R1,013,469.00
A289: 2040 | D289: From commercial sources: | N289: Length = | O289: =SUM(F229:F237) -> R4,598.00
J290: 200.0 | K290: =K277 -> 0.9 | L290: =J290-(K290*J290) -> 20.0 | NO290: =#REF!*0.15*NP226 -> 
A291: 2041 | B291: D.3.7 | D291: Bedding Cradle | E291: m³ | F291: =N291 -> 524 | G291: =L290 -> 20.0 | H291: =(E291 = CHAR(37)) * (F291*G291/100) + (E291 <> CHAR(37)) * (F291*G291) -> R10,480.00 | N291: =O289*0.76*0.15 -> R524.17 | NL291: R437.00
J292: 240.0 | K292: =K290 -> 0.9 | L292: =J292-(K292*J292) -> 24.0 | NO292: =#REF!*0.2*NP226 -> 
A293: 2042 | B293: D.3.8 | D293: 200mm layer compaceted seleted fill blanket (Class I) | E293: m³ | F293: =N293 -> 699 | G293: =L292 -> 24.0 | H293: =(E293 = CHAR(37)) * (F293*G293/100) + (E293 <> CHAR(37)) * (F293*G293) -> R16,776.00 | N293: =O289*0.76*0.2 -> R698.90 | NL293: R582.00
J294: 260.0 | K294: =K292 -> 0.9 | L294: =J294-(K294*J294) -> 26.0 | NO294: =#REF!*0.3*NP226 -> 
A295: 2043 | B295: D.3.9 | D295: 300mm layer of consolidaed selected backfil (Class II) | E295: m³ | F295: =N295 -> 699 | G295: =L294 -> 26.0 | H295: =(E295 = CHAR(37)) * (F295*G295/100) + (E295 <> CHAR(37)) * (F295*G295) -> R18,174.00 | N295: =O289*0.76*0.2 -> R698.90 | NL295: R873.00 | NO295: =NO253 -> 655.5
J296: 580.0 | K296: =K294 -> 0.9 | L296: =J296-(K296*J296) -> 58.0
A297: 2044 | B297: D.3.10 | D297: 200mm layer of 19mm Aggregate | E297: m³ | F297: =N297 -> 699 | G297: =L296 -> 58.0 | H297: =(E297 = CHAR(37)) * (F297*G297/100) + (E297 <> CHAR(37)) * (F297*G297) -> R40,542.00 | N297: =O289*0.76*0.2 -> R698.90 | NL297: R428.00 | NO297: =NO295*0.5*NP226 -> 428.1234375
A299: 2000 | B299: D.4 | C299: 8.3.3.4 | D299: OVERHAUL
J300: 8.0 | K300: =K296 -> 0.9 | L300: =J300-(K300*J300) -> 0.8
A301: 2001 | B301: D.4.1 | D301: Overhaul (provisional) | E301: m³.km | F301: =N301 -> 2 621 | G301: =L300 -> 0.8 | H301: =(E301 = CHAR(37)) * (F301*G301/100) + (E301 <> CHAR(37)) * (F301*G301) -> R2,096.80 | N301: =SUM(N291:N297) -> R2,620.87 | NL301: R1,160.00 | NO301: =NO290+NO292+NO294+NO297 -> 
A303: 2002 | B303: D.5 | D303: EXISTING SERVICES
A305: 2003 | C305: 8.3.5 | D305: Services across and in trenches
A307: 2004 | C307: PSDB ... | D307: Location
... 171 more rows

Sheet CASH FLOW 1 (hidden)
A1: CASH FLOW PROJECTION
A3: CONSTRUCTION OF SEWER RETICULATION IN VUKUZAHKE, WARD 1&2
A5: Contract No.: | B5: T05/2026 | D5: Account No.: | G5: DATE:
A6: Job No.: PROFFESIONAL FEES CLAIM | B6: 1 | G6: 2025-08-22
A7: ACCOUNT DETAILS
A8: CLIENT: | B8: The Municipal Manager | E8: Payable To: | F8: TMS Consulting Engineer and Project Management
B9: DR PIXLEY KA ISAKA SEME LOCAL MUNICIPALITY | F9: 39A Emhke Street
B10: Corner of Dr Nelson Mandela Drive and Adelaide Tambo Street | F10: P.O Box 603
B11: Volksrust | F11: Nelspruit
B12: 2470 | F12: Mpumalanga
F13: 1200
B14: VAT No:
A15: APPOINMENT
A16: Project Amount incl VAT | B16: R 5,000,000.00
A17: Proffesional Fees % | B17: =B18/B16 -> R 0.12
A18: Appointment Amount incl VAT | B18: R 580,750.00
A19: Appointment Amount Exc VAT | B19: =B18/1.15 -> R 505,000.00
A20: Construction Amount Incl VAT | B20: =B16-B18 -> R 4,419,250.00
A22: PROFESSIONAL FEES
A23: 1. PROFESSION FEES | G23: =B19-B34-E42 -> R 254,000.00
A24: Description | D24: Running Total | E24: Previous Payment | G24: Amount Due
A25: Inception | B25: =$G$23*C25 -> R 12,700.00 | C25: 5% | D25: =E25+G25 -> R 12,700.00 | E25: 0 | G25: =B25-E25 -> R 12,700.00
A26: Concept And Viability | B26: R 63,500.00 | C26: 25% | D26: R 63,500.00 | E26: 0 | G26: =B26-E26 -> R 63,500.00
A27: Design Development | B27: R 63,500.00 | C27: 25% | D27: R 63,500.00 | E27: 0 | G27: =B27-E27 -> R 63,500.00
A28: Documentation And Procurement | B28: R 63,500.00 | C28: 25% | D28: R 63,500.00 | E28: 0 | G28: =B28-E28 -> R 63,500.00
A29: Contract Administration And Inspection | B29: R 38,100.00 | C29: 15% | D29: R 38,100.00 | E29: 0 | G29: =B29 -> R 38,100.00
A30: Close Out | B30: =$G$23*C30 -> R 12,700.00 | C30: 5% | D30: R 12,700.00 | E30: 0 | G30: =B30 -> R 12,700.00
A31: TOTAL | B31: =SUM(B25:B30) -> R 254,000.00 | C31: =SUM(C25:C30) -> 100% | D31: =SUM(D25:D30) -> R 254,000.00 | E31: 0 | G31: =SUM(G25:G30) -> R 254,000.00
A32: BREAKDOWNS
A33: DESCRIPTION | B33: UNIT | C33: QTY | D33: RATE | E33: Amount | F33: Previous Payment | G33: TOTAL CLAIM
A34: 2. CONSTRUCTION MONITORING EXPENSES | B34: R45,000.00
A35: Supervision @ R45,000.00/ Month | B35: Months | C35: 6 | D35: =B34/6 -> R 7,500.00 | E35: =D35*C35 -> R 45,000.00 | G35: =E35-F35 -> R 45,000.00
A36: Total: | E36: =E35 -> R 45,000.00 | G36: =G35 -> R 45,000.00
A37: 3.RECOVERABLE EXPENSES
A38: Dtailed Survey | B38: Prov. Sum | C38: 1 | D38: R50,000.00 | E38: =D38*C38 -> R 50,000.00 | G38: =E38-F38 -> R 50,000.00
A39: Geotechnical Investigation | B39: Prov. Sum | C39: 1 | D39: R50,000.00 | E39: =D39*C39 -> R 50,000.00 | G39: =E39-F39 -> R 50,000.00
A40: Electrical Wayleave Application | B40: Prov. Sum | C40: 1 | D40: R10,000.00 | E40: =D40*C40 -> R 10,000.00 | G40: R 10,000.00
A41: Documantation and Travelling | B41: Months | C41: =C35 -> 6 | D41: R16,000.00 | E41: =D41*C41 -> R 96,000.00 | G41: R 96,000.00
A42: Total: | D42: =SUM(D38:D41) -> R 126,000.00 | E42: =SUM(E38:E41) -> R 206,000.0000 | G42: =SUM(G38:G41) -> R 206,000.00
A43: SUMMARY OF PAYMENTS
A44: 1. PROFESSION FEES | G44: =G31 -> R 254,000.00
A45: 2. MONITORING | G45: =G36 -> R 45,000.00
A46: 3. RECOVERABLE DISBURSMENTS | G46: =G42 -> R 206,000.00
A47: SUBTOTAL 1 | G47: =SUM(G44:G46) -> R 505,000.00
A49: LESS PREVIOUS PAYMENTS
A51: SUBTOTAL 2 | G51: =G47-G49 -> R 505,000.00
A53: ADD 15% VAT | G53: =G51*0.15 -> R 75,750.00
A55: TOTAL AMOUNT DUE | G55: =SUM(G51:G54) -> R 580,750.00
A56: CERTIFIED CORRECT FOR PAYMENT: | E56: APPROVED FOR PAYMENT
A61: CONSULTANT | C61: DATE | E61: MSUKALIGWA MUNICIPALITY | G61: DATE
C62: =G6 -> 2025-08-22
A593: Payment Breakdown
A594: Service Provider | B594: Amount (Rands)
A595: =F8 -> TMS Consulting Engineer and Project Management | B595: =G51 -> R 505,000.00
A596: VAT @ 15% | B596: =B595*0.15 -> R75,750.00
A597: Total (incl. VAT) | B597: =B595+B596 -> R 580,750.00

Sheet CASH FLOW 2 (hidden)
A2: Source of Funds | B2: MIG
B3: Total | C3: VAT | D3: Direct Costs | F3: PERIOD ( MONTH) | G3: Proffesional Fees | H3: Completion Percentage | I3: Proffesional Fees | J3: Construction Fees | K3: Total | L3: Cummulative | M3: PERCENTAGE
B4: (EXC. VAT) | I4: ='[4]CASHFLOW 1'!B20 -> R4,419,250.00
A5: =[5]CASHFLOW!A19 -> Inception | B5: ='[4]CASHFLOW 1'!G25 -> R14,200.00 | C5: =D5-B5 -> R2,130.00 | D5: =B5*1.15 -> R16,330.00 | F5: 2025-08-29 | G5: =D5+D6 -> R97,980.00 | K5: =J5+G5 -> R97,980.00 | L5: =K5 -> R97,980.00 | M5: =L5/$K$16 -> 2%
A6: =[5]CASHFLOW!A20 -> Concept And Viability | B6: ='[4]CASHFLOW 1'!G26 -> R71,000.00 | C6: =D6-B6 -> R10,650.00 | D6: =B6*1.15 -> R81,650.00 | F6: 2025-09-29 | G6: =D7+D12 -> R284,050.00 | K6: =J6+G6 -> R284,050.00 | L6: =L5+K6 -> R382,030.00 | M6: =L6/$K$16 -> 8%
A7: =[5]CASHFLOW!A21 -> Design Development | B7: ='[4]CASHFLOW 1'!G27 -> R71,000.00 | C7: R10,650.00 | D7: R81,650.00 | F7: 2025-10-29 | G7: =D9 -> R48,990.00 | K7: R48,990.00 | L7: =L6+K7 -> R431,020.00 | M7: 9%
A8: =[5]CASHFLOW!A22 -> Documentation And Procurement | B8: ='[4]CASHFLOW 1'!G28 -> R71,000.00 | C8: R10,650.00 | D8: R81,650.00 | F8: 2025-11-29 | G8: =D8 -> R81,650.00 | K8: R81,650.00 | L8: R512,670.00 | M8: 10%
A9: =[5]CASHFLOW!A23 -> Contract Administration And Inspection | B9: ='[4]CASHFLOW 1'!G29 -> R42,600.00 | C9: R6,390.00 | D9: R48,990.00 | F9: 2025-12-29 | G9: =$D$11/6 -> R8,625.00 | H9: R0.15 | I9: =$I$4*H9 -> R662,887.50 | J9: =I9 -> R662,887.50 | K9: R671,512.50 | L9: R1,184,182.50 | M9: 24%
A10: =[5]CASHFLOW!A24 -> Close Out | B10: ='[4]CASHFLOW 1'!G30 -> R14,200.00 | C10: R2,130.00 | D10: R16,330.00 | F10: 2026-01-29 | G10: =$D$11/6 -> R8,625.00 | H10: R0.25 | I10: R1,104,812.50 | J10: =I10-I9 -> R441,925.00 | K10: R450,550.00 | L10: R1,634,732.50 | M10: 33%
A11: =[5]CASHFLOW!A29 -> Construction Supervision @ R7500/ Month | B11: ='[4]CASHFLOW 1'!G35 -> R45,000.00 | C11: R6,750.00 | D11: R51,750.00 | F11: 2026-02-28 | G11: R8,625.00 | H11: R0.45 | I11: R1,988,662.50 | J11: R883,850.00 | K11: R892,475.00 | L11: R2,527,207.50 | M11: 51%
A12: ='[5]IPC 05'!A32:G32 -> 3.RECOVERABLE EXPENSES | B12: ='[4]CASHFLOW 1'!G42 -> R176,000.00 | C12: =D12-B12 -> R26,400.00 | D12: R202,400.00 | F12: 2026-03-29 | G12: R8,625.00 | H12: R0.65 | I12: R2,872,512.50 | J12: R883,850.00 | K12: R892,475.00 | L12: R3,419,682.50 | M12: 68%
A13: =[5]CASHFLOW!A25 -> TOTAL | B13: =SUM(B5:B12) -> R505,000.00 | C13: =SUM(C5:C12) -> R75,750.00 | D13: =SUM(D5:D12) -> R580,750.00 | F13: 2026-04-29 | G13: R8,625.00 | H13: R0.75 | I13: R3,314,437.50 | J13: R441,925.00 | K13: R450,550.00 | L13: R3,870,232.50 | M13: 77%
A14: =[5]CASHFLOW!A26 -> BREAKDOWNS | F14: 2026-05-29 | G14: R8,625.00 | H14: R0.85 | I14: R3,756,362.50 | J14: R441,925.00 | K14: R450,550.00 | L14: R4,320,782.50 | M14: 86%
F15: 2026-06-29 | G15: =D10 -> R16,330.00 | H15: R1.00 | I15: R4,419,250.00 | J15: R662,887.50 | K15: R679,217.50 | L15: R5,000,000.00 | M15: 100%
F16: Total | G16: =SUM(G5:G15) -> R580,750.00 | J16: =SUM(J9:J15) -> R4,419,250.00 | K16: =SUM(K5:K15) -> R5,000,000.00

Sheet ADDITIONAL FUNDING (hidden)
A2: Funding | B2: Proffesional Fees | C2: Construction Fees | D2: Total
A3: Available Funding | B3: ='CASH FLOW 2'!G16 -> R580,750.00 | C3: ='CASH FLOW 2'!J16 -> R4,419,250.00 | D3: =SUM(B3:C3) -> R5,000,000.00
A4: Estimated Cost | B4: =#REF! ->  | C4: =#REF! ->  | D4: =SUM(B4:C4) -> 
A5: Additional Cost | B5: =B4-B3 ->  | C5: =C4-C3 ->  | D5: =D4-D3 -> 

Sheet STR REAHABILITATION (2) (hidden)
A2: REQUEST FOR QOUTATION
A3: PAYMENT
A4: REFERS | B4: ITEM | E4: DESCRIPTION | F4: UNIT | G4: QUAN- | H4: RATE | I4: AMOUNT
A5: TO | B5: NO | G5: TITY
A7: SABS | B7: 130.00 | C7: SITE CLEARANCE | I7: =IF(OR(AND(G7="Prov",H7="Sum"),(H7="PC Sum")),". . . . . . . . .00",IF(ISERR(G7*H7),"",IF(G7*H7=0,"",ROUND(G7*H7,2)))) -> 
A8: 1200 C
A10: 8.2.9 | B10: 130.10 | C10: Transport materials and debris to | I10: =IF(OR(AND(G10="Prov",H10="Sum"),(H10="PC Sum")),". . . . . . . . .00",IF(ISERR(G10*H10),"",IF(G10*H10=0,"",ROUND(G10*H10,2)))) -> 
C11: unspecified site and dump | F11: m³-km | G11: =(L18*1.5)*0.5 -> 525.00 | H11: 5.00 | I11: 2,625.00 | K11: DEBRIS FOUND ON SITE DURING EXCAVATION
A13: SABS | B13: 140.00 | C13: EARTHWORKS | K13: Total Length | L13: =10+25+25+10 -> 70
A14: 1200 D | K14: Width 01 | L14: 6
K15: Width 02 | L15: 4
A16: PSD | B16: 140.08 | C16: Topsoiling | F16: m³ | G16: =$L$18*0.15 -> 105.00 | H16: 60.00 | I16: =IF(OR(AND(G16="Prov",H16="Sum"),(H16="PC Sum")),". . . . . . . . .00",IF(ISERR(G16*H16),"",IF(G16*H16=0,"",ROUND(G16*H16,2)))) -> 6,300.00 | K16: Area 01 | L16: =L13*L14 -> 420
A17: 8.3.10 | K17: Area 02 | L17: =L13*L15 -> 280
K18: Total Area | L18: =L16+L17 -> 700
A19: 8.3.11 | B19: 140.09 | C19: Grassing or other vegetation cover:
L20: Area | M20: depth 1 | N20: depth 2 | O20: depth 3 | P20: Vol 1 | Q20: Vol 2 | R20: Vol 3 | S20: Totals
C21: .01 | D21: erosion control blankets | F21: m² | G21: =$L$18 -> 700.00 | H21: 80.00 | I21: 56,000.00 | K21: Area 01 | L21: =5.5*1 -> 5.5 | M21: 1.5 | N21: 1.2 | O21: 0.6 | P21: =M21*L21 -> 8.25 | Q21: =N21*L21 -> 6.6 | R21: =O21*L21 -> 3.3 | S21: =SUM(P21:R21) -> 18.15
K22: Area 02 | L22: =5*1 -> 5 | M22: 1.5 | N22: 1.2 | O22: 0.6 | P22: =M22*L22 -> 7.5 | Q22: =N22*L22 -> 6 | R22: =O22*L22 -> 3 | S22: =SUM(P22:R22) -> 16.5
C23: .02 | D23: Hydroseeding | F23: m² | G23: =$L$18 -> 700.00 | H23: 90.00 | I23: 63,000.00 | K23: Area 03 | L23: =2*1.5*3 -> 9 | M23: 0.5 | N23: 0.3 | P23: =L23*M23 -> 4.5 | Q23: =L23*N23 -> 2.7 | S23: 7.2
K24: Area 04 | L24: =2.3*2.3*2 -> 10.58 | M24: 0.5 | N24: 0.3 | P24: =L24*M24 -> 5.29 | Q24: =L24*N24 -> 3.174 | S24: 8.464
A25: SABS | B25: 146.00 | C25: GABIONS AND PITCHING | I25: =IF(OR(AND(G25="Prov",H25="Sum"),(H25="PC Sum")),". . . . . . . . .00",IF(ISERR(G25*H25),"",IF(G25*H25=0,"",ROUND(G25*H25,2)))) ->  | K25: Total Area | L25: =SUM(L21:L24) -> 30.08 | P25: =SUM(P21:P24) -> 25.54 | Q25: =SUM(Q21:Q24) -> 18.474 | R25: 6.3 | S25: =SUM(S21:S24) -> 50.314
A26: 1200 DK
A28: 8.2.1 | B28: 146.01 | C28: Surface preparation for bedding of
C29: gabions:
C31: .01 | D31: Cavities filled with approved excavated
D32: material or rock | F32: m² | G32: =L25 -> 30.08 | H32: 20.00 | I32: 601.60
A34: 8.2.2 | B34: 146.02 | C34: Gabions:
C36: .01 | D36: Gabion boxes of galvanized wire:
D38: .01 | E38: 5.5 m x 1.0m x 1.5 m
E39: 2.7 mm dia wire, | F39: m³ | G39: =S21 -> 18.15 | H39: 1,800.00 | I39: =IF(OR(AND(G39="Prov",H39="Sum"),(H39="PC Sum")),". . . . . . . . .00",IF(ISERR(G39*H39),"",IF(G39*H39=0,"",ROUND(G39*H39,2)))) -> 32,670.00
D41: .02 | E41: 5.0 m x 1.0m x 1.5 m
E42: 2.7 mm dia wire, | F42: m³ | G42: =S22 -> 16.50 | H42: 1,800.00 | I42: =IF(OR(AND(G42="Prov",H42="Sum"),(H42="PC Sum")),". . . . . . . . .00",IF(ISERR(G42*H42),"",IF(G42*H42=0,"",ROUND(G42*H42,2)))) -> 29,700.00
C44: .03 | D44: Gabion mattresses of galvanized wire,
D45: up to 0,3 m deep:
D47: .01 | E47: 2.0m x 1.5m x 0.5m, | F47: m³ | G47: =S23 -> 7.20 | H47: 1,700.00 | I47: =IF(OR(AND(G47="Prov",H47="Sum"),(H47="PC Sum")),". . . . . . . . .00",IF(ISERR(G47*H47),"",IF(G47*H47=0,"",ROUND(G47*H47,2)))) -> 12,240.00
E48: 2.7 mm dia wire,
D50: .02 | E50: 2.3m x 0.3m x 0.5m, | F50: m³ | G50: =S24 -> 8.46 | H50: 1,700.00 | I50: =IF(OR(AND(G50="Prov",H50="Sum"),(H50="PC Sum")),". . . . . . . . .00",IF(ISERR(G50*H50),"",IF(G50*H50=0,"",ROUND(G50*H50,2)))) -> 14,382.00
E51: 2.7 mm dia wire, | I51: =IF(OR(AND(G51="Prov",H51="Sum"),(H51="PC Sum")),". . . . . . . . .00",IF(ISERR(G51*H51),"",IF(G51*H51=0,"",ROUND(G51*H51,2)))) -> 
A53: 8.2.3 | B53: 146.03 | C53: Extra over item 146.02 for packing
C54: selected stone for exposed face | F54: m² | G54: =L25 -> 30.08 | H54: 70.00 | I54: 2,105.60
A56: 8.2.4 | B56: 146.04 | C56: Geotextile:
C58: .01 | D58: Bidim U24 or approved equivalent | F58: m² | G58: =L25+(0.35*L25) -> 40.61 | H58: 20.00 | I58: 812.20
I59: =IF(OR(AND(G59="Prov",H59="Sum"),(H59="PC Sum")),". . . . . . . . .00",IF(ISERR(G59*H59),"",IF(G59*H59=0,"",ROUND(G59*H59,2)))) -> 
B61: TOTAL SECTION 1200 DK CARRIED TO SUMMARY | I61: =IF(SUM(I7:I59)=0,"",SUM(I7:I59)) -> R220,436.40
A64: MONITORING BY THE ECO FOR THE PERIOD OF 1.0 MONTHS
A67: 1. The quotation from the ECO is attached.
A69: PAYMENT
A70: REFERS | B70: ITEM | D70: ECO MONITORING | F70: UNIT | G70: QUAN- | H70: RATE | I70: AMOUNT
A71: TO | B71: NO | G71: TITY | K71: =300000/4 -> 75000
B73: 1. | C73: Rehabilitation and Closure Plan | F73: sum | G73: 1.00 | H73: 26000 | I73: =H73*G73 -> R26,000.00
B75: 2. | C75: Monitoring for rehabilitation | F75: month | G75: 2.00 | H75: 46000 | I75: =H75*G75 -> R92,000.00
B77: 3. | C77: Watercourse Assessment | F77: sum | G77: 1.00 | H77: 300000 | I77: =H77*G77 -> R300,000.00
B80: Total carry to summary | I80: =SUM(I72:I78) -> R418,000.00
A84: PAYMENT REFERS TO | B84: ITEM NO. | D84: SUMMARY OF SECTIONS | I84: AMOUNT
B86: 1. | C86: IMPLEMENTATION OF THE REHABILITATION | I86: =I61 -> R220,436.40
B88: 2. | C88: =D70 -> ECO MONITORING | I88: =I80 -> R418,000.00
B91: 3. | C91: SUB-TOTAL A | I91: =SUM(I85:I89) -> R638,436.40
B94: 4. | C94: VAT @ 15% | I94: =I91*0.15 -> R95,765.46
B97: 5. | C97: TOTAL | I97: =SUM(I91:I95) -> R734,201.86

Sheet EOT CALCULATIONS (hidden)
A1: CONSTUCTION OF SEWER RETICULATION IN VUKUZAKHE,WARD 1&2
A2: CONTRACT NO: | D2: 8/3-04/2024
A4: Contract Data
A6: Date Letter of Acceptance Signed | D6: 2024-11-06
A8: Inception Meeting | D8: 2024-11-11
A10: Kick-off Meeting Date/Commencement Date | D10: =D8+14 -> 2024-11-25
A12: Site Hand Over Date | D12: =D10 -> 2024-11-25
A14: Commencement of Work Date | D14: =D12 -> 2024-11-25 | E14: as per Notification of Construction and Construction Work Permit
A16: Project Duration | D16: 7 | E16: months | F16: 8 | G16: days of holidays | L16: Rainfall Figures
D17: =D16*4 -> 28 | E17: weeks | F17: 21 | G17: days of holidays (december shutdown) | L17: Date | M17: Quantity (mm) | N17: Number of day
F18: =(D16*30)+F16+F17 -> 239 | G18: day | L18: 2025-01-06 | M18: 54 | N18: 1
A19: Due Commpletion Date | D19: =D14+F18 -> 2025-07-22 | L19: 2025-01-07 | M19: 40 | N19: 1
L20: 2025-01-08 | M20: 32 | N20: 1
A21: Additional Days | D21: 0 | L21: 2025-01-10 | M21: 39 | N21: 1
L22: 2025-02-04 | M22: 31 | N22: 1
A23: Revised Due Completion Date | D23: =D19+D21 -> 2025-07-22 | L23: 2025-02-05 | M23: 36 | N23: 1
L24: 2025-02-07 | M24: 23 | N24: 1
A25: Additional Days Estimation | L25: 2025-02-17 | M25: 26 | N25: 1
A26: 1.Weather Inclination : | L26: 2025-02-18 | M26: 19 | N26: 1
B27: 1.Storms | L27: 2025-03-14 | M27: 17 | N27: 1
B28: 2.Flood | L28: 2025-03-18 | M28: 54 | N28: 1
B29: 3.Heavy Rainfall (raining days) | D29: 25 | H29: ='RAINFALL DAYS ESTIMATION'!K65 -> -82.795 | L29: 2025-03-19 | M29: 34 | N29: 1
A30: 2.Delays due to: | L30: 2025-03-26 | M30: 33 | N30: 1
B31: 1.Strike. | D31: 0 | L31: 2025-03-27 | M31: 45 | N31: 1
A32: 3.Disruptions: | L32: 2025-03-31 | M32: 48 | N32: 1
B33: 1.SMME's | D33: 0 | L33: 2025-04-01 | M33: 52 | N33: 1
A34: 4.Additional Works: | L34: 2025-04-03 | M34: 24 | N34: 1
B35: 1. Change of Pipe route. | D35: 2 | L35: 2025-04-05 | M35: 29 | N35: 1
B36: 2. Wastewater Treatment Works Connection | D36: 3 | L36: 2025-04-07 | M36: 17 | N36: 1
B37: 3. Extending existing Stormwater pipes | D37: 3 | L37: 2025-04-08 | M37: 21 | N37: 1
B38: 4. Rehabilitation of the Stream | D38: 4 | H38: =SUM(D35:D38) -> 12 | L38: 2025-04-09 | M38: 16 | N38: 1
L39: 2025-04-10 | M39: 13 | N39: 1
A40: Total Number of days | D40: =SUM(D27:D38) -> 37 | L40: 2025-04-13 | M40: 15 | N40: 1
A41: Holidays | D41: 1 | L41: 2025-04-15 | M41: 21 | N41: 1
A42: Total Number of days Required | D42: =D40+D41 -> 38 | E42: =D42/30 -> 1.27 | F42: month/s | L42: 2025-04-17 | M42: 16 | N42: 1
A43: REV00 | B43: Due Completion Date | D43: =D23+D42 -> 2025-08-29 | L43: Total to date | M43: =SUM(M18:M42) -> 755 | N43: =SUM(N18:N42) -> 25
L44: Average | M44: =AVERAGE(M18:M42) -> 30.2 | N44: =AVERAGE(N18:N42) -> 1

Sheet RAINFALL DAYS ESTIMATION (hidden)
A58: Key elements and calculations:
A60: Abnormal Rainfall:
A61: The GCC allows for extensions of time when rainfall exceeds normal levels and disrupts work.
A62: Formula for Time Extension (V):
A63: A common formula is: V = (Nw - Nn) + (Rw - Rn) / X.
J64: V = (Nw - Nn) + (Rw - Rn) / X.
A65: V represents the extension of time in calendar days. | J65: V= | K65: =(K66-K67)+((K68-K69)/K70) -> -82.795 | L65: 60 days
A66: Nw is the actual number of days in the month with rainfall ≥ 10mm. | J66: Nw= | K66: ='EOT CALCULATIONS'!N43 -> 25 | L66: days
A67: Nn is the average number of days with rainfall ≥ 10mm, based on historical records. | J67: Nn= | K67: 112 | L67: day/s
A68: Rw is the actual total rainfall in mm for the month. | J68: Rw= | K68: ='EOT CALCULATIONS'!M43 -> 755 | L68: mm
A69: Rn is the average total rainfall in mm for the month, based on historical records. | J69: Rn= | K69: 670.9 | L69: mm
A70: X is a divisor, often 20, that may vary depending on the contract. | J70: X= | K70: 20
A71: Y is a divisor, often 10, that may vary depending on the contract. | J71: Y= | K71: 10
A73: Rainfall Records:
A74: The contractor is typically responsible for sourcing rainfall records for both actual and average values.
A75: Partial Months:
A76: When calculating extensions for parts of a month, pro rata values are used.
A77: Normal vs. Abnormal:
A78: The GCC distinguishes between normal weather days (contractor's risk) and abnormal rainfall days (potentially leading to time extensions).
A79: Critical Path Method:
A80: Some contracts specify the Critical Path Method (CPM) for calculating time extensions, particularly when dealing with consequential delays.
A83: Pro rata values refer to amounts that are allocated or calculated proportionally, based on a certain ratio or share.
A85: In the context of construction and contracts (like in the GCC), pro rata is used to fairly distribute time, cost, or quantities according to actual measurements or circumstances.
A87: Example in your case:
A89: If a project allows for a certain number of non-working days due to rainfall (say 20 days based on 600 mm of expected rainfall), but actual rainfall was 755 mm over 25 days, then the extension of time would be calculated pro rata based on the increased rainfall.
A91: That means:
A93: The extension is calculated in proportion to the actual vs. expected rainfall and the associated non-working days.
A95: It's a way to ensure fairness, not just using raw numbers but adjusting them based on a defined ratio.
A97: Simple analogy:
A99: If you rent an office for R10,000 per month but only use it for half the month, the landlord may charge you pro rata — R5,000 — for the days used.
A101: Let me know if you'd like help applying this to a specific contract clause or rainfall claim.

Sheet Sheet2 (hidden)
A3: Description | B3: Quantity | C3: Excl. Price | D3: Disc % | E3: VAT % | F3: Excl. Total | G3: Incl. Total
A5: travel - travel and set up | B5: 1 | C5: R33,136.58 | D5: 0.00% | E5: 15.00% | F5: =B5*C5*E5 -> R4,970.49 | G5: =(B5*C5)+F5 -> R38,107.07 | I5: 15% | J5: =I5*$G$19 ->  | K5: =J5/1.15 ->  | L5: =J5-K5 -> 
A6: acc - accommodation including staff meals | B6: 2 | C6: =11045.53/2 -> R5,522.77 | D6: 0.00% | E6: 15.00% | F6: R1,656.83 | G6: R12,702.37 | I6: 5%
A7: 3D - scanning for detection of rebar on concrete surface | B7: 1 | C7: R33,136.58 | D7: 0.00% | E7: 15.00% | F7: R4,970.49 | G7: R38,107.07 | I7: 15%
A8: analyse - and report | B8: 1 | C8: R11,045.53 | D8: 0.00% | E8: 15.00% | F8: R1,656.83 | G8: R12,702.36 | I8: 5%
A9: stitch - drilling of concrete wall for 650 mm diameter opening at 300 mm thick | B9: 1 | C9: R66,273.17 | D9: 0.00% | E9: 15.00% | F9: R9,940.98 | G9: R76,214.15 | I9: 30%
A10: hire - generator with running cost | B10: 2 | C10: =66273.17/2 -> R33,136.59 | D10: 0.00% | E10: 15.00% | F10: R9,940.98 | G10: R76,214.16 | I10: 30%
I11: =SUM(I5:I10) -> 1 | J11: =SUM(J5:J10) -> 
F12: Total Discount: | G12: R0.00
F13: Total Exclusive: | G13: =G15-G14 -> R220,910.58
F14: Total VAT: | G14: =SUM(F5:F10) -> R33,136.60
F15: Sub Total: | G15: =SUM(G5:G10) -> R254,047.18
F17: Grand Total: | G17: =G15 -> R254,047.18
G19: =#REF! ->  | H19: =G17-G19 -> 
C22: QTY | D22: UOM | E22: UNITS / PK | F22: UNIT PRICE | G22: TOTAL PRICE
A23: ITEM No | B23: DESCRIPTION
A24: 343353 | B24: 750x2.44 SC 50D IJ (Sil) | C24: 9 | D24: M EA | E24: 23.4 | F24: 1,716.45 | G24: =F24*E24 -> 40,164.93
B25: Freight - 240km
A26: 402261 | B26: 750 Single Wingwall Shell (Type S2) Freight - 240km | C26: 2 | E26: 2 | F26: 20,792.58 | G26: 41,585.16
G29: =G26+G24 -> R81,750.09
G30: =G29*0.15 -> R12,262.51
G31: =G29+G30 -> R94,012.60
